Workbook

Sheet Historical scenario - input
B1: Unit cost - historical | C1: Calibration period: 2014-15 to 2017-18
B2: Replacement lives - calibrated
D3: Unit cost | E3: Replacement life | G3: Method | H3: Volume | CV3: Replacement Cost (NOT depreciated)
H4: Installation date | CV4: Installation date
A5: ID | B5: Asset group | C5: Asset category | D5: $ ('000) | E5: μ | F5: σ | G5: # | H5: 2018 | I5: 2017 | J5: 2016 | K5: 2015 | L5: 2014 | M5: 2013 | N5: 2012 | O5: 2011 | P5: 2010 | Q5: 2009 | R5: 2008 | S5: 2007 | T5: 2006 | U5: 2005 | V5: 2004 | W5: 2003 | X5: 2002 | Y5: 2001 | Z5: 2000 | AA5: 1999 | AB5: 1998 | AC5: 1997 | AD5: 1996 | AE5: 1995 | AF5: 1994 | AG5: 1993 | AH5: 1992 | AI5: 1991 | AJ5: 1990 | AK5: 1989 | AL5: 1988 | AM5: 1987 | AN5: 1986 | AO5: 1985 | AP5: 1984 | AQ5: 1983 | AR5: 1982 | AS5: 1981 | AT5: 1980 | AU5: 1979 | AV5: 1978 | AW5: 1977 | AX5: 1976 | AY5: 1975 | AZ5: 1974 | BA5: 1973 | BB5: 1972 | BC5: 1971 | BD5: 1970 | BE5: 1969 | BF5: 1968 | BG5: 1967 | BH5: 1966 | BI5: 1965 | BJ5: 1964 | BK5: 1963 | BL5: 1962 | BM5: 1961 | BN5: 1960 | BO5: 1959 | BP5: 1958 | BQ5: 1957 | BR5: 1956 | BS5: 1955 | BT5: 1954 | BU5: 1953 | BV5: 1952 | BW5: 1951 | BX5: 1950 | BY5: 1949 | BZ5: 1948 | CA5: 1947 | CB5: 1946 | CC5: 1945 | CD5: 1944 | CE5: 1943 | CF5: 1942 | CG5: 1941 | CH5: 1940 | CI5: 1939 | CJ5: 1938 | CK5: 1937 | CL5: 1936 | CM5: 1935 | CN5: 1934 | CO5: 1933 | CP5: 1932 | CQ5: 1931 | CR5: 1930 | CS5: 1929 | CT5: 1928 | CV5: =H5 -> 2018 | CW5: =I5 -> 2017 | CX5: 2016 | CY5: 2015 | CZ5: 2014 | DA5: 2013 | DB5: 2012 | DC5: 2011 | DD5: 2010 | DE5: 2009 | DF5: 2008 | DG5: 2007 | DH5: 2006 | DI5: 2005 | DJ5: 2004 | DK5: 2003 | DL5: 2002 | DM5: 2001 | DN5: 2000 | DO5: 1999 | DP5: 1998 | DQ5: 1997 | DR5: 1996 | DS5: 1995 | DT5: 1994 | DU5: 1993 | DV5: 1992 | DW5: 1991 | DX5: 1990 | DY5: 1989 | DZ5: 1988 | EA5: 1987 | EB5: 1986 | EC5: 1985 | ED5: 1984 | EE5: 1983 | EF5: 1982 | EG5: 1981 | EH5: 1980 | EI5: 1979 | EJ5: 1978 | EK5: 1977 | EL5: 1976 | EM5: 1975 | EN5: 1974 | EO5: 1973 | EP5: 1972 | EQ5: 1971 | ER5: 1970 | ES5: 1969 | ET5: 1968 | EU5: 1967 | EV5: 1966 | EW5: 1965 | EX5: 1964 | EY5: 1963 | EZ5: 1962 | FA5: 1961 | FB5: 1960 | FC5: 1959 | FD5: 1958 | FE5: 1957 | FF5: 1956 | FG5: 1955 | FH5: 1954 | FI5: =BU5 -> 1953 | FJ5: 1952 | FK5: 1951 | FL5: 1950 | FM5: 1949 | FN5: 1948 | FO5: 1947 | FP5: 1946 | FQ5: 1945 | FR5: 1944 | FS5: 1943 | FT5: 1942 | FU5: 1941 | FV5: 1940 | FW5: 1939 | FX5: 1938 | FY5: 1937 | FZ5: 1936 | GA5: 1935 | GB5: 1934 | GC5: 1933 | GD5: 1932 | GE5: 1931 | GF5: 1930 | GG5: 1929 | GH5: 1928
A6: 1 | B6: OVERHEAD CONDUCTORS | C6: ˂ = 1 kv | D6: 62.29077381 | E6: 70.45395378 | F6: 8.393685352 | G6: 2 | H6: 29.20720508 | I6: 65.69817643 | J6: 147.6380607 | K6: 140.0516497 | L6: 135.8977537 | M6: 162.8737566 | N6: 185.6290168 | O6: 167.5745151 | P6: 185.2606815 | Q6: 226.7328384 | R6: 224.7975118 | S6: 269.1328523 | T6: 239.602958 | U6: 209.1543586 | V6: 120.0377527 | W6: 102.7056087 | X6: 128.9276064 | Y6: 121.9267411 | Z6: 145.139673 | AA6: 132.1856682 | AB6: 154.0614048 | AC6: 156.7974734 | AD6: 169.5907648 | AE6: 224.8885855 | AF6: 218.4993837 | AG6: 209.9871219 | AH6: 265.0241004 | AI6: 255.5897902 | AJ6: 277.4296429 | AK6: 299.0276913 | AL6: 207.1028488 | AM6: 205.5917475 | AN6: 286.5306427 | AO6: 372.8329548 | AP6: 362.9688758 | AQ6: 312.4305494 | AR6: 420.4935158 | AS6: 417.9555995 | AT6: 349.3942882 | AU6: 256.3155146 | AV6: 320.8851288 | AW6: 360.1634685 | AX6: 346.2545004 | AY6: 350.6279828 | AZ6: 353.7092524 | BA6: 313.711931 | BB6: 343.1441286 | BC6: 329.175886 | BD6: 382.8421874 | BE6: 346.8927108 | BF6: 306.2004427 | BG6: 257.5617585 | BH6: 249.2954946 | BI6: 267.7368321 | BJ6: 234.830467 | BK6: 277.7041857 | BL6: 223.6985825 | BM6: 223.6985825 | BN6: 223.6985825 | BO6: 223.6985825 | BP6: 223.6985825 | BQ6: 223.6985825 | BR6: 223.6985825 | BS6: 223.6985825 | BT6: 223.6985825 | BU6: 223.6985825 | BV6: 223.6985825 | BW6: 223.6985825 | BX6: 223.6985825 | BY6: 0.9463661051 | BZ6: 0 | CA6: 4.954548343 | CB6: 0 | CC6: 0 | CD6: 0 | CE6: 0 | CF6: 0 | CG6: 0 | CH6: 0 | CI6: 0 | CJ6: 0 | CK6: 0 | CL6: 0 | CM6: 0 | CN6: 0 | CO6: 0 | CP6: 0 | CQ6: 0 | CR6: 0 | CS6: 0 | CT6: 0 | CV6: =IFERROR($D6*H6,"") -> 1819.339405 | CW6: =IFERROR($D6*I6,"") -> 4092.390247 | CX6: =IFERROR($D6*J6,"") -> 9196.489045 | CY6: =IFERROR($D6*K6,"") -> 8723.925631 | CZ6: =IFERROR($D6*L6,"") -> 8465.176235 | DA6: =IFERROR($D6*M6,"") -> 10145.53233 | DB6: =IFERROR($D6*N6,"") -> 11562.9751 | DC6: =IFERROR($D6*O6,"") -> 10438.34622 | DD6: =IFERROR($D6*P6,"") -> 11540.03121 | DE6: =IFERROR($D6*Q6,"") -> 14123.36395 | DF6: =IFERROR($D6*R6,"") -> 14002.81096 | DG6: =IFERROR($D6*S6,"") -> 16764.49363 | DH6: =IFERROR($D6*T6,"") -> 14925.05366 | DI6: =IFERROR($D6*U6,"") -> 13028.38684 | DJ6: =IFERROR($D6*V6,"") -> 7477.244503 | DK6: =IFERROR($D6*W6,"") -> 6397.611841 | DL6: =IFERROR($D6*X6,"") -> 8031.000365 | DM6: =IFERROR($D6*Y6,"") -> 7594.911054 | DN6: =IFERROR($D6*Z6,"") -> 9040.862542 | DO6: =IFERROR($D6*AA6,"") -> 8233.94756 | DP6: =IFERROR($D6*AB6,"") -> 9596.604117 | DQ6: =IFERROR($D6*AC6,"") -> 9767.035948 | DR6: =IFERROR($D6*AD6,"") -> 10563.93997 | DS6: =IFERROR($D6*AE6,"") -> 14008.48401 | DT6: =IFERROR($D6*AF6,"") -> 13610.49569 | DU6: =IFERROR($D6*AG6,"") -> 13080.26031 | DV6: =IFERROR($D6*AH6,"") -> 16508.55629 | DW6: =IFERROR($D6*AI6,"") -> 15920.88581 | DX6: =IFERROR($D6*AJ6,"") -> 17281.30714 | DY6: =IFERROR($D6*AK6,"") -> 18626.66628 | DZ6: =IFERROR($D6*AL6,"") -> 12900.59671 | EA6: =IFERROR($D6*AM6,"") -> 12806.46904 | EB6: =IFERROR($D6*AN6,"") -> 17848.21545 | EC6: =IFERROR($D6*AO6,"") -> 23224.05325 | ED6: =IFERROR($D6*AP6,"") -> 22609.61214 | EE6: =IFERROR($D6*AQ6,"") -> 19461.54069 | EF6: =IFERROR($D6*AR6,"") -> 26192.86648 | EG6: =IFERROR($D6*AS6,"") -> 26034.77771 | EH6: =IFERROR($D6*AT6,"") -> 21764.04058 | EI6: =IFERROR($D6*AU6,"") -> 15966.09174 | EJ6: =IFERROR($D6*AV6,"") -> 19988.18297 | EK6: =IFERROR($D6*AW6,"") -> 22434.86115 | EL6: =IFERROR($D6*AX6,"") -> 21568.46076 | EM6: =IFERROR($D6*AY6,"") -> 21840.88836 | EN6: =IFERROR($D6*AZ6,"") -> 22032.82304 | EO6: =IFERROR($D6*BA6,"") -> 19541.35894 | EP6: =IFERROR($D6*BB6,"") -> 21374.7133 | EQ6: =IFERROR($D6*BC6,"") -> 20504.62066 | ER6: =IFERROR($D6*BD6,"") -> 23847.5361 | ES6: =IFERROR($D6*BE6,"") -> 21608.21538 | ET6: =IFERROR($D6*BF6,"") -> 19073.46252 | EU6: =IFERROR($D6*BG6,"") -> 16043.72124 | EV6: =IFERROR($D6*BH6,"") -> 15528.80927 | EW6: =IFERROR($D6*BI6,"") -> 16677.53445 | EX6: =IFERROR($D6*BJ6,"") -> 14627.7715 | EY6: =IFERROR($D6*BK6,"") -> 17298.40862 | EZ6: =IFERROR($D6*BL6,"") -> 13934.3578 | FA6: =IFERROR($D6*BM6,"") -> 13934.3578 | FB6: =IFERROR($D6*BN6,"") -> 13934.3578 | FC6: =IFERROR($D6*BO6,"") -> 13934.3578 | FD6: =IFERROR($D6*BP6,"") -> 13934.3578 | FE6: =IFERROR($D6*BQ6,"") -> 13934.3578 | FF6: =IFERROR($D6*BR6,"") -> 13934.3578 | FG6: =IFERROR($D6*BS6,"") -> 13934.3578 | FH6: =IFERROR($D6*BT6,"") -> 13934.3578 | FI6: =IFERROR($D6*BU6,"") -> 13934.3578 | FJ6: =IFERROR($D6*BV6,"") -> 13934.3578 | FK6: =IFERROR($D6*BW6,"") -> 13934.3578 | FL6: =IFERROR($D6*BX6,"") -> 13934.3578 | FM6: =IFERROR($D6*BY6,"") -> 58.94987699 | FN6: =IFERROR($D6*BZ6,"") -> 0 | FO6: =IFERROR($D6*CA6,"") -> 308.6226502 | FP6: =IFERROR($D6*CB6,"") -> 0 | FQ6: =IFERROR($D6*CC6,"") -> 0 | FR6: =IFERROR($D6*CD6,"") -> 0 | FS6: =IFERROR($D6*CE6,"") -> 0 | FT6: =IFERROR($D6*CF6,"") -> 0 | FU6: =IFERROR($D6*CG6,"") -> 0 | FV6: =IFERROR($D6*CH6,"") -> 0 | FW6: =IFERROR($D6*CI6,"") -> 0 | FX6: =IFERROR($D6*CJ6,"") -> 0 | FY6: =IFERROR($D6*CK6,"") -> 0 | FZ6: =IFERROR($D6*CL6,"") -> 0 | GA6: =IFERROR($D6*CM6,"") -> 0 | GB6: =IFERROR($D6*CN6,"") -> 0 | GC6: =IFERROR($D6*CO6,"") -> 0 | GD6: =IFERROR($D6*CP6,"") -> 0 | GE6: =IFERROR($D6*CQ6,"") -> 0 | GF6: =IFERROR($D6*CR6,"") -> 0 | GG6: =IFERROR($D6*CS6,"") -> 0 | GH6: =IFERROR($D6*CT6,"") -> 0
A7: 1 | B7: OVERHEAD CONDUCTORS | C7: ˃ 11 kv & < = 22 kv ; multiple-phase | D7: 15.98122295 | E7: 76.45866566 | F7: 8.744064596 | G7: 2 | H7: 31.50805827 | I7: 59.61036735 | J7: 71.13277998 | K7: 144.20818 | L7: 129.8012203 | M7: 118.3597634 | N7: 198.8487632 | O7: 139.8596677 | P7: 158.9379504 | Q7: 162.2130932 | R7: 130.181452 | S7: 146.286076 | T7: 90.73056671 | U7: 77.88441268 | V7: 32.05972755 | W7: 54.38601078 | X7: 42.62979617 | Y7: 74.11885778 | Z7: 122.2899946 | AA7: 112.9715614 | AB7: 69.12336667 | AC7: 80.59783885 | AD7: 54.9509169 | AE7: 150.7066731 | AF7: 121.7395339 | AG7: 133.4672053 | AH7: 120.2770878 | AI7: 231.3876497 | AJ7: 203.0108209 | AK7: 373.1871827 | AL7: 249.0290611 | AM7: 225.5687316 | AN7: 314.2377419 | AO7: 248.2234505 | AP7: 213.3896475 | AQ7: 172.3237204 | AR7: 291.0321177 | AS7: 360.0603689 | AT7: 285.4995912 | AU7: 173.6957077 | AV7: 142.6794973 | AW7: 147.6940134 | AX7: 154.5290334 | AY7: 177.2287922 | AZ7: 263.2585105 | BA7: 160.5625119 | BB7: 225.3848933 | BC7: 247.8535557 | BD7: 253.7256005 | BE7: 366.4159487 | BF7: 331.3066774 | BG7: 275.5647786 | BH7: 270.6215052 | BI7: 426.3425928 | BJ7: 247.0766733 | BK7: 223.0986009 | BL7: 127.9721046 | BM7: 127.9721046 | BN7: 127.9721046 | BO7: 127.9721046 | BP7: 127.9721046 | BQ7: 127.9721046 | BR7: 127.9721046 | BS7: 127.9721046 | BT7: 127.9721046 | BU7: 127.9721046 | BV7: 127.9721046 | BW7: 127.9721046 | BX7: 127.9721046 | BY7: 0 | BZ7: 0 | CA7: 0 | CB7: 0 | CC7: 0 | CD7: 0 | CE7: 0 | CF7: 0 | CG7: 0 | CH7: 0 | CI7: 0 | CJ7: 0 | CK7: 0 | CL7: 0 | CM7: 0 | CN7: 0 | CO7: 0 | CP7: 0 | CQ7: 0 | CR7: 0 | CS7: 0 | CT7: 0 | CV7: =IFERROR($D7*H7,"") -> 503.537304 | CW7: 952.6465707 | CX7: 1136.788816 | CY7: 2304.623075 | CZ7: 2074.382241 | DA7: 1891.533768 | DB7: 3177.846417 | DC7: 2235.128531 | DD7: 2540.022821 | DE7: 2592.363608 | DF7: 2080.458808 | DG7: 2337.830395 | DH7: 1449.985415 | DI7: 1244.688163 | DJ7: 512.3536537 | DK7: 869.1549636 | DL7: 681.2762769 | DM7: 1184.509991 | DN7: 1954.343669 | DO7: 1805.42371 | DP7: 1104.675934 | DQ7: 1288.052032 | DR7: 878.1828543 | DS7: 2408.476943 | DT7: 1945.546633 | DU7: 2132.969164 | DV7: 1922.174956 | DW7: 3697.857617 | DX7: 3244.36119 | DY7: 5963.987569 | DZ7: 3979.788947 | EA7: 3604.86419 | EB7: 5021.903413 | EC7: 3966.914303 | ED7: 3410.227532 | EE7: 2753.943796 | EF7: 4651.049159 | EG7: 5754.205032 | EH7: 4562.63262 | EI7: 2775.86983 | EJ7: 2280.192857 | EK7: 2360.330956 | EL7: 2469.562936 | EM7: 2832.332842 | EN7: 4207.19295 | EO7: 2565.9853 | EP7: 3601.92623 | EQ7: 3961.002932 | ER7: 4054.84539 | ES7: 5855.774968 | ET7: 5294.685876 | EU7: 4403.862164 | EV7: 4324.862609 | EW7: 6813.476029 | EX7: 3948.587401 | EY7: 3565.388481 | EZ7: 2045.150734 | FA7: 2045.150734 | FB7: 2045.150734 | FC7: 2045.150734 | FD7: 2045.150734 | FE7: 2045.150734 | FF7: 2045.150734 | FG7: 2045.150734 | FH7: 2045.150734 | FI7: 2045.150734 | FJ7: 2045.150734 | FK7: 2045.150734 | FL7: 2045.150734 | FM7: 0 | FN7: 0 | FO7: 0 | FP7: 0 | FQ7: 0 | FR7: 0 | FS7: 0 | FT7: 0 | FU7: 0 | FV7: 0 | FW7: 0 | FX7: 0 | FY7: 0 | FZ7: 0 | GA7: 0 | GB7: 0 | GC7: 0 | GD7: 0 | GE7: 0 | GF7: 0 | GG7: 0 | GH7: 0
A8: 1 | B8: OVERHEAD CONDUCTORS | C8: ˃ 11 kv & < = 22 kv ; single-phase | D8: 15.98122295 | E8: 76.45866566 | F8: 8.744064596 | G8: 2 | H8: 4.279706576 | I8: 5.073570028 | J8: 15.38891031 | K8: 25.8888605 | L8: 34.35769506 | M8: 46.44605776 | N8: 92.77876932 | O8: 49.30086813 | P8: 41.2984466 | Q8: 30.53398395 | R8: 50.572688 | S8: 64.78304446 | T8: 60.30699206 | U8: 26.77389513 | V8: 17.42589976 | W8: 10.56149739 | X8: 26.22807689 | Y8: 16.47656188 | Z8: 25.6721013 | AA8: 38.12072278 | AB8: 44.93510129 | AC8: 21.59088787 | AD8: 20.30460903 | AE8: 54.77867351 | AF8: 51.56612846 | AG8: 35.023757 | AH8: 38.37266101 | AI8: 38.1111313 | AJ8: 47.20721533 | AK8: 97.84694246 | AL8: 52.68343052 | AM8: 41.52651699 | AN8: 86.22914234 | AO8: 66.52498027 | AP8: 61.53637635 | AQ8: 61.44334583 | AR8: 109.1426985 | AS8: 126.2926966 | AT8: 82.25239067 | AU8: 53.80671478 | AV8: 54.44386016 | AW8: 43.48970147 | AX8: 37.94754688 | AY8: 50.99703884 | AZ8: 65.56372315 | BA8: 90.48361578 | BB8: 61.21257778 | BC8: 110.1120924 | BD8: 97.00509483 | BE8: 55.9660869 | BF8: 48.31885779 | BG8: 66.96098923 | BH8: 60.63176688 | BI8: 56.9639181 | BJ8: 36.86730618 | BK8: 32.30154176 | BL8: 20.74087817 | BM8: 20.74087817 | BN8: 20.74087817 | BO8: 20.74087817 | BP8: 20.74087817 | BQ8: 20.74087817 | BR8: 20.74087817 | BS8: 20.74087817 | BT8: 20.74087817 | BU8: 20.74087817 | BV8: 20.74087817 | BW8: 20.74087817 | BX8: 20.74087817 | BY8: 0 | BZ8: 0 | CA8: 0 | CB8: 0 | CC8: 0 | CD8: 0 | CE8: 0 | CF8: 0 | CG8: 0 | CH8: 0 | CI8: 0 | CJ8: 0 | CK8: 0 | CL8: 0 | CM8: 0 | CN8: 0 | CO8: 0 | CP8: 0 | CQ8: 0 | CR8: 0 | CS8: 0 | CT8: 0 | CV8: 68.39494496 | CW8: 81.08185377 | CX8: 245.9336066 | CY8: 413.7356516 | CZ8: 549.0779847 | DA8: 742.2648042 | DB8: 1482.718198 | DC8: 787.8881652 | DD8: 659.9996826 | DE8: 487.9704051 | DF8: 808.2134021 | DG8: 1035.312277 | DH8: 963.7794855 | DI8: 427.8795874 | DJ8: 278.4871892 | DK8: 168.7856444 | DL8: 419.1567443 | DM8: 263.3156088 | DN8: 410.2715745 | DO8: 609.2157697 | DP8: 718.1178721 | DQ8: 345.0487927 | DR8: 324.4924838 | DS8: 875.4301942 | DT8: 824.0897956 | DU8: 559.7224692 | DV8: 613.2420508 | DW8: 609.0624861 | DX8: 754.429033 | DY8: 1563.713802 | DZ8: 841.9456489 | EA8: 663.6445264 | EB8: 1378.047149 | EC8: 1063.150541 | ED8: 983.42655 | EE8: 981.9398086 | EF8: 1744.233798 | EG8: 2018.311742 | EH8: 1314.493793 | EI8: 859.8971051 | EJ8: 870.0794675 | EK8: 695.0186153 | EL8: 606.4482071 | EM8: 814.9950475 | EN8: 1047.788477 | EO8: 1446.038837 | EP8: 978.2518528 | EQ8: 1759.725898 | ER8: 1550.260048 | ES8: 894.4065124 | ET8: 772.194439 | EU8: 1070.118498 | EV8: 968.9697844 | EW8: 910.3530753 | EX8: 589.1846397 | EY8: 516.2181405 | EZ8: 331.4645983 | FA8: 331.4645983 | FB8: 331.4645983 | FC8: 331.4645983 | FD8: 331.4645983 | FE8: 331.4645983 | FF8: 331.4645983 | FG8: 331.4645983 | FH8: 331.4645983 | FI8: 331.4645983 | FJ8: 331.4645983 | FK8: 331.4645983 | FL8: 331.4645983 | FM8: 0 | FN8: 0 | FO8: 0 | FP8: 0 | FQ8: 0 | FR8: 0 | FS8: 0 | FT8: 0 | FU8: 0 | FV8: 0 | FW8: 0 | FX8: 0 | FY8: 0 | FZ8: 0 | GA8: 0 | GB8: 0 | GC8: 0 | GD8: 0 | GE8: 0 | GF8: 0 | GG8: 0 | GH8: 0
A9: 1 | B9: OVERHEAD CONDUCTORS | C9: ˃ 11 kv & < = 22 kv ; swer | D9: 15.31814249 | E9: 79.08739836 | F9: 8.8931096 | G9: 2 | H9: 16.84526308 | I9: 102.264674 | J9: 94.82874585 | K9: 83.68607968 | L9: 145.8211696 | M9: 219.2417515 | N9: 219.152228 | O9: 160.930314 | P9: 141.994827 | Q9: 179.8863096 | R9: 178.8430893 | S9: 239.8148955 | T9: 239.6293427 | U9: 203.4932895 | V9: 56.81292583 | W9: 141.9431255 | X9: 237.3721978 | Y9: 192.0616561 | Z9: 1020.278 | AA9: 1764.114293 | AB9: 206.3281312 | AC9: 203.8702049 | AD9: 203.281472 | AE9: 260.7797041 | AF9: 343.5565147 | AG9: 363.761565 | AH9: 644.5844905 | AI9: 572.506198 | AJ9: 632.5978764 | AK9: 1335.427788 | AL9: 1268.683021 | AM9: 1499.982208 | AN9: 3087.933862 | AO9: 2205.097356 | AP9: 1867.872992 | AQ9: 2354.604879 | AR9: 3754.272206 | AS9: 4843.269552 | AT9: 2969.401567 | AU9: 971.4547151 | AV9: 669.2368181 | AW9: 871.3891459 | AX9: 1233.566215 | AY9: 2033.994375 | AZ9: 2817.256454 | BA9: 1155.096679 | BB9: 997.1487758 | BC9: 1580.346095 | BD9: 2069.230352 | BE9: 1395.005012 | BF9: 1081.684452 | BG9: 1311.849969 | BH9: 1194.376975 | BI9: 1479.053182 | BJ9: 1325.053177 | BK9: 1482.531923 | BL9: 220.4862051 | BM9: 143.3041613 | BN9: 147.1808292 | BO9: 211.9529413 | BP9: 203.4148581 | BQ9: 226.4852558 | BR9: 293.8039715 | BS9: 284.2576258 | BT9: 333.4823123 | BU9: 347.8169404 | BV9: 439.44757 | BW9: 460.7314844 | BX9: 880.2153742 | BY9: 0 | BZ9: 0 | CA9: 0 | CB9: 0 | CC9: 0 | CD9: 0 | CE9: 0 | CF9: 0 | CG9: 0 | CH9: 0 | CI9: 0 | CJ9: 0 | CK9: 0 | CL9: 0 | CM9: 0 | CN9: 0 | CO9: 0 | CP9: 0 | CQ9: 0 | CR9: 0 | CS9: 0 | CT9: 0 | CV9: 258.03814 | CW9: 1566.504847 | CX9: 1452.600241 | CY9: 1281.915293 | CZ9: 2233.709453 | DA9: 3358.376389 | DB9: 3357.005055 | DC9: 2465.153481 | DD9: 2175.096992 | DE9: 2755.524121 | DF9: 2739.543924 | DG9: 3673.518739 | DH9: 3670.676415 | DI9: 3117.139204 | DJ9: 870.2684929 | DK9: 2174.305021 | DL9: 3636.101149 | DM9: 2942.027815 | DN9: 15628.76378 | DO9: 27022.95409 | DP9: 3160.563713 | DQ9: 3122.912847 | DR9: 3113.894553 | DS9: 3994.660665 | DT9: 5262.647644 | DU9: 5572.151484 | DV9: 9873.837069 | DW9: 8769.731515 | DX9: 9690.224406 | DY9: 20456.27314 | DZ9: 19433.86729 | EA9: 22976.94118 | EB9: 47301.41089 | EC9: 33777.9955 | ED9: 28612.34464 | EE9: 36068.17304 | EF9: 57508.47658 | EG9: 74189.8931 | EH9: 45485.71629 | EI9: 14880.88174 | EJ9: 10251.46494 | EK9: 13348.0631 | EL9: 18895.94305 | EM9: 31157.01565 | EN9: 43155.13579 | EO9: 17693.93552 | EP9: 15274.46703 | EQ9: 24207.96665 | ER9: 31696.76536 | ES9: 21368.88554 | ET9: 16569.39656 | EU9: 20095.10474 | EV9: 18295.63669 | EW9: 22656.34739 | EX9: 20297.35337 | EY9: 22709.63524 | EZ9: 3377.439106 | FA9: 2195.153562 | FB9: 2254.536912 | FC9: 3246.725355 | FD9: 3115.93778 | FE9: 3469.333419 | FF9: 4500.531098 | FG9: 4354.298815 | FH9: 5108.329577 | FI9: 5327.909452 | FJ9: 6731.520492 | FK9: 7057.550526 | FL9: 13483.26452 | FM9: 0 | FN9: 0 | FO9: 0 | FP9: 0 | FQ9: 0 | FR9: 0 | FS9: 0 | FT9: 0 | FU9: 0 | FV9: 0 | FW9: 0 | FX9: 0 | FY9: 0 | FZ9: 0 | GA9: 0 | GB9: 0 | GC9: 0 | GD9: 0 | GE9: 0 | GF9: 0 | GG9: 0 | GH9: 0
A10: 1 | B10: OVERHEAD CONDUCTORS | C10: > 1 kv & < = 11 kv | D10: 33.3254127 | E10: 77.79990874 | F10: 8.820425655 | G10: 2 | H10: 67.65984046 | I10: 199.9740437 | J10: 313.9243691 | K10: 402.391722 | L10: 350.6422299 | M10: 409.2838068 | N10: 483.5914199 | O10: 425.3500112 | P10: 396.3662233 | Q10: 583.4357006 | R10: 483.1081256 | S10: 616.9381078 | T10: 397.3353307 | U10: 277.7122302 | V10: 128.611283 | W10: 100.9823829 | X10: 144.6860616 | Y10: 190.6663951 | Z10: 228.2461385 | AA10: 220.1146798 | AB10: 280.6251956 | AC10: 314.6795238 | AD10: 374.2805104 | AE10: 591.4036941 | AF10: 433.3175031 | AG10: 442.0589181 | AH10: 541.7763355 | AI10: 490.5178619 | AJ10: 481.1009076 | AK10: 435.2112272 | AL10: 245.4573529 | AM10: 340.7035004 | AN10: 469.7757416 | AO10: 592.3994697 | AP10: 607.5993185 | AQ10: 533.6686676 | AR10: 872.6202916 | AS10: 787.9445157 | AT10: 860.0092588 | AU10: 447.9922155 | AV10: 510.0076474 | AW10: 573.7176483 | AX10: 570.4479031 | AY10: 468.6195214 | AZ10: 607.5090544 | BA10: 339.6731646 | BB10: 484.7803434 | BC10: 598.1371838 | BD10: 734.7560425 | BE10: 642.4814823 | BF10: 681.9030632 | BG10: 698.7774847 | BH10: 642.1067637 | BI10: 948.1079298 | BJ10: 1012.59206 | BK10: 677.3053619 | BL10: 616.0366387 | BM10: 616.0366387 | BN10: 616.0366387 | BO10: 616.0366387 | BP10: 616.0366387 | BQ10: 616.0366387 | BR10: 616.0366387 | BS10: 616.0366387 | BT10: 616.0366387 | BU10: 616.0366387 | BV10: 616.0366387 | BW10: 616.0366387 | BX10: 616.0366387 | BY10: 0.218061072 | BZ10: 15.66737737 | CA10: 3.907253641 | CB10: 0 | CC10: 0 | CD10: 0 | CE10: 0 | CF10: 0 | CG10: 0 | CH10: 0 | CI10: 0 | CJ10: 0 | CK10: 0 | CL10: 0 | CM10: 0 | CN10: 0 | CO10: 0 | CP10: 0 | CQ10: 0 | CR10: 0 | CS10: 0 | CT10: 0 | CV10: 2254.792107 | CW10: 6664.217538 | CX10: 10461.65916 | CY10: 13409.87021 | CZ10: 11685.29702 | DA10: 13639.55177 | DB10: 16115.88365 | DC10: 14174.96467 | DD10: 13209.06797 | DE10: 19443.23551 | DF10: 16099.77767 | DG10: 20559.71705 | DH10: 13241.36388 | DI10: 9254.874686 | DJ10: 4286.024085 | DK10: 3365.279586 | DL10: 4821.722715 | DM10: 6354.036305 | DN10: 7606.396762 | DO10: 7335.412545 | DP10: 9351.95046 | DQ10: 10486.825 | DR10: 12473.05248 | DS10: 19708.77218 | DT10: 14440.48462 | DU10: 14731.79588 | DV10: 18054.91997 | DW10: 16346.71019 | DX10: 16032.8863 | DY10: 14503.59376 | DZ10: 8179.967587 | EA10: 11354.08476 | EB10: 15655.47047 | EC10: 19741.95681 | ED10: 20248.49805 | EE10: 17784.72859 | EF10: 29080.43135 | EG10: 26258.57617 | EH10: 28660.16348 | EI10: 14929.52547 | EJ10: 16996.21533 | EK10: 19119.37741 | EL10: 19010.4118 | EM10: 15616.93895 | EN10: 20245.48996 | EO10: 11319.74839 | EP10: 16155.50501 | EQ10: 19933.1685 | ER10: 24486.04835 | ES10: 21410.96055 | ET10: 22724.701 | EU10: 23287.04806 | EV10: 21398.4729 | EW10: 31596.08805 | EX10: 33745.0483 | EY10: 22571.48071 | EZ10: 20529.67523 | FA10: 20529.67523 | FB10: 20529.67523 | FC10: 20529.67523 | FD10: 20529.67523 | FE10: 20529.67523 | FF10: 20529.67523 | FG10: 20529.67523 | FH10: 20529.67523 | FI10: 20529.67523 | FJ10: 20529.67523 | FK10: 20529.67523 | FL10: 20529.67523 | FM10: 7.266975217 | FN10: 522.1218168 | FO10: 130.2108401 | FP10: 0 | FQ10: 0 | FR10: 0 | FS10: 0 | FT10: 0 | FU10: 0 | FV10: 0 | FW10: 0 | FX10: 0 | FY10: 0 | FZ10: 0 | GA10: 0 | GB10: 0 | GC10: 0 | GD10: 0 | GE10: 0 | GF10: 0 | GG10: 0 | GH10: 0
A11: 1 | B11: OVERHEAD CONDUCTORS | C11: > 22 kv & < = 66 kv | D11: 23.68154943 | E11: 87.82393474 | F11: 9.371442511 | G11: 2 | H11: 5.009236039 | I11: 22.85669915 | J11: 132.205969 | K11: 68.94930551 | L11: 60.67669177 | M11: 41.16460497 | N11: 86.21440672 | O11: 134.7800071 | P11: 142.7085627 | Q11: 102.1586544 | R11: 61.63562037 | S11: 155.7966767 | T11: 88.04891241 | U11: 45.44661536 | V11: 46.05452629 | W11: 34.25725399 | X11: 77.78564596 | Y11: 112.8560797 | Z11: 121.9519244 | AA11: 367.9597507 | AB11: 99.97991434 | AC11: 390.6147393 | AD11: 50.17858363 | AE11: 229.6982318 | AF11: 99.75661192 | AG11: 78.93727019 | AH11: 91.79465467 | AI11: 44.3424255 | AJ11: 453.7035255 | AK11: 201.5895791 | AL11: 41.34466496 | AM11: 364.1166318 | AN11: 618.6738333 | AO11: 318.7886293 | AP11: 253.5046689 | AQ11: 119.0016947 | AR11: 335.3150856 | AS11: 171.8633 | AT11: 96.44700281 | AU11: 98.44764783 | AV11: 87.89262875 | AW11: 160.9631013 | AX11: 101.9962831 | AY11: 108.0333249 | AZ11: 64.16264236 | BA11: 189.4209027 | BB11: 203.2335467 | BC11: 89.20480043 | BD11: 280.4147294 | BE11: 225.2728841 | BF11: 264.0537679 | BG11: 372.120984 | BH11: 221.0385826 | BI11: 480.6696937 | BJ11: 316.4877141 | BK11: 377.5159123 | BL11: 50.21028505 | BM11: 52.19828089 | BN11: 71.41270187 | BO11: 131.7198572 | BP11: 373.9943254 | BQ11: 160.5157848 | BR11: 71.56085462 | BS11: 125.351894 | BT11: 106.8252037 | BU11: 190.3575929 | BV11: 121.5296685 | BW11: 109.9087336 | BX11: 749.3546155 | BY11: 16.56364741 | BZ11: 24.75609057 | CA11: 4.683414673 | CB11: 0 | CC11: 0 | CD11: 0 | CE11: 0 | CF11: 0 | CG11: 0 | CH11: 0 | CI11: 0 | CJ11: 0 | CK11: 0 | CL11: 0 | CM11: 0 | CN11: 0 | CO11: 0 | CP11: 0 | CQ11: 0 | CR11: 0 | CS11: 0 | CT11: 0 | CV11: 118.6264709 | CW11: 541.2820508 | CX11: 3130.842189 | CY11: 1632.826387 | CZ11: 1436.918075 | DA11: 974.8416274 | DB11: 2041.690734 | DC11: 3191.799401 | DD11: 3379.559881 | DE11: 2419.275223 | DF11: 1459.62699 | DG11: 3689.5067 | DH11: 2085.134671 | DI11: 1076.246268 | DJ11: 1090.642541 | DK11: 811.2648536 | DL11: 1842.08462 | DM11: 2672.606831 | DN11: 2888.010525 | DO11: 8713.857025 | DP11: 2367.679283 | DQ11: 9250.362257 | DR11: 1188.306608 | DS11: 5439.61003 | DT11: 2362.391136 | DU11: 1869.356866 | DV11: 2173.839652 | DW11: 1050.097341 | DX11: 10744.40247 | DY11: 4773.953582 | DZ11: 979.1057268 | EA11: 8622.846013 | EB11: 14651.15496 | EC11: 7549.408682 | ED11: 6003.383347 | EE11: 2818.144514 | EF11: 7940.780773 | EG11: 4069.989235 | EH11: 2284.014464 | EI11: 2331.392838 | EJ11: 2081.433632 | EK11: 3811.855641 | EL11: 2415.43002 | EM11: 2558.396523 | EN11: 1519.470787 | EO11: 4485.780469 | EP11: 4812.885281 | EQ11: 2112.507891 | ER11: 6640.655275 | ES11: 5334.810939 | ET11: 6253.202357 | EU11: 8812.401477 | EV11: 5234.536121 | EW11: 11383.00311 | EX11: 7494.919445 | EY11: 8940.161738 | EZ11: 1189.057347 | FA11: 1236.136169 | FB11: 1691.163429 | FC11: 3119.33031 | FD11: 8856.765103 | FE11: 3801.262492 | FF11: 1694.671916 | FG11: 2968.527075 | FH11: 2529.786342 | FI11: 4507.962746 | FJ11: 2878.010852 | FK11: 2602.809107 | FL11: 17745.87837 | FM11: 392.2528348 | FN11: 586.2625826 | FO11: 110.9105161 | FP11: 0 | FQ11: 0 | FR11: 0 | FS11: 0 | FT11: 0 | FU11: 0 | FV11: 0 | FW11: 0 | FX11: 0 | FY11: 0 | FZ11: 0 | GA11: 0 | GB11: 0 | GC11: 0 | GD11: 0 | GE11: 0 | GF11: 0 | GG11: 0 | GH11: 0
A12: 1 | B12: OVERHEAD CONDUCTORS | C12: > 66 kv & < = 132 kv | D12: 399.5539928 | E12: 85.95529476 | F12: 9.271207837 | G12: 2 | H12: 0 | I12: 0.151785626 | J12: 4.8058529 | K12: 1.86362266 | L12: 14.84585017 | M12: 3.731315077 | N12: 0.2282766001 | O12: 83.23313016 | P12: 62.1838047 | Q12: 5.395720172 | R12: 170.0581189 | S12: 12.29284555 | T12: 1.940842154 | U12: 0.08285302998 | V12: 15.55173729 | W12: 89.25098219 | X12: 166.622684 | Y12: 8.28667179 | Z12: 0 | AA12: 5.333902694 | AB12: 0 | AC12: 0.125033867 | AD12: 163.0554588 | AE12: 0 | AF12: 27.09009589 | AG12: 0.3869994251 | AH12: 2.519345833 | AI12: 0 | AJ12: 104.8500437 | AK12: 23.95302022 | AL12: 2.478865281 | AM12: 234.3922655 | AN12: 289.7304137 | AO12: 236.6935628 | AP12: 119.1460716 | AQ12: 10.08203095 | AR12: 123.2367709 | AS12: 17.00751572 | AT12: 155.5273864 | AU12: 26.76521238 | AV12: 4.849283431 | AW12: 0.001995428561 | AX12: 58.78769556 | AY12: 0.09938629678 | AZ12: 9.411771085 | BA12: 72.94175437 | BB12: 4.889017117 | BC12: 5.624916291 | BD12: 40.07308221 | BE12: 42.21211271 | BF12: 39.24397411 | BG12: 39.25698054 | BH12: 85.27814338 | BI12: 143.7165259 | BJ12: 0 | BK12: 0 | BL12: 18.28793971 | BM12: 39.8925017 | BN12: 0 | BO12: 0 | BP12: 63.3330263 | BQ12: 20.93376893 | BR12: 0 | BS12: 0 | BT12: 0 | BU12: 13.00145248 | BV12: 0.001132115219 | BW12: 14.38724775 | BX12: 19.48110073 | BY12: 0 | BZ12: 0 | CA12: 0 | CB12: 0 | CC12: 0 | CD12: 0 | CE12: 0 | CF12: 0 | CG12: 0 | CH12: 0 | CI12: 0 | CJ12: 0 | CK12: 0 | CL12: 0 | CM12: 0 | CN12: 0 | CO12: 0 | CP12: 0 | CQ12: 0 | CR12: 0 | CS12: 0 | CT12: 0 | CV12: 0 | CW12: 60.64655292 | CX12: 1920.197715 | CY12: 744.6178747 | CZ12: 5931.718711 | DA12: 1490.861837 | DB12: 91.20882705 | DC12: 33256.12949 | DD12: 24845.78745 | DE12: 2155.881538 | DF12: 67947.40042 | DG12: 4911.655524 | DH12: 775.4712318 | DI12: 33.10425894 | DJ12: 6213.75873 | DK12: 35660.58629 | DL12: 66574.75866 | DM12: 3310.9728 | DN12: 0 | DO12: 2131.182118 | DP12: 0 | DQ12: 49.95778081 | DR12: 65149.4596 | DS12: 0 | DT12: 10823.95598 | DU12: 154.6271655 | DV12: 1006.614687 | DW12: 0 | DX12: 41893.25362 | DY12: 9570.524868 | DZ12: 990.4405205 | EA12: 93652.36555 | EB12: 115762.9436 | EC12: 94571.85807 | ED12: 47605.28862 | EE12: 4028.315721 | EF12: 49239.74386 | EG12: 6795.420815 | EH12: 62141.58821 | EI12: 10694.14748 | EJ12: 1937.550557 | EK12: 0.7972814489 | EL12: 23488.85849 | EM12: 39.7101917 | EN12: 3760.510716 | EO12: 29144.1692 | EP12: 1953.42631 | EQ12: 2247.457763 | ER12: 16011.36 | ES12: 16866.01818 | ET12: 15680.08655 | EU12: 15685.28332 | EV12: 34073.22268 | EW12: 57422.51177 | EX12: 0 | EY12: 0 | EZ12: 7307.019332 | FA12: 15939.20834 | FB12: 0 | FC12: 0 | FD12: 25304.96353 | FE12: 8364.170962 | FF12: 0 | FG12: 0 | FH12: 0 | FI12: 5194.782249 | FJ12: 0.4523411558 | FK12: 5748.482285 | FL12: 7783.75158 | FM12: 0 | FN12: 0 | FO12: 0 | FP12: 0 | FQ12: 0 | FR12: 0 | FS12: 0 | FT12: 0 | FU12: 0 | FV12: 0 | FW12: 0 | FX12: 0 | FY12: 0 | FZ12: 0 | GA12: 0 | GB12: 0 | GC12: 0 | GD12: 0 | GE12: 0 | GF12: 0 | GG12: 0 | GH12: 0
A13: 2 | B13: POLES | C13: ˂ = 1 kv ; concrete | D13: 48.84736859 | E13: 63.78084856 | F13: 7.98629129 | G13: 2 | H13: 0 | I13: 1 | J13: 2 | K13: 8 | L13: 3 | M13: 49 | N13: 43 | O13: 62 | P13: 77 | Q13: 63 | R13: 79 | S13: 52 | T13: 103 | U13: 65 | V13: 51 | W13: 57 | X13: 128 | Y13: 87 | Z13: 170 | AA13: 114 | AB13: 89 | AC13: 106 | AD13: 86 | AE13: 184 | AF13: 164 | AG13: 103 | AH13: 186 | AI13: 61 | AJ13: 96 | AK13: 196 | AL13: 215 | AM13: 60 | AN13: 66 | AO13: 40 | AP13: 33 | AQ13: 29 | AR13: 33 | AS13: 33 | AT13: 27 | AU13: 2 | AV13: 5 | AW13: 4 | AX13: 3 | AY13: 1 | AZ13: 3 | BA13: 5 | BB13: 7 | BC13: 15 | BD13: 18 | BE13: 9 | BF13: 5 | BG13: 9 | BH13: 3 | BI13: 4 | BJ13: 0 | BK13: 0 | BL13: 0 | BM13: 0 | BN13: 0 | BO13: 0 | BP13: 0 | BQ13: 0 | BR13: 0 | BS13: 0 | BT13: 0 | BU13: 0 | BV13: 0 | BW13: 0 | BX13: 0 | BY13: 0 | BZ13: 0 | CA13: 0 | CB13: 0 | CC13: 0 | CD13: 0 | CE13: 0 | CF13: 0 | CG13: 0 | CH13: 0 | CI13: 0 | CJ13: 0 | CK13: 0 | CL13: 0 | CM13: 0 | CN13: 0 | CO13: 0 | CP13: 0 | CQ13: 0 | CR13: 0 | CS13: 0 | CT13: 0 | CV13: 0 | CW13: 48.84736859 | CX13: 97.69473719 | CY13: 390.7789488 | CZ13: 146.5421058 | DA13: 2393.521061 | DB13: 2100.43685 | DC13: 3028.536853 | DD13: 3761.247382 | DE13: 3077.384221 | DF13: 3858.942119 | DG13: 2540.063167 | DH13: 5031.278965 | DI13: 3175.078959 | DJ13: 2491.215798 | DK13: 2784.30001 | DL13: 6252.46318 | DM13: 4249.721068 | DN13: 8304.052661 | DO13: 5568.60002 | DP13: 4347.415805 | DQ13: 5177.821071 | DR13: 4200.873699 | DS13: 8987.915821 | DT13: 8010.968449 | DU13: 5031.278965 | DV13: 9085.610558 | DW13: 2979.689484 | DX13: 4689.347385 | DY13: 9574.084244 | DZ13: 10502.18425 | EA13: 2930.842116 | EB13: 3223.926327 | EC13: 1953.894744 | ED13: 1611.963164 | EE13: 1416.573689 | EF13: 1611.963164 | EG13: 1611.963164 | EH13: 1318.878952 | EI13: 97.69473719 | EJ13: 244.236843 | EK13: 195.3894744 | EL13: 146.5421058 | EM13: 48.84736859 | EN13: 146.5421058 | EO13: 244.236843 | EP13: 341.9315802 | EQ13: 732.7105289 | ER13: 879.2526347 | ES13: 439.6263173 | ET13: 244.236843 | EU13: 439.6263173 | EV13: 146.5421058 | EW13: 195.3894744 | EX13: 0 | EY13: 0 | EZ13: 0 | FA13: 0 | FB13: 0 | FC13: 0 | FD13: 0 | FE13: 0 | FF13: 0 | FG13: 0 | FH13: 0 | FI13: 0 | FJ13: 0 | FK13: 0 | FL13: 0 | FM13: 0 | FN13: 0 | FO13: 0 | FP13: 0 | FQ13: 0 | FR13: 0 | FS13: 0 | FT13: 0 | FU13: 0 | FV13: 0 | FW13: 0 | FX13: 0 | FY13: 0 | FZ13: 0 | GA13: 0 | GB13: 0 | GC13: 0 | GD13: 0 | GE13: 0 | GF13: 0 | GG13: 0 | GH13: 0
A14: 2 | B14: POLES | C14: ˂ = 1 kv ; steel | D14: 4.44107733 | E14: 63.49635582 | F14: 7.968460066 | G14: 2 | H14: 11 | I14: 732 | J14: 976 | K14: 1179 | L14: 2062 | M14: 3377 | N14: 3613 | O14: 3413 | P14: 2813 | Q14: 3335 | R14: 5439 | S14: 4751 | T14: 5067 | U14: 3583 | V14: 3434 | W14: 2470 | X14: 1953 | Y14: 2142 | Z14: 1810 | AA14: 1932 | AB14: 2007 | AC14: 1993 | AD14: 1951 | AE14: 1675 | AF14: 1464 | AG14: 1442 | AH14: 1386 | AI14: 1331 | AJ14: 1327 | AK14: 45 | AL14: 47 | AM14: 25 | AN14: 54 | AO14: 49 | AP14: 48 | AQ14: 36 | AR14: 39 | AS14: 43 | AT14: 46 | AU14: 40 | AV14: 50 | AW14: 44 | AX14: 42 | AY14: 34 | AZ14: 41 | BA14: 32 | BB14: 30 | BC14: 39 | BD14: 53 | BE14: 54 | BF14: 46 | BG14: 20 | BH14: 20 | BI14: 14 | BJ14: 19 | BK14: 13 | BL14: 1 | BM14: 0 | BN14: 1 | BO14: 0 | BP14: 1 | BQ14: 0 | BR14: 0 | BS14: 0 | BT14: 0 | BU14: 0 | BV14: 0 | BW14: 0 | BX14: 0 | BY14: 0 | BZ14: 0 | CA14: 0 | CB14: 0 | CC14: 0 | CD14: 0 | CE14: 0 | CF14: 0 | CG14: 0 | CH14: 0 | CI14: 0 | CJ14: 0 | CK14: 0 | CL14: 0 | CM14: 0 | CN14: 0 | CO14: 0 | CP14: 0 | CQ14: 0 | CR14: 0 | CS14: 0 | CT14: 0 | CV14: 48.85185063 | CW14: 3250.868605 | CX14: 4334.491474 | CY14: 5236.030172 | CZ14: 9157.501454 | DA14: 14997.51814 | DB14: 16045.61239 | DC14: 15157.39693 | DD14: 12492.75053 | DE14: 14810.9929 | DF14: 24155.0196 | DG14: 21099.55839 | DH14: 22502.93883 | DI14: 15912.38007 | DJ14: 15250.65955 | DK14: 10969.461 | DL14: 8673.424025 | DM14: 9512.787641 | DN14: 8038.349967 | DO14: 8580.161401 | DP14: 8913.242201 | DQ14: 8851.067118 | DR14: 8664.541871 | DS14: 7438.804527 | DT14: 6501.737211 | DU14: 6404.03351 | DV14: 6155.333179 | DW14: 5911.073926 | DX14: 5893.309617 | DY14: 199.8484798 | DZ14: 208.7306345 | EA14: 111.0269332 | EB14: 239.8181758 | EC14: 217.6127892 | ED14: 213.1717118 | EE14: 159.8787839 | EF14: 173.2020159 | EG14: 190.9663252 | EH14: 204.2895572 | EI14: 177.6430932 | EJ14: 222.0538665 | EK14: 195.4074025 | EL14: 186.5252479 | EM14: 150.9966292 | EN14: 182.0841705 | EO14: 142.1144746 | EP14: 133.2323199 | EQ14: 173.2020159 | ER14: 235.3770985 | ES14: 239.8181758 | ET14: 204.2895572 | EU14: 88.8215466 | EV14: 88.8215466 | EW14: 62.17508262 | EX14: 84.38046927 | EY14: 57.73400529 | EZ14: 4.44107733 | FA14: 0 | FB14: 4.44107733 | FC14: 0 | FD14: 4.44107733 | FE14: 0 | FF14: 0 | FG14: 0 | FH14: 0 | FI14: 0 | FJ14: 0 | FK14: 0 | FL14: 0 | FM14: 0 | FN14: 0 | FO14: 0 | FP14: 0 | FQ14: 0 | FR14: 0 | FS14: 0 | FT14: 0 | FU14: 0 | FV14: 0 | FW14: 0 | FX14: 0 | FY14: 0 | FZ14: 0 | GA14: 0 | GB14: 0 | GC14: 0 | GD14: 0 | GE14: 0 | GF14: 0 | GG14: 0 | GH14: 0
A15: 2 | B15: POLES | C15: ˂ = 1 kv ; wood | D15: 4.44107733 | E15: 63.49635582 | F15: 7.968460066 | G15: 2 | H15: 70 | I15: 1219 | J15: 1167 | K15: 1776 | L15: 2435 | M15: 2147 | N15: 2623 | O15: 1880 | P15: 2205 | Q15: 2112 | R15: 2286 | S15: 4549 | T15: 4670 | U15: 5541 | V15: 5397 | W15: 4705 | X15: 4763 | Y15: 4343 | Z15: 4275 | AA15: 3858 | AB15: 4258 | AC15: 4298 | AD15: 4707 | AE15: 5617 | AF15: 5179 | AG15: 5051 | AH15: 5559 | AI15: 5162 | AJ15: 5023 | AK15: 4738 | AL15: 3659 | AM15: 3235 | AN15: 4578 | AO15: 5240 | AP15: 4944 | AQ15: 4344 | AR15: 5806 | AS15: 4843 | AT15: 4403 | AU15: 3314 | AV15: 4121 | AW15: 4128 | AX15: 4140 | AY15: 3941 | AZ15: 4099 | BA15: 3231 | BB15: 3354 | BC15: 3394 | BD15: 3911 | BE15: 3238 | BF15: 2751 | BG15: 2123 | BH15: 2168 | BI15: 2031 | BJ15: 1751 | BK15: 2757 | BL15: 1605 | BM15: 1604 | BN15: 1599 | BO15: 1559 | BP15: 1559 | BQ15: 1574 | BR15: 1585 | BS15: 1551 | BT15: 1519 | BU15: 1527 | BV15: 1502 | BW15: 1519 | BX15: 1550 | BY15: 1 | BZ15: 0 | CA15: 1 | CB15: 0 | CC15: 0 | CD15: 0 | CE15: 0 | CF15: 0 | CG15: 0 | CH15: 0 | CI15: 0 | CJ15: 0 | CK15: 0 | CL15: 0 | CM15: 0 | CN15: 0 | CO15: 0 | CP15: 0 | CQ15: 0 | CR15: 0 | CS15: 0 | CT15: 0 | CV15: 310.8754131 | CW15: 5413.673265 | CX15: 5182.737244 | CY15: 7887.353338 | CZ15: 10814.0233 | DA15: 9534.993027 | DB15: 11648.94584 | DC15: 8349.22538 | DD15: 9792.575512 | DE15: 9379.555321 | DF15: 10152.30278 | DG15: 20202.46077 | DH15: 20739.83113 | DI15: 24608.00948 | DJ15: 23968.49435 | DK15: 20895.26884 | DL15: 21152.85132 | DM15: 19287.59884 | DN15: 18985.60559 | DO15: 17133.67634 | DP15: 18910.10727 | DQ15: 19087.75036 | DR15: 20904.15099 | DS15: 24945.53136 | DT15: 23000.33949 | DU15: 22431.88159 | DV15: 24687.94888 | DW15: 22924.84118 | DX15: 22307.53143 | DY15: 21041.82439 | DZ15: 16249.90195 | EA15: 14366.88516 | EB15: 20331.25202 | EC15: 23271.24521 | ED15: 21956.68632 | EE15: 19292.03992 | EF15: 25784.89498 | EG15: 21508.13751 | EH15: 19554.06348 | EI15: 14717.73027 | EJ15: 18301.67968 | EK15: 18332.76722 | EL15: 18386.06015 | EM15: 17502.28576 | EN15: 18203.97598 | EO15: 14349.12085 | EP15: 14895.37336 | EQ15: 15073.01646 | ER15: 17369.05344 | ES15: 14380.20839 | ET15: 12217.40373 | EU15: 9428.407171 | EV15: 9628.255651 | EW15: 9019.828057 | EX15: 7776.326405 | EY15: 12244.0502 | EZ15: 7127.929114 | FA15: 7123.488037 | FB15: 7101.28265 | FC15: 6923.639557 | FD15: 6923.639557 | FE15: 6990.255717 | FF15: 7039.107568 | FG15: 6888.110939 | FH15: 6745.996464 | FI15: 6781.525083 | FJ15: 6670.498149 | FK15: 6745.996464 | FL15: 6883.669861 | FM15: 4.44107733 | FN15: 0 | FO15: 4.44107733 | FP15: 0 | FQ15: 0 | FR15: 0 | FS15: 0 | FT15: 0 | FU15: 0 | FV15: 0 | FW15: 0 | FX15: 0 | FY15: 0 | FZ15: 0 | GA15: 0 | GB15: 0 | GC15: 0 | GD15: 0 | GE15: 0 | GF15: 0 | GG15: 0 | GH15: 0
A16: 2 | B16: POLES | C16: ˃ 11 kv & < = 22 kv ; concrete | D16: 6.145145019 | E16: 64.60173817 | F16: 8.037520648 | G16: 2 | H16: 0 | I16: 0 | J16: 0 | K16: 0 | L16: 10 | M16: 34 | N16: 1 | O16: 62 | P16: 2 | Q16: 40 | R16: 4 | S16: 1 | T16: 13 | U16: 16 | V16: 6 | W16: 2 | X16: 14 | Y16: 7 | Z16: 3370 | AA16: 2416 | AB16: 19 | AC16: 11 | AD16: 54 | AE16: 203 | AF16: 156 | AG16: 124 | AH16: 184 | AI16: 215 | AJ16: 277 | AK16: 748 | AL16: 118 | AM16: 28 | AN16: 66 | AO16: 72 | AP16: 1 | AQ16: 0 | AR16: 2 | AS16: 2 | AT16: 2 | AU16: 1 | AV16: 1 | AW16: 1 | AX16: 0 | AY16: 3 | AZ16: 1 | BA16: 0 | BB16: 2 | BC16: 0 | BD16: 0 | BE16: 0 | BF16: 1 | BG16: 0 | BH16: 0 | BI16: 0 | BJ16: 0 | BK16: 0 | BL16: 0 | BM16: 0 | BN16: 0 | BO16: 0 | BP16: 0 | BQ16: 0 | BR16: 0 | BS16: 0 | BT16: 0 | BU16: 0 | BV16: 0 | BW16: 0 | BX16: 0 | BY16: 0 | BZ16: 0 | CA16: 0 | CB16: 0 | CC16: 0 | CD16: 0 | CE16: 0 | CF16: 0 | CG16: 0 | CH16: 0 | CI16: 0 | CJ16: 0 | CK16: 0 | CL16: 0 | CM16: 0 | CN16: 0 | CO16: 0 | CP16: 0 | CQ16: 0 | CR16: 0 | CS16: 0 | CT16: 0 | CV16: 0 | CW16: 0 | CX16: 0 | CY16: 0 | CZ16: 61.45145019 | DA16: 208.9349307 | DB16: 6.145145019 | DC16: 380.9989912 | DD16: 12.29029004 | DE16: 245.8058008 | DF16: 24.58058008 | DG16: 6.145145019 | DH16: 79.88688525 | DI16: 98.32232031 | DJ16: 36.87087012 | DK16: 12.29029004 | DL16: 86.03203027 | DM16: 43.01601513 | DN16: 20709.13871 | DO16: 14846.67037 | DP16: 116.7577554 | DQ16: 67.59659521 | DR16: 331.837831 | DS16: 1247.464439 | DT16: 958.642623 | DU16: 761.9979824 | DV16: 1130.706684 | DW16: 1321.206179 | DX16: 1702.20517 | DY16: 4596.568474 | DZ16: 725.1271123 | EA16: 172.0640605 | EB16: 405.5795713 | EC16: 442.4504414 | ED16: 6.145145019 | EE16: 0 | EF16: 12.29029004 | EG16: 12.29029004 | EH16: 12.29029004 | EI16: 6.145145019 | EJ16: 6.145145019 | EK16: 6.145145019 | EL16: 0 | EM16: 18.43543506 | EN16: 6.145145019 | EO16: 0 | EP16: 12.29029004 | EQ16: 0 | ER16: 0 | ES16: 0 | ET16: 6.145145019 | EU16: 0 | EV16: 0 | EW16: 0 | EX16: 0 | EY16: 0 | EZ16: 0 | FA16: 0 | FB16: 0 | FC16: 0 | FD16: 0 | FE16: 0 | FF16: 0 | FG16: 0 | FH16: 0 | FI16: 0 | FJ16: 0 | FK16: 0 | FL16: 0 | FM16: 0 | FN16: 0 | FO16: 0 | FP16: 0 | FQ16: 0 | FR16: 0 | FS16: 0 | FT16: 0 | FU16: 0 | FV16: 0 | FW16: 0 | FX16: 0 | FY16: 0 | FZ16: 0 | GA16: 0 | GB16: 0 | GC16: 0 | GD16: 0 | GE16: 0 | GF16: 0 | GG16: 0 | GH16: 0
A17: 2 | B17: POLES | C17: ˃ 11 kv & < = 22 kv ; steel | D17: 7.127873374 | E17: 39.46991713 | F17: 6.282508825 | G17: 2 | H17: 0 | I17: 2 | J17: 0 | K17: 1 | L17: 5 | M17: 0 | N17: 15 | O17: 39 | P17: 30 | Q17: 4 | R17: 142 | S17: 4 | T17: 1 | U17: 2 | V17: 8 | W17: 2 | X17: 3 | Y17: 4 | Z17: 2 | AA17: 2 | AB17: 1 | AC17: 3 | AD17: 2 | AE17: 3 | AF17: 1 | AG17: 0 | AH17: 0 | AI17: 0 | AJ17: 1 | AK17: 2 | AL17: 5 | AM17: 0 | AN17: 0 | AO17: 0 | AP17: 1 | AQ17: 0 | AR17: 1 | AS17: 0 | AT17: 0 | AU17: 0 | AV17: 0 | AW17: 0 | AX17: 4 | AY17: 1 | AZ17: 0 | BA17: 3 | BB17: 0 | BC17: 0 | BD17: 0 | BE17: 0 | BF17: 0 | BG17: 0 | BH17: 0 | BI17: 1 | BJ17: 0 | BK17: 0 | BL17: 0 | BM17: 0 | BN17: 0 | BO17: 0 | BP17: 0 | BQ17: 0 | BR17: 0 | BS17: 0 | BT17: 0 | BU17: 0 | BV17: 0 | BW17: 0 | BX17: 0 | BY17: 0 | BZ17: 0 | CA17: 0 | CB17: 0 | CC17: 0 | CD17: 0 | CE17: 0 | CF17: 0 | CG17: 0 | CH17: 0 | CI17: 0 | CJ17: 0 | CK17: 0 | CL17: 0 | CM17: 0 | CN17: 0 | CO17: 0 | CP17: 0 | CQ17: 0 | CR17: 0 | CS17: 0 | CT17: 0 | CV17: 0 | CW17: 14.25574675 | CX17: 0 | CY17: 7.127873374 | CZ17: 35.63936687 | DA17: 0 | DB17: 106.9181006 | DC17: 277.9870616 | DD17: 213.8362012 | DE17: 28.51149349 | DF17: 1012.158019 | DG17: 28.51149349 | DH17: 7.127873374 | DI17: 14.25574675 | DJ17: 57.02298699 | DK17: 14.25574675 | DL17: 21.38362012 | DM17: 28.51149349 | DN17: 14.25574675 | DO17: 14.25574675 | DP17: 7.127873374 | DQ17: 21.38362012 | DR17: 14.25574675 | DS17: 21.38362012 | DT17: 7.127873374 | DU17: 0 | DV17: 0 | DW17: 0 | DX17: 7.127873374 | DY17: 14.25574675 | DZ17: 35.63936687 | EA17: 0 | EB17: 0 | EC17: 0 | ED17: 7.127873374 | EE17: 0 | EF17: 7.127873374 | EG17: 0 | EH17: 0 | EI17: 0 | EJ17: 0 | EK17: 0 | EL17: 28.51149349 | EM17: 7.127873374 | EN17: 0 | EO17: 21.38362012 | EP17: 0 | EQ17: 0 | ER17: 0 | ES17: 0 | ET17: 0 | EU17: 0 | EV17: 0 | EW17: 7.127873374 | EX17: 0 | EY17: 0 | EZ17: 0 | FA17: 0 | FB17: 0 | FC17: 0 | FD17: 0 | FE17: 0 | FF17: 0 | FG17: 0 | FH17: 0 | FI17: 0 | FJ17: 0 | FK17: 0 | FL17: 0 | FM17: 0 | FN17: 0 | FO17: 0 | FP17: 0 | FQ17: 0 | FR17: 0 | FS17: 0 | FT17: 0 | FU17: 0 | FV17: 0 | FW17: 0 | FX17: 0 | FY17: 0 | FZ17: 0 | GA17: 0 | GB17: 0 | GC17: 0 | GD17: 0 | GE17: 0 | GF17: 0 | GG17: 0 | GH17: 0
A18: 2 | B18: POLES | C18: ˃ 11 kv & < = 22 kv ; wood | D18: 6.145145019 | E18: 64.60173817 | F18: 8.037520648 | G18: 2 | H18: 74 | I18: 1784 | J18: 1720 | K18: 2504 | L18: 2907 | M18: 3278 | N18: 4384 | O18: 3587 | P18: 2566 | Q18: 3658 | R18: 4086 | S18: 5282 | T18: 5165 | U18: 6250 | V18: 5651 | W18: 5246 | X18: 6193 | Y18: 5920 | Z18: 5840 | AA18: 5882 | AB18: 3761 | AC18: 3154 | AD18: 3360 | AE18: 4004 | AF18: 3889 | AG18: 3903 | AH18: 4114 | AI18: 5323 | AJ18: 5901 | AK18: 8026 | AL18: 7022 | AM18: 9959 | AN18: 13104 | AO18: 8547 | AP18: 9219 | AQ18: 8673 | AR18: 12888 | AS18: 13917 | AT18: 8443 | AU18: 3880 | AV18: 2615 | AW18: 4644 | AX18: 5018 | AY18: 9601 | AZ18: 8690 | BA18: 3409 | BB18: 3787 | BC18: 5249 | BD18: 6874 | BE18: 4798 | BF18: 4490 | BG18: 3647 | BH18: 4022 | BI18: 4200 | BJ18: 3416 | BK18: 3178 | BL18: 1389 | BM18: 1218 | BN18: 1020 | BO18: 1025 | BP18: 949 | BQ18: 952 | BR18: 922 | BS18: 935 | BT18: 924 | BU18: 927 | BV18: 958 | BW18: 952 | BX18: 950 | BY18: 0 | BZ18: 0 | CA18: 0 | CB18: 0 | CC18: 0 | CD18: 0 | CE18: 0 | CF18: 0 | CG18: 0 | CH18: 0 | CI18: 0 | CJ18: 0 | CK18: 0 | CL18: 0 | CM18: 0 | CN18: 0 | CO18: 0 | CP18: 0 | CQ18: 0 | CR18: 0 | CS18: 0 | CT18: 0 | CV18: 454.7407314 | CW18: 10962.93871 | CX18: 10569.64943 | CY18: 15387.44313 | CZ18: 17863.93657 | DA18: 20143.78537 | DB18: 26940.31576 | DC18: 22042.63518 | DD18: 15768.44212 | DE18: 22478.94048 | DF18: 25109.06255 | DG18: 32458.65599 | DH18: 31739.67402 | DI18: 38407.15637 | DJ18: 34726.2145 | DK18: 32237.43077 | DL18: 38056.8831 | DM18: 36379.25851 | DN18: 35887.64691 | DO18: 36145.743 | DP18: 23111.89042 | DQ18: 19381.78739 | DR18: 20647.68726 | DS18: 24605.16066 | DT18: 23898.46898 | DU18: 23984.50101 | DV18: 25281.12661 | DW18: 32710.60694 | DX18: 36262.50076 | DY18: 49320.93392 | DZ18: 43151.20833 | EA18: 61199.49925 | EB18: 80525.98033 | EC18: 52522.55448 | ED18: 56652.09193 | EE18: 53296.84275 | EF18: 79198.62901 | EG18: 85521.98323 | EH18: 51883.4594 | EI18: 23843.16267 | EJ18: 16069.55423 | EK18: 28538.05347 | EL18: 30836.33771 | EM18: 58999.53733 | EN18: 53401.31022 | EO18: 20948.79937 | EP18: 23271.66419 | EQ18: 32255.86621 | ER18: 42241.72686 | ES18: 29484.4058 | ET18: 27591.70114 | EU18: 22411.34389 | EV18: 24715.77327 | EW18: 25809.60908 | EX18: 20991.81539 | EY18: 19529.27087 | EZ18: 8535.606432 | FA18: 7484.786633 | FB18: 6268.04792 | FC18: 6298.773645 | FD18: 5831.742623 | FE18: 5850.178058 | FF18: 5665.823708 | FG18: 5745.710593 | FH18: 5678.113998 | FI18: 5696.549433 | FJ18: 5887.048928 | FK18: 5850.178058 | FL18: 5837.887768 | FM18: 0 | FN18: 0 | FO18: 0 | FP18: 0 | FQ18: 0 | FR18: 0 | FS18: 0 | FT18: 0 | FU18: 0 | FV18: 0 | FW18: 0 | FX18: 0 | FY18: 0 | FZ18: 0 | GA18: 0 | GB18: 0 | GC18: 0 | GD18: 0 | GE18: 0 | GF18: 0 | GG18: 0 | GH18: 0
A19: 2 | B19: POLES | C19: > 1 kv & < = 11 kv ; concrete | D19: 6.067585282 | E19: 68.2991839 | F19: 8.26433203 | G19: 2 | H19: 0 | I19: 2 | J19: 1 | K19: 1 | L19: 1 | M19: 4 | N19: 3 | O19: 5 | P19: 8 | Q19: 2 | R19: 8 | S19: 51 | T19: 164 | U19: 3 | V19: 1 | W19: 2 | X19: 6 | Y19: 2 | Z19: 124 | AA19: 33 | AB19: 244 | AC19: 16 | AD19: 17 | AE19: 15 | AF19: 46 | AG19: 34 | AH19: 80 | AI19: 37 | AJ19: 23 | AK19: 28 | AL19: 45 | AM19: 49 | AN19: 103 | AO19: 133 | AP19: 19 | AQ19: 14 | AR19: 2 | AS19: 0 | AT19: 5 | AU19: 2 | AV19: 2 | AW19: 1 | AX19: 0 | AY19: 1 | AZ19: 2 | BA19: 0 | BB19: 1 | BC19: 2 | BD19: 0 | BE19: 3 | BF19: 1 | BG19: 1 | BH19: 1 | BI19: 1 | BJ19: 1 | BK19: 0 | BL19: 0 | BM19: 0 | BN19: 0 | BO19: 1 | BP19: 0 | BQ19: 0 | BR19: 0 | BS19: 0 | BT19: 0 | BU19: 0 | BV19: 0 | BW19: 0 | BX19: 0 | BY19: 0 | BZ19: 0 | CA19: 0 | CB19: 0 | CC19: 0 | CD19: 0 | CE19: 0 | CF19: 0 | CG19: 0 | CH19: 0 | CI19: 0 | CJ19: 0 | CK19: 0 | CL19: 0 | CM19: 0 | CN19: 0 | CO19: 0 | CP19: 0 | CQ19: 0 | CR19: 0 | CS19: 0 | CT19: 0 | CV19: 0 | CW19: 12.13517056 | CX19: 6.067585282 | CY19: 6.067585282 | CZ19: 6.067585282 | DA19: 24.27034113 | DB19: 18.20275585 | DC19: 30.33792641 | DD19: 48.54068226 | DE19: 12.13517056 | DF19: 48.54068226 | DG19: 309.4468494 | DH19: 995.0839863 | DI19: 18.20275585 | DJ19: 6.067585282 | DK19: 12.13517056 | DL19: 36.40551169 | DM19: 12.13517056 | DN19: 752.380575 | DO19: 200.2303143 | DP19: 1480.490809 | DQ19: 97.08136452 | DR19: 103.1489498 | DS19: 91.01377923 | DT19: 279.108923 | DU19: 206.2978996 | DV19: 485.4068226 | DW19: 224.5006554 | DX19: 139.5544615 | DY19: 169.8923879 | DZ19: 273.0413377 | EA19: 297.3116788 | EB19: 624.9612841 | EC19: 806.9888425 | ED19: 115.2841204 | EE19: 84.94619395 | EF19: 12.13517056 | EG19: 0 | EH19: 30.33792641 | EI19: 12.13517056 | EJ19: 12.13517056 | EK19: 6.067585282 | EL19: 0 | EM19: 6.067585282 | EN19: 12.13517056 | EO19: 0 | EP19: 6.067585282 | EQ19: 12.13517056 | ER19: 0 | ES19: 18.20275585 | ET19: 6.067585282 | EU19: 6.067585282 | EV19: 6.067585282 | EW19: 6.067585282 | EX19: 6.067585282 | EY19: 0 | EZ19: 0 | FA19: 0 | FB19: 0 | FC19: 6.067585282 | FD19: 0 | FE19: 0 | FF19: 0 | FG19: 0 | FH19: 0 | FI19: 0 | FJ19: 0 | FK19: 0 | FL19: 0 | FM19: 0 | FN19: 0 | FO19: 0 | FP19: 0 | FQ19: 0 | FR19: 0 | FS19: 0 | FT19: 0 | FU19: 0 | FV19: 0 | FW19: 0 | FX19: 0 | FY19: 0 | FZ19: 0 | GA19: 0 | GB19: 0 | GC19: 0 | GD19: 0 | GE19: 0 | GF19: 0 | GG19: 0 | GH19: 0
A20: 2 | B20: POLES | C20: > 1 kv & < = 11 kv ; steel | D20: 6.067585282 | E20: 68.2991839 | F20: 8.26433203 | G20: 2 | H20: 0 | I20: 0 | J20: 3 | K20: 1 | L20: 8 | M20: 30 | N20: 37 | O20: 28 | P20: 21 | Q20: 47 | R20: 49 | S20: 71 | T20: 84 | U20: 31 | V20: 52 | W20: 34 | X20: 23 | Y20: 43 | Z20: 60 | AA20: 42 | AB20: 57 | AC20: 26 | AD20: 38 | AE20: 39 | AF20: 27 | AG20: 31 | AH20: 39 | AI20: 30 | AJ20: 28 | AK20: 21 | AL20: 15 | AM20: 10 | AN20: 16 | AO20: 15 | AP20: 6 | AQ20: 6 | AR20: 20 | AS20: 17 | AT20: 9 | AU20: 8 | AV20: 5 | AW20: 4 | AX20: 5 | AY20: 8 | AZ20: 12 | BA20: 8 | BB20: 8 | BC20: 19 | BD20: 18 | BE20: 11 | BF20: 12 | BG20: 3 | BH20: 4 | BI20: 9 | BJ20: 3 | BK20: 2 | BL20: 0 | BM20: 0 | BN20: 0 | BO20: 0 | BP20: 0 | BQ20: 0 | BR20: 0 | BS20: 0 | BT20: 0 | BU20: 0 | BV20: 0 | BW20: 0 | BX20: 0 | BY20: 0 | BZ20: 0 | CA20: 0 | CB20: 0 | CC20: 0 | CD20: 0 | CE20: 0 | CF20: 0 | CG20: 0 | CH20: 0 | CI20: 0 | CJ20: 0 | CK20: 0 | CL20: 0 | CM20: 0 | CN20: 0 | CO20: 0 | CP20: 0 | CQ20: 0 | CR20: 0 | CS20: 0 | CT20: 0 | CV20: 0 | CW20: 0 | CX20: 18.20275585 | CY20: 6.067585282 | CZ20: 48.54068226 | DA20: 182.0275585 | DB20: 224.5006554 | DC20: 169.8923879 | DD20: 127.4192909 | DE20: 285.1765083 | DF20: 297.3116788 | DG20: 430.798555 | DH20: 509.6771637 | DI20: 188.0951438 | DJ20: 315.5144347 | DK20: 206.2978996 | DL20: 139.5544615 | DM20: 260.9061671 | DN20: 364.0551169 | DO20: 254.8385819 | DP20: 345.8523611 | DQ20: 157.7572173 | DR20: 230.5682407 | DS20: 236.635826 | DT20: 163.8248026 | DU20: 188.0951438 | DV20: 236.635826 | DW20: 182.0275585 | DX20: 169.8923879 | DY20: 127.4192909 | DZ20: 91.01377923 | EA20: 60.67585282 | EB20: 97.08136452 | EC20: 91.01377923 | ED20: 36.40551169 | EE20: 36.40551169 | EF20: 121.3517056 | EG20: 103.1489498 | EH20: 54.60826754 | EI20: 48.54068226 | EJ20: 30.33792641 | EK20: 24.27034113 | EL20: 30.33792641 | EM20: 48.54068226 | EN20: 72.81102339 | EO20: 48.54068226 | EP20: 48.54068226 | EQ20: 115.2841204 | ER20: 109.2165351 | ES20: 66.7434381 | ET20: 72.81102339 | EU20: 18.20275585 | EV20: 24.27034113 | EW20: 54.60826754 | EX20: 18.20275585 | EY20: 12.13517056 | EZ20: 0 | FA20: 0 | FB20: 0 | FC20: 0 | FD20: 0 | FE20: 0 | FF20: 0 | FG20: 0 | FH20: 0 | FI20: 0 | FJ20: 0 | FK20: 0 | FL20: 0 | FM20: 0 | FN20: 0 | FO20: 0 | FP20: 0 | FQ20: 0 | FR20: 0 | FS20: 0 | FT20: 0 | FU20: 0 | FV20: 0 | FW20: 0 | FX20: 0 | FY20: 0 | FZ20: 0 | GA20: 0 | GB20: 0 | GC20: 0 | GD20: 0 | GE20: 0 | GF20: 0 | GG20: 0 | GH20: 0
A21: 2 | B21: POLES | C21: > 1 kv & < = 11 kv ; wood | D21: 6.067585282 | E21: 68.2991839 | F21: 8.26433203 | G21: 2 | H21: 143 | I21: 1625 | J21: 1764 | K21: 3461 | L21: 4606 | M21: 4467 | N21: 4960 | O21: 3967 | P21: 3425 | Q21: 3942 | R21: 5298 | S21: 7498 | T21: 6351 | U21: 5740 | V21: 5316 | W21: 4286 | X21: 4472 | Y21: 4084 | Z21: 4326 | AA21: 3892 | AB21: 4506 | AC21: 4824 | AD21: 5259 | AE21: 6864 | AF21: 5591 | AG21: 5119 | AH21: 5434 | AI21: 5055 | AJ21: 4823 | AK21: 4227 | AL21: 3002 | AM21: 3889 | AN21: 4863 | AO21: 5880 | AP21: 5905 | AQ21: 4899 | AR21: 7141 | AS21: 5747 | AT21: 5654 | AU21: 3648 | AV21: 4213 | AW21: 4129 | AX21: 3861 | AY21: 3376 | AZ21: 3867 | BA21: 2380 | BB21: 3015 | BC21: 3452 | BD21: 4070 | BE21: 3641 | BF21: 3372 | BG21: 2798 | BH21: 2592 | BI21: 3148 | BJ21: 3580 | BK21: 3838 | BL21: 2122 | BM21: 2074 | BN21: 2150 | BO21: 2045 | BP21: 2064 | BQ21: 2041 | BR21: 2045 | BS21: 2036 | BT21: 2074 | BU21: 2085 | BV21: 2082 | BW21: 2096 | BX21: 2066 | BY21: 1 | BZ21: 0 | CA21: 3 | CB21: 0 | CC21: 0 | CD21: 0 | CE21: 0 | CF21: 0 | CG21: 0 | CH21: 0 | CI21: 0 | CJ21: 0 | CK21: 0 | CL21: 0 | CM21: 0 | CN21: 0 | CO21: 0 | CP21: 0 | CQ21: 0 | CR21: 0 | CS21: 0 | CT21: 0 | CV21: 867.6646954 | CW21: 9859.826084 | CX21: 10703.22044 | CY21: 20999.91266 | CZ21: 27947.29781 | DA21: 27103.90346 | DB21: 30095.223 | DC21: 24070.11081 | DD21: 20781.47959 | DE21: 23918.42118 | DF21: 32146.06683 | DG21: 45494.75445 | DH21: 38535.23413 | DI21: 34827.93952 | DJ21: 32255.28336 | DK21: 26005.67052 | DL21: 27134.24138 | DM21: 24780.01829 | DN21: 26248.37393 | DO21: 23615.04192 | DP21: 27340.53928 | DQ21: 29270.0314 | DR21: 31909.431 | DS21: 41647.90538 | DT21: 33923.86931 | DU21: 31059.96906 | DV21: 32971.25842 | DW21: 30671.6436 | DX21: 29263.96382 | DY21: 25647.68299 | DZ21: 18214.89102 | EA21: 23596.83916 | EB21: 29506.66723 | EC21: 35677.40146 | ED21: 35829.09109 | EE21: 29725.1003 | EF21: 43328.6265 | EG21: 34870.41262 | EH21: 34306.12719 | EI21: 22134.55111 | EJ21: 25562.73679 | EK21: 25053.05963 | EL21: 23426.94677 | EM21: 20484.16791 | EN21: 23463.35229 | EO21: 14440.85297 | EP21: 18293.76963 | EQ21: 20945.30439 | ER21: 24695.0721 | ES21: 22092.07801 | ET21: 20459.89757 | EU21: 16977.10362 | EV21: 15727.18105 | EW21: 19100.75847 | EX21: 21721.95531 | EY21: 23287.39231 | EZ21: 12875.41597 | FA21: 12584.17188 | FB21: 13045.30836 | FC21: 12408.2119 | FD21: 12523.49602 | FE21: 12383.94156 | FF21: 12408.2119 | FG21: 12353.60363 | FH21: 12584.17188 | FI21: 12650.91531 | FJ21: 12632.71256 | FK21: 12717.65875 | FL21: 12535.63119 | FM21: 6.067585282 | FN21: 0 | FO21: 18.20275585 | FP21: 0 | FQ21: 0 | FR21: 0 | FS21: 0 | FT21: 0 | FU21: 0 | FV21: 0 | FW21: 0 | FX21: 0 | FY21: 0 | FZ21: 0 | GA21: 0 | GB21: 0 | GC21: 0 | GD21: 0 | GE21: 0 | GF21: 0 | GG21: 0 | GH21: 0
A22: 2 | B22: POLES | C22: > 22 kv & < = 66 kv ; concrete | D22: 41.88369718 | E22: 51.21983522 | F22: 7.156803422 | G22: 2 | H22: 0 | I22: 17 | J22: 38 | K22: 10 | L22: 19 | M22: 55 | N22: 97 | O22: 84 | P22: 78 | Q22: 142 | R22: 184 | S22: 298 | T22: 249 | U22: 242 | V22: 359 | W22: 87 | X22: 335 | Y22: 205 | Z22: 449 | AA22: 855 | AB22: 339 | AC22: 936 | AD22: 258 | AE22: 442 | AF22: 102 | AG22: 101 | AH22: 52 | AI22: 147 | AJ22: 1359 | AK22: 239 | AL22: 484 | AM22: 1387 | AN22: 2234 | AO22: 660 | AP22: 735 | AQ22: 127 | AR22: 215 | AS22: 2 | AT22: 3 | AU22: 1 | AV22: 3 | AW22: 5 | AX22: 5 | AY22: 2 | AZ22: 5 | BA22: 3 | BB22: 6 | BC22: 3 | BD22: 2 | BE22: 2 | BF22: 2 | BG22: 2 | BH22: 5 | BI22: 4 | BJ22: 3 | BK22: 3 | BL22: 0 | BM22: 0 | BN22: 0 | BO22: 0 | BP22: 1 | BQ22: 0 | BR22: 0 | BS22: 0 | BT22: 0 | BU22: 0 | BV22: 0 | BW22: 0 | BX22: 0 | BY22: 0 | BZ22: 0 | CA22: 0 | CB22: 0 | CC22: 0 | CD22: 0 | CE22: 0 | CF22: 0 | CG22: 0 | CH22: 0 | CI22: 0 | CJ22: 0 | CK22: 0 | CL22: 0 | CM22: 0 | CN22: 0 | CO22: 0 | CP22: 0 | CQ22: 0 | CR22: 0 | CS22: 0 | CT22: 0 | CV22: 0 | CW22: 712.0228521 | CX22: 1591.580493 | CY22: 418.8369718 | CZ22: 795.7902465 | DA22: 2303.603345 | DB22: 4062.718627 | DC22: 3518.230563 | DD22: 3266.92838 | DE22: 5947.485 | DF22: 7706.600282 | DG22: 12481.34176 | DH22: 10429.0406 | DI22: 10135.85472 | DJ22: 15036.24729 | DK22: 3643.881655 | DL22: 14031.03856 | DM22: 8586.157922 | DN22: 18805.78003 | DO22: 35810.56109 | DP22: 14198.57334 | DQ22: 39203.14056 | DR22: 10805.99387 | DS22: 18512.59415 | DT22: 4272.137113 | DU22: 4230.253415 | DV22: 2177.952253 | DW22: 6156.903486 | DX22: 56919.94447 | DY22: 10010.20363 | DZ22: 20271.70944 | EA22: 58092.68799 | EB22: 93568.17951 | EC22: 27643.24014 | ED22: 30784.51743 | EE22: 5319.229542 | EF22: 9004.994894 | EG22: 83.76739437 | EH22: 125.6510915 | EI22: 41.88369718 | EJ22: 125.6510915 | EK22: 209.4184859 | EL22: 209.4184859 | EM22: 83.76739437 | EN22: 209.4184859 | EO22: 125.6510915 | EP22: 251.3021831 | EQ22: 125.6510915 | ER22: 83.76739437 | ES22: 83.76739437 | ET22: 83.76739437 | EU22: 83.76739437 | EV22: 209.4184859 | EW22: 167.5347887 | EX22: 125.6510915 | EY22: 125.6510915 | EZ22: 0 | FA22: 0 | FB22: 0 | FC22: 0 | FD22: 41.88369718 | FE22: 0 | FF22: 0 | FG22: 0 | FH22: 0 | FI22: 0 | FJ22: 0 | FK22: 0 | FL22: 0 | FM22: 0 | FN22: 0 | FO22: 0 | FP22: 0 | FQ22: 0 | FR22: 0 | FS22: 0 | FT22: 0 | FU22: 0 | FV22: 0 | FW22: 0 | FX22: 0 | FY22: 0 | FZ22: 0 | GA22: 0 | GB22: 0 | GC22: 0 | GD22: 0 | GE22: 0 | GF22: 0 | GG22: 0 | GH22: 0
A23: 2 | B23: POLES | C23: > 22 kv & < = 66 kv ; steel | D23: 14.73225459 | E23: 69.48307105 | F23: 8.335650608 | G23: 2 | H23: 0 | I23: 0 | J23: 1 | K23: 3 | L23: 4 | M23: 32 | N23: 39 | O23: 42 | P23: 35 | Q23: 50 | R23: 37 | S23: 29 | T23: 26 | U23: 26 | V23: 53 | W23: 29 | X23: 24 | Y23: 29 | Z23: 33 | AA23: 34 | AB23: 33 | AC23: 29 | AD23: 31 | AE23: 27 | AF23: 28 | AG23: 25 | AH23: 31 | AI23: 26 | AJ23: 28 | AK23: 0 | AL23: 0 | AM23: 0 | AN23: 4 | AO23: 5 | AP23: 3 | AQ23: 1 | AR23: 2 | AS23: 2 | AT23: 5 | AU23: 0 | AV23: 2 | AW23: 0 | AX23: 1 | AY23: 0 | AZ23: 0 | BA23: 2 | BB23: 52 | BC23: 0 | BD23: 2 | BE23: 73 | BF23: 4 | BG23: 1 | BH23: 0 | BI23: 0 | BJ23: 1 | BK23: 0 | BL23: 0 | BM23: 0 | BN23: 0 | BO23: 0 | BP23: 554 | BQ23: 453 | BR23: 0 | BS23: 0 | BT23: 0 | BU23: 0 | BV23: 0 | BW23: 0 | BX23: 37 | BY23: 0 | BZ23: 0 | CA23: 0 | CB23: 0 | CC23: 0 | CD23: 0 | CE23: 0 | CF23: 0 | CG23: 0 | CH23: 0 | CI23: 0 | CJ23: 0 | CK23: 0 | CL23: 0 | CM23: 0 | CN23: 0 | CO23: 0 | CP23: 0 | CQ23: 0 | CR23: 0 | CS23: 0 | CT23: 0 | CV23: 0 | CW23: 0 | CX23: 14.73225459 | CY23: 44.19676378 | CZ23: 58.92901837 | DA23: 471.432147 | DB23: 574.5579291 | DC23: 618.7546929 | DD23: 515.6289107 | DE23: 736.6127296 | DF23: 545.0934199 | DG23: 427.2353832 | DH23: 383.0386194 | DI23: 383.0386194 | DJ23: 780.8094934 | DK23: 427.2353832 | DL23: 353.5741102 | DM23: 427.2353832 | DN23: 486.1644016 | DO23: 500.8966562 | DP23: 486.1644016 | DQ23: 427.2353832 | DR23: 456.6998924 | DS23: 397.770874 | DT23: 412.5031286 | DU23: 368.3063648 | DV23: 456.6998924 | DW23: 383.0386194 | DX23: 412.5031286 | DY23: 0 | DZ23: 0 | EA23: 0 | EB23: 58.92901837 | EC23: 73.66127296 | ED23: 44.19676378 | EE23: 14.73225459 | EF23: 29.46450919 | EG23: 29.46450919 | EH23: 73.66127296 | EI23: 0 | EJ23: 29.46450919 | EK23: 0 | EL23: 14.73225459 | EM23: 0 | EN23: 0 | EO23: 29.46450919 | EP23: 766.0772388 | EQ23: 0 | ER23: 29.46450919 | ES23: 1075.454585 | ET23: 58.92901837 | EU23: 14.73225459 | EV23: 0 | EW23: 0 | EX23: 14.73225459 | EY23: 0 | EZ23: 0 | FA23: 0 | FB23: 0 | FC23: 0 | FD23: 8161.669044 | FE23: 6673.711331 | FF23: 0 | FG23: 0 | FH23: 0 | FI23: 0 | FJ23: 0 | FK23: 0 | FL23: 545.0934199 | FM23: 0 | FN23: 0 | FO23: 0 | FP23: 0 | FQ23: 0 | FR23: 0 | FS23: 0 | FT23: 0 | FU23: 0 | FV23: 0 | FW23: 0 | FX23: 0 | FY23: 0 | FZ23: 0 | GA23: 0 | GB23: 0 | GC23: 0 | GD23: 0 | GE23: 0 | GF23: 0 | GG23: 0 | GH23: 0
A24: 2 | B24: POLES | C24: > 22 kv & < = 66 kv ; wood | D24: 14.73225459 | E24: 69.48307105 | F24: 8.335650608 | G24: 2 | H24: 6 | I24: 213 | J24: 248 | K24: 483 | L24: 686 | M24: 759 | N24: 593 | O24: 640 | P24: 414 | Q24: 400 | R24: 421 | S24: 851 | T24: 805 | U24: 770 | V24: 757 | W24: 870 | X24: 954 | Y24: 1111 | Z24: 1334 | AA24: 825 | AB24: 875 | AC24: 678 | AD24: 488 | AE24: 689 | AF24: 878 | AG24: 564 | AH24: 752 | AI24: 882 | AJ24: 893 | AK24: 624 | AL24: 632 | AM24: 908 | AN24: 961 | AO24: 929 | AP24: 1527 | AQ24: 1094 | AR24: 1588 | AS24: 953 | AT24: 829 | AU24: 610 | AV24: 527 | AW24: 701 | AX24: 1045 | AY24: 913 | AZ24: 565 | BA24: 1365 | BB24: 1183 | BC24: 528 | BD24: 1382 | BE24: 1189 | BF24: 1925 | BG24: 2136 | BH24: 580 | BI24: 1823 | BJ24: 998 | BK24: 1636 | BL24: 256 | BM24: 501 | BN24: 270 | BO24: 339 | BP24: 788 | BQ24: 212 | BR24: 261 | BS24: 423 | BT24: 354 | BU24: 624 | BV24: 353 | BW24: 272 | BX24: 472 | BY24: 45 | BZ24: 56 | CA24: 38 | CB24: 0 | CC24: 0 | CD24: 0 | CE24: 0 | CF24: 0 | CG24: 0 | CH24: 0 | CI24: 0 | CJ24: 0 | CK24: 0 | CL24: 0 | CM24: 0 | CN24: 0 | CO24: 0 | CP24: 0 | CQ24: 0 | CR24: 0 | CS24: 0 | CT24: 0 | CV24: 88.39352756 | CW24: 3137.970228 | CX24: 3653.599139 | CY24: 7115.678968 | CZ24: 10106.32665 | DA24: 11181.78124 | DB24: 8736.226973 | DC24: 9428.642939 | DD24: 6099.153401 | DE24: 5892.901837 | DF24: 6202.279184 | DG24: 12537.14866 | DH24: 11859.46495 | DI24: 11343.83604 | DJ24: 11152.31673 | DK24: 12817.0615 | DL24: 14054.57088 | DM24: 16367.53485 | DN24: 19652.82763 | DO24: 12154.11004 | DP24: 12890.72277 | DQ24: 9988.468614 | DR24: 7189.340241 | DS24: 10150.52341 | DT24: 12934.91953 | DU24: 8308.99159 | DV24: 11078.65545 | DW24: 12993.84855 | DX24: 13155.90335 | DY24: 9192.926866 | DZ24: 9310.784903 | EA24: 13376.88717 | EB24: 14157.69666 | EC24: 13686.26452 | ED24: 22496.15276 | EE24: 16117.08652 | EF24: 23394.82029 | EG24: 14039.83863 | EH24: 12213.03906 | EI24: 8986.675302 | EJ24: 7763.89817 | EK24: 10327.31047 | EL24: 15395.20605 | EM24: 13450.54844 | EN24: 8323.723845 | EO24: 20109.52752 | EP24: 17428.25718 | EQ24: 7778.630425 | ER24: 20359.97585 | ES24: 17516.65071 | ET24: 28359.59009 | EU24: 31468.09581 | EV24: 8544.707664 | EW24: 26856.90012 | EX24: 14702.79008 | EY24: 24101.96851 | EZ24: 3771.457176 | FA24: 7380.859551 | FB24: 3977.70874 | FC24: 4994.234307 | FD24: 11609.01662 | FE24: 3123.237974 | FF24: 3845.118449 | FG24: 6231.743693 | FH24: 5215.218126 | FI24: 9192.926866 | FJ24: 5200.485871 | FK24: 4007.173249 | FL24: 6953.624168 | FM24: 662.9514567 | FN24: 825.0062572 | FO24: 559.8256745 | FP24: 0 | FQ24: 0 | FR24: 0 | FS24: 0 | FT24: 0 | FU24: 0 | FV24: 0 | FW24: 0 | FX24: 0 | FY24: 0 | FZ24: 0 | GA24: 0 | GB24: 0 | GC24: 0 | GD24: 0 | GE24: 0 | GF24: 0 | GG24: 0 | GH24: 0
A25: 2 | B25: POLES | C25: > 66 kv & < = 132 kv ; concrete | D25: 173.4853451 | E25: 52.99554845 | F25: 7.279804149 | G25: 2 | H25: 0 | I25: 0 | J25: 0 | K25: 3 | L25: 44 | M25: 10 | N25: 33 | O25: 14 | P25: 39 | Q25: 57 | R25: 266 | S25: 249 | T25: 146 | U25: 259 | V25: 481 | W25: 144 | X25: 441 | Y25: 14 | Z25: 14 | AA25: 13 | AB25: 10 | AC25: 11 | AD25: 37 | AE25: 81 | AF25: 40 | AG25: 11 | AH25: 20 | AI25: 10 | AJ25: 293 | AK25: 11 | AL25: 25 | AM25: 891 | AN25: 9 | AO25: 759 | AP25: 640 | AQ25: 39 | AR25: 24 | AS25: 12 | AT25: 12 | AU25: 0 | AV25: 0 | AW25: 3 | AX25: 1 | AY25: 0 | AZ25: 0 | BA25: 0 | BB25: 0 | BC25: 0 | BD25: 0 | BE25: 0 | BF25: 0 | BG25: 0 | BH25: 0 | BI25: 0 | BJ25: 0 | BK25: 0 | BL25: 0 | BM25: 0 | BN25: 0 | BO25: 0 | BP25: 0 | BQ25: 0 | BR25: 0 | BS25: 0 | BT25: 0 | BU25: 0 | BV25: 0 | BW25: 0 | BX25: 0 | BY25: 0 | BZ25: 0 | CA25: 0 | CB25: 0 | CC25: 0 | CD25: 0 | CE25: 0 | CF25: 0 | CG25: 0 | CH25: 0 | CI25: 0 | CJ25: 0 | CK25: 0 | CL25: 0 | CM25: 0 | CN25: 0 | CO25: 0 | CP25: 0 | CQ25: 0 | CR25: 0 | CS25: 0 | CT25: 0 | CV25: 0 | CW25: 0 | CX25: 0 | CY25: 520.4560352 | CZ25: 7633.355182 | DA25: 1734.853451 | DB25: 5725.016387 | DC25: 2428.794831 | DD25: 6765.928457 | DE25: 9888.664668 | DF25: 46147.10178 | DG25: 43197.85092 | DH25: 25328.86038 | DI25: 44932.70437 | DJ25: 83446.45097 | DK25: 24981.88969 | DL25: 76507.03717 | DM25: 2428.794831 | DN25: 2428.794831 | DO25: 2255.309486 | DP25: 1734.853451 | DQ25: 1908.338796 | DR25: 6418.957767 | DS25: 14052.31295 | DT25: 6939.413802 | DU25: 1908.338796 | DV25: 3469.706901 | DW25: 1734.853451 | DX25: 50831.2061 | DY25: 1908.338796 | DZ25: 4337.133626 | EA25: 154575.4424 | EB25: 1561.368105 | EC25: 131675.3769 | ED25: 111030.6208 | EE25: 6765.928457 | EF25: 4163.648281 | EG25: 2081.824141 | EH25: 2081.824141 | EI25: 0 | EJ25: 0 | EK25: 520.4560352 | EL25: 173.4853451 | EM25: 0 | EN25: 0 | EO25: 0 | EP25: 0 | EQ25: 0 | ER25: 0 | ES25: 0 | ET25: 0 | EU25: 0 | EV25: 0 | EW25: 0 | EX25: 0 | EY25: 0 | EZ25: 0 | FA25: 0 | FB25: 0 | FC25: 0 | FD25: 0 | FE25: 0 | FF25: 0 | FG25: 0 | FH25: 0 | FI25: 0 | FJ25: 0 | FK25: 0 | FL25: 0 | FM25: 0 | FN25: 0 | FO25: 0 | FP25: 0 | FQ25: 0 | FR25: 0 | FS25: 0 | FT25: 0 | FU25: 0 | FV25: 0 | FW25: 0 | FX25: 0 | FY25: 0 | FZ25: 0 | GA25: 0 | GB25: 0 | GC25: 0 | GD25: 0 | GE25: 0 | GF25: 0 | GG25: 0 | GH25: 0
A26: 2 | B26: POLES | C26: > 66 kv & < = 132 kv ; steel | D26: 111.9503705 | E26: 72.46707955 | F26: 8.512759808 | G26: 2 | H26: 0 | I26: 0 | J26: 0 | K26: 0 | L26: 0 | M26: 6 | N26: 9 | O26: 7 | P26: 7 | Q26: 5 | R26: 3 | S26: 8 | T26: 3 | U26: 3 | V26: 3 | W26: 6 | X26: 6 | Y26: 3 | Z26: 3 | AA26: 3 | AB26: 4 | AC26: 6 | AD26: 159 | AE26: 14 | AF26: 2 | AG26: 4 | AH26: 3 | AI26: 3 | AJ26: 3 | AK26: 11 | AL26: 0 | AM26: 0 | AN26: 288 | AO26: 0 | AP26: 0 | AQ26: 24 | AR26: 197 | AS26: 0 | AT26: 2 | AU26: 1 | AV26: 0 | AW26: 0 | AX26: 0 | AY26: 0 | AZ26: 0 | BA26: 0 | BB26: 16 | BC26: 0 | BD26: 0 | BE26: 0 | BF26: 0 | BG26: 0 | BH26: 0 | BI26: 48 | BJ26: 0 | BK26: 0 | BL26: 0 | BM26: 0 | BN26: 0 | BO26: 0 | BP26: 0 | BQ26: 0 | BR26: 0 | BS26: 0 | BT26: 0 | BU26: 0 | BV26: 0 | BW26: 0 | BX26: 0 | BY26: 0 | BZ26: 0 | CA26: 0 | CB26: 0 | CC26: 0 | CD26: 0 | CE26: 0 | CF26: 0 | CG26: 0 | CH26: 0 | CI26: 0 | CJ26: 0 | CK26: 0 | CL26: 0 | CM26: 0 | CN26: 0 | CO26: 0 | CP26: 0 | CQ26: 0 | CR26: 0 | CS26: 0 | CT26: 0 | CV26: 0 | CW26: 0 | CX26: 0 | CY26: 0 | CZ26: 0 | DA26: 671.7022232 | DB26: 1007.553335 | DC26: 783.6525938 | DD26: 783.6525938 | DE26: 559.7518527 | DF26: 335.8511116 | DG26: 895.6029643 | DH26: 335.8511116 | DI26: 335.8511116 | DJ26: 335.8511116 | DK26: 671.7022232 | DL26: 671.7022232 | DM26: 335.8511116 | DN26: 335.8511116 | DO26: 335.8511116 | DP26: 447.8014822 | DQ26: 671.7022232 | DR26: 17800.10892 | DS26: 1567.305188 | DT26: 223.9007411 | DU26: 447.8014822 | DV26: 335.8511116 | DW26: 335.8511116 | DX26: 335.8511116 | DY26: 1231.454076 | DZ26: 0 | EA26: 0 | EB26: 32241.70672 | EC26: 0 | ED26: 0 | EE26: 2686.808893 | EF26: 22054.223 | EG26: 0 | EH26: 223.9007411 | EI26: 111.9503705 | EJ26: 0 | EK26: 0 | EL26: 0 | EM26: 0 | EN26: 0 | EO26: 0 | EP26: 1791.205929 | EQ26: 0 | ER26: 0 | ES26: 0 | ET26: 0 | EU26: 0 | EV26: 0 | EW26: 5373.617786 | EX26: 0 | EY26: 0 | EZ26: 0 | FA26: 0 | FB26: 0 | FC26: 0 | FD26: 0 | FE26: 0 | FF26: 0 | FG26: 0 | FH26: 0 | FI26: 0 | FJ26: 0 | FK26: 0 | FL26: 0 | FM26: 0 | FN26: 0 | FO26: 0 | FP26: 0 | FQ26: 0 | FR26: 0 | FS26: 0 | FT26: 0 | FU26: 0 | FV26: 0 | FW26: 0 | FX26: 0 | FY26: 0 | FZ26: 0 | GA26: 0 | GB26: 0 | GC26: 0 | GD26: 0 | GE26: 0 | GF26: 0 | GG26: 0 | GH26: 0
A27: 2 | B27: POLES | C27: > 66 kv & < = 132 kv ; wood | D27: 111.9503705 | E27: 72.46707955 | F27: 8.512759808 | G27: 2 | H27: 0 | I27: 1 | J27: 1 | K27: 2 | L27: 20 | M27: 1 | N27: 1 | O27: 2 | P27: 33 | Q27: 14 | R27: 15 | S27: 22 | T27: 21 | U27: 7 | V27: 5 | W27: 15 | X27: 101 | Y27: 36 | Z27: 7 | AA27: 8 | AB27: 3 | AC27: 6 | AD27: 3 | AE27: 4 | AF27: 3 | AG27: 136 | AH27: 9 | AI27: 8 | AJ27: 3 | AK27: 2 | AL27: 3 | AM27: 9 | AN27: 2 | AO27: 15 | AP27: 8 | AQ27: 4 | AR27: 203 | AS27: 17 | AT27: 4 | AU27: 143 | AV27: 38 | AW27: 280 | AX27: 90 | AY27: 268 | AZ27: 78 | BA27: 7 | BB27: 2 | BC27: 250 | BD27: 39 | BE27: 460 | BF27: 632 | BG27: 13 | BH27: 851 | BI27: 142 | BJ27: 0 | BK27: 2 | BL27: 3 | BM27: 3 | BN27: 1 | BO27: 0 | BP27: 215 | BQ27: 3 | BR27: 1 | BS27: 2 | BT27: 3 | BU27: 3 | BV27: 2 | BW27: 2 | BX27: 2 | BY27: 0 | BZ27: 0 | CA27: 0 | CB27: 0 | CC27: 0 | CD27: 0 | CE27: 0 | CF27: 0 | CG27: 0 | CH27: 0 | CI27: 0 | CJ27: 0 | CK27: 0 | CL27: 0 | CM27: 0 | CN27: 0 | CO27: 0 | CP27: 0 | CQ27: 0 | CR27: 0 | CS27: 0 | CT27: 0 | CV27: 0 | CW27: 111.9503705 | CX27: 111.9503705 | CY27: 223.9007411 | CZ27: 2239.007411 | DA27: 111.9503705 | DB27: 111.9503705 | DC27: 223.9007411 | DD27: 3694.362228 | DE27: 1567.305188 | DF27: 1679.255558 | DG27: 2462.908152 | DH27: 2350.957781 | DI27: 783.6525938 | DJ27: 559.7518527 | DK27: 1679.255558 | DL27: 11306.98742 | DM27: 4030.213339 | DN27: 783.6525938 | DO27: 895.6029643 | DP27: 335.8511116 | DQ27: 671.7022232 | DR27: 335.8511116 | DS27: 447.8014822 | DT27: 335.8511116 | DU27: 15225.25039 | DV27: 1007.553335 | DW27: 895.6029643 | DX27: 335.8511116 | DY27: 223.9007411 | DZ27: 335.8511116 | EA27: 1007.553335 | EB27: 223.9007411 | EC27: 1679.255558 | ED27: 895.6029643 | EE27: 447.8014822 | EF27: 22725.92522 | EG27: 1903.156299 | EH27: 447.8014822 | EI27: 16008.90299 | EJ27: 4254.114081 | EK27: 31346.10375 | EL27: 10075.53335 | EM27: 30002.6993 | EN27: 8732.128902 | EO27: 783.6525938 | EP27: 223.9007411 | EQ27: 27987.59263 | ER27: 4366.064451 | ES27: 51497.17045 | ET27: 70752.63418 | EU27: 1455.354817 | EV27: 95269.76533 | EW27: 15896.95262 | EX27: 0 | EY27: 223.9007411 | EZ27: 335.8511116 | FA27: 335.8511116 | FB27: 111.9503705 | FC27: 0 | FD27: 24069.32967 | FE27: 335.8511116 | FF27: 111.9503705 | FG27: 223.9007411 | FH27: 335.8511116 | FI27: 335.8511116 | FJ27: 223.9007411 | FK27: 223.9007411 | FL27: 223.9007411 | FM27: 0 | FN27: 0 | FO27: 0 | FP27: 0 | FQ27: 0 | FR27: 0 | FS27: 0 | FT27: 0 | FU27: 0 | FV27: 0 | FW27: 0 | FX27: 0 | FY27: 0 | FZ27: 0 | GA27: 0 | GB27: 0 | GC27: 0 | GD27: 0 | GE27: 0 | GF27: 0 | GG27: 0 | GH27: 0
A28: 2 | B28: POLES | C28: staking of a wooden pole | D28: 7.300651895 | E28: 25.78710152 | F28: 5.078100188 | G28: 2 | H28: 1563 | I28: 1461 | J28: 1873 | K28: 1332 | L28: 2428 | M28: 4000 | N28: 2595 | O28: 2595 | P28: 2840 | Q28: 2768 | R28: 2616 | S28: 2547 | T28: 4195 | U28: 2500 | V28: 2000 | W28: 1700 | X28: 1500 | Y28: 1500 | Z28: 1500 | AA28: 1500 | AB28: 800 | AC28: 800 | AD28: 800 | AE28: 800 | AF28: 800 | AG28: 800 | AH28: 400 | AI28: 400 | AJ28: 400 | AK28: 200 | AL28: 0 | AM28: 0 | AN28: 0 | AO28: 0 | AP28: 0 | AQ28: 0 | AR28: 0 | AS28: 0 | AT28: 0 | AU28: 0 | AV28: 0 | AW28: 0 | AX28: 0 | AY28: 0 | AZ28: 0 | BA28: 0 | BB28: 0 | BC28: 0 | BD28: 0 | BE28: 0 | BF28: 0 | BG28: 0 | BH28: 0 | BI28: 0 | BJ28: 0 | BK28: 0 | BL28: 0 | BM28: 0 | BN28: 0 | BO28: 0 | BP28: 0 | BQ28: 0 | BR28: 0 | BS28: 0 | BT28: 0 | BU28: 0 | BV28: 0 | BW28: 0 | BX28: 0 | BY28: 0 | BZ28: 0 | CA28: 0 | CB28: 0 | CC28: 0 | CD28: 0 | CE28: 0 | CF28: 0 | CG28: 0 | CH28: 0 | CI28: 0 | CJ28: 0 | CK28: 0 | CL28: 0 | CM28: 0 | CN28: 0 | CO28: 0 | CP28: 0 | CQ28: 0 | CR28: 0 | CS28: 0 | CT28: 0 | CV28: 11410.91891 | CW28: 10666.25242 | CX28: 13674.121 | CY28: 9724.468324 | CZ28: 17725.9828 | DA28: 29202.60758 | DB28: 18945.19167 | DC28: 18945.19167 | DD28: 20733.85138 | DE28: 20208.20445 | DF28: 19098.50536 | DG28: 18594.76038 | DH28: 30626.2347 | DI28: 18251.62974 | DJ28: 14601.30379 | DK28: 12411.10822 | DL28: 10950.97784 | DM28: 10950.97784 | DN28: 10950.97784 | DO28: 10950.97784 | DP28: 5840.521516 | DQ28: 5840.521516 | DR28: 5840.521516 | DS28: 5840.521516 | DT28: 5840.521516 | DU28: 5840.521516 | DV28: 2920.260758 | DW28: 2920.260758 | DX28: 2920.260758 | DY28: 1460.130379 | DZ28: 0 | EA28: 0 | EB28: 0 | EC28: 0 | ED28: 0 | EE28: 0 | EF28: 0 | EG28: 0 | EH28: 0 | EI28: 0 | EJ28: 0 | EK28: 0 | EL28: 0 | EM28: 0 | EN28: 0 | EO28: 0 | EP28: 0 | EQ28: 0 | ER28: 0 | ES28: 0 | ET28: 0 | EU28: 0 | EV28: 0 | EW28: 0 | EX28: 0 | EY28: 0 | EZ28: 0 | FA28: 0 | FB28: 0 | FC28: 0 | FD28: 0 | FE28: 0 | FF28: 0 | FG28: 0 | FH28: 0 | FI28: 0 | FJ28: 0 | FK28: 0 | FL28: 0 | FM28: 0 | FN28: 0 | FO28: 0 | FP28: 0 | FQ28: 0 | FR28: 0 | FS28: 0 | FT28: 0 | FU28: 0 | FV28: 0 | FW28: 0 | FX28: 0 | FY28: 0 | FZ28: 0 | GA28: 0 | GB28: 0 | GC28: 0 | GD28: 0 | GE28: 0 | GF28: 0 | GG28: 0 | GH28: 0
A29: 3 | B29: SERVICE LINES | C29: ˂ = 11 kv ; commercial and industrial ; simple type | D29: 1.077688166 | E29: 53.77667733 | F29: 7.333258302 | G29: 2 | H29: 16.0180339 | I29: 244.2750169 | J29: 273.3077033 | K29: 442.4981864 | L29: 623.7021948 | M29: 596.6717626 | N29: 635.7157202 | O29: 529.5962457 | P29: 551.6210423 | Q29: 637.7179745 | R29: 927.0437117 | S29: 1345.514847 | T29: 1127.269135 | U29: 1157.302949 | V29: 1082.218415 | W29: 950.0696354 | X29: 1044.175585 | Y29: 1014.141771 | Z29: 1004.1305 | AA29: 950.0696354 | AB29: 1015.142898 | AC29: 1023.151915 | AD29: 1205.357051 | AE29: 1432.612907 | AF29: 1033.163186 | AG29: 1019.147407 | AH29: 954.0741439 | AI29: 1073.208271 | AJ29: 1138.281534 | AK29: 1049.18122 | AL29: 741.8351948 | AM29: 873.9839744 | AN29: 978.1011947 | AO29: 1052.184602 | AP29: 952.0718897 | AQ29: 841.9479066 | AR29: 1157.302949 | AS29: 1090.227432 | AT29: 995.1203558 | AU29: 723.8149067 | AV29: 830.9355083 | AW29: 757.8532287 | AX29: 696.7844745 | AY29: 695.7833473 | AZ29: 720.8115253 | BA29: 611.6886694 | BB29: 626.7055762 | BC29: 667.751788 | BD29: 739.8329405 | BE29: 662.7461524 | BF29: 605.6819067 | BG29: 452.5094575 | BH29: 449.5060762 | BI29: 431.4857881 | BJ29: 399.4497203 | BK29: 490.5522881 | BL29: 282.3178474 | BM29: 269.3031949 | BN29: 268.3020678 | BO29: 273.3077033 | BP29: 252.2840339 | BQ29: 255.2874152 | BR29: 301.3392627 | BS29: 257.2896694 | BT29: 261.2941779 | BU29: 268.3020678 | BV29: 242.2727627 | BW29: 270.304322 | BX29: 300.3381355 | BY29: 2.002254237 | BZ29: 0 | CA29: 5.005635592 | CB29: 0 | CC29: 0 | CD29: 0 | CE29: 0 | CF29: 0 | CG29: 0 | CH29: 0 | CI29: 0 | CJ29: 0 | CK29: 0 | CL29: 0 | CM29: 0 | CN29: 0 | CO29: 0 | CP29: 0 | CQ29: 0 | CR29: 0 | CS29: 0 | CT29: 0 | CV29: 17.26244557 | CW29: 263.252295 | CX29: 294.5404776 | CY29: 476.8750589 | CZ29: 672.1564745 | DA29: 643.0260976 | DB29: 685.1033087 | DC29: 570.7396067 | DD29: 594.4754694 | DE29: 687.2611143 | DF29: 999.0640375 | DG29: 1450.045428 | DH29: 1214.844607 | DI29: 1247.211693 | DJ29: 1166.293979 | DK29: 1023.878803 | DL29: 1125.295671 | DM29: 1092.928585 | DN29: 1082.139557 | DO29: 1023.878803 | DP29: 1094.007488 | DQ29: 1102.638711 | DR29: 1298.999029 | DS29: 1543.909976 | DT29: 1113.427739 | DU29: 1098.3231 | DV29: 1028.194414 | DW29: 1156.583853 | DX29: 1226.712538 | DY29: 1130.690185 | DZ29: 799.4670106 | EA29: 941.8821865 | EB29: 1054.088083 | EC29: 1133.926894 | ED29: 1026.036609 | EE29: 907.3572954 | EF29: 1247.211693 | EG29: 1174.925202 | EH29: 1072.429431 | EI29: 780.0467593 | EJ29: 895.4893641 | EK29: 816.7294561 | EL29: 750.9163824 | EM29: 749.8374795 | EN29: 776.8100508 | EO29: 659.2096403 | EP29: 675.393183 | EQ29: 719.6281998 | ER29: 797.3092049 | ES29: 714.2336856 | ET29: 652.7362232 | EU29: 487.6640874 | EV29: 484.4273789 | EW29: 465.0071276 | EX29: 430.4822365 | EY29: 528.6623957 | EZ29: 304.2506032 | FA29: 290.2248662 | FB29: 289.1459633 | FC29: 294.5404776 | FD29: 271.8835178 | FE29: 275.1202263 | FF29: 324.7497573 | FG29: 277.278032 | FH29: 281.5936434 | FI29: 289.1459633 | FJ29: 261.0944893 | FK29: 291.303769 | FL29: 323.6708545 | FM29: 2.157805697 | FN29: 0 | FO29: 5.394514241 | FP29: 0 | FQ29: 0 | FR29: 0 | FS29: 0 | FT29: 0 | FU29: 0 | FV29: 0 | FW29: 0 | FX29: 0 | FY29: 0 | FZ29: 0 | GA29: 0 | GB29: 0 | GC29: 0 | GD29: 0 | GE29: 0 | GF29: 0 | GG29: 0 | GH29: 0
A30: 3 | B30: SERVICE LINES | C30: ˂ = 11 kv ; residential ; simple type | D30: 0.7976211353 | E30: 59.77334577 | F30: 7.731322382 | G30: 2 | H30: 82.05600567 | I30: 1603.09416 | J30: 1734.183632 | K30: 2803.913755 | L30: 4035.754523 | M30: 4214.876779 | N30: 4545.102168 | O30: 3737.55099 | P30: 3879.647975 | Q30: 3774.576261 | R30: 4332.957373 | S30: 6596.502309 | T30: 7169.893666 | U30: 7651.222187 | V30: 7753.291853 | W30: 6314.309705 | X30: 6336.32473 | Y30: 5642.851414 | Z30: 5757.929959 | AA30: 5413.695008 | AB30: 5646.854146 | AC30: 5483.742818 | AD30: 6034.118466 | AE30: 6865.686035 | AF30: 6346.33156 | AG30: 6309.30629 | AH30: 7684.244726 | AI30: 7066.823317 | AJ30: 6798.640275 | AK30: 6128.182667 | AL30: 4965.389026 | AM30: 4358.97513 | AN30: 6714.582903 | AO30: 8974.125108 | AP30: 8083.517241 | AQ30: 6806.645739 | AR30: 10017.83747 | AS30: 8116.53978 | AT30: 6878.694914 | AU30: 5002.414297 | AV30: 6694.569243 | AW30: 7690.248824 | AX30: 7640.214674 | AY30: 7695.252239 | AZ30: 8399.733068 | BA30: 6831.662813 | BB30: 6714.582903 | BC30: 6848.674424 | BD30: 7245.945574 | BE30: 6460.409422 | BF30: 5030.433421 | BG30: 3925.679393 | BH30: 3765.570114 | BI30: 3362.294866 | BJ30: 2488.698611 | BK30: 3890.655488 | BL30: 2361.61187 | BM30: 2242.530594 | BN30: 2341.598211 | BO30: 2274.55245 | BP30: 2236.526496 | BQ30: 2262.544254 | BR30: 2230.522398 | BS30: 2196.499176 | BT30: 2194.49781 | BU30: 2186.492346 | BV30: 2216.512836 | BW30: 2187.493029 | BX30: 2272.551084 | BY30: 9.006146964 | BZ30: 0 | CA30: 73.04985871 | CB30: 0 | CC30: 0 | CD30: 0 | CE30: 0 | CF30: 0 | CG30: 0 | CH30: 0 | CI30: 0 | CJ30: 0 | CK30: 0 | CL30: 0 | CM30: 0 | CN30: 0 | CO30: 0 | CP30: 0 | CQ30: 0 | CR30: 0 | CS30: 0 | CT30: 0 | CV30: 65.4496044 | CW30: 1278.661783 | CX30: 1383.221517 | CY30: 2236.460872 | CZ30: 3219.003104 | DA30: 3361.874801 | DB30: 3625.269551 | DC30: 2981.149664 | DD30: 3094.489223 | DE30: 3010.681802 | DF30: 3456.058379 | DG30: 5261.509661 | DH30: 5718.858726 | DI30: 6102.776527 | DJ30: 6184.18945 | DK30: 5036.426875 | DL30: 5053.986525 | DM30: 4500.857551 | DN30: 4592.646631 | DO30: 4318.077558 | DP30: 4504.050215 | DQ30: 4373.949172 | DR30: 4812.940421 | DS30: 5476.21629 | DT30: 5061.968184 | DU30: 5032.436045 | DV30: 6129.116002 | DW30: 5636.647637 | DX30: 5422.739174 | DY30: 4887.968016 | DZ30: 3960.499232 | EA30: 3476.810692 | EB30: 5355.693238 | EC30: 7157.951857 | ED30: 6447.584199 | EE30: 5429.124501 | EF30: 7990.438898 | EG30: 6473.923674 | EH30: 5486.592447 | EI30: 3990.031371 | EJ30: 5339.72992 | EK30: 6133.904997 | EL30: 6093.996702 | EM30: 6137.895827 | EN30: 6699.804626 | EO30: 5449.078649 | EP30: 5355.693238 | EQ30: 5462.647469 | ER30: 5779.519335 | ES30: 5152.959097 | ET30: 4012.380016 | EU30: 3131.204854 | EV30: 3003.498309 | EW30: 2681.837448 | EX30: 1985.038611 | EY30: 3103.269048 | EZ30: 1883.671541 | FA30: 1788.689798 | FB30: 1867.708223 | FC30: 1814.231107 | FD30: 1783.900803 | FE30: 1804.653116 | FF30: 1779.111807 | FG30: 1751.974166 | FH30: 1750.377835 | FI30: 1743.992507 | FJ30: 1767.937485 | FK30: 1744.790673 | FL30: 1812.634775 | FM30: 7.183493166 | FN30: 0 | FO30: 58.26611123 | FP30: 0 | FQ30: 0 | FR30: 0 | FS30: 0 | FT30: 0 | FU30: 0 | FV30: 0 | FW30: 0 | FX30: 0 | FY30: 0 | FZ30: 0 | GA30: 0 | GB30: 0 | GC30: 0 | GD30: 0 | GE30: 0 | GF30: 0 | GG30: 0 | GH30: 0
A31: 3 | B31: SERVICE LINES | C31: ˂ = 11 kV ; residential ; complex type | D31: 1.947485244 | E31: 59.77334577 | F31: 7.731322382 | G31: 2 | H31: 0 | I31: 0 | J31: 0 | K31: 0 | L31: 0 | M31: 0 | N31: 0 | O31: 0 | P31: 0 | Q31: 0 | R31: 0 | S31: 0 | T31: 0 | U31: 0 | V31: 0 | W31: 0 | X31: 0 | Y31: 0 | Z31: 0 | AA31: 0 | AB31: 0 | AC31: 0 | AD31: 0 | AE31: 0 | AF31: 0 | AG31: 0 | AH31: 0 | AI31: 0 | AJ31: 0 | AK31: 0 | AL31: 0 | AM31: 0 | AN31: 0 | AO31: 0 | AP31: 0 | AQ31: 0 | AR31: 0 | AS31: 0 | AT31: 0 | AU31: 0 | AV31: 0 | AW31: 0 | AX31: 0 | AY31: 0 | AZ31: 0 | BA31: 0 | BB31: 0 | BC31: 0 | BD31: 0 | BE31: 0 | BF31: 0 | BG31: 0 | BH31: 0 | BI31: 0 | BJ31: 0 | BK31: 0 | BL31: 0 | BM31: 0 | BN31: 0 | BO31: 0 | BP31: 0 | BQ31: 0 | BR31: 0 | BS31: 0 | BT31: 0 | BU31: 0 | BV31: 0 | BW31: 0 | BX31: 0 | BY31: 0 | BZ31: 0 | CA31: 0 | CB31: 0 | CC31: 0 | CD31: 0 | CE31: 0 | CF31: 0 | CG31: 0 | CH31: 0 | CI31: 0 | CJ31: 0 | CK31: 0 | CL31: 0 | CM31: 0 | CN31: 0 | CO31: 0 | CP31: 0 | CQ31: 0 | CR31: 0 | CS31: 0 | CT31: 0 | CV31: 0 | CW31: 0 | CX31: 0 | CY31: 0 | CZ31: 0 | DA31: 0 | DB31: 0 | DC31: 0 | DD31: 0 | DE31: 0 | DF31: 0 | DG31: 0 | DH31: 0 | DI31: 0 | DJ31: 0 | DK31: 0 | DL31: 0 | DM31: 0 | DN31: 0 | DO31: 0 | DP31: 0 | DQ31: 0 | DR31: 0 | DS31: 0 | DT31: 0 | DU31: 0 | DV31: 0 | DW31: 0 | DX31: 0 | DY31: 0 | DZ31: 0 | EA31: 0 | EB31: 0 | EC31: 0 | ED31: 0 | EE31: 0 | EF31: 0 | EG31: 0 | EH31: 0 | EI31: 0 | EJ31: 0 | EK31: 0 | EL31: 0 | EM31: 0 | EN31: 0 | EO31: 0 | EP31: 0 | EQ31: 0 | ER31: 0 | ES31: 0 | ET31: 0 | EU31: 0 | EV31: 0 | EW31: 0 | EX31: 0 | EY31: 0 | EZ31: 0 | FA31: 0 | FB31: 0 | FC31: 0 | FD31: 0 | FE31: 0 | FF31: 0 | FG31: 0 | FH31: 0 | FI31: 0 | FJ31: 0 | FK31: 0 | FL31: 0 | FM31: 0 | FN31: 0 | FO31: 0 | FP31: 0 | FQ31: 0 | FR31: 0 | FS31: 0 | FT31: 0 | FU31: 0 | FV31: 0 | FW31: 0 | FX31: 0 | FY31: 0 | FZ31: 0 | GA31: 0 | GB31: 0 | GC31: 0 | GD31: 0 | GE31: 0 | GF31: 0 | GG31: 0 | GH31: 0
A32: 4 | B32: SWITCHGEAR | C32: ˂ = 11 kv ; circuit breaker | D32: 229.485125 | E32: 57.59431194 | F32: 7.589091641 | G32: 2 | H32: 28.83253589 | I32: 57.66507177 | J32: 116.359877 | K32: 423.2204375 | L32: 119.4490772 | M32: 130.7761449 | N32: 114.3004101 | O32: 89.58680793 | P32: 129.7464115 | Q32: 107.0922761 | R32: 137.9842789 | S32: 119.4490772 | T32: 111.2112098 | U32: 62.81373889 | V32: 79.28947368 | W32: 27.80280246 | X32: 194.6196172 | Y32: 53.54613807 | Z32: 90.61654135 | AA32: 21.62440191 | AB32: 39.12987013 | AC32: 9.26760082 | AD32: 30.89200273 | AE32: 38.10013671 | AF32: 6.178400547 | AG32: 8.237867396 | AH32: 23.68386876 | AI32: 23.68386876 | AJ32: 23.68386876 | AK32: 9.26760082 | AL32: 6.178400547 | AM32: 26.77306904 | AN32: 29.86226931 | AO32: 31.92173616 | AP32: 43.24880383 | AQ32: 42.2190704 | AR32: 74.14080656 | AS32: 49.42720437 | AT32: 37.07040328 | AU32: 19.56493506 | AV32: 11.32706767 | AW32: 1.029733424 | AX32: 15.44600137 | AY32: 15.44600137 | AZ32: 1.029733424 | BA32: 14.41626794 | BB32: 0 | BC32: 15.44600137 | BD32: 14.41626794 | BE32: 24.71360219 | BF32: 12.35680109 | BG32: 25.74333561 | BH32: 14.41626794 | BI32: 21.62440191 | BJ32: 12.35680109 | BK32: 1.029733424 | BL32: 6.178400547 | BM32: 1.029733424 | BN32: 5.148667122 | BO32: 4.118933698 | BP32: 1.029733424 | BQ32: 1.029733424 | BR32: 0 | BS32: 0 | BT32: 1.029733424 | BU32: 0 | BV32: 0 | BW32: 3.089200273 | BX32: 1.029733424 | BY32: 0 | BZ32: 0 | CA32: 0 | CB32: 0 | CC32: 0 | CD32: 0 | CE32: 0 | CF32: 0 | CG32: 0 | CH32: 0 | CI32: 0 | CJ32: 0 | CK32: 0 | CL32: 0 | CM32: 0 | CN32: 0 | CO32: 0 | CP32: 0 | CQ32: 0 | CR32: 0 | CS32: 0 | CT32: 0 | CV32: 6616.638103 | CW32: 13233.27621 | CX32: 26702.86091 | CY32: 97122.79501 | CZ32: 27411.78642 | DA32: 30011.17997 | DB32: 26230.24391 | DC32: 20558.83982 | DD32: 29774.87146 | DE32: 24576.08438 | DF32: 31665.33949 | DG32: 27411.78642 | DH32: 25521.3184 | DI32: 14414.81872 | DJ32: 18195.75478 | DK32: 6380.329599 | DL32: 44662.30719 | DM32: 12288.04219 | DN32: 20795.14832 | DO32: 4962.478577 | DP32: 8979.723139 | DQ32: 2126.776533 | DR32: 7089.25511 | DS32: 8743.414636 | DT32: 1417.851022 | DU32: 1890.468029 | DV32: 5435.095584 | DW32: 5435.095584 | DX32: 5435.095584 | DY32: 2126.776533 | DZ32: 1417.851022 | EA32: 6144.021095 | EB32: 6852.946606 | EC32: 7325.563614 | ED32: 9924.957154 | EE32: 9688.64865 | EF32: 17014.21226 | EG32: 11342.80818 | EH32: 8507.106132 | EI32: 4489.86157 | EJ32: 2599.39354 | EK32: 236.3085037 | EL32: 3544.627555 | EM32: 3544.627555 | EN32: 236.3085037 | EO32: 3308.319051 | EP32: 0 | EQ32: 3544.627555 | ER32: 3308.319051 | ES32: 5671.404088 | ET32: 2835.702044 | EU32: 5907.712592 | EV32: 3308.319051 | EW32: 4962.478577 | EX32: 2835.702044 | EY32: 236.3085037 | EZ32: 1417.851022 | FA32: 236.3085037 | FB32: 1181.542518 | FC32: 945.2340147 | FD32: 236.3085037 | FE32: 236.3085037 | FF32: 0 | FG32: 0 | FH32: 236.3085037 | FI32: 0 | FJ32: 0 | FK32: 708.925511 | FL32: 236.3085037 | FM32: 0 | FN32: 0 | FO32: 0 | FP32: 0 | FQ32: 0 | FR32: 0 | FS32: 0 | FT32: 0 | FU32: 0 | FV32: 0 | FW32: 0 | FX32: 0 | FY32: 0 | FZ32: 0 | GA32: 0 | GB32: 0 | GC32: 0 | GD32: 0 | GE32: 0 | GF32: 0 | GG32: 0 | GH32: 0
A33: 4 | B33: SWITCHGEAR | C33: ˂ = 11 kv ; fuse | D33: 6.532452739 | E33: 50.58623324 | F33: 7.112399964 | G33: 2 | H33: 1249.051196 | I33: 1795.446417 | J33: 2272.507396 | K33: 2920.316881 | L33: 3150.051235 | M33: 3180.061579 | N33: 3687.132901 | O33: 3659.192236 | P33: 4717.832977 | Q33: 6902.379021 | R33: 6339.426369 | S33: 2871.679428 | T33: 1827.526439 | U33: 1894.791003 | V33: 1681.614079 | W33: 1351.5003 | X33: 1001.724572 | Y33: 914.7980591 | Z33: 989.3064983 | AA33: 814.4186341 | AB33: 841.3244593 | AC33: 733.7011583 | AD33: 781.3037722 | AE33: 915.8328985 | AF33: 912.7283802 | AG33: 777.1644145 | AH33: 892.0315916 | AI33: 835.1154227 | AJ33: 835.1154227 | AK33: 805.1050792 | AL33: 655.0533613 | AM33: 702.6559753 | AN33: 804.0702397 | AO33: 869.265124 | AP33: 953.0871181 | AQ33: 725.4224428 | AR33: 1108.313033 | AS33: 883.7528761 | AT33: 755.4327864 | AU33: 511.2106801 | AV33: 612.6249446 | AW33: 629.1823755 | AX33: 553.6390969 | AY33: 562.9526518 | AZ33: 601.2417108 | BA33: 444.9809564 | BB33: 559.8481335 | BC33: 537.0816659 | BD33: 584.6842799 | BE33: 455.3293507 | BF33: 436.7022409 | BG33: 402.5525396 | BH33: 314.5911877 | BI33: 346.6712102 | BJ33: 413.9357734 | BK33: 365.29832 | BL33: 147.982039 | BM33: 180.0620614 | BN33: 158.3304333 | BO33: 138.6684841 | BP33: 169.7136671 | BQ33: 141.7730024 | BR33: 136.5988052 | BS33: 133.4942869 | BT33: 166.6091488 | BU33: 189.3756163 | BV33: 139.7033235 | BW33: 163.5046305 | BX33: 129.3549292 | BY33: 0 | BZ33: 0 | CA33: 0 | CB33: 0 | CC33: 0 | CD33: 0 | CE33: 0 | CF33: 0 | CG33: 0 | CH33: 0 | CI33: 0 | CJ33: 0 | CK33: 0 | CL33: 1.034839433 | CM33: 0 | CN33: 0 | CO33: 0 | CP33: 0 | CQ33: 0 | CR33: 0 | CS33: 0 | CT33: 0 | CV33: 8159.367907 | CW33: 11728.66886 | CX33: 14845.04716 | CY33: 19076.83201 | CZ33: 20577.56082 | DA33: 20773.60197 | DB33: 24086.02142 | DC33: 23903.50035 | DD33: 30819.02095 | DE33: 45089.46474 | DF33: 41412.00314 | DG33: 18759.11014 | DH33: 11938.23009 | DI33: 12377.63267 | DJ33: 10985.0645 | DK33: 8828.611836 | DL33: 6543.718421 | DM33: 5975.875087 | DN33: 6462.597944 | DO33: 5320.151237 | DP33: 5495.912268 | DQ33: 4792.868141 | DR33: 5103.829966 | DS33: 5982.635126 | DT33: 5962.355007 | DU33: 5076.789808 | DV33: 5827.154213 | DW33: 5455.35203 | DX33: 5455.35203 | DY33: 5259.310879 | DZ33: 4279.105124 | EA33: 4590.06695 | EB33: 5252.55084 | EC33: 5678.43334 | ED33: 6225.996555 | EE33: 4738.787823 | EF33: 7240.002509 | EG33: 5773.073896 | EH33: 4934.828974 | EI33: 3339.459607 | EJ33: 4001.943497 | EK33: 4110.104132 | EL33: 3616.621234 | EM33: 3677.461592 | EN33: 3927.58306 | EO33: 2906.817067 | EP33: 3657.181473 | EQ33: 3508.460599 | ER33: 3819.422425 | ES33: 2974.417464 | ET33: 2852.736749 | EU33: 2629.65544 | EV33: 2055.052066 | EW33: 2264.613296 | EX33: 2704.015876 | EY33: 2386.294011 | EZ33: 966.6856758 | FA33: 1176.246906 | FB33: 1034.286073 | FC33: 905.8453185 | FD33: 1108.646509 | FE33: 926.1254376 | FF33: 892.3252392 | FG33: 872.0451201 | FH33: 1088.36639 | FI33: 1237.087263 | FJ33: 912.6053582 | FK33: 1068.086271 | FL33: 845.0049613 | FM33: 0 | FN33: 0 | FO33: 0 | FP33: 0 | FQ33: 0 | FR33: 0 | FS33: 0 | FT33: 0 | FU33: 0 | FV33: 0 | FW33: 0 | FX33: 0 | FY33: 0 | FZ33: 6.760039691 | GA33: 0 | GB33: 0 | GC33: 0 | GD33: 0 | GE33: 0 | GF33: 0 | GG33: 0 | GH33: 0
A34: 4 | B34: SWITCHGEAR | C34: ˂ = 11 kv ; switch | D34: 18.4901764 | E34: 58.34747281 | F34: 7.638551748 | G34: 2 | H34: 478.8983946 | I34: 979.7550125 | J34: 1722.152087 | K34: 2906.850517 | L34: 3176.622975 | M34: 3907.518123 | N34: 4570.447342 | O34: 4188.792508 | P34: 4965.695362 | Q34: 5954.861042 | R34: 4488.888227 | S34: 2499.054941 | T34: 1937.551802 | U34: 1542.303782 | V34: 1549.623189 | W34: 981.8462719 | X34: 631.5603282 | Y34: 359.6966108 | Z34: 512.3585444 | AA34: 437.0732073 | AB34: 464.259579 | AC34: 467.3964681 | AD34: 414.0693543 | AE34: 406.7499465 | AF34: 451.7120228 | AG34: 335.6471281 | AH34: 423.4800214 | AI34: 329.37335 | AJ34: 226.9016411 | AK34: 256.1792722 | AL34: 238.4035676 | AM34: 216.4453443 | AN34: 324.1452016 | AO34: 392.1111309 | AP34: 305.3238673 | AQ34: 237.3579379 | AR34: 351.3315733 | AS34: 259.3161613 | AT34: 257.2249019 | AU34: 149.5250446 | AV34: 207.0346771 | AW34: 238.4035676 | AX34: 214.3540849 | AY34: 225.8560114 | AZ34: 230.0385301 | BA34: 205.9890474 | BB34: 185.0764538 | BC34: 287.5481627 | BD34: 250.9511238 | BE34: 249.9054941 | BF34: 189.2589725 | BG34: 143.2512665 | BH34: 124.4299322 | BI34: 155.7988227 | BJ34: 141.1600071 | BK34: 148.4794149 | BL34: 88.87852301 | BM34: 81.55911523 | BN34: 88.87852301 | BO34: 102.4717089 | BP34: 73.19407777 | BQ34: 94.10667142 | BR34: 84.69600428 | BS34: 81.55911523 | BT34: 78.42222619 | BU34: 93.06104174 | BV34: 80.51348555 | BW34: 77.3765965 | BX34: 82.60474492 | BY34: 0 | BZ34: 1.045629682 | CA34: 8.36503746 | CB34: 1.045629682 | CC34: 0 | CD34: 0 | CE34: 0 | CF34: 0 | CG34: 0 | CH34: 0 | CI34: 0 | CJ34: 0 | CK34: 0 | CL34: 0 | CM34: 0 | CN34: 0 | CO34: 0 | CP34: 0 | CQ34: 0 | CR34: 0 | CS34: 0 | CT34: 0 | CV34: 8854.915793 | CW34: 18115.84301 | CX34: 31842.89588 | CY34: 53748.17883 | CZ34: 58736.31917 | DA34: 72250.69939 | DB34: 84508.37758 | DC34: 77451.51237 | DD34: 91816.58319 | DE34: 110106.4311 | DF34: 83000.33515 | DG34: 46207.96669 | DH34: 35825.6746 | DI34: 28517.46898 | DJ34: 28652.80613 | DK34: 18154.51076 | DL34: 11677.66188 | DM34: 6650.853783 | DN34: 9473.599866 | DO34: 8081.560702 | DP34: 8584.241511 | DQ34: 8642.243143 | DR34: 7656.215402 | DS34: 7520.878261 | DT34: 8352.234984 | DU34: 6206.174606 | DV34: 7830.220297 | DW34: 6090.171342 | DX34: 4195.451369 | DY34: 4736.799933 | DZ34: 4408.124019 | EA34: 4002.112596 | EB34: 5993.501956 | EC34: 7250.203979 | ED34: 5645.492165 | EE34: 4388.790142 | EF34: 6496.182765 | EG34: 4794.801565 | EH34: 4756.13381 | EI34: 2764.744451 | EJ34: 3828.107701 | EK34: 4408.124019 | EL34: 3963.444842 | EM34: 4176.117492 | EN34: 4253.453001 | EO34: 3808.773824 | EP34: 3422.096278 | EQ34: 5316.816251 | ER34: 4640.130547 | ES34: 4620.796669 | ET34: 3499.431787 | EU34: 2648.741187 | EV34: 2300.731396 | EW34: 2880.747714 | EX34: 2610.073432 | EY34: 2745.410573 | EZ34: 1643.379569 | FA34: 1508.042428 | FB34: 1643.379569 | FC34: 1894.719973 | FD34: 1353.371409 | FE34: 1740.048955 | FF34: 1566.044059 | FG34: 1508.042428 | FH34: 1450.040796 | FI34: 1720.715078 | FJ34: 1488.70855 | FK34: 1430.706919 | FL34: 1527.376305 | FM34: 0 | FN34: 19.33387728 | FO34: 154.6710182 | FP34: 19.33387728 | FQ34: 0 | FR34: 0 | FS34: 0 | FT34: 0 | FU34: 0 | FV34: 0 | FW34: 0 | FX34: 0 | FY34: 0 | FZ34: 0 | GA34: 0 | GB34: 0 | GC34: 0 | GD34: 0 | GE34: 0 | GF34: 0 | GG34: 0 | GH34: 0
A35: 4 | B35: SWITCHGEAR | C35: > 11 kv & < = 22 kv ; circuit breaker | D35: 19.12753112 | E35: 40.65031969 | F35: 6.375760322 | G35: 2 | H35: 20.26373626 | I35: 79.02857143 | J35: 53.6989011 | K35: 144.8857143 | L35: 93.21318681 | M35: 54.71208791 | N35: 83.08131868 | O35: 71.93626374 | P35: 34.44835165 | Q35: 96.25274725 | R35: 54.71208791 | S35: 81.05494505 | T35: 84.09450549 | U35: 63.83076923 | V35: 28.36923077 | W35: 29.38241758 | X35: 103.3450549 | Y35: 74.97582418 | Z35: 49.64615385 | AA35: 32.42197802 | AB35: 35.46153846 | AC35: 20.26373626 | AD35: 51.67252747 | AE35: 17.22417582 | AF35: 7.092307692 | AG35: 8.105494505 | AH35: 15.1978022 | AI35: 28.36923077 | AJ35: 41.54065934 | AK35: 5.065934066 | AL35: 6.079120879 | AM35: 20.26373626 | AN35: 35.46153846 | AO35: 36.47472527 | AP35: 27.35604396 | AQ35: 28.36923077 | AR35: 16.21098901 | AS35: 13.17142857 | AT35: 3.03956044 | AU35: 10.13186813 | AV35: 3.03956044 | AW35: 1.013186813 | AX35: 4.052747253 | AY35: 15.1978022 | AZ35: 6.079120879 | BA35: 2.026373626 | BB35: 4.052747253 | BC35: 2.026373626 | BD35: 5.065934066 | BE35: 8.105494505 | BF35: 4.052747253 | BG35: 15.1978022 | BH35: 2.026373626 | BI35: 0 | BJ35: 4.052747253 | BK35: 2.026373626 | BL35: 0 | BM35: 0 | BN35: 2.026373626 | BO35: 0 | BP35: 1.013186813 | BQ35: 0 | BR35: 1.013186813 | BS35: 0 | BT35: 1.013186813 | BU35: 1.013186813 | BV35: 0 | BW35: 0 | BX35: 0 | BY35: 0 | BZ35: 0 | CA35: 0 | CB35: 0 | CC35: 0 | CD35: 0 | CE35: 0 | CF35: 0 | CG35: 0 | CH35: 0 | CI35: 0 | CJ35: 0 | CK35: 0 | CL35: 0 | CM35: 0 | CN35: 0 | CO35: 0 | CP35: 0 | CQ35: 0 | CR35: 0 | CS35: 0 | CT35: 0 | CV35: 387.5952459 | CW35: 1511.621459 | CX35: 1027.127402 | CY35: 2771.306008 | CZ35: 1782.938131 | DA35: 1046.507164 | DB35: 1589.140508 | DC35: 1375.963123 | DD35: 658.9119181 | DE35: 1841.077418 | DF35: 1046.507164 | DG35: 1550.380984 | DH35: 1608.520271 | DI35: 1220.925025 | DJ35: 542.6333443 | DK35: 562.0131066 | DL35: 1976.735754 | DM35: 1434.10241 | DN35: 949.6083525 | DO35: 620.1523935 | DP35: 678.2916804 | DQ35: 387.5952459 | DR35: 988.3678771 | DS35: 329.455959 | DT35: 135.6583361 | DU35: 155.0380984 | DV35: 290.6964345 | DW35: 542.6333443 | DX35: 794.5702542 | DY35: 96.89881148 | DZ35: 116.2785738 | EA35: 387.5952459 | EB35: 678.2916804 | EC35: 697.6714427 | ED35: 523.253582 | EE35: 542.6333443 | EF35: 310.0761967 | EG35: 251.9369099 | EH35: 58.13928689 | EI35: 193.797623 | EJ35: 58.13928689 | EK35: 19.3797623 | EL35: 77.51904919 | EM35: 290.6964345 | EN35: 116.2785738 | EO35: 38.75952459 | EP35: 77.51904919 | EQ35: 38.75952459 | ER35: 96.89881148 | ES35: 155.0380984 | ET35: 77.51904919 | EU35: 290.6964345 | EV35: 38.75952459 | EW35: 0 | EX35: 77.51904919 | EY35: 38.75952459 | EZ35: 0 | FA35: 0 | FB35: 38.75952459 | FC35: 0 | FD35: 19.3797623 | FE35: 0 | FF35: 19.3797623 | FG35: 0 | FH35: 19.3797623 | FI35: 19.3797623 | FJ35: 0 | FK35: 0 | FL35: 0 | FM35: 0 | FN35: 0 | FO35: 0 | FP35: 0 | FQ35: 0 | FR35: 0 | FS35: 0 | FT35: 0 | FU35: 0 | FV35: 0 | FW35: 0 | FX35: 0 | FY35: 0 | FZ35: 0 | GA35: 0 | GB35: 0 | GC35: 0 | GD35: 0 | GE35: 0 | GF35: 0 | GG35: 0 | GH35: 0
A36: 4 | B36: SWITCHGEAR | C36: > 11 kv & < = 22 kv ; switch | D36: 5.391917419 | E36: 48.1018691 | F36: 6.935551103 | G36: 2 | H36: 377.6848571 | I36: 972.2272282 | J36: 1032.407782 | K36: 1642.51409 | L36: 1442.258108 | M36: 1706.845027 | N36: 2083.492288 | O36: 1920.589754 | P36: 2398.9214 | Q36: 2959.223111 | R36: 1823.055752 | S36: 750.1817353 | T36: 734.6177989 | U36: 598.6927542 | V36: 618.4070737 | W36: 317.5043029 | X36: 405.6999426 | Y36: 351.744963 | Z36: 698.3019473 | AA36: 406.7375384 | AB36: 223.0830887 | AC36: 223.0830887 | AD36: 146.3010023 | AE36: 271.8500894 | AF36: 226.1958759 | AG36: 189.8800243 | AH36: 174.3160879 | AI36: 241.7598124 | AJ36: 223.0830887 | AK36: 259.3989403 | AL36: 183.6544497 | AM36: 305.0531538 | AN36: 319.5794944 | AO36: 214.7823226 | AP36: 258.3613445 | AQ36: 239.6846208 | AR36: 336.1810266 | AS36: 344.4817927 | AT36: 212.707131 | AU36: 128.6618744 | AV36: 97.53400155 | AW36: 139.037832 | AX36: 94.42121427 | AY36: 195.0680031 | AZ36: 195.0680031 | BA36: 116.2107253 | BB36: 138.0002362 | BC36: 180.5416624 | BD36: 211.6695353 | BE36: 176.3912794 | BF36: 104.7971719 | BG36: 132.8122574 | BH36: 115.1731295 | BI36: 155.6393642 | BJ36: 129.6994701 | BK36: 93.38361851 | BL36: 44.61661773 | BM36: 37.3534474 | BN36: 47.72940502 | BO36: 47.72940502 | BP36: 26.97748979 | BQ36: 37.3534474 | BR36: 30.09027707 | BS36: 38.39104316 | BT36: 45.65421349 | BU36: 31.12787284 | BV36: 25.93989403 | BW36: 44.61661773 | BX36: 44.61661773 | BY36: 0 | BZ36: 0 | CA36: 0 | CB36: 0 | CC36: 0 | CD36: 0 | CE36: 0 | CF36: 0 | CG36: 0 | CH36: 0 | CI36: 0 | CJ36: 0 | CK36: 0 | CL36: 0 | CM36: 0 | CN36: 0 | CO36: 0 | CP36: 0 | CQ36: 0 | CR36: 0 | CS36: 0 | CT36: 0 | CV36: 2036.44556 | CW36: 5242.168927 | CX36: 5566.657506 | CY36: 8856.300333 | CZ36: 7776.536616 | DA36: 9203.167434 | DB36: 11234.01836 | DC36: 10355.66135 | DD36: 12934.78608 | DE36: 15955.88664 | DF36: 9829.766068 | DG36: 4044.917966 | DH36: 3960.998507 | DI36: 3228.10189 | DJ36: 3334.399873 | DK36: 1711.956982 | DL36: 2187.500588 | DM36: 1896.579793 | DN36: 3765.186433 | DO36: 2193.095218 | DP36: 1202.845592 | DQ36: 1202.845592 | DR36: 788.8429229 | DS36: 1465.793233 | DT36: 1219.629484 | DU36: 1023.817411 | DV36: 939.8979507 | DW36: 1303.548944 | DX36: 1202.845592 | DY36: 1398.657665 | DZ36: 990.2496266 | EA36: 1644.821414 | EB36: 1723.146243 | EC36: 1158.088546 | ED36: 1393.063034 | EE36: 1292.359682 | EF36: 1812.660334 | EG36: 1857.417379 | EH36: 1146.899285 | EI36: 693.7342017 | EJ36: 525.8952819 | EK36: 749.6805083 | EL36: 509.11139 | EM36: 1051.790564 | EN36: 1051.790564 | EO36: 626.5986338 | EP36: 744.0858776 | EQ36: 973.4657347 | ER36: 1141.304654 | ES36: 951.087212 | ET36: 565.0576966 | EU36: 716.1127243 | EV36: 621.0040031 | EW36: 839.1945988 | EX36: 699.3288324 | EY36: 503.5167593 | EZ36: 240.5691183 | FA36: 201.4067037 | FB36: 257.3530103 | FC36: 257.3530103 | FD36: 145.4603971 | FE36: 201.4067037 | FF36: 162.2442891 | FG36: 207.0013344 | FH36: 246.163749 | FI36: 167.8389198 | FJ36: 139.8657665 | FK36: 240.5691183 | FL36: 240.5691183 | FM36: 0 | FN36: 0 | FO36: 0 | FP36: 0 | FQ36: 0 | FR36: 0 | FS36: 0 | FT36: 0 | FU36: 0 | FV36: 0 | FW36: 0 | FX36: 0 | FY36: 0 | FZ36: 0 | GA36: 0 | GB36: 0 | GC36: 0 | GD36: 0 | GE36: 0 | GF36: 0 | GG36: 0 | GH36: 0
A37: 4 | B37: SWITCHGEAR | C37: > 132 kv ; circuit breaker | D37: 164.9893672 | E37: 45.07077781 | F37: 6.713477326 | G37: 2 | H37: 0 | I37: 2.857142857 | J37: 0 | K37: 0 | L37: 0 | M37: 0 | N37: 0 | O37: 0 | P37: 0 | Q37: 0 | R37: 0 | S37: 0 | T37: 0 | U37: 0 | V37: 0 | W37: 0 | X37: 0 | Y37: 0 | Z37: 0 | AA37: 0 | AB37: 1.428571429 | AC37: 0 | AD37: 5.714285714 | AE37: 0 | AF37: 0 | AG37: 0 | AH37: 0 | AI37: 0 | AJ37: 0 | AK37: 0 | AL37: 0 | AM37: 0 | AN37: 0 | AO37: 0 | AP37: 0 | AQ37: 0 | AR37: 0 | AS37: 0 | AT37: 0 | AU37: 0 | AV37: 0 | AW37: 0 | AX37: 0 | AY37: 0 | AZ37: 0 | BA37: 0 | BB37: 0 | BC37: 0 | BD37: 0 | BE37: 0 | BF37: 0 | BG37: 0 | BH37: 0 | BI37: 0 | BJ37: 0 | BK37: 0 | BL37: 0 | BM37: 0 | BN37: 0 | BO37: 0 | BP37: 0 | BQ37: 0 | BR37: 0 | BS37: 0 | BT37: 0 | BU37: 0 | BV37: 0 | BW37: 0 | BX37: 0 | BY37: 0 | BZ37: 0 | CA37: 0 | CB37: 0 | CC37: 0 | CD37: 0 | CE37: 0 | CF37: 0 | CG37: 0 | CH37: 0 | CI37: 0 | CJ37: 0 | CK37: 0 | CL37: 0 | CM37: 0 | CN37: 0 | CO37: 0 | CP37: 0 | CQ37: 0 | CR37: 0 | CS37: 0 | CT37: 0 | CV37: 0 | CW37: 471.3981921 | CX37: 0 | CY37: 0 | CZ37: 0 | DA37: 0 | DB37: 0 | DC37: 0 | DD37: 0 | DE37: 0 | DF37: 0 | DG37: 0 | DH37: 0 | DI37: 0 | DJ37: 0 | DK37: 0 | DL37: 0 | DM37: 0 | DN37: 0 | DO37: 0 | DP37: 235.6990961 | DQ37: 0 | DR37: 942.7963843 | DS37: 0 | DT37: 0 | DU37: 0 | DV37: 0 | DW37: 0 | DX37: 0 | DY37: 0 | DZ37: 0 | EA37: 0 | EB37: 0 | EC37: 0 | ED37: 0 | EE37: 0 | EF37: 0 | EG37: 0 | EH37: 0 | EI37: 0 | EJ37: 0 | EK37: 0 | EL37: 0 | EM37: 0 | EN37: 0 | EO37: 0 | EP37: 0 | EQ37: 0 | ER37: 0 | ES37: 0 | ET37: 0 | EU37: 0 | EV37: 0 | EW37: 0 | EX37: 0 | EY37: 0 | EZ37: 0 | FA37: 0 | FB37: 0 | FC37: 0 | FD37: 0 | FE37: 0 | FF37: 0 | FG37: 0 | FH37: 0 | FI37: 0 | FJ37: 0 | FK37: 0 | FL37: 0 | FM37: 0 | FN37: 0 | FO37: 0 | FP37: 0 | FQ37: 0 | FR37: 0 | FS37: 0 | FT37: 0 | FU37: 0 | FV37: 0 | FW37: 0 | FX37: 0 | FY37: 0 | FZ37: 0 | GA37: 0 | GB37: 0 | GC37: 0 | GD37: 0 | GE37: 0 | GF37: 0 | GG37: 0 | GH37: 0
A38: 4 | B38: SWITCHGEAR | C38: > 132 kv ; switch | D38: 28.57365109 | E38: 60.06858888 | F38: 7.750392821 | G38: 2 | H38: 0 | I38: 7.695652174 | J38: 1.282608696 | K38: 0 | L38: 0 | M38: 0 | N38: 0 | O38: 0 | P38: 6.413043478 | Q38: 0 | R38: 0 | S38: 0 | T38: 0 | U38: 0 | V38: 0 | W38: 0 | X38: 0 | Y38: 0 | Z38: 0 | AA38: 1.282608696 | AB38: 2.565217391 | AC38: 16.67391304 | AD38: 1.282608696 | AE38: 2.565217391 | AF38: 1.282608696 | AG38: 0 | AH38: 8.97826087 | AI38: 5.130434783 | AJ38: 0 | AK38: 1.282608696 | AL38: 1.282608696 | AM38: 0 | AN38: 0 | AO38: 0 | AP38: 0 | AQ38: 0 | AR38: 0 | AS38: 0 | AT38: 0 | AU38: 0 | AV38: 0 | AW38: 0 | AX38: 0 | AY38: 0 | AZ38: 0 | BA38: 0 | BB38: 0 | BC38: 0 | BD38: 0 | BE38: 0 | BF38: 0 | BG38: 0 | BH38: 0 | BI38: 0 | BJ38: 0 | BK38: 0 | BL38: 1.282608696 | BM38: 0 | BN38: 0 | BO38: 0 | BP38: 0 | BQ38: 0 | BR38: 0 | BS38: 0 | BT38: 0 | BU38: 0 | BV38: 0 | BW38: 0 | BX38: 0 | BY38: 0 | BZ38: 0 | CA38: 0 | CB38: 0 | CC38: 0 | CD38: 0 | CE38: 0 | CF38: 0 | CG38: 0 | CH38: 0 | CI38: 0 | CJ38: 0 | CK38: 0 | CL38: 0 | CM38: 0 | CN38: 0 | CO38: 0 | CP38: 0 | CQ38: 0 | CR38: 0 | CS38: 0 | CT38: 0 | CV38: 0 | CW38: 219.8928801 | CX38: 36.64881336 | CY38: 0 | CZ38: 0 | DA38: 0 | DB38: 0 | DC38: 0 | DD38: 183.2440668 | DE38: 0 | DF38: 0 | DG38: 0 | DH38: 0 | DI38: 0 | DJ38: 0 | DK38: 0 | DL38: 0 | DM38: 0 | DN38: 0 | DO38: 36.64881336 | DP38: 73.29762672 | DQ38: 476.4345736 | DR38: 36.64881336 | DS38: 73.29762672 | DT38: 36.64881336 | DU38: 0 | DV38: 256.5416935 | DW38: 146.5952534 | DX38: 0 | DY38: 36.64881336 | DZ38: 36.64881336 | EA38: 0 | EB38: 0 | EC38: 0 | ED38: 0 | EE38: 0 | EF38: 0 | EG38: 0 | EH38: 0 | EI38: 0 | EJ38: 0 | EK38: 0 | EL38: 0 | EM38: 0 | EN38: 0 | EO38: 0 | EP38: 0 | EQ38: 0 | ER38: 0 | ES38: 0 | ET38: 0 | EU38: 0 | EV38: 0 | EW38: 0 | EX38: 0 | EY38: 0 | EZ38: 36.64881336 | FA38: 0 | FB38: 0 | FC38: 0 | FD38: 0 | FE38: 0 | FF38: 0 | FG38: 0 | FH38: 0 | FI38: 0 | FJ38: 0 | FK38: 0 | FL38: 0 | FM38: 0 | FN38: 0 | FO38: 0 | FP38: 0 | FQ38: 0 | FR38: 0 | FS38: 0 | FT38: 0 | FU38: 0 | FV38: 0 | FW38: 0 | FX38: 0 | FY38: 0 | FZ38: 0 | GA38: 0 | GB38: 0 | GC38: 0 | GD38: 0 | GE38: 0 | GF38: 0 | GG38: 0 | GH38: 0
A39: 4 | B39: SWITCHGEAR | C39: > 22 kv & < = 33 kv ; circuit breaker | D39: 98.41056759 | E39: 56.47472704 | F39: 7.514966869 | G39: 2 | H39: 9.068877551 | I39: 19.14540816 | J39: 11.08418367 | K39: 11.08418367 | L39: 35.26785714 | M39: 24.18367347 | N39: 13.0994898 | O39: 8.06122449 | P39: 3.022959184 | Q39: 34.26020408 | R39: 11.08418367 | S39: 25.19132653 | T39: 6.045918367 | U39: 7.053571429 | V39: 18.1377551 | W39: 6.045918367 | X39: 21.16071429 | Y39: 18.1377551 | Z39: 7.053571429 | AA39: 5.038265306 | AB39: 5.038265306 | AC39: 0 | AD39: 4.030612245 | AE39: 16.12244898 | AF39: 2.015306122 | AG39: 0 | AH39: 1.007653061 | AI39: 0 | AJ39: 0 | AK39: 1.007653061 | AL39: 0 | AM39: 0 | AN39: 6.045918367 | AO39: 0 | AP39: 3.022959184 | AQ39: 0 | AR39: 2.015306122 | AS39: 1.007653061 | AT39: 0 | AU39: 1.007653061 | AV39: 3.022959184 | AW39: 1.007653061 | AX39: 0 | AY39: 1.007653061 | AZ39: 0 | BA39: 0 | BB39: 0 | BC39: 0 | BD39: 5.038265306 | BE39: 0 | BF39: 12.09183673 | BG39: 6.045918367 | BH39: 0 | BI39: 13.0994898 | BJ39: 1.007653061 | BK39: 0 | BL39: 0 | BM39: 0 | BN39: 0 | BO39: 2.015306122 | BP39: 0 | BQ39: 0 | BR39: 0 | BS39: 1.007653061 | BT39: 0 | BU39: 0 | BV39: 10.07653061 | BW39: 4.030612245 | BX39: 0 | BY39: 0 | BZ39: 0 | CA39: 0 | CB39: 0 | CC39: 0 | CD39: 0 | CE39: 0 | CF39: 0 | CG39: 0 | CH39: 0 | CI39: 0 | CJ39: 0 | CK39: 0 | CL39: 0 | CM39: 0 | CN39: 0 | CO39: 0 | CP39: 0 | CQ39: 0 | CR39: 0 | CS39: 0 | CT39: 0 | CV39: 892.4733872 | CW39: 1884.110484 | CX39: 1090.800807 | CY39: 1090.800807 | CZ39: 3470.729839 | DA39: 2379.929033 | DB39: 1289.128226 | DC39: 793.3096775 | DD39: 297.4911291 | DE39: 3371.566129 | DF39: 1090.800807 | DG39: 2479.092742 | DH39: 594.9822581 | DI39: 694.1459678 | DJ39: 1784.946774 | DK39: 594.9822581 | DL39: 2082.437903 | DM39: 1784.946774 | DN39: 694.1459678 | DO39: 495.8185484 | DP39: 495.8185484 | DQ39: 0 | DR39: 396.6548388 | DS39: 1586.619355 | DT39: 198.3274194 | DU39: 0 | DV39: 99.16370969 | DW39: 0 | DX39: 0 | DY39: 99.16370969 | DZ39: 0 | EA39: 0 | EB39: 594.9822581 | EC39: 0 | ED39: 297.4911291 | EE39: 0 | EF39: 198.3274194 | EG39: 99.16370969 | EH39: 0 | EI39: 99.16370969 | EJ39: 297.4911291 | EK39: 99.16370969 | EL39: 0 | EM39: 99.16370969 | EN39: 0 | EO39: 0 | EP39: 0 | EQ39: 0 | ER39: 495.8185484 | ES39: 0 | ET39: 1189.964516 | EU39: 594.9822581 | EV39: 0 | EW39: 1289.128226 | EX39: 99.16370969 | EY39: 0 | EZ39: 0 | FA39: 0 | FB39: 0 | FC39: 198.3274194 | FD39: 0 | FE39: 0 | FF39: 0 | FG39: 99.16370969 | FH39: 0 | FI39: 0 | FJ39: 991.6370969 | FK39: 396.6548388 | FL39: 0 | FM39: 0 | FN39: 0 | FO39: 0 | FP39: 0 | FQ39: 0 | FR39: 0 | FS39: 0 | FT39: 0 | FU39: 0 | FV39: 0 | FW39: 0 | FX39: 0 | FY39: 0 | FZ39: 0 | GA39: 0 | GB39: 0 | GC39: 0 | GD39: 0 | GE39: 0 | GF39: 0 | GG39: 0 | GH39: 0
A40: 4 | B40: SWITCHGEAR | C40: > 22 kv & < = 33 kv ; switch | D40: 6.738394253 | E40: 54.23198061 | F40: 7.364236594 | G40: 2 | H40: 86.0172043 | I40: 112.6415771 | J40: 104.4494624 | K40: 266.2437276 | L40: 196.6107527 | M40: 229.3792115 | N40: 233.4752688 | O40: 198.6587814 | P40: 100.353405 | Q40: 169.9863799 | R40: 86.0172043 | S40: 78.84910394 | T40: 34.81648746 | U40: 39.93655914 | V40: 36.86451613 | W40: 20.48028674 | X40: 38.9125448 | Y40: 31.74444444 | Z40: 23.55232975 | AA40: 14.33620072 | AB40: 29.69641577 | AC40: 19.4562724 | AD40: 18.43225806 | AE40: 18.43225806 | AF40: 8.192114695 | AG40: 9.216129032 | AH40: 17.40824373 | AI40: 12.28817204 | AJ40: 26.62437276 | AK40: 24.57634409 | AL40: 12.28817204 | AM40: 20.48028674 | AN40: 7.168100358 | AO40: 18.43225806 | AP40: 76.80107527 | AQ40: 22.52831541 | AR40: 32.76845878 | AS40: 32.76845878 | AT40: 25.60035842 | AU40: 6.144086022 | AV40: 2.048028674 | AW40: 5.120071685 | AX40: 17.40824373 | AY40: 9.216129032 | AZ40: 6.144086022 | BA40: 2.048028674 | BB40: 6.144086022 | BC40: 31.74444444 | BD40: 23.55232975 | BE40: 30.72043011 | BF40: 32.76845878 | BG40: 27.6483871 | BH40: 8.192114695 | BI40: 39.93655914 | BJ40: 17.40824373 | BK40: 10.24014337 | BL40: 6.144086022 | BM40: 8.192114695 | BN40: 4.096057348 | BO40: 1.024014337 | BP40: 5.120071685 | BQ40: 3.072043011 | BR40: 2.048028674 | BS40: 1.024014337 | BT40: 3.072043011 | BU40: 3.072043011 | BV40: 1.024014337 | BW40: 2.048028674 | BX40: 2.048028674 | BY40: 0 | BZ40: 0 | CA40: 0 | CB40: 0 | CC40: 0 | CD40: 0 | CE40: 0 | CF40: 0 | CG40: 2.048028674 | CH40: 0 | CI40: 0 | CJ40: 0 | CK40: 0 | CL40: 0 | CM40: 0 | CN40: 0 | CO40: 0 | CP40: 0 | CQ40: 0 | CR40: 0 | CS40: 0 | CT40: 0 | CV40: 579.6178351 | CW40: 759.0233555 | CX40: 703.8216569 | CY40: 1794.055204 | CZ40: 1324.840766 | DA40: 1545.64756 | DB40: 1573.24841 | DC40: 1338.641191 | DD40: 676.2208076 | DE40: 1145.435246 | DF40: 579.6178351 | DG40: 531.3163489 | DH40: 234.607219 | DI40: 269.1082806 | DJ40: 248.4076436 | DK40: 138.0042465 | DL40: 262.2080683 | DM40: 213.906582 | DN40: 158.7048834 | DO40: 96.60297252 | DP40: 200.1061574 | DQ40: 131.1040341 | DR40: 124.2038218 | DS40: 124.2038218 | DT40: 55.20169858 | DU40: 62.10191091 | DV40: 117.3036095 | DW40: 82.80254787 | DX40: 179.4055204 | DY40: 165.6050957 | DZ40: 82.80254787 | EA40: 138.0042465 | EB40: 48.30148626 | EC40: 124.2038218 | ED40: 517.5159242 | EE40: 151.8046711 | EF40: 220.8067943 | EG40: 220.8067943 | EH40: 172.5053081 | EI40: 41.40127394 | EJ40: 13.80042465 | EK40: 34.50106161 | EL40: 117.3036095 | EM40: 62.10191091 | EN40: 41.40127394 | EO40: 13.80042465 | EP40: 41.40127394 | EQ40: 213.906582 | ER40: 158.7048834 | ES40: 207.0063697 | ET40: 220.8067943 | EU40: 186.3057327 | EV40: 55.20169858 | EW40: 269.1082806 | EX40: 117.3036095 | EY40: 69.00212323 | EZ40: 41.40127394 | FA40: 55.20169858 | FB40: 27.60084929 | FC40: 6.900212323 | FD40: 34.50106161 | FE40: 20.70063697 | FF40: 13.80042465 | FG40: 6.900212323 | FH40: 20.70063697 | FI40: 20.70063697 | FJ40: 6.900212323 | FK40: 13.80042465 | FL40: 13.80042465 | FM40: 0 | FN40: 0 | FO40: 0 | FP40: 0 | FQ40: 0 | FR40: 0 | FS40: 0 | FT40: 0 | FU40: 13.80042465 | FV40: 0 | FW40: 0 | FX40: 0 | FY40: 0 | FZ40: 0 | GA40: 0 | GB40: 0 | GC40: 0 | GD40: 0 | GE40: 0 | GF40: 0 | GG40: 0 | GH40: 0
A41: 4 | B41: SWITCHGEAR | C41: > 33 kv & < = 66 kv ; circuit breaker | D41: 164.9893672 | E41: 45.07077781 | F41: 6.713477326 | G41: 2 | H41: 26.46732026 | I41: 42.75490196 | J41: 3.053921569 | K41: 9.161764706 | L41: 15.26960784 | M41: 16.2875817 | N41: 20.35947712 | O41: 5.089869281 | P41: 19.34150327 | Q41: 27.48529412 | R41: 24.43137255 | S41: 24.43137255 | T41: 21.37745098 | U41: 35.62908497 | V41: 16.2875817 | W41: 21.37745098 | X41: 19.34150327 | Y41: 6.107843137 | Z41: 18.32352941 | AA41: 4.071895425 | AB41: 10.17973856 | AC41: 11.19771242 | AD41: 3.053921569 | AE41: 6.107843137 | AF41: 5.089869281 | AG41: 9.161764706 | AH41: 3.053921569 | AI41: 27.48529412 | AJ41: 7.125816993 | AK41: 1.017973856 | AL41: 2.035947712 | AM41: 7.125816993 | AN41: 8.14379085 | AO41: 16.2875817 | AP41: 17.30555556 | AQ41: 7.125816993 | AR41: 8.14379085 | AS41: 6.107843137 | AT41: 13.23366013 | AU41: 7.125816993 | AV41: 12.21568627 | AW41: 0 | AX41: 0 | AY41: 1.017973856 | AZ41: 8.14379085 | BA41: 2.035947712 | BB41: 3.053921569 | BC41: 9.161764706 | BD41: 8.14379085 | BE41: 1.017973856 | BF41: 2.035947712 | BG41: 6.107843137 | BH41: 0 | BI41: 2.035947712 | BJ41: 0 | BK41: 4.071895425 | BL41: 0 | BM41: 0 | BN41: 0 | BO41: 1.017973856 | BP41: 0 | BQ41: 0 | BR41: 7.125816993 | BS41: 1.017973856 | BT41: 2.035947712 | BU41: 0 | BV41: 0 | BW41: 0 | BX41: 0 | BY41: 0 | BZ41: 0 | CA41: 0 | CB41: 0 | CC41: 0 | CD41: 0 | CE41: 0 | CF41: 0 | CG41: 0 | CH41: 0 | CI41: 0 | CJ41: 0 | CK41: 0 | CL41: 0 | CM41: 0 | CN41: 0 | CO41: 0 | CP41: 0 | CQ41: 0 | CR41: 0 | CS41: 0 | CT41: 0 | CV41: 4366.826423 | CW41: 7054.104221 | CX41: 503.8645872 | CY41: 1511.593762 | CZ41: 2519.322936 | DA41: 2687.277799 | DB41: 3359.097248 | DC41: 839.7743121 | DD41: 3191.142386 | DE41: 4534.781285 | DF41: 4030.916698 | DG41: 4030.916698 | DH41: 3527.052111 | DI41: 5878.420184 | DJ41: 2687.277799 | DK41: 3527.052111 | DL41: 3191.142386 | DM41: 1007.729174 | DN41: 3023.187523 | DO41: 671.8194497 | DP41: 1679.548624 | DQ41: 1847.503487 | DR41: 503.8645872 | DS41: 1007.729174 | DT41: 839.7743121 | DU41: 1511.593762 | DV41: 503.8645872 | DW41: 4534.781285 | DX41: 1175.684037 | DY41: 167.9548624 | DZ41: 335.9097248 | EA41: 1175.684037 | EB41: 1343.638899 | EC41: 2687.277799 | ED41: 2855.232661 | EE41: 1175.684037 | EF41: 1343.638899 | EG41: 1007.729174 | EH41: 2183.413211 | EI41: 1175.684037 | EJ41: 2015.458349 | EK41: 0 | EL41: 0 | EM41: 167.9548624 | EN41: 1343.638899 | EO41: 335.9097248 | EP41: 503.8645872 | EQ41: 1511.593762 | ER41: 1343.638899 | ES41: 167.9548624 | ET41: 335.9097248 | EU41: 1007.729174 | EV41: 0 | EW41: 335.9097248 | EX41: 0 | EY41: 671.8194497 | EZ41: 0 | FA41: 0 | FB41: 0 | FC41: 167.9548624 | FD41: 0 | FE41: 0 | FF41: 1175.684037 | FG41: 167.9548624 | FH41: 335.9097248 | FI41: 0 | FJ41: 0 | FK41: 0 | FL41: 0 | FM41: 0 | FN41: 0 | FO41: 0 | FP41: 0 | FQ41: 0 | FR41: 0 | FS41: 0 | FT41: 0 | FU41: 0 | FV41: 0 | FW41: 0 | FX41: 0 | FY41: 0 | FZ41: 0 | GA41: 0 | GB41: 0 | GC41: 0 | GD41: 0 | GE41: 0 | GF41: 0 | GG41: 0 | GH41: 0
A42: 4 | B42: SWITCHGEAR | C42: > 33 kv & < = 66 kv ; switch | D42: 28.57365109 | E42: 60.06858888 | F42: 7.750392821 | G42: 2 | H42: 3.078328982 | I42: 4.104438642 | J42: 6.156657963 | K42: 12.31331593 | L42: 22.57441253 | M42: 50.27937337 | N42: 61.56657963 | O42: 40.01827676 | P42: 54.38381201 | Q42: 86.19321149 | R42: 80.03655352 | S42: 30.78328982 | T42: 54.38381201 | U42: 44.1227154 | V42: 43.09660574 | W42: 32.83550914 | X42: 25.65274151 | Y42: 50.27937337 | Z42: 41.04438642 | AA42: 30.78328982 | AB42: 43.09660574 | AC42: 23.60052219 | AD42: 18.46997389 | AE42: 36.93994778 | AF42: 11.28720627 | AG42: 14.36553525 | AH42: 29.75718016 | AI42: 60.54046997 | AJ42: 7.182767624 | AK42: 27.70496084 | AL42: 33.8616188 | AM42: 37.96605744 | AN42: 53.35770235 | AO42: 50.27937337 | AP42: 103.6370757 | AQ42: 31.80939948 | AR42: 62.5926893 | AS42: 42.07049608 | AT42: 35.91383812 | AU42: 71.82767624 | AV42: 69.77545692 | AW42: 18.46997389 | AX42: 8.208877285 | AY42: 33.8616188 | AZ42: 5.130548303 | BA42: 16.41775457 | BB42: 9.234986945 | BC42: 52.33159269 | BD42: 8.208877285 | BE42: 14.36553525 | BF42: 15.39164491 | BG42: 11.28720627 | BH42: 4.104438642 | BI42: 57.46214099 | BJ42: 21.54830287 | BK42: 8.208877285 | BL42: 10.26109661 | BM42: 9.234986945 | BN42: 7.182767624 | BO42: 3.078328982 | BP42: 0 | BQ42: 0 | BR42: 9.234986945 | BS42: 0 | BT42: 0 | BU42: 0 | BV42: 0 | BW42: 0 | BX42: 0 | BY42: 0 | BZ42: 0 | CA42: 0 | CB42: 2.052219321 | CC42: 0 | CD42: 0 | CE42: 0 | CF42: 0 | CG42: 0 | CH42: 0 | CI42: 0 | CJ42: 0 | CK42: 0 | CL42: 0 | CM42: 0 | CN42: 0 | CO42: 0 | CP42: 0 | CQ42: 0 | CR42: 0 | CS42: 0 | CT42: 0 | CV42: 87.95909827 | CW42: 117.2787977 | CX42: 175.9181965 | CY42: 351.8363931 | CZ42: 645.0333873 | DA42: 1436.665272 | DB42: 1759.181965 | DC42: 1143.468278 | DD42: 1553.944069 | DE42: 2462.854752 | DF42: 2286.936555 | DG42: 879.5909827 | DH42: 1553.944069 | DI42: 1260.747075 | DJ42: 1231.427376 | DK42: 938.2303816 | DL42: 732.9924856 | DM42: 1436.665272 | DN42: 1172.787977 | DO42: 879.5909827 | DP42: 1231.427376 | DQ42: 674.3530867 | DR42: 527.7545896 | DS42: 1055.509179 | DT42: 322.5166937 | DU42: 410.4757919 | DV42: 850.2712833 | DW42: 1729.862266 | DX42: 205.237896 | DY42: 791.6318844 | DZ42: 967.550081 | EA42: 1084.828879 | EB42: 1524.62437 | EC42: 1436.665272 | ED42: 2961.289642 | EE42: 908.9106821 | EF42: 1788.501665 | EG42: 1202.107676 | EH42: 1026.18948 | EI42: 2052.37896 | EJ42: 1993.739561 | EK42: 527.7545896 | EL42: 234.5575954 | EM42: 967.550081 | EN42: 146.5984971 | EO42: 469.1151908 | EP42: 263.8772948 | EQ42: 1495.304671 | ER42: 234.5575954 | ES42: 410.4757919 | ET42: 439.7954914 | EU42: 322.5166937 | EV42: 117.2787977 | EW42: 1641.903168 | EX42: 615.7136879 | EY42: 234.5575954 | EZ42: 293.1969942 | FA42: 263.8772948 | FB42: 205.237896 | FC42: 87.95909827 | FD42: 0 | FE42: 0 | FF42: 263.8772948 | FG42: 0 | FH42: 0 | FI42: 0 | FJ42: 0 | FK42: 0 | FL42: 0 | FM42: 0 | FN42: 0 | FO42: 0 | FP42: 58.63939885 | FQ42: 0 | FR42: 0 | FS42: 0 | FT42: 0 | FU42: 0 | FV42: 0 | FW42: 0 | FX42: 0 | FY42: 0 | FZ42: 0 | GA42: 0 | GB42: 0 | GC42: 0 | GD42: 0 | GE42: 0 | GF42: 0 | GG42: 0 | GH42: 0
A43: 4 | B43: SWITCHGEAR | C43: > 66 kv & < = 132 kv ; circuit breaker | D43: 164.9893672 | E43: 50.97717017 | F43: 7.139829842 | G43: 2 | H43: 0 | I43: 2.125984252 | J43: 0 | K43: 15.94488189 | L43: 8.503937008 | M43: 0 | N43: 10.62992126 | O43: 0 | P43: 3.188976378 | Q43: 9.566929134 | R43: 4.251968504 | S43: 3.188976378 | T43: 10.62992126 | U43: 12.75590551 | V43: 6.377952756 | W43: 3.188976378 | X43: 3.188976378 | Y43: 0 | Z43: 0 | AA43: 0 | AB43: 0 | AC43: 0 | AD43: 2.125984252 | AE43: 2.125984252 | AF43: 0 | AG43: 0 | AH43: 2.125984252 | AI43: 3.188976378 | AJ43: 0 | AK43: 10.62992126 | AL43: 4.251968504 | AM43: 0 | AN43: 0 | AO43: 0 | AP43: 4.251968504 | AQ43: 0 | AR43: 5.31496063 | AS43: 0 | AT43: 0 | AU43: 0 | AV43: 1.062992126 | AW43: 0 | AX43: 0 | AY43: 0 | AZ43: 0 | BA43: 0 | BB43: 0 | BC43: 0 | BD43: 0 | BE43: 0 | BF43: 2.125984252 | BG43: 1.062992126 | BH43: 0 | BI43: 2.125984252 | BJ43: 0 | BK43: 0 | BL43: 1.062992126 | BM43: 0 | BN43: 0 | BO43: 0 | BP43: 0 | BQ43: 0 | BR43: 0 | BS43: 0 | BT43: 0 | BU43: 0 | BV43: 0 | BW43: 0 | BX43: 0 | BY43: 0 | BZ43: 0 | CA43: 0 | CB43: 0 | CC43: 0 | CD43: 0 | CE43: 0 | CF43: 0 | CG43: 0 | CH43: 0 | CI43: 0 | CJ43: 0 | CK43: 0 | CL43: 0 | CM43: 0 | CN43: 0 | CO43: 0 | CP43: 0 | CQ43: 0 | CR43: 0 | CS43: 0 | CT43: 0 | CV43: 0 | CW43: 350.7647965 | CX43: 0 | CY43: 2630.735974 | CZ43: 1403.059186 | DA43: 0 | DB43: 1753.823983 | DC43: 0 | DD43: 526.1471948 | DE43: 1578.441584 | DF43: 701.529593 | DG43: 526.1471948 | DH43: 1753.823983 | DI43: 2104.588779 | DJ43: 1052.29439 | DK43: 526.1471948 | DL43: 526.1471948 | DM43: 0 | DN43: 0 | DO43: 0 | DP43: 0 | DQ43: 0 | DR43: 350.7647965 | DS43: 350.7647965 | DT43: 0 | DU43: 0 | DV43: 350.7647965 | DW43: 526.1471948 | DX43: 0 | DY43: 1753.823983 | DZ43: 701.529593 | EA43: 0 | EB43: 0 | EC43: 0 | ED43: 701.529593 | EE43: 0 | EF43: 876.9119913 | EG43: 0 | EH43: 0 | EI43: 0 | EJ43: 175.3823983 | EK43: 0 | EL43: 0 | EM43: 0 | EN43: 0 | EO43: 0 | EP43: 0 | EQ43: 0 | ER43: 0 | ES43: 0 | ET43: 350.7647965 | EU43: 175.3823983 | EV43: 0 | EW43: 350.7647965 | EX43: 0 | EY43: 0 | EZ43: 175.3823983 | FA43: 0 | FB43: 0 | FC43: 0 | FD43: 0 | FE43: 0 | FF43: 0 | FG43: 0 | FH43: 0 | FI43: 0 | FJ43: 0 | FK43: 0 | FL43: 0 | FM43: 0 | FN43: 0 | FO43: 0 | FP43: 0 | FQ43: 0 | FR43: 0 | FS43: 0 | FT43: 0 | FU43: 0 | FV43: 0 | FW43: 0 | FX43: 0 | FY43: 0 | FZ43: 0 | GA43: 0 | GB43: 0 | GC43: 0 | GD43: 0 | GE43: 0 | GF43: 0 | GG43: 0 | GH43: 0
A44: 4 | B44: SWITCHGEAR | C44: > 66 kv & < = 132 kv ; switch | D44: 28.57365109 | E44: 51.72202367 | F44: 7.191802532 | G44: 2 | H44: 1.047169811 | I44: 6.283018868 | J44: 0 | K44: 19.89622642 | L44: 17.80188679 | M44: 2.094339623 | N44: 39.79245283 | O44: 6.283018868 | P44: 4.188679245 | Q44: 21.99056604 | R44: 10.47169811 | S44: 13.61320755 | T44: 31.41509434 | U44: 12.56603774 | V44: 0 | W44: 4.188679245 | X44: 8.377358491 | Y44: 1.047169811 | Z44: 0 | AA44: 1.047169811 | AB44: 10.47169811 | AC44: 1.047169811 | AD44: 2.094339623 | AE44: 5.235849057 | AF44: 12.56603774 | AG44: 0 | AH44: 7.330188679 | AI44: 8.377358491 | AJ44: 3.141509434 | AK44: 3.141509434 | AL44: 0 | AM44: 4.188679245 | AN44: 3.141509434 | AO44: 1.047169811 | AP44: 26.17924528 | AQ44: 0 | AR44: 10.47169811 | AS44: 1.047169811 | AT44: 5.235849057 | AU44: 0 | AV44: 0 | AW44: 2.094339623 | AX44: 0 | AY44: 0 | AZ44: 0 | BA44: 0 | BB44: 0 | BC44: 0 | BD44: 0 | BE44: 21.99056604 | BF44: 0 | BG44: 0 | BH44: 0 | BI44: 0 | BJ44: 0 | BK44: 0 | BL44: 2.094339623 | BM44: 0 | BN44: 0 | BO44: 0 | BP44: 0 | BQ44: 0 | BR44: 0 | BS44: 0 | BT44: 0 | BU44: 0 | BV44: 0 | BW44: 0 | BX44: 0 | BY44: 0 | BZ44: 0 | CA44: 0 | CB44: 0 | CC44: 0 | CD44: 0 | CE44: 0 | CF44: 0 | CG44: 0 | CH44: 0 | CI44: 0 | CJ44: 0 | CK44: 0 | CL44: 0 | CM44: 0 | CN44: 0 | CO44: 0 | CP44: 0 | CQ44: 0 | CR44: 0 | CS44: 0 | CT44: 0 | CV44: 29.92146482 | CW44: 179.5287889 | CX44: 0 | CY44: 568.5078316 | CZ44: 508.664902 | DA44: 59.84292965 | DB44: 1137.015663 | DC44: 179.5287889 | DD44: 119.6858593 | DE44: 628.3507613 | DF44: 299.2146482 | DG44: 388.9790427 | DH44: 897.6439447 | DI44: 359.0575779 | DJ44: 0 | DK44: 119.6858593 | DL44: 239.3717186 | DM44: 29.92146482 | DN44: 0 | DO44: 29.92146482 | DP44: 299.2146482 | DQ44: 29.92146482 | DR44: 59.84292965 | DS44: 149.6073241 | DT44: 359.0575779 | DU44: 0 | DV44: 209.4502538 | DW44: 239.3717186 | DX44: 89.76439447 | DY44: 89.76439447 | DZ44: 0 | EA44: 119.6858593 | EB44: 89.76439447 | EC44: 29.92146482 | ED44: 748.0366206 | EE44: 0 | EF44: 299.2146482 | EG44: 29.92146482 | EH44: 149.6073241 | EI44: 0 | EJ44: 0 | EK44: 59.84292965 | EL44: 0 | EM44: 0 | EN44: 0 | EO44: 0 | EP44: 0 | EQ44: 0 | ER44: 0 | ES44: 628.3507613 | ET44: 0 | EU44: 0 | EV44: 0 | EW44: 0 | EX44: 0 | EY44: 0 | EZ44: 59.84292965 | FA44: 0 | FB44: 0 | FC44: 0 | FD44: 0 | FE44: 0 | FF44: 0 | FG44: 0 | FH44: 0 | FI44: 0 | FJ44: 0 | FK44: 0 | FL44: 0 | FM44: 0 | FN44: 0 | FO44: 0 | FP44: 0 | FQ44: 0 | FR44: 0 | FS44: 0 | FT44: 0 | FU44: 0 | FV44: 0 | FW44: 0 | FX44: 0 | FY44: 0 | FZ44: 0 | GA44: 0 | GB44: 0 | GC44: 0 | GD44: 0 | GE44: 0 | GF44: 0 | GG44: 0 | GH44: 0
A45: 5 | B45: TRANSFORMERS | C45: ground outdoor / indoor chamber mounted ; ˂ 22 kv ; < = 60 kva ; single phase | D45: 66.22752632 | E45: 55.46922945 | F45: 7.447766742 | G45: 2 | H45: 0 | I45: 0 | J45: 0 | K45: 0 | L45: 0 | M45: 0 | N45: 0 | O45: 0 | P45: 0 | Q45: 0 | R45: 0 | S45: 0 | T45: 0 | U45: 0 | V45: 0 | W45: 0 | X45: 0 | Y45: 0 | Z45: 0 | AA45: 0 | AB45: 0 | AC45: 0 | AD45: 0 | AE45: 0 | AF45: 0 | AG45: 0 | AH45: 0 | AI45: 0 | AJ45: 0 | AK45: 0 | AL45: 2 | AM45: 0 | AN45: 0 | AO45: 0 | AP45: 0 | AQ45: 0 | AR45: 0 | AS45: 0 | AT45: 0 | AU45: 0 | AV45: 0 | AW45: 0 | AX45: 0 | AY45: 0 | AZ45: 0 | BA45: 0 | BB45: 0 | BC45: 0 | BD45: 0 | BE45: 0 | BF45: 0 | BG45: 0 | BH45: 0 | BI45: 0 | BJ45: 0 | BK45: 0 | BL45: 0 | BM45: 0 | BN45: 0 | BO45: 0 | BP45: 0 | BQ45: 0 | BR45: 0 | BS45: 0 | BT45: 0 | BU45: 0 | BV45: 0 | BW45: 0 | BX45: 0 | BY45: 0 | BZ45: 0 | CA45: 0 | CB45: 0 | CC45: 0 | CD45: 0 | CE45: 0 | CF45: 0 | CG45: 0 | CH45: 0 | CI45: 0 | CJ45: 0 | CK45: 0 | CL45: 0 | CM45: 0 | CN45: 0 | CO45: 0 | CP45: 0 | CQ45: 0 | CR45: 0 | CS45: 0 | CT45: 0 | CV45: 0 | CW45: 0 | CX45: 0 | CY45: 0 | CZ45: 0 | DA45: 0 | DB45: 0 | DC45: 0 | DD45: 0 | DE45: 0 | DF45: 0 | DG45: 0 | DH45: 0 | DI45: 0 | DJ45: 0 | DK45: 0 | DL45: 0 | DM45: 0 | DN45: 0 | DO45: 0 | DP45: 0 | DQ45: 0 | DR45: 0 | DS45: 0 | DT45: 0 | DU45: 0 | DV45: 0 | DW45: 0 | DX45: 0 | DY45: 0 | DZ45: 132.4550526 | EA45: 0 | EB45: 0 | EC45: 0 | ED45: 0 | EE45: 0 | EF45: 0 | EG45: 0 | EH45: 0 | EI45: 0 | EJ45: 0 | EK45: 0 | EL45: 0 | EM45: 0 | EN45: 0 | EO45: 0 | EP45: 0 | EQ45: 0 | ER45: 0 | ES45: 0 | ET45: 0 | EU45: 0 | EV45: 0 | EW45: 0 | EX45: 0 | EY45: 0 | EZ45: 0 | FA45: 0 | FB45: 0 | FC45: 0 | FD45: 0 | FE45: 0 | FF45: 0 | FG45: 0 | FH45: 0 | FI45: 0 | FJ45: 0 | FK45: 0 | FL45: 0 | FM45: 0 | FN45: 0 | FO45: 0 | FP45: 0 | FQ45: 0 | FR45: 0 | FS45: 0 | FT45: 0 | FU45: 0 | FV45: 0 | FW45: 0 | FX45: 0 | FY45: 0 | FZ45: 0 | GA45: 0 | GB45: 0 | GC45: 0 | GD45: 0 | GE45: 0 | GF45: 0 | GG45: 0 | GH45: 0
A46: 5 | B46: TRANSFORMERS | C46: ground outdoor / indoor chamber mounted ; ˂ 22 kv ; > 60 kva and < = 600 kva ; multiple phase | D46: 66.22752632 | E46: 55.46922945 | F46: 7.447766742 | G46: 2 | H46: 0 | I46: 0 | J46: 0 | K46: 0 | L46: 0 | M46: 0 | N46: 0 | O46: 0 | P46: 0 | Q46: 0 | R46: 0 | S46: 0 | T46: 1 | U46: 0 | V46: 1 | W46: 1 | X46: 0 | Y46: 0 | Z46: 0 | AA46: 0 | AB46: 0 | AC46: 0 | AD46: 0 | AE46: 0 | AF46: 0 | AG46: 0 | AH46: 0 | AI46: 0 | AJ46: 0 | AK46: 1 | AL46: 0 | AM46: 0 | AN46: 0 | AO46: 0 | AP46: 0 | AQ46: 0 | AR46: 1 | AS46: 0 | AT46: 0 | AU46: 0 | AV46: 0 | AW46: 0 | AX46: 0 | AY46: 0 | AZ46: 0 | BA46: 0 | BB46: 0 | BC46: 0 | BD46: 0 | BE46: 0 | BF46: 0 | BG46: 0 | BH46: 0 | BI46: 0 | BJ46: 0 | BK46: 0 | BL46: 0 | BM46: 0 | BN46: 0 | BO46: 0 | BP46: 0 | BQ46: 0 | BR46: 0 | BS46: 0 | BT46: 0 | BU46: 0 | BV46: 0 | BW46: 0 | BX46: 0 | BY46: 0 | BZ46: 0 | CA46: 0 | CB46: 0 | CC46: 0 | CD46: 0 | CE46: 0 | CF46: 0 | CG46: 0 | CH46: 0 | CI46: 0 | CJ46: 0 | CK46: 0 | CL46: 0 | CM46: 0 | CN46: 0 | CO46: 0 | CP46: 0 | CQ46: 0 | CR46: 0 | CS46: 0 | CT46: 0 | CV46: 0 | CW46: 0 | CX46: 0 | CY46: 0 | CZ46: 0 | DA46: 0 | DB46: 0 | DC46: 0 | DD46: 0 | DE46: 0 | DF46: 0 | DG46: 0 | DH46: 66.22752632 | DI46: 0 | DJ46: 66.22752632 | DK46: 66.22752632 | DL46: 0 | DM46: 0 | DN46: 0 | DO46: 0 | DP46: 0 | DQ46: 0 | DR46: 0 | DS46: 0 | DT46: 0 | DU46: 0 | DV46: 0 | DW46: 0 | DX46: 0 | DY46: 66.22752632 | DZ46: 0 | EA46: 0 | EB46: 0 | EC46: 0 | ED46: 0 | EE46: 0 | EF46: 66.22752632 | EG46: 0 | EH46: 0 | EI46: 0 | EJ46: 0 | EK46: 0 | EL46: 0 | EM46: 0 | EN46: 0 | EO46: 0 | EP46: 0 | EQ46: 0 | ER46: 0 | ES46: 0 | ET46: 0 | EU46: 0 | EV46: 0 | EW46: 0 | EX46: 0 | EY46: 0 | EZ46: 0 | FA46: 0 | FB46: 0 | FC46: 0 | FD46: 0 | FE46: 0 | FF46: 0 | FG46: 0 | FH46: 0 | FI46: 0 | FJ46: 0 | FK46: 0 | FL46: 0 | FM46: 0 | FN46: 0 | FO46: 0 | FP46: 0 | FQ46: 0 | FR46: 0 | FS46: 0 | FT46: 0 | FU46: 0 | FV46: 0 | FW46: 0 | FX46: 0 | FY46: 0 | FZ46: 0 | GA46: 0 | GB46: 0 | GC46: 0 | GD46: 0 | GE46: 0 | GF46: 0 | GG46: 0 | GH46: 0
A47: 5 | B47: TRANSFORMERS | C47: ground outdoor / indoor chamber mounted ; ˂ 22 kv ; > 600 kva ; multiple phase | D47: 213.1984064 | E47: 55.46922945 | F47: 7.447766742 | G47: 2 | H47: 0 | I47: 0 | J47: 0 | K47: 0 | L47: 0 | M47: 0 | N47: 5 | O47: 2 | P47: 0 | Q47: 0 | R47: 1 | S47: 1 | T47: 1 | U47: 0 | V47: 0 | W47: 0 | X47: 0 | Y47: 2 | Z47: 1 | AA47: 0 | AB47: 2 | AC47: 2 | AD47: 0 | AE47: 3 | AF47: 0 | AG47: 0 | AH47: 0 | AI47: 0 | AJ47: 0 | AK47: 0 | AL47: 0 | AM47: 1 | AN47: 0 | AO47: 2 | AP47: 2 | AQ47: 0 | AR47: 3 | AS47: 0 | AT47: 0 | AU47: 2 | AV47: 3 | AW47: 0 | AX47: 2 | AY47: 0 | AZ47: 0 | BA47: 2 | BB47: 0 | BC47: 0 | BD47: 0 | BE47: 0 | BF47: 0 | BG47: 2 | BH47: 0 | BI47: 0 | BJ47: 2 | BK47: 0 | BL47: 1 | BM47: 0 | BN47: 0 | BO47: 0 | BP47: 0 | BQ47: 0 | BR47: 0 | BS47: 0 | BT47: 0 | BU47: 0 | BV47: 0 | BW47: 0 | BX47: 0 | BY47: 0 | BZ47: 0 | CA47: 0 | CB47: 2 | CC47: 0 | CD47: 0 | CE47: 0 | CF47: 0 | CG47: 0 | CH47: 0 | CI47: 0 | CJ47: 0 | CK47: 0 | CL47: 0 | CM47: 0 | CN47: 0 | CO47: 0 | CP47: 0 | CQ47: 0 | CR47: 0 | CS47: 0 | CT47: 0 | CV47: 0 | CW47: 0 | CX47: 0 | CY47: 0 | CZ47: 0 | DA47: 0 | DB47: 1065.992032 | DC47: 426.3968127 | DD47: 0 | DE47: 0 | DF47: 213.1984064 | DG47: 213.1984064 | DH47: 213.1984064 | DI47: 0 | DJ47: 0 | DK47: 0 | DL47: 0 | DM47: 426.3968127 | DN47: 213.1984064 | DO47: 0 | DP47: 426.3968127 | DQ47: 426.3968127 | DR47: 0 | DS47: 639.5952191 | DT47: 0 | DU47: 0 | DV47: 0 | DW47: 0 | DX47: 0 | DY47: 0 | DZ47: 0 | EA47: 213.1984064 | EB47: 0 | EC47: 426.3968127 | ED47: 426.3968127 | EE47: 0 | EF47: 639.5952191 | EG47: 0 | EH47: 0 | EI47: 426.3968127 | EJ47: 639.5952191 | EK47: 0 | EL47: 426.3968127 | EM47: 0 | EN47: 0 | EO47: 426.3968127 | EP47: 0 | EQ47: 0 | ER47: 0 | ES47: 0 | ET47: 0 | EU47: 426.3968127 | EV47: 0 | EW47: 0 | EX47: 426.3968127 | EY47: 0 | EZ47: 213.1984064 | FA47: 0 | FB47: 0 | FC47: 0 | FD47: 0 | FE47: 0 | FF47: 0 | FG47: 0 | FH47: 0 | FI47: 0 | FJ47: 0 | FK47: 0 | FL47: 0 | FM47: 0 | FN47: 0 | FO47: 0 | FP47: 426.3968127 | FQ47: 0 | FR47: 0 | FS47: 0 | FT47: 0 | FU47: 0 | FV47: 0 | FW47: 0 | FX47: 0 | FY47: 0 | FZ47: 0 | GA47: 0 | GB47: 0 | GC47: 0 | GD47: 0 | GE47: 0 | GF47: 0 | GG47: 0 | GH47: 0
A48: 5 | B48: TRANSFORMERS | C48: ground outdoor / indoor chamber mounted ; > = 22 kv & < = 33 kv ; < = 15 mva | D48: 193.7553456 | E48: 75.58378528 | F48: 8.693893563 | G48: 2 | H48: 0 | I48: 1 | J48: 0 | K48: 0 | L48: 1 | M48: 5 | N48: 1 | O48: 2 | P48: 0 | Q48: 1 | R48: 2 | S48: 1 | T48: 3 | U48: 1 | V48: 3 | W48: 0 | X48: 1 | Y48: 0 | Z48: 3 | AA48: 4 | AB48: 4 | AC48: 1 | AD48: 0 | AE48: 4 | AF48: 2 | AG48: 2 | AH48: 2 | AI48: 0 | AJ48: 0 | AK48: 0 | AL48: 4 | AM48: 3 | AN48: 1 | AO48: 4 | AP48: 3 | AQ48: 0 | AR48: 2 | AS48: 2 | AT48: 0 | AU48: 4 | AV48: 0 | AW48: 1 | AX48: 1 | AY48: 8 | AZ48: 0 | BA48: 2 | BB48: 1 | BC48: 7 | BD48: 1 | BE48: 2 | BF48: 2 | BG48: 9 | BH48: 3 | BI48: 3 | BJ48: 2 | BK48: 2 | BL48: 2 | BM48: 0 | BN48: 0 | BO48: 2 | BP48: 0 | BQ48: 0 | BR48: 0 | BS48: 0 | BT48: 0 | BU48: 1 | BV48: 1 | BW48: 0 | BX48: 0 | BY48: 3 | BZ48: 0 | CA48: 0 | CB48: 0 | CC48: 0 | CD48: 5 | CE48: 1 | CF48: 0 | CG48: 0 | CH48: 0 | CI48: 0 | CJ48: 0 | CK48: 0 | CL48: 0 | CM48: 0 | CN48: 0 | CO48: 0 | CP48: 0 | CQ48: 2 | CR48: 0 | CS48: 0 | CT48: 0 | CV48: 0 | CW48: 193.7553456 | CX48: 0 | CY48: 0 | CZ48: 193.7553456 | DA48: 968.776728 | DB48: 193.7553456 | DC48: 387.5106912 | DD48: 0 | DE48: 193.7553456 | DF48: 387.5106912 | DG48: 193.7553456 | DH48: 581.2660368 | DI48: 193.7553456 | DJ48: 581.2660368 | DK48: 0 | DL48: 193.7553456 | DM48: 0 | DN48: 581.2660368 | DO48: 775.0213824 | DP48: 775.0213824 | DQ48: 193.7553456 | DR48: 0 | DS48: 775.0213824 | DT48: 387.5106912 | DU48: 387.5106912 | DV48: 387.5106912 | DW48: 0 | DX48: 0 | DY48: 0 | DZ48: 775.0213824 | EA48: 581.2660368 | EB48: 193.7553456 | EC48: 775.0213824 | ED48: 581.2660368 | EE48: 0 | EF48: 387.5106912 | EG48: 387.5106912 | EH48: 0 | EI48: 775.0213824 | EJ48: 0 | EK48: 193.7553456 | EL48: 193.7553456 | EM48: 1550.042765 | EN48: 0 | EO48: 387.5106912 | EP48: 193.7553456 | EQ48: 1356.287419 | ER48: 193.7553456 | ES48: 387.5106912 | ET48: 387.5106912 | EU48: 1743.79811 | EV48: 581.2660368 | EW48: 581.2660368 | EX48: 387.5106912 | EY48: 387.5106912 | EZ48: 387.5106912 | FA48: 0 | FB48: 0 | FC48: 387.5106912 | FD48: 0 | FE48: 0 | FF48: 0 | FG48: 0 | FH48: 0 | FI48: 193.7553456 | FJ48: 193.7553456 | FK48: 0 | FL48: 0 | FM48: 581.2660368 | FN48: 0 | FO48: 0 | FP48: 0 | FQ48: 0 | FR48: 968.776728 | FS48: 193.7553456 | FT48: 0 | FU48: 0 | FV48: 0 | FW48: 0 | FX48: 0 | FY48: 0 | FZ48: 0 | GA48: 0 | GB48: 0 | GC48: 0 | GD48: 0 | GE48: 387.5106912 | GF48: 0 | GG48: 0 | GH48: 0
A49: 5 | B49: TRANSFORMERS | C49: ground outdoor / indoor chamber mounted ; > = 22 kv & < = 33 kv ; > 15 mva and < = 40 mva | D49: 1569.748038 | E49: 60.95794434 | F49: 7.807556874 | G49: 2 | H49: 0 | I49: 0 | J49: 0 | K49: 0 | L49: 0 | M49: 2 | N49: 2 | O49: 0 | P49: 0 | Q49: 0 | R49: 0 | S49: 2 | T49: 0 | U49: 0 | V49: 5 | W49: 0 | X49: 0 | Y49: 0 | Z49: 0 | AA49: 1 | AB49: 2 | AC49: 0 | AD49: 0 | AE49: 0 | AF49: 0 | AG49: 0 | AH49: 0 | AI49: 0 | AJ49: 0 | AK49: 0 | AL49: 0 | AM49: 0 | AN49: 0 | AO49: 2 | AP49: 0 | AQ49: 0 | AR49: 0 | AS49: 0 | AT49: 0 | AU49: 0 | AV49: 0 | AW49: 2 | AX49: 0 | AY49: 0 | AZ49: 0 | BA49: 0 | BB49: 0 | BC49: 0 | BD49: 0 | BE49: 0 | BF49: 0 | BG49: 0 | BH49: 0 | BI49: 0 | BJ49: 0 | BK49: 0 | BL49: 2 | BM49: 0 | BN49: 0 | BO49: 0 | BP49: 0 | BQ49: 0 | BR49: 0 | BS49: 0 | BT49: 0 | BU49: 2 | BV49: 0 | BW49: 0 | BX49: 0 | BY49: 0 | BZ49: 0 | CA49: 0 | CB49: 0 | CC49: 0 | CD49: 0 | CE49: 0 | CF49: 0 | CG49: 0 | CH49: 0 | CI49: 0 | CJ49: 0 | CK49: 0 | CL49: 0 | CM49: 0 | CN49: 0 | CO49: 0 | CP49: 0 | CQ49: 0 | CR49: 0 | CS49: 0 | CT49: 0 | CV49: 0 | CW49: 0 | CX49: 0 | CY49: 0 | CZ49: 0 | DA49: 3139.496076 | DB49: 3139.496076 | DC49: 0 | DD49: 0 | DE49: 0 | DF49: 0 | DG49: 3139.496076 | DH49: 0 | DI49: 0 | DJ49: 7848.74019 | DK49: 0 | DL49: 0 | DM49: 0 | DN49: 0 | DO49: 1569.748038 | DP49: 3139.496076 | DQ49: 0 | DR49: 0 | DS49: 0 | DT49: 0 | DU49: 0 | DV49: 0 | DW49: 0 | DX49: 0 | DY49: 0 | DZ49: 0 | EA49: 0 | EB49: 0 | EC49: 3139.496076 | ED49: 0 | EE49: 0 | EF49: 0 | EG49: 0 | EH49: 0 | EI49: 0 | EJ49: 0 | EK49: 3139.496076 | EL49: 0 | EM49: 0 | EN49: 0 | EO49: 0 | EP49: 0 | EQ49: 0 | ER49: 0 | ES49: 0 | ET49: 0 | EU49: 0 | EV49: 0 | EW49: 0 | EX49: 0 | EY49: 0 | EZ49: 3139.496076 | FA49: 0 | FB49: 0 | FC49: 0 | FD49: 0 | FE49: 0 | FF49: 0 | FG49: 0 | FH49: 0 | FI49: 3139.496076 | FJ49: 0 | FK49: 0 | FL49: 0 | FM49: 0 | FN49: 0 | FO49: 0 | FP49: 0 | FQ49: 0 | FR49: 0 | FS49: 0 | FT49: 0 | FU49: 0 | FV49: 0 | FW49: 0 | FX49: 0 | FY49: 0 | FZ49: 0 | GA49: 0 | GB49: 0 | GC49: 0 | GD49: 0 | GE49: 0 | GF49: 0 | GG49: 0 | GH49: 0
A50: 5 | B50: TRANSFORMERS | C50: ground outdoor / indoor chamber mounted ; > = 22 kv & < = 33 kv ; > 40 mva | D50: 1569.748038 | E50: 60.95794434 | F50: 7.807556874 | G50: 2 | H50: 0 | I50: 0 | J50: 0 | K50: 0 | L50: 0 | M50: 0 | N50: 0 | O50: 0 | P50: 0 | Q50: 0 | R50: 0 | S50: 0 | T50: 0 | U50: 0 | V50: 0 | W50: 0 | X50: 0 | Y50: 0 | Z50: 0 | AA50: 0 | AB50: 0 | AC50: 0 | AD50: 0 | AE50: 0 | AF50: 0 | AG50: 0 | AH50: 0 | AI50: 0 | AJ50: 0 | AK50: 0 | AL50: 0 | AM50: 0 | AN50: 0 | AO50: 0 | AP50: 0 | AQ50: 0 | AR50: 0 | AS50: 0 | AT50: 0 | AU50: 0 | AV50: 0 | AW50: 0 | AX50: 0 | AY50: 0 | AZ50: 0 | BA50: 2 | BB50: 0 | BC50: 0 | BD50: 0 | BE50: 0 | BF50: 0 | BG50: 0 | BH50: 0 | BI50: 0 | BJ50: 0 | BK50: 0 | BL50: 0 | BM50: 0 | BN50: 0 | BO50: 0 | BP50: 0 | BQ50: 0 | BR50: 0 | BS50: 0 | BT50: 0 | BU50: 0 | BV50: 0 | BW50: 0 | BX50: 0 | BY50: 0 | BZ50: 0 | CA50: 0 | CB50: 0 | CC50: 0 | CD50: 0 | CE50: 0 | CF50: 0 | CG50: 0 | CH50: 0 | CI50: 0 | CJ50: 0 | CK50: 0 | CL50: 0 | CM50: 0 | CN50: 0 | CO50: 0 | CP50: 0 | CQ50: 0 | CR50: 0 | CS50: 0 | CT50: 0 | CV50: 0 | CW50: 0 | CX50: 0 | CY50: 0 | CZ50: 0 | DA50: 0 | DB50: 0 | DC50: 0 | DD50: 0 | DE50: 0 | DF50: 0 | DG50: 0 | DH50: 0 | DI50: 0 | DJ50: 0 | DK50: 0 | DL50: 0 | DM50: 0 | DN50: 0 | DO50: 0 | DP50: 0 | DQ50: 0 | DR50: 0 | DS50: 0 | DT50: 0 | DU50: 0 | DV50: 0 | DW50: 0 | DX50: 0 | DY50: 0 | DZ50: 0 | EA50: 0 | EB50: 0 | EC50: 0 | ED50: 0 | EE50: 0 | EF50: 0 | EG50: 0 | EH50: 0 | EI50: 0 | EJ50: 0 | EK50: 0 | EL50: 0 | EM50: 0 | EN50: 0 | EO50: 3139.496076 | EP50: 0 | EQ50: 0 | ER50: 0 | ES50: 0 | ET50: 0 | EU50: 0 | EV50: 0 | EW50: 0 | EX50: 0 | EY50: 0 | EZ50: 0 | FA50: 0 | FB50: 0 | FC50: 0 | FD50: 0 | FE50: 0 | FF50: 0 | FG50: 0 | FH50: 0 | FI50: 0 | FJ50: 0 | FK50: 0 | FL50: 0 | FM50: 0 | FN50: 0 | FO50: 0 | FP50: 0 | FQ50: 0 | FR50: 0 | FS50: 0 | FT50: 0 | FU50: 0 | FV50: 0 | FW50: 0 | FX50: 0 | FY50: 0 | FZ50: 0 | GA50: 0 | GB50: 0 | GC50: 0 | GD50: 0 | GE50: 0 | GF50: 0 | GG50: 0 | GH50: 0
A51: 5 | B51: TRANSFORMERS | C51: ground outdoor / indoor chamber mounted ; > 132 kv ; < = 100 mva | D51: 3651.777698 | E51: 78.07129288 | F51: 8.835796109 | G51: 2 | H51: 0 | I51: 0 | J51: 0 | K51: 0 | L51: 0 | M51: 0 | N51: 0 | O51: 0 | P51: 0 | Q51: 0 | R51: 0 | S51: 0 | T51: 0 | U51: 0 | V51: 0 | W51: 0 | X51: 0 | Y51: 0 | Z51: 0 | AA51: 4 | AB51: 1 | AC51: 2 | AD51: 0 | AE51: 0 | AF51: 0 | AG51: 0 | AH51: 0 | AI51: 0 | AJ51: 0 | AK51: 0 | AL51: 0 | AM51: 0 | AN51: 0 | AO51: 0 | AP51: 0 | AQ51: 0 | AR51: 0 | AS51: 0 | AT51: 0 | AU51: 0 | AV51: 0 | AW51: 0 | AX51: 0 | AY51: 0 | AZ51: 0 | BA51: 0 | BB51: 0 | BC51: 0 | BD51: 0 | BE51: 0 | BF51: 0 | BG51: 0 | BH51: 0 | BI51: 0 | BJ51: 0 | BK51: 0 | BL51: 0 | BM51: 0 | BN51: 0 | BO51: 0 | BP51: 0 | BQ51: 0 | BR51: 0 | BS51: 0 | BT51: 0 | BU51: 0 | BV51: 0 | BW51: 0 | BX51: 0 | BY51: 0 | BZ51: 0 | CA51: 0 | CB51: 0 | CC51: 0 | CD51: 0 | CE51: 0 | CF51: 0 | CG51: 0 | CH51: 0 | CI51: 0 | CJ51: 0 | CK51: 0 | CL51: 0 | CM51: 0 | CN51: 0 | CO51: 0 | CP51: 0 | CQ51: 0 | CR51: 0 | CS51: 0 | CT51: 0 | CV51: 0 | CW51: 0 | CX51: 0 | CY51: 0 | CZ51: 0 | DA51: 0 | DB51: 0 | DC51: 0 | DD51: 0 | DE51: 0 | DF51: 0 | DG51: 0 | DH51: 0 | DI51: 0 | DJ51: 0 | DK51: 0 | DL51: 0 | DM51: 0 | DN51: 0 | DO51: 14607.11079 | DP51: 3651.777698 | DQ51: 7303.555396 | DR51: 0 | DS51: 0 | DT51: 0 | DU51: 0 | DV51: 0 | DW51: 0 | DX51: 0 | DY51: 0 | DZ51: 0 | EA51: 0 | EB51: 0 | EC51: 0 | ED51: 0 | EE51: 0 | EF51: 0 | EG51: 0 | EH51: 0 | EI51: 0 | EJ51: 0 | EK51: 0 | EL51: 0 | EM51: 0 | EN51: 0 | EO51: 0 | EP51: 0 | EQ51: 0 | ER51: 0 | ES51: 0 | ET51: 0 | EU51: 0 | EV51: 0 | EW51: 0 | EX51: 0 | EY51: 0 | EZ51: 0 | FA51: 0 | FB51: 0 | FC51: 0 | FD51: 0 | FE51: 0 | FF51: 0 | FG51: 0 | FH51: 0 | FI51: 0 | FJ51: 0 | FK51: 0 | FL51: 0 | FM51: 0 | FN51: 0 | FO51: 0 | FP51: 0 | FQ51: 0 | FR51: 0 | FS51: 0 | FT51: 0 | FU51: 0 | FV51: 0 | FW51: 0 | FX51: 0 | FY51: 0 | FZ51: 0 | GA51: 0 | GB51: 0 | GC51: 0 | GD51: 0 | GE51: 0 | GF51: 0 | GG51: 0 | GH51: 0
A52: 5 | B52: TRANSFORMERS | C52: ground outdoor / indoor chamber mounted ; > 33 kv & < = 66 kv ; < = 15 mva | D52: 3651.777698 | E52: 78.07129288 | F52: 8.835796109 | G52: 2 | H52: 0 | I52: 1 | J52: 1 | K52: 1 | L52: 1 | M52: 4 | N52: 2 | O52: 2 | P52: 1 | Q52: 5 | R52: 2 | S52: 6 | T52: 2 | U52: 1 | V52: 3 | W52: 3 | X52: 2 | Y52: 3 | Z52: 9 | AA52: 4 | AB52: 5 | AC52: 6 | AD52: 4 | AE52: 3 | AF52: 0 | AG52: 0 | AH52: 5 | AI52: 10 | AJ52: 5 | AK52: 1 | AL52: 3 | AM52: 6 | AN52: 11 | AO52: 8 | AP52: 5 | AQ52: 8 | AR52: 6 | AS52: 5 | AT52: 12 | AU52: 3 | AV52: 0 | AW52: 5 | AX52: 6 | AY52: 4 | AZ52: 1 | BA52: 1 | BB52: 5 | BC52: 3 | BD52: 2 | BE52: 3 | BF52: 2 | BG52: 4 | BH52: 2 | BI52: 3 | BJ52: 5 | BK52: 1 | BL52: 1 | BM52: 0 | BN52: 0 | BO52: 0 | BP52: 2 | BQ52: 3 | BR52: 1 | BS52: 0 | BT52: 1 | BU52: 0 | BV52: 4 | BW52: 0 | BX52: 1 | BY52: 0 | BZ52: 0 | CA52: 0 | CB52: 3 | CC52: 0 | CD52: 0 | CE52: 0 | CF52: 0 | CG52: 0 | CH52: 0 | CI52: 0 | CJ52: 0 | CK52: 0 | CL52: 0 | CM52: 0 | CN52: 0 | CO52: 0 | CP52: 0 | CQ52: 0 | CR52: 0 | CS52: 1 | CT52: 0 | CV52: 0 | CW52: 3651.777698 | CX52: 3651.777698 | CY52: 3651.777698 | CZ52: 3651.777698 | DA52: 14607.11079 | DB52: 7303.555396 | DC52: 7303.555396 | DD52: 3651.777698 | DE52: 18258.88849 | DF52: 7303.555396 | DG52: 21910.66619 | DH52: 7303.555396 | DI52: 3651.777698 | DJ52: 10955.33309 | DK52: 10955.33309 | DL52: 7303.555396 | DM52: 10955.33309 | DN52: 32865.99928 | DO52: 14607.11079 | DP52: 18258.88849 | DQ52: 21910.66619 | DR52: 14607.11079 | DS52: 10955.33309 | DT52: 0 | DU52: 0 | DV52: 18258.88849 | DW52: 36517.77698 | DX52: 18258.88849 | DY52: 3651.777698 | DZ52: 10955.33309 | EA52: 21910.66619 | EB52: 40169.55468 | EC52: 29214.22158 | ED52: 18258.88849 | EE52: 29214.22158 | EF52: 21910.66619 | EG52: 18258.88849 | EH52: 43821.33238 | EI52: 10955.33309 | EJ52: 0 | EK52: 18258.88849 | EL52: 21910.66619 | EM52: 14607.11079 | EN52: 3651.777698 | EO52: 3651.777698 | EP52: 18258.88849 | EQ52: 10955.33309 | ER52: 7303.555396 | ES52: 10955.33309 | ET52: 7303.555396 | EU52: 14607.11079 | EV52: 7303.555396 | EW52: 10955.33309 | EX52: 18258.88849 | EY52: 3651.777698 | EZ52: 3651.777698 | FA52: 0 | FB52: 0 | FC52: 0 | FD52: 7303.555396 | FE52: 10955.33309 | FF52: 3651.777698 | FG52: 0 | FH52: 3651.777698 | FI52: 0 | FJ52: 14607.11079 | FK52: 0 | FL52: 3651.777698 | FM52: 0 | FN52: 0 | FO52: 0 | FP52: 10955.33309 | FQ52: 0 | FR52: 0 | FS52: 0 | FT52: 0 | FU52: 0 | FV52: 0 | FW52: 0 | FX52: 0 | FY52: 0 | FZ52: 0 | GA52: 0 | GB52: 0 | GC52: 0 | GD52: 0 | GE52: 0 | GF52: 0 | GG52: 3651.777698 | GH52: 0
A53: 5 | B53: TRANSFORMERS | C53: ground outdoor / indoor chamber mounted ; > 33 kv & < = 66 kv ; > 15 mva and < = 40 mva | D53: 415.1329248 | E53: 56.38655519 | F53: 7.509098161 | G53: 2 | H53: 0 | I53: 0 | J53: 0 | K53: 0 | L53: 1 | M53: 1 | N53: 0 | O53: 3 | P53: 4 | Q53: 2 | R53: 11 | S53: 6 | T53: 3 | U53: 8 | V53: 2 | W53: 0 | X53: 4 | Y53: 2 | Z53: 3 | AA53: 0 | AB53: 1 | AC53: 1 | AD53: 6 | AE53: 0 | AF53: 1 | AG53: 1 | AH53: 2 | AI53: 1 | AJ53: 1 | AK53: 0 | AL53: 0 | AM53: 2 | AN53: 8 | AO53: 0 | AP53: 2 | AQ53: 4 | AR53: 2 | AS53: 5 | AT53: 1 | AU53: 6 | AV53: 2 | AW53: 1 | AX53: 0 | AY53: 2 | AZ53: 0 | BA53: 0 | BB53: 2 | BC53: 0 | BD53: 1 | BE53: 0 | BF53: 1 | BG53: 0 | BH53: 0 | BI53: 0 | BJ53: 0 | BK53: 0 | BL53: 1 | BM53: 0 | BN53: 0 | BO53: 0 | BP53: 0 | BQ53: 0 | BR53: 0 | BS53: 0 | BT53: 0 | BU53: 0 | BV53: 0 | BW53: 0 | BX53: 0 | BY53: 0 | BZ53: 0 | CA53: 0 | CB53: 0 | CC53: 0 | CD53: 0 | CE53: 0 | CF53: 0 | CG53: 0 | CH53: 0 | CI53: 0 | CJ53: 0 | CK53: 0 | CL53: 0 | CM53: 0 | CN53: 0 | CO53: 0 | CP53: 0 | CQ53: 0 | CR53: 0 | CS53: 0 | CT53: 0 | CV53: 0 | CW53: 0 | CX53: 0 | CY53: 0 | CZ53: 415.1329248 | DA53: 415.1329248 | DB53: 0 | DC53: 1245.398775 | DD53: 1660.531699 | DE53: 830.2658497 | DF53: 4566.462173 | DG53: 2490.797549 | DH53: 1245.398775 | DI53: 3321.063399 | DJ53: 830.2658497 | DK53: 0 | DL53: 1660.531699 | DM53: 830.2658497 | DN53: 1245.398775 | DO53: 0 | DP53: 415.1329248 | DQ53: 415.1329248 | DR53: 2490.797549 | DS53: 0 | DT53: 415.1329248 | DU53: 415.1329248 | DV53: 830.2658497 | DW53: 415.1329248 | DX53: 415.1329248 | DY53: 0 | DZ53: 0 | EA53: 830.2658497 | EB53: 3321.063399 | EC53: 0 | ED53: 830.2658497 | EE53: 1660.531699 | EF53: 830.2658497 | EG53: 2075.664624 | EH53: 415.1329248 | EI53: 2490.797549 | EJ53: 830.2658497 | EK53: 415.1329248 | EL53: 0 | EM53: 830.2658497 | EN53: 0 | EO53: 0 | EP53: 830.2658497 | EQ53: 0 | ER53: 415.1329248 | ES53: 0 | ET53: 415.1329248 | EU53: 0 | EV53: 0 | EW53: 0 | EX53: 0 | EY53: 0 | EZ53: 415.1329248 | FA53: 0 | FB53: 0 | FC53: 0 | FD53: 0 | FE53: 0 | FF53: 0 | FG53: 0 | FH53: 0 | FI53: 0 | FJ53: 0 | FK53: 0 | FL53: 0 | FM53: 0 | FN53: 0 | FO53: 0 | FP53: 0 | FQ53: 0 | FR53: 0 | FS53: 0 | FT53: 0 | FU53: 0 | FV53: 0 | FW53: 0 | FX53: 0 | FY53: 0 | FZ53: 0 | GA53: 0 | GB53: 0 | GC53: 0 | GD53: 0 | GE53: 0 | GF53: 0 | GG53: 0 | GH53: 0
A54: 5 | B54: TRANSFORMERS | C54: ground outdoor / indoor chamber mounted ; > 33 kv & < = 66 kv ; > 40 mva | D54: 3651.777698 | E54: 78.07129288 | F54: 8.835796109 | G54: 2 | H54: 0 | I54: 0 | J54: 0 | K54: 0 | L54: 1 | M54: 0 | N54: 1 | O54: 0 | P54: 0 | Q54: 0 | R54: 0 | S54: 2 | T54: 0 | U54: 0 | V54: 0 | W54: 0 | X54: 0 | Y54: 0 | Z54: 0 | AA54: 0 | AB54: 0 | AC54: 0 | AD54: 0 | AE54: 0 | AF54: 0 | AG54: 0 | AH54: 0 | AI54: 0 | AJ54: 0 | AK54: 0 | AL54: 0 | AM54: 0 | AN54: 0 | AO54: 0 | AP54: 0 | AQ54: 0 | AR54: 0 | AS54: 0 | AT54: 0 | AU54: 0 | AV54: 0 | AW54: 0 | AX54: 0 | AY54: 0 | AZ54: 0 | BA54: 0 | BB54: 0 | BC54: 0 | BD54: 0 | BE54: 0 | BF54: 0 | BG54: 0 | BH54: 0 | BI54: 0 | BJ54: 0 | BK54: 0 | BL54: 0 | BM54: 0 | BN54: 0 | BO54: 0 | BP54: 0 | BQ54: 0 | BR54: 0 | BS54: 0 | BT54: 0 | BU54: 0 | BV54: 0 | BW54: 0 | BX54: 0 | BY54: 0 | BZ54: 0 | CA54: 0 | CB54: 0 | CC54: 0 | CD54: 0 | CE54: 0 | CF54: 0 | CG54: 0 | CH54: 0 | CI54: 0 | CJ54: 0 | CK54: 0 | CL54: 0 | CM54: 0 | CN54: 0 | CO54: 0 | CP54: 0 | CQ54: 0 | CR54: 0 | CS54: 0 | CT54: 0 | CV54: 0 | CW54: 0 | CX54: 0 | CY54: 0 | CZ54: 3651.777698 | DA54: 0 | DB54: 3651.777698 | DC54: 0 | DD54: 0 | DE54: 0 | DF54: 0 | DG54: 7303.555396 | DH54: 0 | DI54: 0 | DJ54: 0 | DK54: 0 | DL54: 0 | DM54: 0 | DN54: 0 | DO54: 0 | DP54: 0 | DQ54: 0 | DR54: 0 | DS54: 0 | DT54: 0 | DU54: 0 | DV54: 0 | DW54: 0 | DX54: 0 | DY54: 0 | DZ54: 0 | EA54: 0 | EB54: 0 | EC54: 0 | ED54: 0 | EE54: 0 | EF54: 0 | EG54: 0 | EH54: 0 | EI54: 0 | EJ54: 0 | EK54: 0 | EL54: 0 | EM54: 0 | EN54: 0 | EO54: 0 | EP54: 0 | EQ54: 0 | ER54: 0 | ES54: 0 | ET54: 0 | EU54: 0 | EV54: 0 | EW54: 0 | EX54: 0 | EY54: 0 | EZ54: 0 | FA54: 0 | FB54: 0 | FC54: 0 | FD54: 0 | FE54: 0 | FF54: 0 | FG54: 0 | FH54: 0 | FI54: 0 | FJ54: 0 | FK54: 0 | FL54: 0 | FM54: 0 | FN54: 0 | FO54: 0 | FP54: 0 | FQ54: 0 | FR54: 0 | FS54: 0 | FT54: 0 | FU54: 0 | FV54: 0 | FW54: 0 | FX54: 0 | FY54: 0 | FZ54: 0 | GA54: 0 | GB54: 0 | GC54: 0 | GD54: 0 | GE54: 0 | GF54: 0 | GG54: 0 | GH54: 0
A55: 5 | B55: TRANSFORMERS | C55: ground outdoor / indoor chamber mounted ; > 66 kv & < = 132 kv ; < = 100 mva | D55: 3651.777698 | E55: 78.07129288 | F55: 8.835796109 | G55: 2 | H55: 0 | I55: 0 | J55: 0 | K55: 1 | L55: 1 | M55: 1 | N55: 6 | O55: 0 | P55: 2 | Q55: 4 | R55: 5 | S55: 6 | T55: 3 | U55: 4 | V55: 3 | W55: 3 | X55: 0 | Y55: 0 | Z55: 2 | AA55: 1 | AB55: 2 | AC55: 3 | AD55: 0 | AE55: 0 | AF55: 0 | AG55: 1 | AH55: 1 | AI55: 3 | AJ55: 0 | AK55: 2 | AL55: 0 | AM55: 0 | AN55: 0 | AO55: 1 | AP55: 3 | AQ55: 1 | AR55: 0 | AS55: 1 | AT55: 0 | AU55: 0 | AV55: 0 | AW55: 0 | AX55: 0 | AY55: 0 | AZ55: 0 | BA55: 0 | BB55: 1 | BC55: 2 | BD55: 0 | BE55: 1 | BF55: 0 | BG55: 3 | BH55: 0 | BI55: 3 | BJ55: 0 | BK55: 1 | BL55: 0 | BM55: 0 | BN55: 0 | BO55: 0 | BP55: 0 | BQ55: 2 | BR55: 0 | BS55: 0 | BT55: 0 | BU55: 3 | BV55: 0 | BW55: 0 | BX55: 0 | BY55: 0 | BZ55: 0 | CA55: 0 | CB55: 0 | CC55: 0 | CD55: 0 | CE55: 0 | CF55: 0 | CG55: 0 | CH55: 0 | CI55: 0 | CJ55: 0 | CK55: 0 | CL55: 0 | CM55: 0 | CN55: 0 | CO55: 0 | CP55: 0 | CQ55: 0 | CR55: 0 | CS55: 0 | CT55: 0 | CV55: 0 | CW55: 0 | CX55: 0 | CY55: 3651.777698 | CZ55: 3651.777698 | DA55: 3651.777698 | DB55: 21910.66619 | DC55: 0 | DD55: 7303.555396 | DE55: 14607.11079 | DF55: 18258.88849 | DG55: 21910.66619 | DH55: 10955.33309 | DI55: 14607.11079 | DJ55: 10955.33309 | DK55: 10955.33309 | DL55: 0 | DM55: 0 | DN55: 7303.555396 | DO55: 3651.777698 | DP55: 7303.555396 | DQ55: 10955.33309 | DR55: 0 | DS55: 0 | DT55: 0 | DU55: 3651.777698 | DV55: 3651.777698 | DW55: 10955.33309 | DX55: 0 | DY55: 7303.555396 | DZ55: 0 | EA55: 0 | EB55: 0 | EC55: 3651.777698 | ED55: 10955.33309 | EE55: 3651.777698 | EF55: 0 | EG55: 3651.777698 | EH55: 0 | EI55: 0 | EJ55: 0 | EK55: 0 | EL55: 0 | EM55: 0 | EN55: 0 | EO55: 0 | EP55: 3651.777698 | EQ55: 7303.555396 | ER55: 0 | ES55: 3651.777698 | ET55: 0 | EU55: 10955.33309 | EV55: 0 | EW55: 10955.33309 | EX55: 0 | EY55: 3651.777698 | EZ55: 0 | FA55: 0 | FB55: 0 | FC55: 0 | FD55: 0 | FE55: 7303.555396 | FF55: 0 | FG55: 0 | FH55: 0 | FI55: 10955.33309 | FJ55: 0 | FK55: 0 | FL55: 0 | FM55: 0 | FN55: 0 | FO55: 0 | FP55: 0 | FQ55: 0 | FR55: 0 | FS55: 0 | FT55: 0 | FU55: 0 | FV55: 0 | FW55: 0 | FX55: 0 | FY55: 0 | FZ55: 0 | GA55: 0 | GB55: 0 | GC55: 0 | GD55: 0 | GE55: 0 | GF55: 0 | GG55: 0 | GH55: 0
A56: 5 | B56: TRANSFORMERS | C56: ground outdoor / indoor chamber mounted ; > 66 kv & < = 132 kv ; > 100 mva | D56: 3651.777698 | E56: 78.07129288 | F56: 8.835796109 | G56: 2 | H56: 0 | I56: 0 | J56: 0 | K56: 0 | L56: 0 | M56: 0 | N56: 0 | O56: 0 | P56: 0 | Q56: 0 | R56: 0 | S56: 0 | T56: 0 | U56: 0 | V56: 1 | W56: 0 | X56: 0 | Y56: 0 | Z56: 0 | AA56: 0 | AB56: 0 | AC56: 0 | AD56: 0 | AE56: 1 | AF56: 0 | AG56: 0 | AH56: 0 | AI56: 0 | AJ56: 0 | AK56: 0 | AL56: 0 | AM56: 0 | AN56: 0 | AO56: 0 | AP56: 0 | AQ56: 0 | AR56: 0 | AS56: 0 | AT56: 0 | AU56: 0 | AV56: 0 | AW56: 0 | AX56: 0 | AY56: 0 | AZ56: 0 | BA56: 0 | BB56: 0 | BC56: 0 | BD56: 0 | BE56: 0 | BF56: 0 | BG56: 0 | BH56: 0 | BI56: 0 | BJ56: 0 | BK56: 0 | BL56: 0 | BM56: 0 | BN56: 0 | BO56: 0 | BP56: 0 | BQ56: 0 | BR56: 0 | BS56: 0 | BT56: 0 | BU56: 0 | BV56: 0 | BW56: 0 | BX56: 0 | BY56: 0 | BZ56: 0 | CA56: 0 | CB56: 0 | CC56: 0 | CD56: 0 | CE56: 0 | CF56: 0 | CG56: 0 | CH56: 0 | CI56: 0 | CJ56: 0 | CK56: 0 | CL56: 0 | CM56: 0 | CN56: 0 | CO56: 0 | CP56: 0 | CQ56: 0 | CR56: 0 | CS56: 0 | CT56: 0 | CV56: 0 | CW56: 0 | CX56: 0 | CY56: 0 | CZ56: 0 | DA56: 0 | DB56: 0 | DC56: 0 | DD56: 0 | DE56: 0 | DF56: 0 | DG56: 0 | DH56: 0 | DI56: 0 | DJ56: 3651.777698 | DK56: 0 | DL56: 0 | DM56: 0 | DN56: 0 | DO56: 0 | DP56: 0 | DQ56: 0 | DR56: 0 | DS56: 3651.777698 | DT56: 0 | DU56: 0 | DV56: 0 | DW56: 0 | DX56: 0 | DY56: 0 | DZ56: 0 | EA56: 0 | EB56: 0 | EC56: 0 | ED56: 0 | EE56: 0 | EF56: 0 | EG56: 0 | EH56: 0 | EI56: 0 | EJ56: 0 | EK56: 0 | EL56: 0 | EM56: 0 | EN56: 0 | EO56: 0 | EP56: 0 | EQ56: 0 | ER56: 0 | ES56: 0 | ET56: 0 | EU56: 0 | EV56: 0 | EW56: 0 | EX56: 0 | EY56: 0 | EZ56: 0 | FA56: 0 | FB56: 0 | FC56: 0 | FD56: 0 | FE56: 0 | FF56: 0 | FG56: 0 | FH56: 0 | FI56: 0 | FJ56: 0 | FK56: 0 | FL56: 0 | FM56: 0 | FN56: 0 | FO56: 0 | FP56: 0 | FQ56: 0 | FR56: 0 | FS56: 0 | FT56: 0 | FU56: 0 | FV56: 0 | FW56: 0 | FX56: 0 | FY56: 0 | FZ56: 0 | GA56: 0 | GB56: 0 | GC56: 0 | GD56: 0 | GE56: 0 | GF56: 0 | GG56: 0 | GH56: 0
A57: 5 | B57: TRANSFORMERS | C57: kiosk mounted ; < = 22 kv ; < = 60 kva ; multiple phase | D57: 223.5854407 | E57: 54.02093715 | F57: 7.349893683 | G57: 2 | H57: 1.005012531 | I57: 3.015037594 | J57: 11.05513784 | K57: 12.06015038 | L57: 7.035087719 | M57: 12.06015038 | N57: 13.06516291 | O57: 12.06015038 | P57: 16.0802005 | Q57: 12.06015038 | R57: 24.12030075 | S57: 18.09022556 | T57: 22.11027569 | U57: 7.035087719 | V57: 10.05012531 | W57: 11.05513784 | X57: 10.05012531 | Y57: 7.035087719 | Z57: 7.035087719 | AA57: 5.025062657 | AB57: 7.035087719 | AC57: 0 | AD57: 6.030075188 | AE57: 5.025062657 | AF57: 2.010025063 | AG57: 2.010025063 | AH57: 5.025062657 | AI57: 6.030075188 | AJ57: 9.045112782 | AK57: 3.015037594 | AL57: 7.035087719 | AM57: 7.035087719 | AN57: 8.040100251 | AO57: 19.0952381 | AP57: 1.005012531 | AQ57: 7.035087719 | AR57: 6.030075188 | AS57: 7.035087719 | AT57: 0 | AU57: 3.015037594 | AV57: 2.010025063 | AW57: 2.010025063 | AX57: 5.025062657 | AY57: 2.010025063 | AZ57: 2.010025063 | BA57: 4.020050125 | BB57: 5.025062657 | BC57: 3.015037594 | BD57: 1.005012531 | BE57: 3.015037594 | BF57: 2.010025063 | BG57: 5.025062657 | BH57: 2.010025063 | BI57: 4.020050125 | BJ57: 3.015037594 | BK57: 2.010025063 | BL57: 3.015037594 | BM57: 2.010025063 | BN57: 4.020050125 | BO57: 3.015037594 | BP57: 0 | BQ57: 2.010025063 | BR57: 1.005012531 | BS57: 1.005012531 | BT57: 1.005012531 | BU57: 0 | BV57: 1.005012531 | BW57: 0 | BX57: 3.015037594 | BY57: 0 | BZ57: 1.005012531 | CA57: 0 | CB57: 0 | CC57: 0 | CD57: 0 | CE57: 0 | CF57: 0 | CG57: 0 | CH57: 0 | CI57: 0 | CJ57: 0 | CK57: 0 | CL57: 0 | CM57: 0 | CN57: 0 | CO57: 0 | CP57: 0 | CQ57: 0 | CR57: 0 | CS57: 0 | CT57: 0 | CV57: 224.7061698 | CW57: 674.1185093 | CX57: 2471.767868 | CY57: 2696.474037 | CZ57: 1572.943188 | DA57: 2696.474037 | DB57: 2921.180207 | DC57: 2696.474037 | DD57: 3595.298716 | DE57: 2696.474037 | DF57: 5392.948075 | DG57: 4044.711056 | DH57: 4943.535735 | DI57: 1572.943188 | DJ57: 2247.061698 | DK57: 2471.767868 | DL57: 2247.061698 | DM57: 1572.943188 | DN57: 1572.943188 | DO57: 1123.530849 | DP57: 1572.943188 | DQ57: 0 | DR57: 1348.237019 | DS57: 1123.530849 | DT57: 449.4123395 | DU57: 449.4123395 | DV57: 1123.530849 | DW57: 1348.237019 | DX57: 2022.355528 | DY57: 674.1185093 | DZ57: 1572.943188 | EA57: 1572.943188 | EB57: 1797.649358 | EC57: 4269.417226 | ED57: 224.7061698 | EE57: 1572.943188 | EF57: 1348.237019 | EG57: 1572.943188 | EH57: 0 | EI57: 674.1185093 | EJ57: 449.4123395 | EK57: 449.4123395 | EL57: 1123.530849 | EM57: 449.4123395 | EN57: 449.4123395 | EO57: 898.8246791 | EP57: 1123.530849 | EQ57: 674.1185093 | ER57: 224.7061698 | ES57: 674.1185093 | ET57: 449.4123395 | EU57: 1123.530849 | EV57: 449.4123395 | EW57: 898.8246791 | EX57: 674.1185093 | EY57: 449.4123395 | EZ57: 674.1185093 | FA57: 449.4123395 | FB57: 898.8246791 | FC57: 674.1185093 | FD57: 0 | FE57: 449.4123395 | FF57: 224.7061698 | FG57: 224.7061698 | FH57: 224.7061698 | FI57: 0 | FJ57: 224.7061698 | FK57: 0 | FL57: 674.1185093 | FM57: 0 | FN57: 224.7061698 | FO57: 0 | FP57: 0 | FQ57: 0 | FR57: 0 | FS57: 0 | FT57: 0 | FU57: 0 | FV57: 0 | FW57: 0 | FX57: 0 | FY57: 0 | FZ57: 0 | GA57: 0 | GB57: 0 | GC57: 0 | GD57: 0 | GE57: 0 | GF57: 0 | GG57: 0 | GH57: 0
A58: 5 | B58: TRANSFORMERS | C58: kiosk mounted ; < = 22 kv ; < = 60 kva ; single phase | D58: 223.5854407 | E58: 54.02093715 | F58: 7.349893683 | G58: 2 | H58: 0 | I58: 1.009708738 | J58: 1.009708738 | K58: 1.009708738 | L58: 0 | M58: 1.009708738 | N58: 1.009708738 | O58: 1.009708738 | P58: 17.16504854 | Q58: 3.029126214 | R58: 2.019417476 | S58: 6.058252427 | T58: 3.029126214 | U58: 2.019417476 | V58: 0 | W58: 3.029126214 | X58: 5.048543689 | Y58: 2.019417476 | Z58: 2.019417476 | AA58: 1.009708738 | AB58: 6.058252427 | AC58: 3.029126214 | AD58: 5.048543689 | AE58: 1.009708738 | AF58: 1.009708738 | AG58: 1.009708738 | AH58: 2.019417476 | AI58: 1.009708738 | AJ58: 6.058252427 | AK58: 3.029126214 | AL58: 3.029126214 | AM58: 1.009708738 | AN58: 0 | AO58: 0 | AP58: 3.029126214 | AQ58: 1.009708738 | AR58: 2.019417476 | AS58: 0 | AT58: 1.009708738 | AU58: 0 | AV58: 2.019417476 | AW58: 1.009708738 | AX58: 1.009708738 | AY58: 1.009708738 | AZ58: 1.009708738 | BA58: 0 | BB58: 1.009708738 | BC58: 1.009708738 | BD58: 0 | BE58: 0 | BF58: 0 | BG58: 1.009708738 | BH58: 0 | BI58: 0 | BJ58: 1.009708738 | BK58: 0 | BL58: 0 | BM58: 0 | BN58: 0 | BO58: 0 | BP58: 0 | BQ58: 0 | BR58: 0 | BS58: 1.009708738 | BT58: 0 | BU58: 0 | BV58: 0 | BW58: 0 | BX58: 0 | BY58: 0 | BZ58: 0 | CA58: 0 | CB58: 0 | CC58: 0 | CD58: 0 | CE58: 0 | CF58: 0 | CG58: 0 | CH58: 0 | CI58: 0 | CJ58: 0 | CK58: 0 | CL58: 0 | CM58: 0 | CN58: 0 | CO58: 0 | CP58: 0 | CQ58: 0 | CR58: 0 | CS58: 0 | CT58: 0 | CV58: 0 | CW58: 225.7561732 | CX58: 225.7561732 | CY58: 225.7561732 | CZ58: 0 | DA58: 225.7561732 | DB58: 225.7561732 | DC58: 225.7561732 | DD58: 3837.854944 | DE58: 677.2685195 | DF58: 451.5123464 | DG58: 1354.537039 | DH58: 677.2685195 | DI58: 451.5123464 | DJ58: 0 | DK58: 677.2685195 | DL58: 1128.780866 | DM58: 451.5123464 | DN58: 451.5123464 | DO58: 225.7561732 | DP58: 1354.537039 | DQ58: 677.2685195 | DR58: 1128.780866 | DS58: 225.7561732 | DT58: 225.7561732 | DU58: 225.7561732 | DV58: 451.5123464 | DW58: 225.7561732 | DX58: 1354.537039 | DY58: 677.2685195 | DZ58: 677.2685195 | EA58: 225.7561732 | EB58: 0 | EC58: 0 | ED58: 677.2685195 | EE58: 225.7561732 | EF58: 451.5123464 | EG58: 0 | EH58: 225.7561732 | EI58: 0 | EJ58: 451.5123464 | EK58: 225.7561732 | EL58: 225.7561732 | EM58: 225.7561732 | EN58: 225.7561732 | EO58: 0 | EP58: 225.7561732 | EQ58: 225.7561732 | ER58: 0 | ES58: 0 | ET58: 0 | EU58: 225.7561732 | EV58: 0 | EW58: 0 | EX58: 225.7561732 | EY58: 0 | EZ58: 0 | FA58: 0 | FB58: 0 | FC58: 0 | FD58: 0 | FE58: 0 | FF58: 0 | FG58: 225.7561732 | FH58: 0 | FI58: 0 | FJ58: 0 | FK58: 0 | FL58: 0 | FM58: 0 | FN58: 0 | FO58: 0 | FP58: 0 | FQ58: 0 | FR58: 0 | FS58: 0 | FT58: 0 | FU58: 0 | FV58: 0 | FW58: 0 | FX58: 0 | FY58: 0 | FZ58: 0 | GA58: 0 | GB58: 0 | GC58: 0 | GD58: 0 | GE58: 0 | GF58: 0 | GG58: 0 | GH58: 0
A59: 5 | B59: TRANSFORMERS | C59: kiosk mounted ; < = 22 kv ; > 60 kva and < = 600 kva ; multiple phase | D59: 223.5854407 | E59: 54.02093715 | F59: 7.349893683 | G59: 2 | H59: 16.01872075 | I59: 84.09828393 | J59: 93.10881435 | K59: 129.150936 | L59: 192.224649 | M59: 255.2983619 | N59: 193.225819 | O59: 220.2574103 | P59: 225.2632605 | Q59: 270.3159126 | R59: 405.473869 | S59: 327.3826053 | T59: 368.4305772 | U59: 342.400156 | V59: 300.351014 | W59: 191.2234789 | X59: 112.1310452 | Y59: 90.10530421 | Z59: 99.11583463 | AA59: 71.08307332 | AB59: 67.07839314 | AC59: 61.07137285 | AD59: 63.07371295 | AE59: 101.1181747 | AF59: 104.1216849 | AG59: 89.10413417 | AH59: 71.08307332 | AI59: 63.07371295 | AJ59: 55.06435257 | AK59: 49.05733229 | AL59: 29.03393136 | AM59: 24.02808112 | AN59: 27.03159126 | AO59: 18.02106084 | AP59: 31.03627145 | AQ59: 28.03276131 | AR59: 42.04914197 | AS59: 43.05031201 | AT59: 19.02223089 | AU59: 10.01170047 | AV59: 16.01872075 | AW59: 5.005850234 | AX59: 13.01521061 | AY59: 10.01170047 | AZ59: 9.010530421 | BA59: 12.01404056 | BB59: 2.002340094 | BC59: 10.01170047 | BD59: 12.01404056 | BE59: 7.008190328 | BF59: 2.002340094 | BG59: 12.01404056 | BH59: 2.002340094 | BI59: 7.008190328 | BJ59: 3.00351014 | BK59: 11.01287051 | BL59: 0 | BM59: 3.00351014 | BN59: 1.001170047 | BO59: 1.001170047 | BP59: 0 | BQ59: 0 | BR59: 0 | BS59: 0 | BT59: 0 | BU59: 0 | BV59: 0 | BW59: 0 | BX59: 0 | BY59: 0 | BZ59: 0 | CA59: 0 | CB59: 4.004680187 | CC59: 0 | CD59: 0 | CE59: 0 | CF59: 0 | CG59: 0 | CH59: 1.001170047 | CI59: 0 | CJ59: 0 | CK59: 0 | CL59: 8.009360374 | CM59: 0 | CN59: 0 | CO59: 0 | CP59: 0 | CQ59: 0 | CR59: 0 | CS59: 0 | CT59: 0 | CV59: 3581.552739 | CW59: 18803.15188 | CX59: 20817.77529 | CY59: 28876.26896 | CZ59: 42978.63287 | DA59: 57080.99677 | DB59: 43202.47991 | DC59: 49246.35016 | DD59: 50365.58539 | DE59: 60438.70247 | DF59: 90658.0537 | DG59: 73197.9841 | DH59: 82375.71299 | DI59: 76555.68979 | DJ59: 67154.11385 | DK59: 42754.78582 | DL59: 25070.86917 | DM59: 20146.23416 | DN59: 22160.85757 | DO59: 15893.14028 | DP59: 14997.75209 | DQ59: 13654.66982 | DR59: 14102.36391 | DS59: 22608.55166 | DT59: 23280.0928 | DU59: 19922.38711 | DV59: 15893.14028 | DW59: 14102.36391 | DX59: 12311.58754 | DY59: 10968.50526 | DZ59: 6491.564339 | EA59: 5372.329108 | EB59: 6043.870247 | EC59: 4029.246831 | ED59: 6939.258431 | EE59: 6267.717293 | EF59: 9401.575939 | EG59: 9625.422986 | EH59: 4253.093877 | EI59: 2238.470462 | EJ59: 3581.552739 | EK59: 1119.235231 | EL59: 2910.0116 | EM59: 2238.470462 | EN59: 2014.623416 | EO59: 2686.164554 | EP59: 447.6940924 | EQ59: 2238.470462 | ER59: 2686.164554 | ES59: 1566.929323 | ET59: 447.6940924 | EU59: 2686.164554 | EV59: 447.6940924 | EW59: 1566.929323 | EX59: 671.5411385 | EY59: 2462.317508 | EZ59: 0 | FA59: 671.5411385 | FB59: 223.8470462 | FC59: 223.8470462 | FD59: 0 | FE59: 0 | FF59: 0 | FG59: 0 | FH59: 0 | FI59: 0 | FJ59: 0 | FK59: 0 | FL59: 0 | FM59: 0 | FN59: 0 | FO59: 0 | FP59: 895.3881847 | FQ59: 0 | FR59: 0 | FS59: 0 | FT59: 0 | FU59: 0 | FV59: 223.8470462 | FW59: 0 | FX59: 0 | FY59: 0 | FZ59: 1790.776369 | GA59: 0 | GB59: 0 | GC59: 0 | GD59: 0 | GE59: 0 | GF59: 0 | GG59: 0 | GH59: 0
A60: 5 | B60: TRANSFORMERS | C60: kiosk mounted ; < = 22 kv ; > 600 kva ; multiple phase | D60: 155.850997 | E60: 55.5882857 | F60: 7.455755207 | G60: 2 | H60: 36.19155697 | I60: 55.83840218 | J60: 68.246936 | K60: 73.41715842 | L60: 69.28098048 | M60: 85.82569224 | N60: 77.55333636 | O60: 92.02995915 | P60: 147.8683613 | Q60: 142.6981389 | R60: 194.4003631 | S60: 162.3449841 | T60: 85.82569224 | U60: 137.5279165 | V60: 98.23422606 | W60: 78.58738084 | X60: 56.87244666 | Y60: 45.49795733 | Z60: 45.49795733 | AA60: 36.19155697 | AB60: 41.36177939 | AC60: 47.5660463 | AD60: 57.90649115 | AE60: 21.71493418 | AF60: 32.05537903 | AG60: 5.170222424 | AH60: 10.34044485 | AI60: 16.54471176 | AJ60: 16.54471176 | AK60: 31.02133454 | AL60: 4.136177939 | AM60: 17.57875624 | AN60: 16.54471176 | AO60: 20.6808897 | AP60: 14.47662279 | AQ60: 11.37448933 | AR60: 7.238311394 | AS60: 10.34044485 | AT60: 4.136177939 | AU60: 5.170222424 | AV60: 20.6808897 | AW60: 10.34044485 | AX60: 5.170222424 | AY60: 6.204266909 | AZ60: 0 | BA60: 7.238311394 | BB60: 2.06808897 | BC60: 3.102133454 | BD60: 1.034044485 | BE60: 2.06808897 | BF60: 4.136177939 | BG60: 11.37448933 | BH60: 2.06808897 | BI60: 4.136177939 | BJ60: 3.102133454 | BK60: 3.102133454 | BL60: 0 | BM60: 0 | BN60: 2.06808897 | BO60: 0 | BP60: 0 | BQ60: 3.102133454 | BR60: 0 | BS60: 0 | BT60: 0 | BU60: 0 | BV60: 0 | BW60: 0 | BX60: 3.102133454 | BY60: 0 | BZ60: 0 | CA60: 0 | CB60: 1.034044485 | CC60: 0 | CD60: 0 | CE60: 0 | CF60: 0 | CG60: 1.034044485 | CH60: 0 | CI60: 0 | CJ60: 0 | CK60: 0 | CL60: 0 | CM60: 0 | CN60: 0 | CO60: 0 | CP60: 0 | CQ60: 0 | CR60: 0 | CS60: 0 | CT60: 0 | CV60: 5640.490235 | CW60: 8702.470649 | CX60: 10636.35302 | CY60: 11442.13733 | CZ60: 10797.50988 | DA60: 13376.0197 | DB60: 12086.76479 | DC60: 14342.96088 | DD60: 23045.43153 | DE60: 22239.64721 | DF60: 30297.49041 | DG60: 25301.62763 | DH60: 13376.0197 | DI60: 21433.86289 | DJ60: 15309.90207 | DK60: 12247.92165 | DL60: 8863.627513 | DM60: 7090.90201 | DN60: 7090.90201 | DO60: 5640.490235 | DP60: 6446.274555 | DQ60: 7413.215738 | DR60: 9024.784376 | DS60: 3384.294141 | DT60: 4995.86278 | DU60: 805.7843193 | DV60: 1611.568639 | DW60: 2578.509822 | DX60: 2578.509822 | DY60: 4834.705916 | DZ60: 644.6274555 | EA60: 2739.666686 | EB60: 2578.509822 | EC60: 3223.137277 | ED60: 2256.196094 | EE60: 1772.725503 | EF60: 1128.098047 | EG60: 1611.568639 | EH60: 644.6274555 | EI60: 805.7843193 | EJ60: 3223.137277 | EK60: 1611.568639 | EL60: 805.7843193 | EM60: 966.9411832 | EN60: 0 | EO60: 1128.098047 | EP60: 322.3137277 | EQ60: 483.4705916 | ER60: 161.1568639 | ES60: 322.3137277 | ET60: 644.6274555 | EU60: 1772.725503 | EV60: 322.3137277 | EW60: 644.6274555 | EX60: 483.4705916 | EY60: 483.4705916 | EZ60: 0 | FA60: 0 | FB60: 322.3137277 | FC60: 0 | FD60: 0 | FE60: 483.4705916 | FF60: 0 | FG60: 0 | FH60: 0 | FI60: 0 | FJ60: 0 | FK60: 0 | FL60: 483.4705916 | FM60: 0 | FN60: 0 | FO60: 0 | FP60: 161.1568639 | FQ60: 0 | FR60: 0 | FS60: 0 | FT60: 0 | FU60: 161.1568639 | FV60: 0 | FW60: 0 | FX60: 0 | FY60: 0 | FZ60: 0 | GA60: 0 | GB60: 0 | GC60: 0 | GD60: 0 | GE60: 0 | GF60: 0 | GG60: 0 | GH60: 0
A61: 5 | B61: TRANSFORMERS | C61: kiosk mounted ; < = 22 kv ; > 600 kva ; single phase | D61: 155.850997 | E61: 55.5882857 | F61: 7.455755207 | G61: 2 | H61: 0 | I61: 0 | J61: 0 | K61: 1 | L61: 0 | M61: 0 | N61: 0 | O61: 0 | P61: 0 | Q61: 0 | R61: 0 | S61: 1 | T61: 0 | U61: 0 | V61: 0 | W61: 0 | X61: 0 | Y61: 0 | Z61: 1 | AA61: 0 | AB61: 0 | AC61: 0 | AD61: 0 | AE61: 0 | AF61: 0 | AG61: 0 | AH61: 0 | AI61: 0 | AJ61: 0 | AK61: 0 | AL61: 0 | AM61: 0 | AN61: 0 | AO61: 0 | AP61: 0 | AQ61: 0 | AR61: 0 | AS61: 0 | AT61: 0 | AU61: 0 | AV61: 0 | AW61: 1 | AX61: 1 | AY61: 0 | AZ61: 0 | BA61: 0 | BB61: 0 | BC61: 0 | BD61: 0 | BE61: 0 | BF61: 0 | BG61: 0 | BH61: 0 | BI61: 0 | BJ61: 0 | BK61: 0 | BL61: 0 | BM61: 0 | BN61: 0 | BO61: 0 | BP61: 0 | BQ61: 0 | BR61: 0 | BS61: 0 | BT61: 0 | BU61: 0 | BV61: 0 | BW61: 0 | BX61: 0 | BY61: 0 | BZ61: 0 | CA61: 0 | CB61: 0 | CC61: 0 | CD61: 0 | CE61: 0 | CF61: 0 | CG61: 0 | CH61: 0 | CI61: 0 | CJ61: 0 | CK61: 0 | CL61: 0 | CM61: 0 | CN61: 0 | CO61: 0 | CP61: 0 | CQ61: 0 | CR61: 0 | CS61: 0 | CT61: 0 | CV61: 0 | CW61: 0 | CX61: 0 | CY61: 155.850997 | CZ61: 0 | DA61: 0 | DB61: 0 | DC61: 0 | DD61: 0 | DE61: 0 | DF61: 0 | DG61: 155.850997 | DH61: 0 | DI61: 0 | DJ61: 0 | DK61: 0 | DL61: 0 | DM61: 0 | DN61: 155.850997 | DO61: 0 | DP61: 0 | DQ61: 0 | DR61: 0 | DS61: 0 | DT61: 0 | DU61: 0 | DV61: 0 | DW61: 0 | DX61: 0 | DY61: 0 | DZ61: 0 | EA61: 0 | EB61: 0 | EC61: 0 | ED61: 0 | EE61: 0 | EF61: 0 | EG61: 0 | EH61: 0 | EI61: 0 | EJ61: 0 | EK61: 155.850997 | EL61: 155.850997 | EM61: 0 | EN61: 0 | EO61: 0 | EP61: 0 | EQ61: 0 | ER61: 0 | ES61: 0 | ET61: 0 | EU61: 0 | EV61: 0 | EW61: 0 | EX61: 0 | EY61: 0 | EZ61: 0 | FA61: 0 | FB61: 0 | FC61: 0 | FD61: 0 | FE61: 0 | FF61: 0 | FG61: 0 | FH61: 0 | FI61: 0 | FJ61: 0 | FK61: 0 | FL61: 0 | FM61: 0 | FN61: 0 | FO61: 0 | FP61: 0 | FQ61: 0 | FR61: 0 | FS61: 0 | FT61: 0 | FU61: 0 | FV61: 0 | FW61: 0 | FX61: 0 | FY61: 0 | FZ61: 0 | GA61: 0 | GB61: 0 | GC61: 0 | GD61: 0 | GE61: 0 | GF61: 0 | GG61: 0 | GH61: 0
A62: 5 | B62: TRANSFORMERS | C62: pole mounted ; < = 22 kv ; < = 60 kva ; multiple phase | D62: 18.67147876 | E62: 54.87140725 | F62: 7.407523692 | G62: 2 | H62: 160.0360293 | I62: 274.0617001 | J62: 374.0842184 | K62: 505.1137174 | L62: 422.0950272 | M62: 337.0758867 | N62: 365.0821918 | O62: 441.0993057 | P62: 1228.276525 | Q62: 551.1240758 | R62: 527.1186714 | S62: 333.0749859 | T62: 309.0695815 | U62: 333.0749859 | V62: 320.0720585 | W62: 372.0837681 | X62: 488.1098893 | Y62: 500.1125915 | Z62: 522.1175455 | AA62: 471.1060612 | AB62: 621.1398386 | AC62: 589.1326328 | AD62: 772.1738412 | AE62: 817.1839745 | AF62: 866.1950084 | AG62: 750.1688872 | AH62: 719.1619065 | AI62: 733.1650591 | AJ62: 778.1751923 | AK62: 609.1371364 | AL62: 463.1042597 | AM62: 502.1130418 | AN62: 612.137812 | AO62: 602.1355601 | AP62: 648.1459186 | AQ62: 594.1337587 | AR62: 718.1616814 | AS62: 632.1423156 | AT62: 604.1360105 | AU62: 389.0875962 | AV62: 432.097279 | AW62: 383.0862451 | AX62: 326.0734096 | AY62: 273.0614749 | AZ62: 302.0680053 | BA62: 241.0542691 | BB62: 327.0736348 | BC62: 245.0551698 | BD62: 330.0743104 | BE62: 281.0632764 | BF62: 268.060349 | BG62: 272.0612498 | BH62: 267.0601239 | BI62: 360.0810659 | BJ62: 235.052918 | BK62: 106.0238694 | BL62: 22.00495403 | BM62: 24.00540439 | BN62: 16.00360293 | BO62: 18.00405329 | BP62: 13.00292738 | BQ62: 5.001125915 | BR62: 3.000675549 | BS62: 33.00743104 | BT62: 1.000225183 | BU62: 0 | BV62: 2.000450366 | BW62: 1.000225183 | BX62: 3.000675549 | BY62: 0 | BZ62: 2.000450366 | CA62: 0 | CB62: 2.000450366 | CC62: 0 | CD62: 0 | CE62: 0 | CF62: 1.000225183 | CG62: 0 | CH62: 0 | CI62: 0 | CJ62: 0 | CK62: 0 | CL62: 1.000225183 | CM62: 0 | CN62: 0 | CO62: 0 | CP62: 0 | CQ62: 0 | CR62: 0 | CS62: 0 | CT62: 0 | CV62: 2988.109321 | CW62: 5117.137212 | CX62: 6984.705538 | CY62: 9431.220044 | CZ62: 7881.138334 | DA62: 6293.705257 | DB62: 6816.624388 | DC62: 8235.976316 | DD62: 22933.73904 | DE62: 10290.30147 | DF62: 9842.085076 | DG62: 6219.002524 | DH62: 5770.786126 | DI62: 6219.002524 | DJ62: 5976.218642 | DK62: 6947.354171 | DL62: 9113.733429 | DM62: 9337.841628 | DN62: 9748.706659 | DO62: 8796.246813 | DP62: 11597.5993 | DQ62: 10999.97744 | DR62: 14417.62747 | DS62: 15258.03322 | DT62: 16173.1417 | DU62: 14006.76244 | DV62: 13427.81626 | DW62: 13689.27583 | DX62: 14529.68157 | DY62: 11373.4911 | DZ62: 8646.841347 | EA62: 9375.192994 | EB62: 11429.51815 | EC62: 11242.76132 | ED62: 12101.84275 | EE62: 11093.35585 | EF62: 13409.14058 | EG62: 11803.03182 | EH62: 11280.11269 | EI62: 7264.840786 | EJ62: 8067.895166 | EK62: 7152.786687 | EL62: 6088.272741 | EM62: 5098.461529 | EN62: 5640.056343 | EO62: 4500.839665 | EP62: 6106.948425 | EQ62: 4575.542398 | ER62: 6162.975474 | ES62: 5247.866995 | ET62: 5005.083112 | EU62: 5079.785845 | EV62: 4986.407429 | EW62: 6723.245972 | EX62: 4388.785565 | EY62: 1979.622425 | EZ62: 410.8650316 | FA62: 448.2163981 | FB62: 298.8109321 | FC62: 336.1622986 | FD62: 242.7838823 | FE62: 93.37841628 | FF62: 56.02704977 | FG62: 616.2975474 | FH62: 18.67568326 | FI62: 0 | FJ62: 37.35136651 | FK62: 18.67568326 | FL62: 56.02704977 | FM62: 0 | FN62: 37.35136651 | FO62: 0 | FP62: 37.35136651 | FQ62: 0 | FR62: 0 | FS62: 0 | FT62: 18.67568326 | FU62: 0 | FV62: 0 | FW62: 0 | FX62: 0 | FY62: 0 | FZ62: 18.67568326 | GA62: 0 | GB62: 0 | GC62: 0 | GD62: 0 | GE62: 0 | GF62: 0 | GG62: 0 | GH62: 0
A63: 5 | B63: TRANSFORMERS | C63: pole mounted ; < = 22 kv ; < = 60 kva ; single phase | D63: 11.54899852 | E63: 48.36601506 | F63: 6.954567927 | G63: 2 | H63: 337.9719426 | I63: 719.196247 | J63: 814.7537903 | K63: 1137.6377 | L63: 1065.215141 | M63: 852.9768076 | N63: 895.2233005 | O63: 1007.880615 | P63: 1425.316199 | Q63: 1846.775258 | R63: 1534.955906 | S63: 1082.314912 | T63: 1078.291436 | U63: 1009.892352 | V63: 933.4463178 | W63: 671.9204098 | X63: 677.9556231 | Y63: 677.9556231 | Z63: 605.5330639 | AA63: 654.8206389 | AB63: 553.2278823 | AC63: 583.4039486 | AD63: 700.0847383 | AE63: 842.9181189 | AF63: 721.2079848 | AG63: 657.8382455 | AH63: 693.0436562 | AI63: 716.1786404 | AJ63: 783.5718551 | AK63: 817.7713969 | AL63: 689.0201807 | AM63: 823.8066102 | AN63: 744.3429689 | AO63: 828.8359546 | AP63: 825.818348 | AQ63: 689.0201807 | AR63: 943.5050066 | AS63: 895.2233005 | AT63: 683.9908363 | AU63: 452.6409946 | AV63: 367.1421401 | AW63: 404.3592885 | AX63: 312.8252207 | AY63: 407.3768952 | AZ63: 501.9285696 | BA63: 298.7430564 | BB63: 330.9308605 | BC63: 330.9308605 | BD63: 364.1245335 | BE63: 286.6726299 | BF63: 255.4906947 | BG63: 217.2676774 | BH63: 191.1150866 | BI63: 664.8793277 | BJ63: 250.4613504 | BK63: 119.6983964 | BL63: 28.16432855 | BM63: 11.06455765 | BN63: 12.07042652 | BO63: 14.08216428 | BP63: 5.029344385 | BQ63: 1.005868877 | BR63: 1.005868877 | BS63: 20.11737754 | BT63: 1.005868877 | BU63: 0 | BV63: 1.005868877 | BW63: 1.005868877 | BX63: 0 | BY63: 0 | BZ63: 0 | CA63: 0 | CB63: 2.011737754 | CC63: 0 | CD63: 0 | CE63: 0 | CF63: 0 | CG63: 0 | CH63: 0 | CI63: 0 | CJ63: 0 | CK63: 0 | CL63: 0 | CM63: 0 | CN63: 0 | CO63: 0 | CP63: 0 | CQ63: 0 | CR63: 0 | CS63: 0 | CT63: 0 | CV63: 3903.237465 | CW63: 8305.996391 | CX63: 9409.590318 | CY63: 13138.57611 | CZ63: 12302.16808 | DA63: 9851.027888 | DB63: 10338.93257 | DC63: 11640.01173 | DD63: 16460.97467 | DE63: 21328.40472 | DF63: 17727.20349 | DG63: 12499.65331 | DH63: 12453.1862 | DI63: 11663.24528 | DJ63: 10780.37014 | DK63: 7760.007817 | DL63: 7829.708486 | DM63: 7829.708486 | DN63: 6993.300458 | DO63: 7562.522589 | DP63: 6389.227993 | DQ63: 6737.731338 | DR63: 8085.277606 | DS63: 9734.860106 | DT63: 8329.229948 | DU63: 7597.372923 | DV63: 8003.960159 | DW63: 8271.146057 | DX63: 9049.470194 | DY63: 9444.440652 | DZ63: 7957.493046 | EA63: 9514.141321 | EB63: 8596.415846 | EC63: 9572.225212 | ED63: 9537.374877 | EE63: 7957.493046 | EF63: 10896.53792 | EG63: 10338.93257 | EH63: 7899.409155 | EI63: 5227.550176 | EJ63: 4240.124032 | EK63: 4669.944824 | EL63: 3612.818011 | EM63: 4704.795159 | EN63: 5796.772307 | EO63: 3450.183116 | EP63: 3821.920018 | EQ63: 3821.920018 | ER63: 4205.273697 | ES63: 3310.781778 | ET63: 2950.661655 | EU63: 2509.224085 | EV63: 2207.187852 | EW63: 7678.69037 | EX63: 2892.577764 | EY63: 1382.396602 | EZ63: 325.2697888 | FA63: 127.7845599 | FB63: 139.401338 | FC63: 162.6348944 | FD63: 58.08389085 | FE63: 11.61677817 | FF63: 11.61677817 | FG63: 232.3355634 | FH63: 11.61677817 | FI63: 0 | FJ63: 11.61677817 | FK63: 11.61677817 | FL63: 0 | FM63: 0 | FN63: 0 | FO63: 0 | FP63: 23.23355634 | FQ63: 0 | FR63: 0 | FS63: 0 | FT63: 0 | FU63: 0 | FV63: 0 | FW63: 0 | FX63: 0 | FY63: 0 | FZ63: 0 | GA63: 0 | GB63: 0 | GC63: 0 | GD63: 0 | GE63: 0 | GF63: 0 | GG63: 0 | GH63: 0
A64: 5 | B64: TRANSFORMERS | C64: pole mounted ; < = 22 kv ; > 60 kva and < = 600 kva ; multiple phase | D64: 32.17490451 | E64: 47.67910241 | F64: 6.905005605 | G64: 2 | H64: 205 | I64: 704 | J64: 783 | K64: 1052 | L64: 928 | M64: 907 | N64: 778 | O64: 805 | P64: 1452 | Q64: 1691 | R64: 1485 | S64: 838 | T64: 733 | U64: 662 | V64: 535 | W64: 464 | X64: 478 | Y64: 400 | Z64: 450 | AA64: 413 | AB64: 492 | AC64: 506 | AD64: 477 | AE64: 542 | AF64: 469 | AG64: 312 | AH64: 334 | AI64: 342 | AJ64: 383 | AK64: 290 | AL64: 253 | AM64: 221 | AN64: 289 | AO64: 342 | AP64: 284 | AQ64: 271 | AR64: 381 | AS64: 384 | AT64: 342 | AU64: 188 | AV64: 204 | AW64: 240 | AX64: 212 | AY64: 198 | AZ64: 186 | BA64: 148 | BB64: 152 | BC64: 139 | BD64: 159 | BE64: 137 | BF64: 113 | BG64: 96 | BH64: 115 | BI64: 264 | BJ64: 78 | BK64: 43 | BL64: 9 | BM64: 11 | BN64: 20 | BO64: 11 | BP64: 17 | BQ64: 8 | BR64: 2 | BS64: 106 | BT64: 2 | BU64: 4 | BV64: 2 | BW64: 3 | BX64: 1 | BY64: 4 | BZ64: 1 | CA64: 2 | CB64: 6 | CC64: 0 | CD64: 0 | CE64: 1 | CF64: 0 | CG64: 1 | CH64: 2 | CI64: 0 | CJ64: 0 | CK64: 0 | CL64: 0 | CM64: 1 | CN64: 0 | CO64: 0 | CP64: 0 | CQ64: 0 | CR64: 0 | CS64: 0 | CT64: 0 | CV64: 6595.855424 | CW64: 22651.13277 | CX64: 25192.95023 | CY64: 33847.99954 | CZ64: 29858.31138 | DA64: 29182.63839 | DB64: 25032.07571 | DC64: 25900.79813 | DD64: 46717.96134 | DE64: 54407.76352 | DF64: 47779.73319 | DG64: 26962.56998 | DH64: 23584.205 | DI64: 21299.78678 | DJ64: 17213.57391 | DK64: 14929.15569 | DL64: 15379.60435 | DM64: 12869.9618 | DN64: 14478.70703 | DO64: 13288.23556 | DP64: 15830.05302 | DQ64: 16280.50168 | DR64: 15347.42945 | DS64: 17438.79824 | DT64: 15090.03021 | DU64: 10038.57021 | DV64: 10746.4181 | DW64: 11003.81734 | DX64: 12322.98843 | DY64: 9330.722307 | DZ64: 8140.25084 | EA64: 7110.653896 | EB64: 9298.547402 | EC64: 11003.81734 | ED64: 9137.67288 | EE64: 8719.399121 | EF64: 12258.63862 | EG64: 12355.16333 | EH64: 11003.81734 | EI64: 6048.882047 | EJ64: 6563.680519 | EK64: 7721.977081 | EL64: 6821.079755 | EM64: 6370.631092 | EN64: 5984.532238 | EO64: 4761.885867 | EP64: 4890.585485 | EQ64: 4472.311726 | ER64: 5115.809816 | ES64: 4407.961917 | ET64: 3635.764209 | EU64: 3088.790833 | EV64: 3700.114018 | EW64: 8494.174789 | EX64: 2509.642551 | EY64: 1383.520894 | EZ64: 289.5741405 | FA64: 353.9239496 | FB64: 643.4980901 | FC64: 353.9239496 | FD64: 546.9733766 | FE64: 257.399236 | FF64: 64.34980901 | FG64: 3410.539878 | FH64: 64.34980901 | FI64: 128.699618 | FJ64: 64.34980901 | FK64: 96.52471352 | FL64: 32.17490451 | FM64: 128.699618 | FN64: 32.17490451 | FO64: 64.34980901 | FP64: 193.049427 | FQ64: 0 | FR64: 0 | FS64: 32.17490451 | FT64: 0 | FU64: 32.17490451 | FV64: 64.34980901 | FW64: 0 | FX64: 0 | FY64: 0 | FZ64: 0 | GA64: 32.17490451 | GB64: 0 | GC64: 0 | GD64: 0 | GE64: 0 | GF64: 0 | GG64: 0 | GH64: 0
A65: 5 | B65: TRANSFORMERS | C65: pole mounted ; < = 22 kv ; > 60 kva and < = 600 kva ; single phase | D65: 59.28087041 | E65: 41.22566183 | F65: 6.420721286 | G65: 2 | H65: 12 | I65: 24 | J65: 26 | K65: 30 | L65: 29 | M65: 26 | N65: 18 | O65: 17 | P65: 19 | Q65: 80 | R65: 55 | S65: 47 | T65: 26 | U65: 17 | V65: 15 | W65: 10 | X65: 10 | Y65: 8 | Z65: 13 | AA65: 9 | AB65: 8 | AC65: 6 | AD65: 3 | AE65: 14 | AF65: 6 | AG65: 6 | AH65: 14 | AI65: 12 | AJ65: 10 | AK65: 8 | AL65: 12 | AM65: 20 | AN65: 21 | AO65: 11 | AP65: 9 | AQ65: 17 | AR65: 15 | AS65: 9 | AT65: 3 | AU65: 2 | AV65: 8 | AW65: 1 | AX65: 0 | AY65: 4 | AZ65: 7 | BA65: 3 | BB65: 7 | BC65: 2 | BD65: 4 | BE65: 3 | BF65: 0 | BG65: 2 | BH65: 0 | BI65: 2 | BJ65: 4 | BK65: 2 | BL65: 1 | BM65: 0 | BN65: 1 | BO65: 0 | BP65: 0 | BQ65: 0 | BR65: 0 | BS65: 1 | BT65: 0 | BU65: 0 | BV65: 0 | BW65: 0 | BX65: 0 | BY65: 0 | BZ65: 0 | CA65: 0 | CB65: 0 | CC65: 0 | CD65: 0 | CE65: 0 | CF65: 0 | CG65: 0 | CH65: 0 | CI65: 0 | CJ65: 0 | CK65: 0 | CL65: 0 | CM65: 0 | CN65: 0 | CO65: 0 | CP65: 0 | CQ65: 0 | CR65: 0 | CS65: 0 | CT65: 0 | CV65: 711.3704449 | CW65: 1422.74089 | CX65: 1541.302631 | CY65: 1778.426112 | CZ65: 1719.145242 | DA65: 1541.302631 | DB65: 1067.055667 | DC65: 1007.774797 | DD65: 1126.336538 | DE65: 4742.469633 | DF65: 3260.447872 | DG65: 2786.200909 | DH65: 1541.302631 | DI65: 1007.774797 | DJ65: 889.2130561 | DK65: 592.8087041 | DL65: 592.8087041 | DM65: 474.2469633 | DN65: 770.6513153 | DO65: 533.5278337 | DP65: 474.2469633 | DQ65: 355.6852225 | DR65: 177.8426112 | DS65: 829.9321857 | DT65: 355.6852225 | DU65: 355.6852225 | DV65: 829.9321857 | DW65: 711.3704449 | DX65: 592.8087041 | DY65: 474.2469633 | DZ65: 711.3704449 | EA65: 1185.617408 | EB65: 1244.898279 | EC65: 652.0895745 | ED65: 533.5278337 | EE65: 1007.774797 | EF65: 889.2130561 | EG65: 533.5278337 | EH65: 177.8426112 | EI65: 118.5617408 | EJ65: 474.2469633 | EK65: 59.28087041 | EL65: 0 | EM65: 237.1234816 | EN65: 414.9660929 | EO65: 177.8426112 | EP65: 414.9660929 | EQ65: 118.5617408 | ER65: 237.1234816 | ES65: 177.8426112 | ET65: 0 | EU65: 118.5617408 | EV65: 0 | EW65: 118.5617408 | EX65: 237.1234816 | EY65: 118.5617408 | EZ65: 59.28087041 | FA65: 0 | FB65: 59.28087041 | FC65: 0 | FD65: 0 | FE65: 0 | FF65: 0 | FG65: 59.28087041 | FH65: 0 | FI65: 0 | FJ65: 0 | FK65: 0 | FL65: 0 | FM65: 0 | FN65: 0 | FO65: 0 | FP65: 0 | FQ65: 0 | FR65: 0 | FS65: 0 | FT65: 0 | FU65: 0 | FV65: 0 | FW65: 0 | FX65: 0 | FY65: 0 | FZ65: 0 | GA65: 0 | GB65: 0 | GC65: 0 | GD65: 0 | GE65: 0 | GF65: 0 | GG65: 0 | GH65: 0
A66: 5 | B66: TRANSFORMERS | C66: pole mounted ; < = 22 kv ; > 600 kva ; multiple phase | D66: 46.44177439 | E66: 21.79176359 | F66: 4.668164906 | G66: 2 | H66: 108.2419716 | I66: 108.2419716 | J66: 72.16131441 | K66: 75.16803585 | L66: 75.16803585 | M66: 84.18820015 | N66: 63.14115011 | O66: 82.18371919 | P66: 70.15683346 | Q66: 66.14787155 | R66: 70.15683346 | S66: 75.16803585 | T66: 95.21284541 | U66: 49.10978342 | V66: 52.11650485 | W66: 23.05153099 | X66: 39.08737864 | Y66: 18.0403286 | Z66: 6.013442868 | AA66: 11.02464526 | AB66: 33.07393577 | AC66: 14.03136669 | AD66: 7.015683346 | AE66: 10.02240478 | AF66: 4.008961912 | AG66: 1.002240478 | AH66: 1.002240478 | AI66: 1.002240478 | AJ66: 2.004480956 | AK66: 0 | AL66: 0 | AM66: 3.006721434 | AN66: 0 | AO66: 3.006721434 | AP66: 3.006721434 | AQ66: 3.006721434 | AR66: 4.008961912 | AS66: 3.006721434 | AT66: 1.002240478 | AU66: 0 | AV66: 0 | AW66: 0 | AX66: 0 | AY66: 1.002240478 | AZ66: 0 | BA66: 0 | BB66: 1.002240478 | BC66: 2.004480956 | BD66: 0 | BE66: 0 | BF66: 1.002240478 | BG66: 0 | BH66: 0 | BI66: 0 | BJ66: 0 | BK66: 0 | BL66: 0 | BM66: 0 | BN66: 0 | BO66: 0 | BP66: 0 | BQ66: 0 | BR66: 0 | BS66: 0 | BT66: 0 | BU66: 0 | BV66: 0 | BW66: 0 | BX66: 0 | BY66: 0 | BZ66: 0 | CA66: 0 | CB66: 0 | CC66: 0 | CD66: 0 | CE66: 0 | CF66: 0 | CG66: 0 | CH66: 0 | CI66: 0 | CJ66: 0 | CK66: 0 | CL66: 0 | CM66: 0 | CN66: 0 | CO66: 0 | CP66: 0 | CQ66: 0 | CR66: 0 | CS66: 0 | CT66: 0 | CV66: =IFERROR($D66*H66,"") -> 5026.949226 | CW66: =IFERROR($D66*I66,"") -> 5026.949226 | CX66: =IFERROR($D66*J66,"") -> 3351.299484 | CY66: =IFERROR($D66*K66,"") -> 3490.936962 | CZ66: =IFERROR($D66*L66,"") -> 3490.936962 | DA66: =IFERROR($D66*M66,"") -> 3909.849398 | DB66: =IFERROR($D66*N66,"") -> 2932.387048 | DC66: =IFERROR($D66*O66,"") -> 3816.757745 | DD66: =IFERROR($D66*P66,"") -> 3258.207831 | DE66: =IFERROR($D66*Q66,"") -> 3072.024527 | DF66: =IFERROR($D66*R66,"") -> 3258.207831 | DG66: =IFERROR($D66*S66,"") -> 3490.936962 | DH66: =IFERROR($D66*T66,"") -> 4421.853485 | DI66: =IFERROR($D66*U66,"") -> 2280.745482 | DJ66: =IFERROR($D66*V66,"") -> 2420.38296 | DK66: =IFERROR($D66*W66,"") -> 1070.554002 | DL66: =IFERROR($D66*X66,"") -> 1815.28722 | DM66: =IFERROR($D66*Y66,"") -> 837.8248709 | DN66: =IFERROR($D66*Z66,"") -> 279.274957 | DO66: =IFERROR($D66*AA66,"") -> 512.0040878 | DP66: =IFERROR($D66*AB66,"") -> 1536.012263 | DQ66: =IFERROR($D66*AC66,"") -> 651.6415663 | DR66: =IFERROR($D66*AD66,"") -> 325.8207831 | DS66: =IFERROR($D66*AE66,"") -> 465.4582616 | DT66: =IFERROR($D66*AF66,"") -> 186.1833047 | DU66: =IFERROR($D66*AG66,"") -> 46.54582616 | DV66: =IFERROR($D66*AH66,"") -> 46.54582616 | DW66: =IFERROR($D66*AI66,"") -> 46.54582616 | DX66: =IFERROR($D66*AJ66,"") -> 93.09165233 | DY66: =IFERROR($D66*AK66,"") -> 0 | DZ66: =IFERROR($D66*AL66,"") -> 0 | EA66: =IFERROR($D66*AM66,"") -> 139.6374785 | EB66: =IFERROR($D66*AN66,"") -> 0 | EC66: =IFERROR($D66*AO66,"") -> 139.6374785 | ED66: =IFERROR($D66*AP66,"") -> 139.6374785 | EE66: =IFERROR($D66*AQ66,"") -> 139.6374785 | EF66: =IFERROR($D66*AR66,"") -> 186.1833047 | EG66: =IFERROR($D66*AS66,"") -> 139.6374785 | EH66: =IFERROR($D66*AT66,"") -> 46.54582616 | EI66: =IFERROR($D66*AU66,"") -> 0 | EJ66: =IFERROR($D66*AV66,"") -> 0 | EK66: =IFERROR($D66*AW66,"") -> 0 | EL66: =IFERROR($D66*AX66,"") -> 0 | EM66: =IFERROR($D66*AY66,"") -> 46.54582616 | EN66: =IFERROR($D66*AZ66,"") -> 0 | EO66: =IFERROR($D66*BA66,"") -> 0 | EP66: =IFERROR($D66*BB66,"") -> 46.54582616 | EQ66: =IFERROR($D66*BC66,"") -> 93.09165233 | ER66: =IFERROR($D66*BD66,"") -> 0 | ES66: =IFERROR($D66*BE66,"") -> 0 | ET66: =IFERROR($D66*BF66,"") -> 46.54582616 | EU66: =IFERROR($D66*BG66,"") -> 0 | EV66: =IFERROR($D66*BH66,"") -> 0 | EW66: =IFERROR($D66*BI66,"") -> 0 | EX66: =IFERROR($D66*BJ66,"") -> 0 | EY66: =IFERROR($D66*BK66,"") -> 0 | EZ66: =IFERROR($D66*BL66,"") -> 0 | FA66: =IFERROR($D66*BM66,"") -> 0 | FB66: =IFERROR($D66*BN66,"") -> 0 | FC66: =IFERROR($D66*BO66,"") -> 0 | FD66: =IFERROR($D66*BP66,"") -> 0 | FE66: =IFERROR($D66*BQ66,"") -> 0 | FF66: =IFERROR($D66*BR66,"") -> 0 | FG66: =IFERROR($D66*BS66,"") -> 0 | FH66: =IFERROR($D66*BT66,"") -> 0 | FI66: =IFERROR($D66*BU66,"") -> 0 | FJ66: =IFERROR($D66*BV66,"") -> 0 | FK66: =IFERROR($D66*BW66,"") -> 0 | FL66: =IFERROR($D66*BX66,"") -> 0 | FM66: =IFERROR($D66*BY66,"") -> 0 | FN66: =IFERROR($D66*BZ66,"") -> 0 | FO66: =IFERROR($D66*CA66,"") -> 0 | FP66: =IFERROR($D66*CB66,"") -> 0 | FQ66: =IFERROR($D66*CC66,"") -> 0 | FR66: =IFERROR($D66*CD66,"") -> 0 | FS66: =IFERROR($D66*CE66,"") -> 0 | FT66: =IFERROR($D66*CF66,"") -> 0 | FU66: =IFERROR($D66*CG66,"") -> 0 | FV66: =IFERROR($D66*CH66,"") -> 0 | FW66: =IFERROR($D66*CI66,"") -> 0 | FX66: =IFERROR($D66*CJ66,"") -> 0 | FY66: =IFERROR($D66*CK66,"") -> 0 | FZ66: =IFERROR($D66*CL66,"") -> 0 | GA66: =IFERROR($D66*CM66,"") -> 0 | GB66: =IFERROR($D66*CN66,"") -> 0 | GC66: =IFERROR($D66*CO66,"") -> 0 | GD66: =IFERROR($D66*CP66,"") -> 0 | GE66: =IFERROR($D66*CQ66,"") -> 0 | GF66: =IFERROR($D66*CR66,"") -> 0 | GG66: =IFERROR($D66*CS66,"") -> 0 | GH66: =IFERROR($D66*CT66,"") -> 0
A67: 5 | B67: TRANSFORMERS | C67: pole mounted ; < = 22 kv ; > 600 kva ; single phase | D67: 46.44177439 | E67: 21.79176359 | F67: 4.668164906 | G67: 2 | H67: 70.23045267 | I67: 38.6776406 | J67: 53.94513032 | K67: 66.15912209 | L67: 60.0521262 | M67: 60.0521262 | N67: 44.78463649 | O67: 49.87379973 | P67: 26.46364883 | Q67: 28.49931413 | R67: 21.3744856 | S67: 35.62414266 | T67: 30.53497942 | U67: 18.32098765 | V67: 25.44581619 | W67: 14.24965706 | X67: 20.35665295 | Y67: 10.17832647 | Z67: 11.19615912 | AA67: 2.035665295 | AB67: 7.124828532 | AC67: 3.053497942 | AD67: 3.053497942 | AE67: 3.053497942 | AF67: 0 | AG67: 3.053497942 | AH67: 2.035665295 | AI67: 1.017832647 | AJ67: 4.07133059 | AK67: 3.053497942 | AL67: 2.035665295 | AM67: 9.160493827 | AN67: 1.017832647 | AO67: 3.053497942 | AP67: 3.053497942 | AQ67: 3.053497942 | AR67: 0 | AS67: 0 | AT67: 1.017832647 | AU67: 0 | AV67: 0 | AW67: 0 | AX67: 0 | AY67: 0 | AZ67: 0 | BA67: 0 | BB67: 0 | BC67: 1.017832647 | BD67: 0 | BE67: 0 | BF67: 0 | BG67: 1.017832647 | BH67: 0 | BI67: 0 | BJ67: 0 | BK67: 0 | BL67: 0 | BM67: 0 | BN67: 0 | BO67: 0 | BP67: 0 | BQ67: 0 | BR67: 0 | BS67: 0 | BT67: 0 | BU67: 0 | BV67: 0 | BW67: 0 | BX67: 0 | BY67: 0 | BZ67: 0 | CA67: 0 | CB67: 0 | CC67: 0 | CD67: 0 | CE67: 0 | CF67: 0 | CG67: 0 | CH67: 0 | CI67: 0 | CJ67: 0 | CK67: 0 | CL67: 0 | CM67: 0 | CN67: 0 | CO67: 0 | CP67: 0 | CQ67: 0 | CR67: 0 | CS67: 0 | CT67: 0 | CV67: 3261.626838 | CW67: 1796.258259 | CX67: 2505.307572 | CY67: 3072.547022 | CZ67: 2788.927297 | DA67: 2788.927297 | DB67: 2079.877984 | DC67: 2316.227755 | DD67: 1229.018809 | DE67: 1323.558717 | DF67: 992.6690378 | DG67: 1654.448396 | DH67: 1418.098625 | DI67: 850.8591752 | DJ67: 1181.748855 | DK67: 661.7793585 | DL67: 945.3990836 | DM67: 472.6995418 | DN67: 519.969496 | DO67: 94.53990836 | DP67: 330.8896793 | DQ67: 141.8098625 | DR67: 141.8098625 | DS67: 141.8098625 | DT67: 0 | DU67: 141.8098625 | DV67: 94.53990836 | DW67: 47.26995418 | DX67: 189.0798167 | DY67: 141.8098625 | DZ67: 94.53990836 | EA67: 425.4295876 | EB67: 47.26995418 | EC67: 141.8098625 | ED67: 141.8098625 | EE67: 141.8098625 | EF67: 0 | EG67: 0 | EH67: 47.26995418 | EI67: 0 | EJ67: 0 | EK67: 0 | EL67: 0 | EM67: 0 | EN67: 0 | EO67: 0 | EP67: 0 | EQ67: 47.26995418 | ER67: 0 | ES67: 0 | ET67: 0 | EU67: 47.26995418 | EV67: 0 | EW67: 0 | EX67: 0 | EY67: 0 | EZ67: 0 | FA67: 0 | FB67: 0 | FC67: 0 | FD67: 0 | FE67: 0 | FF67: 0 | FG67: 0 | FH67: 0 | FI67: 0 | FJ67: 0 | FK67: 0 | FL67: 0 | FM67: 0 | FN67: 0 | FO67: 0 | FP67: 0 | FQ67: 0 | FR67: 0 | FS67: 0 | FT67: 0 | FU67: 0 | FV67: 0 | FW67: 0 | FX67: 0 | FY67: 0 | FZ67: 0 | GA67: 0 | GB67: 0 | GC67: 0 | GD67: 0 | GE67: 0 | GF67: 0 | GG67: 0 | GH67: 0
A68: 6 | B68: UNDERGROUND CABLES | C68: ˂ = 1 kv | D68: 216.9289023 | E68: 25.83730557 | F68: 5.083040977 | G68: 2 | H68: 90.8380217 | I68: 84.06068432 | J68: 164.8880611 | K68: 250.2657518 | L68: 280.8755318 | M68: 380.46564 | N68: 399.0928858 | O68: 355.312988 | P68: 519.1508707 | Q68: 1142.051772 | R68: 1247.604283 | S68: 639.2201631 | T68: 222.7370548 | U68: 309.5067169 | V68: 83.81686437 | W68: 17.52110313 | X68: 13.22230432 | Y68: 4.460602082 | Z68: 6.160657831 | AA68: 3.814735397 | AB68: 2.134222567 | AC68: 3.567119315 | AD68: 0.06223327482 | AE68: 3.193597522 | AF68: 10.72516254 | AG68: 8.125754751 | AH68: 1.643376221 | AI68: 5.3403124 | AJ68: 0 | AK68: 1.224883576 | AL68: 0.5510618183 | AM68: 0 | AN68: 0.7237409096 | AO68: 0 | AP68: 0.5127395404 | AQ68: 0 | AR68: 0 | AS68: 0.2576376923 | AT68: 0 | AU68: 0 | AV68: 0 | AW68: 0.03764355211 | AX68: 0 | AY68: 0 | AZ68: 0.1926453829 | BA68: 0 | BB68: 0 | BC68: 0.08383151274 | BD68: 0.4481692417 | BE68: 0 | BF68: 0 | BG68: 0 | BH68: 0 | BI68: 0 | BJ68: 0 | BK68: 0 | BL68: 0 | BM68: 0 | BN68: 0 | BO68: 0 | BP68: 0 | BQ68: 0 | BR68: 0 | BS68: 0 | BT68: 0 | BU68: 0 | BV68: 0 | BW68: 0 | BX68: 0 | BY68: 0 | BZ68: 0 | CA68: 0 | CB68: 0 | CC68: 0 | CD68: 0 | CE68: 0 | CF68: 0 | CG68: 0 | CH68: 0 | CI68: 0 | CJ68: 0 | CK68: 0 | CL68: 0 | CM68: 0 | CN68: 0 | CO68: 0 | CP68: 0 | CQ68: 0 | CR68: 0 | CS68: 0 | CT68: 0 | CV68: 19705.39234 | CW68: 18235.19198 | CX68: 35768.98609 | CY68: 54289.87482 | CZ68: 60930.0208 | DA68: 82533.99366 | DB68: 86574.78164 | DC68: 77077.65646 | DD68: 112618.8285 | DE68: 247744.0372 | DF68: 270641.4277 | DG68: 138665.3283 | DH68: 48318.10479 | DI68: 67140.95235 | DJ68: 18182.30038 | DK68: 3800.833668 | DL68: 2868.299962 | DM68: 967.6335133 | DN68: 1336.424741 | DO68: 827.5263622 | DP68: 462.9745588 | DQ68: 773.8112774 | DR68: 13.50019599 | DS68: 692.783605 | DT68: 2326.597736 | DU68: 1762.711058 | DV68: 356.4957997 | DW68: 1158.468107 | DX68: 0 | DY68: 265.7126497 | DZ68: 119.5412354 | EA68: 0 | EB68: 157.0003211 | EC68: 0 | ED68: 111.2280257 | EE68: 0 | EF68: 0 | EG68: 55.88906179 | EH68: 0 | EI68: 0 | EJ68: 0 | EK68: 8.165974437 | EL68: 0 | EM68: 0 | EN68: 41.79035144 | EO68: 0 | EP68: 0 | EQ68: 18.18547804 | ER68: 97.22086164 | ES68: 0 | ET68: 0 | EU68: 0 | EV68: 0 | EW68: 0 | EX68: 0 | EY68: 0 | EZ68: 0 | FA68: 0 | FB68: 0 | FC68: 0 | FD68: 0 | FE68: 0 | FF68: 0 | FG68: 0 | FH68: 0 | FI68: 0 | FJ68: 0 | FK68: 0 | FL68: 0 | FM68: 0 | FN68: 0 | FO68: 0 | FP68: 0 | FQ68: 0 | FR68: 0 | FS68: 0 | FT68: 0 | FU68: 0 | FV68: 0 | FW68: 0 | FX68: 0 | FY68: 0 | FZ68: 0 | GA68: 0 | GB68: 0 | GC68: 0 | GD68: 0 | GE68: 0 | GF68: 0 | GG68: 0 | GH68: 0
A69: 6 | B69: UNDERGROUND CABLES | C69: > 1 kv & < = 11 kv | D69: 372.6575397 | E69: 54.47353507 | F69: 7.380618881 | G69: 2 | H69: 19.11716534 | I69: 16.41604822 | J69: 24.14762883 | K69: 33.7076531 | L69: 72.45580279 | M69: 104.4866891 | N69: 91.53911492 | O69: 109.3215072 | P69: 143.7218561 | Q69: 175.4888754 | R69: 164.4326014 | S69: 87.06506413 | T69: 46.25602022 | U69: 58.07691755 | V69: 45.99163036 | W69: 64.19800461 | X69: 40.83128512 | Y69: 14.72059959 | Z69: 32.49833061 | AA69: 106.9079067 | AB69: 17.68044859 | AC69: 15.28253941 | AD69: 12.24754093 | AE69: 11.13321892 | AF69: 23.21547262 | AG69: 18.09238267 | AH69: 27.92757096 | AI69: 15.75036206 | AJ69: 11.52479428 | AK69: 8.051591289 | AL69: 3.75465936 | AM69: 4.408917448 | AN69: 20.26733078 | AO69: 20.44498649 | AP69: 10.82946119 | AQ69: 6.418080083 | AR69: 17.0291525 | AS69: 10.03021321 | AT69: 7.790101777 | AU69: 2.897034072 | AV69: 4.545027025 | AW69: 2.369450344 | AX69: 2.627526343 | AY69: 26.08836382 | AZ69: 1.520474814 | BA69: 0.6251815517 | BB69: 3.929956937 | BC69: 2.448976882 | BD69: 1.894530715 | BE69: 1.506218358 | BF69: 0.4322213766 | BG69: 0.5484526122 | BH69: 0.4928232661 | BI69: 3.532844023 | BJ69: 0.1334588065 | BK69: 0.4561842359 | BL69: 0 | BM69: 0 | BN69: 0.01481443759 | BO69: 0.2414565427 | BP69: 0 | BQ69: 0.3407094633 | BR69: 0 | BS69: 0.8059870778 | BT69: 0 | BU69: 0 | BV69: 0 | BW69: 0 | BX69: 0.03304956452 | BY69: 0 | BZ69: 0 | CA69: 0 | CB69: 0 | CC69: 0 | CD69: 0 | CE69: 0 | CF69: 0 | CG69: 0 | CH69: 0 | CI69: 0 | CJ69: 0 | CK69: 0 | CL69: 0.4044321606 | CM69: 0 | CN69: 0 | CO69: 0 | CP69: 0 | CQ69: 0 | CR69: 0 | CS69: 0 | CT69: 0 | CV69: 7124.1558 | CW69: 6117.564141 | CX69: 8998.79595 | CY69: 12561.41107 | CZ69: 27001.2012 | DA69: 38937.75248 | DB69: 34112.74135 | DC69: 40739.4839 | DD69: 53559.0333 | DE69: 65397.25256 | DF69: 61277.04867 | DG69: 32445.45259 | DH69: 17237.65469 | DI69: 21642.80121 | DJ69: 17139.12782 | DK69: 23923.87045 | DL69: 15216.08626 | DM69: 5485.742427 | DN69: 12110.74793 | DO69: 39840.03749 | DP69: 6588.752473 | DQ69: 5695.153535 | DR69: 4564.138468 | DS69: 4148.877972 | DT69: 8651.420911 | DU69: 6742.262813 | DV69: 10407.41989 | DW69: 5869.491175 | DX69: 4294.801483 | DY69: 3000.486201 | DZ69: 1399.20212 | EA69: 1643.016329 | EB69: 7552.773626 | EC69: 7618.978363 | ED69: 4035.680364 | EE69: 2391.745933 | EF69: 6346.042073 | EG69: 3737.834578 | EH69: 2903.040162 | EI69: 1079.60159 | EJ69: 1693.738589 | EK69: 882.9935356 | EL69: 979.1675026 | EM69: 9722.025476 | EN69: 566.6164033 | EO69: 232.9786189 | EP69: 1464.528083 | EQ69: 912.6296996 | ER69: 706.0111551 | ES69: 561.3036275 | ET69: 161.0705548 | EU69: 204.3850011 | EV69: 183.6543059 | EW69: 1316.540962 | EX69: 49.73443047 | EY69: 170.000495 | EZ69: 0 | FA69: 0 | FB69: 5.520711863 | FC69: 89.98060115 | FD69: 0 | FE69: 126.9679503 | FF69: 0 | FG69: 300.3571614 | FH69: 0 | FI69: 0 | FJ69: 0 | FK69: 0 | FL69: 12.3161694 | FM69: 0 | FN69: 0 | FO69: 0 | FP69: 0 | FQ69: 0 | FR69: 0 | FS69: 0 | FT69: 0 | FU69: 0 | FV69: 0 | FW69: 0 | FX69: 0 | FY69: 0 | FZ69: 150.7146939 | GA69: 0 | GB69: 0 | GC69: 0 | GD69: 0 | GE69: 0 | GF69: 0 | GG69: 0 | GH69: 0
A70: 6 | B70: UNDERGROUND CABLES | C70: > 11 kv & < = 22 kv | D70: 1758.627452 | E70: 59.39775672 | F70: 7.706994013 | G70: 2 | H70: 4.222556234 | I70: 5.434655403 | J70: 12.11323196 | K70: 13.68779558 | L70: 22.0622561 | M70: 17.3094148 | N70: 23.69658499 | O70: 21.32384964 | P70: 35.05281697 | Q70: 74.72855821 | R70: 97.69036979 | S70: 32.66877767 | T70: 16.10734518 | U70: 23.23052393 | V70: 15.31827637 | W70: 3.834811275 | X70: 4.123182685 | Y70: 5.742654721 | Z70: 16.93448191 | AA70: 12.05035136 | AB70: 13.7180957 | AC70: 11.45564556 | AD70: 7.265775555 | AE70: 22.15712561 | AF70: 20.79535282 | AG70: 10.07774603 | AH70: 14.71080984 | AI70: 6.948822083 | AJ70: 7.581410832 | AK70: 11.05914559 | AL70: 1.71590412 | AM70: 13.72700028 | AN70: 5.340817113 | AO70: 51.96931884 | AP70: 3.936194446 | AQ70: 3.02517742 | AR70: 5.180777514 | AS70: 2.133189553 | AT70: 6.86515714 | AU70: 1.15480563 | AV70: 0.05040250613 | AW70: 1.901769647 | AX70: 0.1313077023 | AY70: 4.365061898 | AZ70: 0 | BA70: 0.250455748 | BB70: 0.07510469592 | BC70: 0.6513362307 | BD70: 1.860577673 | BE70: 0.7352417669 | BF70: 0.341830438 | BG70: 0.1253935184 | BH70: 0 | BI70: 3.051449333 | BJ70: 0 | BK70: 1.163497708 | BL70: 0.07431286671 | BM70: 0 | BN70: 0.2327288253 | BO70: 0.1260739754 | BP70: 0.0416432237 | BQ70: 0.3404083656 | BR70: 0.670836549 | BS70: 0 | BT70: 0 | BU70: 0.1895202634 | BV70: 0 | BW70: 0 | BX70: 0 | BY70: 0 | BZ70: 0 | CA70: 0 | CB70: 0 | CC70: 0 | CD70: 0 | CE70: 0 | CF70: 0 | CG70: 0 | CH70: 0 | CI70: 0 | CJ70: 0 | CK70: 0 | CL70: 0 | CM70: 0 | CN70: 0 | CO70: 0 | CP70: 0 | CQ70: 0 | CR70: 0 | CS70: 0 | CT70: 0 | CV70: 7425.90331 | CW70: 9557.534184 | CX70: 21302.66226 | CY70: 24071.73306 | CZ70: 38799.28922 | DA70: 30440.81204 | DB70: 41673.46488 | DC70: 37500.70736 | DD70: 61644.84619 | DE70: 131419.6939 | DF70: 171800.9661 | DG70: 57452.20922 | DH70: 28326.81941 | DI70: 40853.8371 | DJ70: 26939.14134 | DK70: 6744.004381 | DL70: 7251.142258 | DM70: 10099.19024 | DN70: 29781.44477 | DO70: 21192.07871 | DP70: 24125.01969 | DQ70: 20146.21276 | DR70: 12777.79235 | DS70: 38966.12936 | DT70: 36571.27835 | DU70: 17723.00082 | DV70: 25870.83402 | DW70: 12220.38927 | DX70: 13332.87721 | DY70: 19448.91703 | DZ70: 3017.63609 | EA70: 24140.67952 | EB70: 9392.507591 | EC70: 91394.67076 | ED70: 6922.299609 | EE70: 5320.160058 | EF70: 9111.057558 | EG70: 3751.485707 | EH70: 12073.25381 | EI70: 2030.872883 | EJ70: 88.63923093 | EK70: 3344.504308 | EL70: 230.9213298 | EM70: 7676.517684 | EN70: 0 | EO70: 440.4583538 | EP70: 132.08118 | EQ70: 1145.457776 | ER70: 3272.062973 | ES70: 1293.016355 | ET70: 601.1523922 | EU70: 220.5204837 | EV70: 0 | EW70: 5366.362565 | EX70: 0 | EY70: 2046.15901 | EZ70: 130.6886474 | FA70: 0 | FB70: 409.283301 | FC70: 221.7171541 | FD70: 73.23491639 | FE70: 598.6514966 | FF70: 1179.751571 | FG70: 0 | FH70: 0 | FI70: 333.295538 | FJ70: 0 | FK70: 0 | FL70: 0 | FM70: 0 | FN70: 0 | FO70: 0 | FP70: 0 | FQ70: 0 | FR70: 0 | FS70: 0 | FT70: 0 | FU70: 0 | FV70: 0 | FW70: 0 | FX70: 0 | FY70: 0 | FZ70: 0 | GA70: 0 | GB70: 0 | GC70: 0 | GD70: 0 | GE70: 0 | GF70: 0 | GG70: 0 | GH70: 0
A71: 6 | B71: UNDERGROUND CABLES | C71: > 22 kv & < = 33 kv | D71: 372.6575397 | E71: 54.47353507 | F71: 7.380618881 | G71: 2 | H71: 0.1673350352 | I71: 0.005811326357 | J71: 0.6929315105 | K71: 0.006022609533 | L71: 0.6015230206 | M71: 3.683047674 | N71: 2.348439445 | O71: 10.51541023 | P71: 5.915568728 | Q71: 5.211316647 | R71: 0.5175902375 | S71: 0.9896223279 | T71: 0.7544308962 | U71: 6.020533593 | V71: 1.487743665 | W71: 0.2626701539 | X71: 2.433444609 | Y71: 0 | Z71: 0.1220123765 | AA71: 0.4260369492 | AB71: 0.2654026725 | AC71: 0.01771226221 | AD71: 0.01049083431 | AE71: 0.03109606646 | AF71: 0 | AG71: 0.6288828873 | AH71: 0.0622412074 | AI71: 0.446584296 | AJ71: 0.5573316447 | AK71: 0.1617735373 | AL71: 0 | AM71: 0.1294446672 | AN71: 0.628036176 | AO71: 0.515773444 | AP71: 0 | AQ71: 0.2920642997 | AR71: 1.384140678 | AS71: 0.2517563084 | AT71: 0.1280594123 | AU71: 0 | AV71: 0 | AW71: 0.8392264782 | AX71: 0 | AY71: 4.293247061 | AZ71: 1.270341914 | BA71: 0.8391763424 | BB71: 0 | BC71: 0 | BD71: 0 | BE71: 0 | BF71: 0 | BG71: 0.5316551495 | BH71: 0 | BI71: 0.7540186323 | BJ71: 0 | BK71: 0 | BL71: 0 | BM71: 0 | BN71: 0 | BO71: 0 | BP71: 0 | BQ71: 0 | BR71: 0 | BS71: 0 | BT71: 0 | BU71: 0 | BV71: 0 | BW71: 0 | BX71: 0.05039696717 | BY71: 0 | BZ71: 0 | CA71: 0 | CB71: 0 | CC71: 0 | CD71: 0 | CE71: 0 | CF71: 0 | CG71: 0 | CH71: 0 | CI71: 0 | CJ71: 0 | CK71: 0 | CL71: 0 | CM71: 0 | CN71: 0 | CO71: 0 | CP71: 0 | CQ71: 0 | CR71: 0 | CS71: 0 | CT71: 0 | CV71: 62.35866252 | CW71: 2.165634583 | CX71: 258.2261519 | CY71: 2.244370851 | CZ71: 224.1620889 | DA71: 1372.515485 | DB71: 875.1636657 | DC71: 3918.646905 | DD71: 2204.481288 | DE71: 1942.03644 | DF71: 192.8839045 | DG71: 368.7902219 | DH71: 281.1443616 | DI71: 2243.597237 | DJ71: 554.4188939 | DK71: 97.88601329 | DL71: 906.8414809 | DM71: 0 | DN71: 45.46883203 | DO71: 158.7658813 | DP71: 98.90430695 | DQ71: 6.600608057 | DR71: 3.909488502 | DS71: 11.58818362 | DT71: 0 | DU71: 234.3579495 | DV71: 23.19465522 | DW71: 166.423005 | DX71: 207.6938395 | DY71: 60.28612841 | DZ71: 0 | EA71: 48.23853122 | EB71: 234.0424162 | EC71: 192.2068627 | ED71: 0 | EE71: 108.8399634 | EF71: 515.8104595 | EG71: 93.81888649 | EH71: 47.72230552 | EI71: 0 | EJ71: 0 | EK71: 312.7440746 | EL71: 0 | EM71: 1599.910887 | EN71: 473.4024921 | EO71: 312.7253911 | EP71: 0 | EQ71: 0 | ER71: 0 | ES71: 0 | ET71: 0 | EU71: 198.1253 | EV71: 0 | EW71: 280.9907284 | EX71: 0 | EY71: 0 | EZ71: 0 | FA71: 0 | FB71: 0 | FC71: 0 | FD71: 0 | FE71: 0 | FF71: 0 | FG71: 0 | FH71: 0 | FI71: 0 | FJ71: 0 | FK71: 0 | FL71: 18.78080979 | FM71: 0 | FN71: 0 | FO71: 0 | FP71: 0 | FQ71: 0 | FR71: 0 | FS71: 0 | FT71: 0 | FU71: 0 | FV71: 0 | FW71: 0 | FX71: 0 | FY71: 0 | FZ71: 0 | GA71: 0 | GB71: 0 | GC71: 0 | GD71: 0 | GE71: 0 | GF71: 0 | GG71: 0 | GH71: 0
A72: 6 | B72: UNDERGROUND CABLES | C72: > 33 kv & < = 66 kv | D72: 372.6575397 | E72: 54.47353507 | F72: 7.380618881 | G72: 2 | H72: 0.1044135693 | I72: 0 | J72: 0 | K72: 0 | L72: 0 | M72: 0 | N72: 0 | O72: 0.149177868 | P72: 1.174441437 | Q72: 8.912320467 | R72: 3.52432883 | S72: 0.844392757 | T72: 0 | U72: 0 | V72: 0 | W72: 0 | X72: 0 | Y72: 0 | Z72: 0 | AA72: 2.599966794 | AB72: 0.007720729876 | AC72: 0 | AD72: 0 | AE72: 0.1610201212 | AF72: 0 | AG72: 0 | AH72: 0 | AI72: 0 | AJ72: 0.3547517478 | AK72: 0 | AL72: 0 | AM72: 0.6463851196 | AN72: 0 | AO72: 0 | AP72: 0 | AQ72: 0 | AR72: 0 | AS72: 0 | AT72: 0 | AU72: 0 | AV72: 0 | AW72: 0 | AX72: 0 | AY72: 0 | AZ72: 0 | BA72: 0 | BB72: 0.7204882144 | BC72: 0 | BD72: 0 | BE72: 0 | BF72: 0 | BG72: 0 | BH72: 0 | BI72: 0 | BJ72: 0 | BK72: 0 | BL72: 0 | BM72: 0 | BN72: 0 | BO72: 0 | BP72: 0 | BQ72: 0 | BR72: 0 | BS72: 0 | BT72: 0 | BU72: 0 | BV72: 0 | BW72: 0 | BX72: 0 | BY72: 0 | BZ72: 0 | CA72: 0 | CB72: 0 | CC72: 0 | CD72: 0 | CE72: 0 | CF72: 0 | CG72: 0 | CH72: 0 | CI72: 0 | CJ72: 0 | CK72: 0 | CL72: 0 | CM72: 0 | CN72: 0 | CO72: 0 | CP72: 0 | CQ72: 0 | CR72: 0 | CS72: 0 | CT72: 0 | CV72: 38.91050385 | CW72: 0 | CX72: 0 | CY72: 0 | CZ72: 0 | DA72: 0 | DB72: 0 | DC72: 55.59225727 | DD72: 437.6644565 | DE72: 3321.243418 | DF72: 1313.367711 | DG72: 314.6693274 | DH72: 0 | DI72: 0 | DJ72: 0 | DK72: 0 | DL72: 0 | DM72: 0 | DN72: 0 | DO72: 968.8972286 | DP72: 2.8771882 | DQ72: 0 | DR72: 0 | DS72: 60.0053622 | DT72: 0 | DU72: 0 | DV72: 0 | DW72: 0 | DX72: 132.2009135 | DY72: 0 | DZ72: 0 | EA72: 240.8802884 | EB72: 0 | EC72: 0 | ED72: 0 | EE72: 0 | EF72: 0 | EG72: 0 | EH72: 0 | EI72: 0 | EJ72: 0 | EK72: 0 | EL72: 0 | EM72: 0 | EN72: 0 | EO72: 0 | EP72: 268.4953654 | EQ72: 0 | ER72: 0 | ES72: 0 | ET72: 0 | EU72: 0 | EV72: 0 | EW72: 0 | EX72: 0 | EY72: 0 | EZ72: 0 | FA72: 0 | FB72: 0 | FC72: 0 | FD72: 0 | FE72: 0 | FF72: 0 | FG72: 0 | FH72: 0 | FI72: 0 | FJ72: 0 | FK72: 0 | FL72: 0 | FM72: 0 | FN72: 0 | FO72: 0 | FP72: 0 | FQ72: 0 | FR72: 0 | FS72: 0 | FT72: 0 | FU72: 0 | FV72: 0 | FW72: 0 | FX72: 0 | FY72: 0 | FZ72: 0 | GA72: 0 | GB72: 0 | GC72: 0 | GD72: 0 | GE72: 0 | GF72: 0 | GG72: 0 | GH72: 0
A73: 6 | B73: UNDERGROUND CABLES | C73: > 66 kv & < = 132 kv | D73: 1758.627452 | E73: 59.39775672 | F73: 7.706994013 | G73: 2 | H73: 0 | I73: 0 | J73: 0 | K73: 6.143810919 | L73: 0 | M73: 0 | N73: 0 | O73: 0 | P73: 0 | Q73: 8.88045225 | R73: 0.04339514337 | S73: 0 | T73: 0 | U73: 0 | V73: 0 | W73: 0 | X73: 0 | Y73: 0 | Z73: 0 | AA73: 0 | AB73: 0 | AC73: 0 | AD73: 0 | AE73: 0 | AF73: 0 | AG73: 0 | AH73: 0 | AI73: 0 | AJ73: 0 | AK73: 0 | AL73: 0 | AM73: 0 | AN73: 0 | AO73: 0 | AP73: 0 | AQ73: 0 | AR73: 0 | AS73: 0 | AT73: 0 | AU73: 0 | AV73: 0 | AW73: 0 | AX73: 0 | AY73: 0 | AZ73: 0 | BA73: 0 | BB73: 0 | BC73: 0 | BD73: 0 | BE73: 0 | BF73: 0 | BG73: 0 | BH73: 0 | BI73: 0 | BJ73: 0 | BK73: 0 | BL73: 0 | BM73: 0 | BN73: 0 | BO73: 0 | BP73: 0 | BQ73: 0 | BR73: 0 | BS73: 0 | BT73: 0 | BU73: 0 | BV73: 0 | BW73: 0 | BX73: 0 | BY73: 0 | BZ73: 0 | CA73: 0 | CB73: 0 | CC73: 0 | CD73: 0 | CE73: 0 | CF73: 0 | CG73: 0 | CH73: 0 | CI73: 0 | CJ73: 0 | CK73: 0 | CL73: 0 | CM73: 0 | CN73: 0 | CO73: 0 | CP73: 0 | CQ73: 0 | CR73: 0 | CS73: 0 | CT73: 0 | CV73: 0 | CW73: 0 | CX73: 0 | CY73: 10804.67454 | CZ73: 0 | DA73: 0 | DB73: 0 | DC73: 0 | DD73: 0 | DE73: 15617.40711 | DF73: 76.3158904 | DG73: 0 | DH73: 0 | DI73: 0 | DJ73: 0 | DK73: 0 | DL73: 0 | DM73: 0 | DN73: 0 | DO73: 0 | DP73: 0 | DQ73: 0 | DR73: 0 | DS73: 0 | DT73: 0 | DU73: 0 | DV73: 0 | DW73: 0 | DX73: 0 | DY73: 0 | DZ73: 0 | EA73: 0 | EB73: 0 | EC73: 0 | ED73: 0 | EE73: 0 | EF73: 0 | EG73: 0 | EH73: 0 | EI73: 0 | EJ73: 0 | EK73: 0 | EL73: 0 | EM73: 0 | EN73: 0 | EO73: 0 | EP73: 0 | EQ73: 0 | ER73: 0 | ES73: 0 | ET73: 0 | EU73: 0 | EV73: 0 | EW73: 0 | EX73: 0 | EY73: 0 | EZ73: 0 | FA73: 0 | FB73: 0 | FC73: 0 | FD73: 0 | FE73: 0 | FF73: 0 | FG73: 0 | FH73: 0 | FI73: 0 | FJ73: 0 | FK73: 0 | FL73: 0 | FM73: 0 | FN73: 0 | FO73: 0 | FP73: 0 | FQ73: 0 | FR73: 0 | FS73: 0 | FT73: 0 | FU73: 0 | FV73: 0 | FW73: 0 | FX73: 0 | FY73: 0 | FZ73: 0 | GA73: 0 | GB73: 0 | GC73: 0 | GD73: 0 | GE73: 0 | GF73: 0 | GG73: 0 | GH73: 0
CV74: 0 | CW74: 0 | CX74: 0 | CY74: 0 | CZ74: 0 | DA74: 0 | DB74: 0 | DC74: 0 | DD74: 0 | DE74: 0 | DF74: 0 | DG74: 0 | DH74: 0 | DI74: 0 | DJ74: 0 | DK74: 0 | DL74: 0 | DM74: 0 | DN74: 0 | DO74: 0 | DP74: 0 | DQ74: 0 | DR74: 0 | DS74: 0 | DT74: 0 | DU74: 0 | DV74: 0 | DW74: 0 | DX74: 0 | DY74: 0 | DZ74: 0 | EA74: 0 | EB74: 0 | EC74: 0 | ED74: 0 | EE74: 0 | EF74: 0 | EG74: 0 | EH74: 0 | EI74: 0 | EJ74: 0 | EK74: 0 | EL74: 0 | EM74: 0 | EN74: 0 | EO74: 0 | EP74: 0 | EQ74: 0 | ER74: 0 | ES74: 0 | ET74: 0 | EU74: 0 | EV74: 0 | EW74: 0 | EX74: 0 | EY74: 0 | EZ74: 0 | FA74: 0 | FB74: 0 | FC74: 0 | FD74: 0 | FE74: 0 | FF74: 0 | FG74: 0 | FH74: 0 | FI74: 0 | FJ74: 0 | FK74: 0 | FL74: 0 | FM74: 0 | FN74: 0 | FO74: 0 | FP74: 0 | FQ74: 0 | FR74: 0 | FS74: 0 | FT74: 0 | FU74: 0 | FV74: 0 | FW74: 0 | FX74: 0 | FY74: 0 | FZ74: 0 | GA74: 0 | GB74: 0 | GC74: 0 | GD74: 0 | GE74: 0 | GF74: 0 | GG74: 0 | GH74: 0
CV75: 0 | CW75: 0 | CX75: 0 | CY75: 0 | CZ75: 0 | DA75: 0 | DB75: 0 | DC75: 0 | DD75: 0 | DE75: 0 | DF75: 0 | DG75: 0 | DH75: 0 | DI75: 0 | DJ75: 0 | DK75: 0 | DL75: 0 | DM75: 0 | DN75: 0 | DO75: 0 | DP75: 0 | DQ75: 0 | DR75: 0 | DS75: 0 | DT75: 0 | DU75: 0 | DV75: 0 | DW75: 0 | DX75: 0 | DY75: 0 | DZ75: 0 | EA75: 0 | EB75: 0 | EC75: 0 | ED75: 0 | EE75: 0 | EF75: 0 | EG75: 0 | EH75: 0 | EI75: 0 | EJ75: 0 | EK75: 0 | EL75: 0 | EM75: 0 | EN75: 0 | EO75: 0 | EP75: 0 | EQ75: 0 | ER75: 0 | ES75: 0 | ET75: 0 | EU75: 0 | EV75: 0 | EW75: 0 | EX75: 0 | EY75: 0 | EZ75: 0 | FA75: 0 | FB75: 0 | FC75: 0 | FD75: 0 | FE75: 0 | FF75: 0 | FG75: 0 | FH75: 0 | FI75: 0 | FJ75: 0 | FK75: 0 | FL75: 0 | FM75: 0 | FN75: 0 | FO75: 0 | FP75: 0 | FQ75: 0 | FR75: 0 | FS75: 0 | FT75: 0 | FU75: 0 | FV75: 0 | FW75: 0 | FX75: 0 | FY75: 0 | FZ75: 0 | GA75: 0 | GB75: 0 | GC75: 0 | GD75: 0 | GE75: 0 | GF75: 0 | GG75: 0 | GH75: 0
CV76: 0 | CW76: 0 | CX76: 0 | CY76: 0 | CZ76: 0 | DA76: 0 | DB76: 0 | DC76: 0 | DD76: 0 | DE76: 0 | DF76: 0 | DG76: 0 | DH76: 0 | DI76: 0 | DJ76: 0 | DK76: 0 | DL76: 0 | DM76: 0 | DN76: 0 | DO76: 0 | DP76: 0 | DQ76: 0 | DR76: 0 | DS76: 0 | DT76: 0 | DU76: 0 | DV76: 0 | DW76: 0 | DX76: 0 | DY76: 0 | DZ76: 0 | EA76: 0 | EB76: 0 | EC76: 0 | ED76: 0 | EE76: 0 | EF76: 0 | EG76: 0 | EH76: 0 | EI76: 0 | EJ76: 0 | EK76: 0 | EL76: 0 | EM76: 0 | EN76: 0 | EO76: 0 | EP76: 0 | EQ76: 0 | ER76: 0 | ES76: 0 | ET76: 0 | EU76: 0 | EV76: 0 | EW76: 0 | EX76: 0 | EY76: 0 | EZ76: 0 | FA76: 0 | FB76: 0 | FC76: 0 | FD76: 0 | FE76: 0 | FF76: 0 | FG76: 0 | FH76: 0 | FI76: 0 | FJ76: 0 | FK76: 0 | FL76: 0 | FM76: 0 | FN76: 0 | FO76: 0 | FP76: 0 | FQ76: 0 | FR76: 0 | FS76: 0 | FT76: 0 | FU76: 0 | FV76: 0 | FW76: 0 | FX76: 0 | FY76: 0 | FZ76: 0 | GA76: 0 | GB76: 0 | GC76: 0 | GD76: 0 | GE76: 0 | GF76: 0 | GG76: 0 | GH76: 0
CV77: 0 | CW77: 0 | CX77: 0 | CY77: 0 | CZ77: 0 | DA77: 0 | DB77: 0 | DC77: 0 | DD77: 0 | DE77: 0 | DF77: 0 | DG77: 0 | DH77: 0 | DI77: 0 | DJ77: 0 | DK77: 0 | DL77: 0 | DM77: 0 | DN77: 0 | DO77: 0 | DP77: 0 | DQ77: 0 | DR77: 0 | DS77: 0 | DT77: 0 | DU77: 0 | DV77: 0 | DW77: 0 | DX77: 0 | DY77: 0 | DZ77: 0 | EA77: 0 | EB77: 0 | EC77: 0 | ED77: 0 | EE77: 0 | EF77: 0 | EG77: 0 | EH77: 0 | EI77: 0 | EJ77: 0 | EK77: 0 | EL77: 0 | EM77: 0 | EN77: 0 | EO77: 0 | EP77: 0 | EQ77: 0 | ER77: 0 | ES77: 0 | ET77: 0 | EU77: 0 | EV77: 0 | EW77: 0 | EX77: 0 | EY77: 0 | EZ77: 0 | FA77: 0 | FB77: 0 | FC77: 0 | FD77: 0 | FE77: 0 | FF77: 0 | FG77: 0 | FH77: 0 | FI77: 0 | FJ77: 0 | FK77: 0 | FL77: 0 | FM77: 0 | FN77: 0 | FO77: 0 | FP77: 0 | FQ77: 0 | FR77: 0 | FS77: 0 | FT77: 0 | FU77: 0 | FV77: 0 | FW77: 0 | FX77: 0 | FY77: 0 | FZ77: 0 | GA77: 0 | GB77: 0 | GC77: 0 | GD77: 0 | GE77: 0 | GF77: 0 | GG77: 0 | GH77: 0
CV78: 0 | CW78: 0 | CX78: 0 | CY78: 0 | CZ78: 0 | DA78: 0 | DB78: 0 | DC78: 0 | DD78: 0 | DE78: 0 | DF78: 0 | DG78: 0 | DH78: 0 | DI78: 0 | DJ78: 0 | DK78: 0 | DL78: 0 | DM78: 0 | DN78: 0 | DO78: 0 | DP78: 0 | DQ78: 0 | DR78: 0 | DS78: 0 | DT78: 0 | DU78: 0 | DV78: 0 | DW78: 0 | DX78: 0 | DY78: 0 | DZ78: 0 | EA78: 0 | EB78: 0 | EC78: 0 | ED78: 0 | EE78: 0 | EF78: 0 | EG78: 0 | EH78: 0 | EI78: 0 | EJ78: 0 | EK78: 0 | EL78: 0 | EM78: 0 | EN78: 0 | EO78: 0 | EP78: 0 | EQ78: 0 | ER78: 0 | ES78: 0 | ET78: 0 | EU78: 0 | EV78: 0 | EW78: 0 | EX78: 0 | EY78: 0 | EZ78: 0 | FA78: 0 | FB78: 0 | FC78: 0 | FD78: 0 | FE78: 0 | FF78: 0 | FG78: 0 | FH78: 0 | FI78: 0 | FJ78: 0 | FK78: 0 | FL78: 0 | FM78: 0 | FN78: 0 | FO78: 0 | FP78: 0 | FQ78: 0 | FR78: 0 | FS78: 0 | FT78: 0 | FU78: 0 | FV78: 0 | FW78: 0 | FX78: 0 | FY78: 0 | FZ78: 0 | GA78: 0 | GB78: 0 | GC78: 0 | GD78: 0 | GE78: 0 | GF78: 0 | GG78: 0 | GH78: 0
CV79: 0 | CW79: 0 | CX79: 0 | CY79: 0 | CZ79: 0 | DA79: 0 | DB79: 0 | DC79: 0 | DD79: 0 | DE79: 0 | DF79: 0 | DG79: 0 | DH79: 0 | DI79: 0 | DJ79: 0 | DK79: 0 | DL79: 0 | DM79: 0 | DN79: 0 | DO79: 0 | DP79: 0 | DQ79: 0 | DR79: 0 | DS79: 0 | DT79: 0 | DU79: 0 | DV79: 0 | DW79: 0 | DX79: 0 | DY79: 0 | DZ79: 0 | EA79: 0 | EB79: 0 | EC79: 0 | ED79: 0 | EE79: 0 | EF79: 0 | EG79: 0 | EH79: 0 | EI79: 0 | EJ79: 0 | EK79: 0 | EL79: 0 | EM79: 0 | EN79: 0 | EO79: 0 | EP79: 0 | EQ79: 0 | ER79: 0 | ES79: 0 | ET79: 0 | EU79: 0 | EV79: 0 | EW79: 0 | EX79: 0 | EY79: 0 | EZ79: 0 | FA79: 0 | FB79: 0 | FC79: 0 | FD79: 0 | FE79: 0 | FF79: 0 | FG79: 0 | FH79: 0 | FI79: 0 | FJ79: 0 | FK79: 0 | FL79: 0 | FM79: 0 | FN79: 0 | FO79: 0 | FP79: 0 | FQ79: 0 | FR79: 0 | FS79: 0 | FT79: 0 | FU79: 0 | FV79: 0 | FW79: 0 | FX79: 0 | FY79: 0 | FZ79: 0 | GA79: 0 | GB79: 0 | GC79: 0 | GD79: 0 | GE79: 0 | GF79: 0 | GG79: 0 | GH79: 0
CV80: 0 | CW80: 0 | CX80: 0 | CY80: 0 | CZ80: 0 | DA80: 0 | DB80: 0 | DC80: 0 | DD80: 0 | DE80: 0 | DF80: 0 | DG80: 0 | DH80: 0 | DI80: 0 | DJ80: 0 | DK80: 0 | DL80: 0 | DM80: 0 | DN80: 0 | DO80: 0 | DP80: 0 | DQ80: 0 | DR80: 0 | DS80: 0 | DT80: 0 | DU80: 0 | DV80: 0 | DW80: 0 | DX80: 0 | DY80: 0 | DZ80: 0 | EA80: 0 | EB80: 0 | EC80: 0 | ED80: 0 | EE80: 0 | EF80: 0 | EG80: 0 | EH80: 0 | EI80: 0 | EJ80: 0 | EK80: 0 | EL80: 0 | EM80: 0 | EN80: 0 | EO80: 0 | EP80: 0 | EQ80: 0 | ER80: 0 | ES80: 0 | ET80: 0 | EU80: 0 | EV80: 0 | EW80: 0 | EX80: 0 | EY80: 0 | EZ80: 0 | FA80: 0 | FB80: 0 | FC80: 0 | FD80: 0 | FE80: 0 | FF80: 0 | FG80: 0 | FH80: 0 | FI80: 0 | FJ80: 0 | FK80: 0 | FL80: 0 | FM80: 0 | FN80: 0 | FO80: 0 | FP80: 0 | FQ80: 0 | FR80: 0 | FS80: 0 | FT80: 0 | FU80: 0 | FV80: 0 | FW80: 0 | FX80: 0 | FY80: 0 | FZ80: 0 | GA80: 0 | GB80: 0 | GC80: 0 | GD80: 0 | GE80: 0 | GF80: 0 | GG80: 0 | GH80: 0
CV81: 0 | CW81: 0 | CX81: 0 | CY81: 0 | CZ81: 0 | DA81: 0 | DB81: 0 | DC81: 0 | DD81: 0 | DE81: 0 | DF81: 0 | DG81: 0 | DH81: 0 | DI81: 0 | DJ81: 0 | DK81: 0 | DL81: 0 | DM81: 0 | DN81: 0 | DO81: 0 | DP81: 0 | DQ81: 0 | DR81: 0 | DS81: 0 | DT81: 0 | DU81: 0 | DV81: 0 | DW81: 0 | DX81: 0 | DY81: 0 | DZ81: 0 | EA81: 0 | EB81: 0 | EC81: 0 | ED81: 0 | EE81: 0 | EF81: 0 | EG81: 0 | EH81: 0 | EI81: 0 | EJ81: 0 | EK81: 0 | EL81: 0 | EM81: 0 | EN81: 0 | EO81: 0 | EP81: 0 | EQ81: 0 | ER81: 0 | ES81: 0 | ET81: 0 | EU81: 0 | EV81: 0 | EW81: 0 | EX81: 0 | EY81: 0 | EZ81: 0 | FA81: 0 | FB81: 0 | FC81: 0 | FD81: 0 | FE81: 0 | FF81: 0 | FG81: 0 | FH81: 0 | FI81: 0 | FJ81: 0 | FK81: 0 | FL81: 0 | FM81: 0 | FN81: 0 | FO81: 0 | FP81: 0 | FQ81: 0 | FR81: 0 | FS81: 0 | FT81: 0 | FU81: 0 | FV81: 0 | FW81: 0 | FX81: 0 | FY81: 0 | FZ81: 0 | GA81: 0 | GB81: 0 | GC81: 0 | GD81: 0 | GE81: 0 | GF81: 0 | GG81: 0 | GH81: 0
CV82: 0 | CW82: 0 | CX82: 0 | CY82: 0 | CZ82: 0 | DA82: 0 | DB82: 0 | DC82: 0 | DD82: 0 | DE82: 0 | DF82: 0 | DG82: 0 | DH82: 0 | DI82: 0 | DJ82: 0 | DK82: 0 | DL82: 0 | DM82: 0 | DN82: 0 | DO82: 0 | DP82: 0 | DQ82: 0 | DR82: 0 | DS82: 0 | DT82: 0 | DU82: 0 | DV82: 0 | DW82: 0 | DX82: 0 | DY82: 0 | DZ82: 0 | EA82: 0 | EB82: 0 | EC82: 0 | ED82: 0 | EE82: 0 | EF82: 0 | EG82: 0 | EH82: 0 | EI82: 0 | EJ82: 0 | EK82: 0 | EL82: 0 | EM82: 0 | EN82: 0 | EO82: 0 | EP82: 0 | EQ82: 0 | ER82: 0 | ES82: 0 | ET82: 0 | EU82: 0 | EV82: 0 | EW82: 0 | EX82: 0 | EY82: 0 | EZ82: 0 | FA82: 0 | FB82: 0 | FC82: 0 | FD82: 0 | FE82: 0 | FF82: 0 | FG82: 0 | FH82: 0 | FI82: 0 | FJ82: 0 | FK82: 0 | FL82: 0 | FM82: 0 | FN82: 0 | FO82: 0 | FP82: 0 | FQ82: 0 | FR82: 0 | FS82: 0 | FT82: 0 | FU82: 0 | FV82: 0 | FW82: 0 | FX82: 0 | FY82: 0 | FZ82: 0 | GA82: 0 | GB82: 0 | GC82: 0 | GD82: 0 | GE82: 0 | GF82: 0 | GG82: 0 | GH82: 0
CV83: 0 | CW83: 0 | CX83: 0 | CY83: 0 | CZ83: 0 | DA83: 0 | DB83: 0 | DC83: 0 | DD83: 0 | DE83: 0 | DF83: 0 | DG83: 0 | DH83: 0 | DI83: 0 | DJ83: 0 | DK83: 0 | DL83: 0 | DM83: 0 | DN83: 0 | DO83: 0 | DP83: 0 | DQ83: 0 | DR83: 0 | DS83: 0 | DT83: 0 | DU83: 0 | DV83: 0 | DW83: 0 | DX83: 0 | DY83: 0 | DZ83: 0 | EA83: 0 | EB83: 0 | EC83: 0 | ED83: 0 | EE83: 0 | EF83: 0 | EG83: 0 | EH83: 0 | EI83: 0 | EJ83: 0 | EK83: 0 | EL83: 0 | EM83: 0 | EN83: 0 | EO83: 0 | EP83: 0 | EQ83: 0 | ER83: 0 | ES83: 0 | ET83: 0 | EU83: 0 | EV83: 0 | EW83: 0 | EX83: 0 | EY83: 0 | EZ83: 0 | FA83: 0 | FB83: 0 | FC83: 0 | FD83: 0 | FE83: 0 | FF83: 0 | FG83: 0 | FH83: 0 | FI83: 0 | FJ83: 0 | FK83: 0 | FL83: 0 | FM83: 0 | FN83: 0 | FO83: 0 | FP83: 0 | FQ83: 0 | FR83: 0 | FS83: 0 | FT83: 0 | FU83: 0 | FV83: 0 | FW83: 0 | FX83: 0 | FY83: 0 | FZ83: 0 | GA83: 0 | GB83: 0 | GC83: 0 | GD83: 0 | GE83: 0 | GF83: 0 | GG83: 0 | GH83: 0
CV84: 0 | CW84: 0 | CX84: 0 | CY84: 0 | CZ84: 0 | DA84: 0 | DB84: 0 | DC84: 0 | DD84: 0 | DE84: 0 | DF84: 0 | DG84: 0 | DH84: 0 | DI84: 0 | DJ84: 0 | DK84: 0 | DL84: 0 | DM84: 0 | DN84: 0 | DO84: 0 | DP84: 0 | DQ84: 0 | DR84: 0 | DS84: 0 | DT84: 0 | DU84: 0 | DV84: 0 | DW84: 0 | DX84: 0 | DY84: 0 | DZ84: 0 | EA84: 0 | EB84: 0 | EC84: 0 | ED84: 0 | EE84: 0 | EF84: 0 | EG84: 0 | EH84: 0 | EI84: 0 | EJ84: 0 | EK84: 0 | EL84: 0 | EM84: 0 | EN84: 0 | EO84: 0 | EP84: 0 | EQ84: 0 | ER84: 0 | ES84: 0 | ET84: 0 | EU84: 0 | EV84: 0 | EW84: 0 | EX84: 0 | EY84: 0 | EZ84: 0 | FA84: 0 | FB84: 0 | FC84: 0 | FD84: 0 | FE84: 0 | FF84: 0 | FG84: 0 | FH84: 0 | FI84: 0 | FJ84: 0 | FK84: 0 | FL84: 0 | FM84: 0 | FN84: 0 | FO84: 0 | FP84: 0 | FQ84: 0 | FR84: 0 | FS84: 0 | FT84: 0 | FU84: 0 | FV84: 0 | FW84: 0 | FX84: 0 | FY84: 0 | FZ84: 0 | GA84: 0 | GB84: 0 | GC84: 0 | GD84: 0 | GE84: 0 | GF84: 0 | GG84: 0 | GH84: 0
CV85: 0 | CW85: 0 | CX85: 0 | CY85: 0 | CZ85: 0 | DA85: 0 | DB85: 0 | DC85: 0 | DD85: 0 | DE85: 0 | DF85: 0 | DG85: 0 | DH85: 0 | DI85: 0 | DJ85: 0 | DK85: 0 | DL85: 0 | DM85: 0 | DN85: 0 | DO85: 0 | DP85: 0 | DQ85: 0 | DR85: 0 | DS85: 0 | DT85: 0 | DU85: 0 | DV85: 0 | DW85: 0 | DX85: 0 | DY85: 0 | DZ85: 0 | EA85: 0 | EB85: 0 | EC85: 0 | ED85: 0 | EE85: 0 | EF85: 0 | EG85: 0 | EH85: 0 | EI85: 0 | EJ85: 0 | EK85: 0 | EL85: 0 | EM85: 0 | EN85: 0 | EO85: 0 | EP85: 0 | EQ85: 0 | ER85: 0 | ES85: 0 | ET85: 0 | EU85: 0 | EV85: 0 | EW85: 0 | EX85: 0 | EY85: 0 | EZ85: 0 | FA85: 0 | FB85: 0 | FC85: 0 | FD85: 0 | FE85: 0 | FF85: 0 | FG85: 0 | FH85: 0 | FI85: 0 | FJ85: 0 | FK85: 0 | FL85: 0 | FM85: 0 | FN85: 0 | FO85: 0 | FP85: 0 | FQ85: 0 | FR85: 0 | FS85: 0 | FT85: 0 | FU85: 0 | FV85: 0 | FW85: 0 | FX85: 0 | FY85: 0 | FZ85: 0 | GA85: 0 | GB85: 0 | GC85: 0 | GD85: 0 | GE85: 0 | GF85: 0 | GG85: 0 | GH85: 0
CV86: =IFERROR($D86*H86,"") -> 0 | CW86: =IFERROR($D86*I86,"") -> 0 | CX86: =IFERROR($D86*J86,"") -> 0 | CY86: =IFERROR($D86*K86,"") -> 0 | CZ86: =IFERROR($D86*L86,"") -> 0 | DA86: =IFERROR($D86*M86,"") -> 0 | DB86: =IFERROR($D86*N86,"") -> 0 | DC86: =IFERROR($D86*O86,"") -> 0 | DD86: =IFERROR($D86*P86,"") -> 0 | DE86: =IFERROR($D86*Q86,"") -> 0 | DF86: =IFERROR($D86*R86,"") -> 0 | DG86: =IFERROR($D86*S86,"") -> 0 | DH86: =IFERROR($D86*T86,"") -> 0 | DI86: =IFERROR($D86*U86,"") -> 0 | DJ86: =IFERROR($D86*V86,"") -> 0 | DK86: =IFERROR($D86*W86,"") -> 0 | DL86: =IFERROR($D86*X86,"") -> 0 | DM86: =IFERROR($D86*Y86,"") -> 0 | DN86: =IFERROR($D86*Z86,"") -> 0 | DO86: =IFERROR($D86*AA86,"") -> 0 | DP86: =IFERROR($D86*AB86,"") -> 0 | DQ86: =IFERROR($D86*AC86,"") -> 0 | DR86: =IFERROR($D86*AD86,"") -> 0 | DS86: =IFERROR($D86*AE86,"") -> 0 | DT86: =IFERROR($D86*AF86,"") -> 0 | DU86: =IFERROR($D86*AG86,"") -> 0 | DV86: =IFERROR($D86*AH86,"") -> 0 | DW86: =IFERROR($D86*AI86,"") -> 0 | DX86: =IFERROR($D86*AJ86,"") -> 0 | DY86: =IFERROR($D86*AK86,"") -> 0 | DZ86: =IFERROR($D86*AL86,"") -> 0 | EA86: =IFERROR($D86*AM86,"") -> 0 | EB86: =IFERROR($D86*AN86,"") -> 0 | EC86: =IFERROR($D86*AO86,"") -> 0 | ED86: =IFERROR($D86*AP86,"") -> 0 | EE86: =IFERROR($D86*AQ86,"") -> 0 | EF86: =IFERROR($D86*AR86,"") -> 0 | EG86: =IFERROR($D86*AS86,"") -> 0 | EH86: =IFERROR($D86*AT86,"") -> 0 | EI86: =IFERROR($D86*AU86,"") -> 0 | EJ86: =IFERROR($D86*AV86,"") -> 0 | EK86: =IFERROR($D86*AW86,"") -> 0 | EL86: =IFERROR($D86*AX86,"") -> 0 | EM86: =IFERROR($D86*AY86,"") -> 0 | EN86: =IFERROR($D86*AZ86,"") -> 0 | EO86: =IFERROR($D86*BA86,"") -> 0 | EP86: =IFERROR($D86*BB86,"") -> 0 | EQ86: =IFERROR($D86*BC86,"") -> 0 | ER86: =IFERROR($D86*BD86,"") -> 0 | ES86: =IFERROR($D86*BE86,"") -> 0 | ET86: =IFERROR($D86*BF86,"") -> 0 | EU86: =IFERROR($D86*BG86,"") -> 0 | EV86: =IFERROR($D86*BH86,"") -> 0 | EW86: =IFERROR($D86*BI86,"") -> 0 | EX86: =IFERROR($D86*BJ86,"") -> 0 | EY86: =IFERROR($D86*BK86,"") -> 0 | EZ86: =IFERROR($D86*BL86,"") -> 0 | FA86: =IFERROR($D86*BM86,"") -> 0 | FB86: =IFERROR($D86*BN86,"") -> 0 | FC86: =IFERROR($D86*BO86,"") -> 0 | FD86: =IFERROR($D86*BP86,"") -> 0 | FE86: =IFERROR($D86*BQ86,"") -> 0 | FF86: =IFERROR($D86*BR86,"") -> 0 | FG86: =IFERROR($D86*BS86,"") -> 0 | FH86: =IFERROR($D86*BT86,"") -> 0 | FI86: =IFERROR($D86*BU86,"") -> 0 | FJ86: =IFERROR($D86*BV86,"") -> 0 | FK86: =IFERROR($D86*BW86,"") -> 0 | FL86: =IFERROR($D86*BX86,"") -> 0 | FM86: =IFERROR($D86*BY86,"") -> 0 | FN86: =IFERROR($D86*BZ86,"") -> 0 | FO86: =IFERROR($D86*CA86,"") -> 0 | FP86: =IFERROR($D86*CB86,"") -> 0 | FQ86: =IFERROR($D86*CC86,"") -> 0 | FR86: =IFERROR($D86*CD86,"") -> 0 | FS86: =IFERROR($D86*CE86,"") -> 0 | FT86: =IFERROR($D86*CF86,"") -> 0 | FU86: =IFERROR($D86*CG86,"") -> 0 | FV86: =IFERROR($D86*CH86,"") -> 0 | FW86: =IFERROR($D86*CI86,"") -> 0 | FX86: =IFERROR($D86*CJ86,"") -> 0 | FY86: =IFERROR($D86*CK86,"") -> 0 | FZ86: =IFERROR($D86*CL86,"") -> 0 | GA86: =IFERROR($D86*CM86,"") -> 0 | GB86: =IFERROR($D86*CN86,"") -> 0 | GC86: =IFERROR($D86*CO86,"") -> 0 | GD86: =IFERROR($D86*CP86,"") -> 0 | GE86: =IFERROR($D86*CQ86,"") -> 0 | GF86: =IFERROR($D86*CR86,"") -> 0 | GG86: =IFERROR($D86*CS86,"") -> 0 | GH86: =IFERROR($D86*CT86,"") -> 0
CV87: 0 | CW87: 0 | CX87: 0 | CY87: 0 | CZ87: 0 | DA87: 0 | DB87: 0 | DC87: 0 | DD87: 0 | DE87: 0 | DF87: 0 | DG87: 0 | DH87: 0 | DI87: 0 | DJ87: 0 | DK87: 0 | DL87: 0 | DM87: 0 | DN87: 0 | DO87: 0 | DP87: 0 | DQ87: 0 | DR87: 0 | DS87: 0 | DT87: 0 | DU87: 0 | DV87: 0 | DW87: 0 | DX87: 0 | DY87: 0 | DZ87: 0 | EA87: 0 | EB87: 0 | EC87: 0 | ED87: 0 | EE87: 0 | EF87: 0 | EG87: 0 | EH87: 0 | EI87: 0 | EJ87: 0 | EK87: 0 | EL87: 0 | EM87: 0 | EN87: 0 | EO87: 0 | EP87: 0 | EQ87: 0 | ER87: 0 | ES87: 0 | ET87: 0 | EU87: 0 | EV87: 0 | EW87: 0 | EX87: 0 | EY87: 0 | EZ87: 0 | FA87: 0 | FB87: 0 | FC87: 0 | FD87: 0 | FE87: 0 | FF87: 0 | FG87: 0 | FH87: 0 | FI87: 0 | FJ87: 0 | FK87: 0 | FL87: 0 | FM87: 0 | FN87: 0 | FO87: 0 | FP87: 0 | FQ87: 0 | FR87: 0 | FS87: 0 | FT87: 0 | FU87: 0 | FV87: 0 | FW87: 0 | FX87: 0 | FY87: 0 | FZ87: 0 | GA87: 0 | GB87: 0 | GC87: 0 | GD87: 0 | GE87: 0 | GF87: 0 | GG87: 0 | GH87: 0
CV88: 0 | CW88: 0 | CX88: 0 | CY88: 0 | CZ88: 0 | DA88: 0 | DB88: 0 | DC88: 0 | DD88: 0 | DE88: 0 | DF88: 0 | DG88: 0 | DH88: 0 | DI88: 0 | DJ88: 0 | DK88: 0 | DL88: 0 | DM88: 0 | DN88: 0 | DO88: 0 | DP88: 0 | DQ88: 0 | DR88: 0 | DS88: 0 | DT88: 0 | DU88: 0 | DV88: 0 | DW88: 0 | DX88: 0 | DY88: 0 | DZ88: 0 | EA88: 0 | EB88: 0 | EC88: 0 | ED88: 0 | EE88: 0 | EF88: 0 | EG88: 0 | EH88: 0 | EI88: 0 | EJ88: 0 | EK88: 0 | EL88: 0 | EM88: 0 | EN88: 0 | EO88: 0 | EP88: 0 | EQ88: 0 | ER88: 0 | ES88: 0 | ET88: 0 | EU88: 0 | EV88: 0 | EW88: 0 | EX88: 0 | EY88: 0 | EZ88: 0 | FA88: 0 | FB88: 0 | FC88: 0 | FD88: 0 | FE88: 0 | FF88: 0 | FG88: 0 | FH88: 0 | FI88: 0 | FJ88: 0 | FK88: 0 | FL88: 0 | FM88: 0 | FN88: 0 | FO88: 0 | FP88: 0 | FQ88: 0 | FR88: 0 | FS88: 0 | FT88: 0 | FU88: 0 | FV88: 0 | FW88: 0 | FX88: 0 | FY88: 0 | FZ88: 0 | GA88: 0 | GB88: 0 | GC88: 0 | GD88: 0 | GE88: 0 | GF88: 0 | GG88: 0 | GH88: 0
CV89: 0 | CW89: 0 | CX89: 0 | CY89: 0 | CZ89: 0 | DA89: 0 | DB89: 0 | DC89: 0 | DD89: 0 | DE89: 0 | DF89: 0 | DG89: 0 | DH89: 0 | DI89: 0 | DJ89: 0 | DK89: 0 | DL89: 0 | DM89: 0 | DN89: 0 | DO89: 0 | DP89: 0 | DQ89: 0 | DR89: 0 | DS89: 0 | DT89: 0 | DU89: 0 | DV89: 0 | DW89: 0 | DX89: 0 | DY89: 0 | DZ89: 0 | EA89: 0 | EB89: 0 | EC89: 0 | ED89: 0 | EE89: 0 | EF89: 0 | EG89: 0 | EH89: 0 | EI89: 0 | EJ89: 0 | EK89: 0 | EL89: 0 | EM89: 0 | EN89: 0 | EO89: 0 | EP89: 0 | EQ89: 0 | ER89: 0 | ES89: 0 | ET89: 0 | EU89: 0 | EV89: 0 | EW89: 0 | EX89: 0 | EY89: 0 | EZ89: 0 | FA89: 0 | FB89: 0 | FC89: 0 | FD89: 0 | FE89: 0 | FF89: 0 | FG89: 0 | FH89: 0 | FI89: 0 | FJ89: 0 | FK89: 0 | FL89: 0 | FM89: 0 | FN89: 0 | FO89: 0 | FP89: 0 | FQ89: 0 | FR89: 0 | FS89: 0 | FT89: 0 | FU89: 0 | FV89: 0 | FW89: 0 | FX89: 0 | FY89: 0 | FZ89: 0 | GA89: 0 | GB89: 0 | GC89: 0 | GD89: 0 | GE89: 0 | GF89: 0 | GG89: 0 | GH89: 0
CV90: 0 | CW90: 0 | CX90: 0 | CY90: 0 | CZ90: 0 | DA90: 0 | DB90: 0 | DC90: 0 | DD90: 0 | DE90: 0 | DF90: 0 | DG90: 0 | DH90: 0 | DI90: 0 | DJ90: 0 | DK90: 0 | DL90: 0 | DM90: 0 | DN90: 0 | DO90: 0 | DP90: 0 | DQ90: 0 | DR90: 0 | DS90: 0 | DT90: 0 | DU90: 0 | DV90: 0 | DW90: 0 | DX90: 0 | DY90: 0 | DZ90: 0 | EA90: 0 | EB90: 0 | EC90: 0 | ED90: 0 | EE90: 0 | EF90: 0 | EG90: 0 | EH90: 0 | EI90: 0 | EJ90: 0 | EK90: 0 | EL90: 0 | EM90: 0 | EN90: 0 | EO90: 0 | EP90: 0 | EQ90: 0 | ER90: 0 | ES90: 0 | ET90: 0 | EU90: 0 | EV90: 0 | EW90: 0 | EX90: 0 | EY90: 0 | EZ90: 0 | FA90: 0 | FB90: 0 | FC90: 0 | FD90: 0 | FE90: 0 | FF90: 0 | FG90: 0 | FH90: 0 | FI90: 0 | FJ90: 0 | FK90: 0 | FL90: 0 | FM90: 0 | FN90: 0 | FO90: 0 | FP90: 0 | FQ90: 0 | FR90: 0 | FS90: 0 | FT90: 0 | FU90: 0 | FV90: 0 | FW90: 0 | FX90: 0 | FY90: 0 | FZ90: 0 | GA90: 0 | GB90: 0 | GC90: 0 | GD90: 0 | GE90: 0 | GF90: 0 | GG90: 0 | GH90: 0
CV91: 0 | CW91: 0 | CX91: 0 | CY91: 0 | CZ91: 0 | DA91: 0 | DB91: 0 | DC91: 0 | DD91: 0 | DE91: 0 | DF91: 0 | DG91: 0 | DH91: 0 | DI91: 0 | DJ91: 0 | DK91: 0 | DL91: 0 | DM91: 0 | DN91: 0 | DO91: 0 | DP91: 0 | DQ91: 0 | DR91: 0 | DS91: 0 | DT91: 0 | DU91: 0 | DV91: 0 | DW91: 0 | DX91: 0 | DY91: 0 | DZ91: 0 | EA91: 0 | EB91: 0 | EC91: 0 | ED91: 0 | EE91: 0 | EF91: 0 | EG91: 0 | EH91: 0 | EI91: 0 | EJ91: 0 | EK91: 0 | EL91: 0 | EM91: 0 | EN91: 0 | EO91: 0 | EP91: 0 | EQ91: 0 | ER91: 0 | ES91: 0 | ET91: 0 | EU91: 0 | EV91: 0 | EW91: 0 | EX91: 0 | EY91: 0 | EZ91: 0 | FA91: 0 | FB91: 0 | FC91: 0 | FD91: 0 | FE91: 0 | FF91: 0 | FG91: 0 | FH91: 0 | FI91: 0 | FJ91: 0 | FK91: 0 | FL91: 0 | FM91: 0 | FN91: 0 | FO91: 0 | FP91: 0 | FQ91: 0 | FR91: 0 | FS91: 0 | FT91: 0 | FU91: 0 | FV91: 0 | FW91: 0 | FX91: 0 | FY91: 0 | FZ91: 0 | GA91: 0 | GB91: 0 | GC91: 0 | GD91: 0 | GE91: 0 | GF91: 0 | GG91: 0 | GH91: 0
CV92: 0 | CW92: 0 | CX92: 0 | CY92: 0 | CZ92: 0 | DA92: 0 | DB92: 0 | DC92: 0 | DD92: 0 | DE92: 0 | DF92: 0 | DG92: 0 | DH92: 0 | DI92: 0 | DJ92: 0 | DK92: 0 | DL92: 0 | DM92: 0 | DN92: 0 | DO92: 0 | DP92: 0 | DQ92: 0 | DR92: 0 | DS92: 0 | DT92: 0 | DU92: 0 | DV92: 0 | DW92: 0 | DX92: 0 | DY92: 0 | DZ92: 0 | EA92: 0 | EB92: 0 | EC92: 0 | ED92: 0 | EE92: 0 | EF92: 0 | EG92: 0 | EH92: 0 | EI92: 0 | EJ92: 0 | EK92: 0 | EL92: 0 | EM92: 0 | EN92: 0 | EO92: 0 | EP92: 0 | EQ92: 0 | ER92: 0 | ES92: 0 | ET92: 0 | EU92: 0 | EV92: 0 | EW92: 0 | EX92: 0 | EY92: 0 | EZ92: 0 | FA92: 0 | FB92: 0 | FC92: 0 | FD92: 0 | FE92: 0 | FF92: 0 | FG92: 0 | FH92: 0 | FI92: 0 | FJ92: 0 | FK92: 0 | FL92: 0 | FM92: 0 | FN92: 0 | FO92: 0 | FP92: 0 | FQ92: 0 | FR92: 0 | FS92: 0 | FT92: 0 | FU92: 0 | FV92: 0 | FW92: 0 | FX92: 0 | FY92: 0 | FZ92: 0 | GA92: 0 | GB92: 0 | GC92: 0 | GD92: 0 | GE92: 0 | GF92: 0 | GG92: 0 | GH92: 0
CV93: 0 | CW93: 0 | CX93: 0 | CY93: 0 | CZ93: 0 | DA93: 0 | DB93: 0 | DC93: 0 | DD93: 0 | DE93: 0 | DF93: 0 | DG93: 0 | DH93: 0 | DI93: 0 | DJ93: 0 | DK93: 0 | DL93: 0 | DM93: 0 | DN93: 0 | DO93: 0 | DP93: 0 | DQ93: 0 | DR93: 0 | DS93: 0 | DT93: 0 | DU93: 0 | DV93: 0 | DW93: 0 | DX93: 0 | DY93: 0 | DZ93: 0 | EA93: 0 | EB93: 0 | EC93: 0 | ED93: 0 | EE93: 0 | EF93: 0 | EG93: 0 | EH93: 0 | EI93: 0 | EJ93: 0 | EK93: 0 | EL93: 0 | EM93: 0 | EN93: 0 | EO93: 0 | EP93: 0 | EQ93: 0 | ER93: 0 | ES93: 0 | ET93: 0 | EU93: 0 | EV93: 0 | EW93: 0 | EX93: 0 | EY93: 0 | EZ93: 0 | FA93: 0 | FB93: 0 | FC93: 0 | FD93: 0 | FE93: 0 | FF93: 0 | FG93: 0 | FH93: 0 | FI93: 0 | FJ93: 0 | FK93: 0 | FL93: 0 | FM93: 0 | FN93: 0 | FO93: 0 | FP93: 0 | FQ93: 0 | FR93: 0 | FS93: 0 | FT93: 0 | FU93: 0 | FV93: 0 | FW93: 0 | FX93: 0 | FY93: 0 | FZ93: 0 | GA93: 0 | GB93: 0 | GC93: 0 | GD93: 0 | GE93: 0 | GF93: 0 | GG93: 0 | GH93: 0
CV94: 0 | CW94: 0 | CX94: 0 | CY94: 0 | CZ94: 0 | DA94: 0 | DB94: 0 | DC94: 0 | DD94: 0 | DE94: 0 | DF94: 0 | DG94: 0 | DH94: 0 | DI94: 0 | DJ94: 0 | DK94: 0 | DL94: 0 | DM94: 0 | DN94: 0 | DO94: 0 | DP94: 0 | DQ94: 0 | DR94: 0 | DS94: 0 | DT94: 0 | DU94: 0 | DV94: 0 | DW94: 0 | DX94: 0 | DY94: 0 | DZ94: 0 | EA94: 0 | EB94: 0 | EC94: 0 | ED94: 0 | EE94: 0 | EF94: 0 | EG94: 0 | EH94: 0 | EI94: 0 | EJ94: 0 | EK94: 0 | EL94: 0 | EM94: 0 | EN94: 0 | EO94: 0 | EP94: 0 | EQ94: 0 | ER94: 0 | ES94: 0 | ET94: 0 | EU94: 0 | EV94: 0 | EW94: 0 | EX94: 0 | EY94: 0 | EZ94: 0 | FA94: 0 | FB94: 0 | FC94: 0 | FD94: 0 | FE94: 0 | FF94: 0 | FG94: 0 | FH94: 0 | FI94: 0 | FJ94: 0 | FK94: 0 | FL94: 0 | FM94: 0 | FN94: 0 | FO94: 0 | FP94: 0 | FQ94: 0 | FR94: 0 | FS94: 0 | FT94: 0 | FU94: 0 | FV94: 0 | FW94: 0 | FX94: 0 | FY94: 0 | FZ94: 0 | GA94: 0 | GB94: 0 | GC94: 0 | GD94: 0 | GE94: 0 | GF94: 0 | GG94: 0 | GH94: 0
CV95: 0 | CW95: 0 | CX95: 0 | CY95: 0 | CZ95: 0 | DA95: 0 | DB95: 0 | DC95: 0 | DD95: 0 | DE95: 0 | DF95: 0 | DG95: 0 | DH95: 0 | DI95: 0 | DJ95: 0 | DK95: 0 | DL95: 0 | DM95: 0 | DN95: 0 | DO95: 0 | DP95: 0 | DQ95: 0 | DR95: 0 | DS95: 0 | DT95: 0 | DU95: 0 | DV95: 0 | DW95: 0 | DX95: 0 | DY95: 0 | DZ95: 0 | EA95: 0 | EB95: 0 | EC95: 0 | ED95: 0 | EE95: 0 | EF95: 0 | EG95: 0 | EH95: 0 | EI95: 0 | EJ95: 0 | EK95: 0 | EL95: 0 | EM95: 0 | EN95: 0 | EO95: 0 | EP95: 0 | EQ95: 0 | ER95: 0 | ES95: 0 | ET95: 0 | EU95: 0 | EV95: 0 | EW95: 0 | EX95: 0 | EY95: 0 | EZ95: 0 | FA95: 0 | FB95: 0 | FC95: 0 | FD95: 0 | FE95: 0 | FF95: 0 | FG95: 0 | FH95: 0 | FI95: 0 | FJ95: 0 | FK95: 0 | FL95: 0 | FM95: 0 | FN95: 0 | FO95: 0 | FP95: 0 | FQ95: 0 | FR95: 0 | FS95: 0 | FT95: 0 | FU95: 0 | FV95: 0 | FW95: 0 | FX95: 0 | FY95: 0 | FZ95: 0 | GA95: 0 | GB95: 0 | GC95: 0 | GD95: 0 | GE95: 0 | GF95: 0 | GG95: 0 | GH95: 0
CV96: 0 | CW96: 0 | CX96: 0 | CY96: 0 | CZ96: 0 | DA96: 0 | DB96: 0 | DC96: 0 | DD96: 0 | DE96: 0 | DF96: 0 | DG96: 0 | DH96: 0 | DI96: 0 | DJ96: 0 | DK96: 0 | DL96: 0 | DM96: 0 | DN96: 0 | DO96: 0 | DP96: 0 | DQ96: 0 | DR96: 0 | DS96: 0 | DT96: 0 | DU96: 0 | DV96: 0 | DW96: 0 | DX96: 0 | DY96: 0 | DZ96: 0 | EA96: 0 | EB96: 0 | EC96: 0 | ED96: 0 | EE96: 0 | EF96: 0 | EG96: 0 | EH96: 0 | EI96: 0 | EJ96: 0 | EK96: 0 | EL96: 0 | EM96: 0 | EN96: 0 | EO96: 0 | EP96: 0 | EQ96: 0 | ER96: 0 | ES96: 0 | ET96: 0 | EU96: 0 | EV96: 0 | EW96: 0 | EX96: 0 | EY96: 0 | EZ96: 0 | FA96: 0 | FB96: 0 | FC96: 0 | FD96: 0 | FE96: 0 | FF96: 0 | FG96: 0 | FH96: 0 | FI96: 0 | FJ96: 0 | FK96: 0 | FL96: 0 | FM96: 0 | FN96: 0 | FO96: 0 | FP96: 0 | FQ96: 0 | FR96: 0 | FS96: 0 | FT96: 0 | FU96: 0 | FV96: 0 | FW96: 0 | FX96: 0 | FY96: 0 | FZ96: 0 | GA96: 0 | GB96: 0 | GC96: 0 | GD96: 0 | GE96: 0 | GF96: 0 | GG96: 0 | GH96: 0
CV97: 0 | CW97: 0 | CX97: 0 | CY97: 0 | CZ97: 0 | DA97: 0 | DB97: 0 | DC97: 0 | DD97: 0 | DE97: 0 | DF97: 0 | DG97: 0 | DH97: 0 | DI97: 0 | DJ97: 0 | DK97: 0 | DL97: 0 | DM97: 0 | DN97: 0 | DO97: 0 | DP97: 0 | DQ97: 0 | DR97: 0 | DS97: 0 | DT97: 0 | DU97: 0 | DV97: 0 | DW97: 0 | DX97: 0 | DY97: 0 | DZ97: 0 | EA97: 0 | EB97: 0 | EC97: 0 | ED97: 0 | EE97: 0 | EF97: 0 | EG97: 0 | EH97: 0 | EI97: 0 | EJ97: 0 | EK97: 0 | EL97: 0 | EM97: 0 | EN97: 0 | EO97: 0 | EP97: 0 | EQ97: 0 | ER97: 0 | ES97: 0 | ET97: 0 | EU97: 0 | EV97: 0 | EW97: 0 | EX97: 0 | EY97: 0 | EZ97: 0 | FA97: 0 | FB97: 0 | FC97: 0 | FD97: 0 | FE97: 0 | FF97: 0 | FG97: 0 | FH97: 0 | FI97: 0 | FJ97: 0 | FK97: 0 | FL97: 0 | FM97: 0 | FN97: 0 | FO97: 0 | FP97: 0 | FQ97: 0 | FR97: 0 | FS97: 0 | FT97: 0 | FU97: 0 | FV97: 0 | FW97: 0 | FX97: 0 | FY97: 0 | FZ97: 0 | GA97: 0 | GB97: 0 | GC97: 0 | GD97: 0 | GE97: 0 | GF97: 0 | GG97: 0 | GH97: 0
CV98: 0 | CW98: 0 | CX98: 0 | CY98: 0 | CZ98: 0 | DA98: 0 | DB98: 0 | DC98: 0 | DD98: 0 | DE98: 0 | DF98: 0 | DG98: 0 | DH98: 0 | DI98: 0 | DJ98: 0 | DK98: 0 | DL98: 0 | DM98: 0 | DN98: 0 | DO98: 0 | DP98: 0 | DQ98: 0 | DR98: 0 | DS98: 0 | DT98: 0 | DU98: 0 | DV98: 0 | DW98: 0 | DX98: 0 | DY98: 0 | DZ98: 0 | EA98: 0 | EB98: 0 | EC98: 0 | ED98: 0 | EE98: 0 | EF98: 0 | EG98: 0 | EH98: 0 | EI98: 0 | EJ98: 0 | EK98: 0 | EL98: 0 | EM98: 0 | EN98: 0 | EO98: 0 | EP98: 0 | EQ98: 0 | ER98: 0 | ES98: 0 | ET98: 0 | EU98: 0 | EV98: 0 | EW98: 0 | EX98: 0 | EY98: 0 | EZ98: 0 | FA98: 0 | FB98: 0 | FC98: 0 | FD98: 0 | FE98: 0 | FF98: 0 | FG98: 0 | FH98: 0 | FI98: 0 | FJ98: 0 | FK98: 0 | FL98: 0 | FM98: 0 | FN98: 0 | FO98: 0 | FP98: 0 | FQ98: 0 | FR98: 0 | FS98: 0 | FT98: 0 | FU98: 0 | FV98: 0 | FW98: 0 | FX98: 0 | FY98: 0 | FZ98: 0 | GA98: 0 | GB98: 0 | GC98: 0 | GD98: 0 | GE98: 0 | GF98: 0 | GG98: 0 | GH98: 0
CV99: 0 | CW99: 0 | CX99: 0 | CY99: 0 | CZ99: 0 | DA99: 0 | DB99: 0 | DC99: 0 | DD99: 0 | DE99: 0 | DF99: 0 | DG99: 0 | DH99: 0 | DI99: 0 | DJ99: 0 | DK99: 0 | DL99: 0 | DM99: 0 | DN99: 0 | DO99: 0 | DP99: 0 | DQ99: 0 | DR99: 0 | DS99: 0 | DT99: 0 | DU99: 0 | DV99: 0 | DW99: 0 | DX99: 0 | DY99: 0 | DZ99: 0 | EA99: 0 | EB99: 0 | EC99: 0 | ED99: 0 | EE99: 0 | EF99: 0 | EG99: 0 | EH99: 0 | EI99: 0 | EJ99: 0 | EK99: 0 | EL99: 0 | EM99: 0 | EN99: 0 | EO99: 0 | EP99: 0 | EQ99: 0 | ER99: 0 | ES99: 0 | ET99: 0 | EU99: 0 | EV99: 0 | EW99: 0 | EX99: 0 | EY99: 0 | EZ99: 0 | FA99: 0 | FB99: 0 | FC99: 0 | FD99: 0 | FE99: 0 | FF99: 0 | FG99: 0 | FH99: 0 | FI99: 0 | FJ99: 0 | FK99: 0 | FL99: 0 | FM99: 0 | FN99: 0 | FO99: 0 | FP99: 0 | FQ99: 0 | FR99: 0 | FS99: 0 | FT99: 0 | FU99: 0 | FV99: 0 | FW99: 0 | FX99: 0 | FY99: 0 | FZ99: 0 | GA99: 0 | GB99: 0 | GC99: 0 | GD99: 0 | GE99: 0 | GF99: 0 | GG99: 0 | GH99: 0
CV100: 0 | CW100: 0 | CX100: 0 | CY100: 0 | CZ100: 0 | DA100: 0 | DB100: 0 | DC100: 0 | DD100: 0 | DE100: 0 | DF100: 0 | DG100: 0 | DH100: 0 | DI100: 0 | DJ100: 0 | DK100: 0 | DL100: 0 | DM100: 0 | DN100: 0 | DO100: 0 | DP100: 0 | DQ100: 0 | DR100: 0 | DS100: 0 | DT100: 0 | DU100: 0 | DV100: 0 | DW100: 0 | DX100: 0 | DY100: 0 | DZ100: 0 | EA100: 0 | EB100: 0 | EC100: 0 | ED100: 0 | EE100: 0 | EF100: 0 | EG100: 0 | EH100: 0 | EI100: 0 | EJ100: 0 | EK100: 0 | EL100: 0 | EM100: 0 | EN100: 0 | EO100: 0 | EP100: 0 | EQ100: 0 | ER100: 0 | ES100: 0 | ET100: 0 | EU100: 0 | EV100: 0 | EW100: 0 | EX100: 0 | EY100: 0 | EZ100: 0 | FA100: 0 | FB100: 0 | FC100: 0 | FD100: 0 | FE100: 0 | FF100: 0 | FG100: 0 | FH100: 0 | FI100: 0 | FJ100: 0 | FK100: 0 | FL100: 0 | FM100: 0 | FN100: 0 | FO100: 0 | FP100: 0 | FQ100: 0 | FR100: 0 | FS100: 0 | FT100: 0 | FU100: 0 | FV100: 0 | FW100: 0 | FX100: 0 | FY100: 0 | FZ100: 0 | GA100: 0 | GB100: 0 | GC100: 0 | GD100: 0 | GE100: 0 | GF100: 0 | GG100: 0 | GH100: 0
CV101: 0 | CW101: 0 | CX101: 0 | CY101: 0 | CZ101: 0 | DA101: 0 | DB101: 0 | DC101: 0 | DD101: 0 | DE101: 0 | DF101: 0 | DG101: 0 | DH101: 0 | DI101: 0 | DJ101: 0 | DK101: 0 | DL101: 0 | DM101: 0 | DN101: 0 | DO101: 0 | DP101: 0 | DQ101: 0 | DR101: 0 | DS101: 0 | DT101: 0 | DU101: 0 | DV101: 0 | DW101: 0 | DX101: 0 | DY101: 0 | DZ101: 0 | EA101: 0 | EB101: 0 | EC101: 0 | ED101: 0 | EE101: 0 | EF101: 0 | EG101: 0 | EH101: 0 | EI101: 0 | EJ101: 0 | EK101: 0 | EL101: 0 | EM101: 0 | EN101: 0 | EO101: 0 | EP101: 0 | EQ101: 0 | ER101: 0 | ES101: 0 | ET101: 0 | EU101: 0 | EV101: 0 | EW101: 0 | EX101: 0 | EY101: 0 | EZ101: 0 | FA101: 0 | FB101: 0 | FC101: 0 | FD101: 0 | FE101: 0 | FF101: 0 | FG101: 0 | FH101: 0 | FI101: 0 | FJ101: 0 | FK101: 0 | FL101: 0 | FM101: 0 | FN101: 0 | FO101: 0 | FP101: 0 | FQ101: 0 | FR101: 0 | FS101: 0 | FT101: 0 | FU101: 0 | FV101: 0 | FW101: 0 | FX101: 0 | FY101: 0 | FZ101: 0 | GA101: 0 | GB101: 0 | GC101: 0 | GD101: 0 | GE101: 0 | GF101: 0 | GG101: 0 | GH101: 0
CV102: 0 | CW102: 0 | CX102: 0 | CY102: 0 | CZ102: 0 | DA102: 0 | DB102: 0 | DC102: 0 | DD102: 0 | DE102: 0 | DF102: 0 | DG102: 0 | DH102: 0 | DI102: 0 | DJ102: 0 | DK102: 0 | DL102: 0 | DM102: 0 | DN102: 0 | DO102: 0 | DP102: 0 | DQ102: 0 | DR102: 0 | DS102: 0 | DT102: 0 | DU102: 0 | DV102: 0 | DW102: 0 | DX102: 0 | DY102: 0 | DZ102: 0 | EA102: 0 | EB102: 0 | EC102: 0 | ED102: 0 | EE102: 0 | EF102: 0 | EG102: 0 | EH102: 0 | EI102: 0 | EJ102: 0 | EK102: 0 | EL102: 0 | EM102: 0 | EN102: 0 | EO102: 0 | EP102: 0 | EQ102: 0 | ER102: 0 | ES102: 0 | ET102: 0 | EU102: 0 | EV102: 0 | EW102: 0 | EX102: 0 | EY102: 0 | EZ102: 0 | FA102: 0 | FB102: 0 | FC102: 0 | FD102: 0 | FE102: 0 | FF102: 0 | FG102: 0 | FH102: 0 | FI102: 0 | FJ102: 0 | FK102: 0 | FL102: 0 | FM102: 0 | FN102: 0 | FO102: 0 | FP102: 0 | FQ102: 0 | FR102: 0 | FS102: 0 | FT102: 0 | FU102: 0 | FV102: 0 | FW102: 0 | FX102: 0 | FY102: 0 | FZ102: 0 | GA102: 0 | GB102: 0 | GC102: 0 | GD102: 0 | GE102: 0 | GF102: 0 | GG102: 0 | GH102: 0
CV103: 0 | CW103: 0 | CX103: 0 | CY103: 0 | CZ103: 0 | DA103: 0 | DB103: 0 | DC103: 0 | DD103: 0 | DE103: 0 | DF103: 0 | DG103: 0 | DH103: 0 | DI103: 0 | DJ103: 0 | DK103: 0 | DL103: 0 | DM103: 0 | DN103: 0 | DO103: 0 | DP103: 0 | DQ103: 0 | DR103: 0 | DS103: 0 | DT103: 0 | DU103: 0 | DV103: 0 | DW103: 0 | DX103: 0 | DY103: 0 | DZ103: 0 | EA103: 0 | EB103: 0 | EC103: 0 | ED103: 0 | EE103: 0 | EF103: 0 | EG103: 0 | EH103: 0 | EI103: 0 | EJ103: 0 | EK103: 0 | EL103: 0 | EM103: 0 | EN103: 0 | EO103: 0 | EP103: 0 | EQ103: 0 | ER103: 0 | ES103: 0 | ET103: 0 | EU103: 0 | EV103: 0 | EW103: 0 | EX103: 0 | EY103: 0 | EZ103: 0 | FA103: 0 | FB103: 0 | FC103: 0 | FD103: 0 | FE103: 0 | FF103: 0 | FG103: 0 | FH103: 0 | FI103: 0 | FJ103: 0 | FK103: 0 | FL103: 0 | FM103: 0 | FN103: 0 | FO103: 0 | FP103: 0 | FQ103: 0 | FR103: 0 | FS103: 0 | FT103: 0 | FU103: 0 | FV103: 0 | FW103: 0 | FX103: 0 | FY103: 0 | FZ103: 0 | GA103: 0 | GB103: 0 | GC103: 0 | GD103: 0 | GE103: 0 | GF103: 0 | GG103: 0 | GH103: 0
CV104: 0 | CW104: 0 | CX104: 0 | CY104: 0 | CZ104: 0 | DA104: 0 | DB104: 0 | DC104: 0 | DD104: 0 | DE104: 0 | DF104: 0 | DG104: 0 | DH104: 0 | DI104: 0 | DJ104: 0 | DK104: 0 | DL104: 0 | DM104: 0 | DN104: 0 | DO104: 0 | DP104: 0 | DQ104: 0 | DR104: 0 | DS104: 0 | DT104: 0 | DU104: 0 | DV104: 0 | DW104: 0 | DX104: 0 | DY104: 0 | DZ104: 0 | EA104: 0 | EB104: 0 | EC104: 0 | ED104: 0 | EE104: 0 | EF104: 0 | EG104: 0 | EH104: 0 | EI104: 0 | EJ104: 0 | EK104: 0 | EL104: 0 | EM104: 0 | EN104: 0 | EO104: 0 | EP104: 0 | EQ104: 0 | ER104: 0 | ES104: 0 | ET104: 0 | EU104: 0 | EV104: 0 | EW104: 0 | EX104: 0 | EY104: 0 | EZ104: 0 | FA104: 0 | FB104: 0 | FC104: 0 | FD104: 0 | FE104: 0 | FF104: 0 | FG104: 0 | FH104: 0 | FI104: 0 | FJ104: 0 | FK104: 0 | FL104: 0 | FM104: 0 | FN104: 0 | FO104: 0 | FP104: 0 | FQ104: 0 | FR104: 0 | FS104: 0 | FT104: 0 | FU104: 0 | FV104: 0 | FW104: 0 | FX104: 0 | FY104: 0 | FZ104: 0 | GA104: 0 | GB104: 0 | GC104: 0 | GD104: 0 | GE104: 0 | GF104: 0 | GG104: 0 | GH104: 0
CV105: 0 | CW105: 0 | CX105: 0 | CY105: 0 | CZ105: 0 | DA105: 0 | DB105: 0 | DC105: 0 | DD105: 0 | DE105: 0 | DF105: 0 | DG105: 0 | DH105: 0 | DI105: 0 | DJ105: 0 | DK105: 0 | DL105: 0 | DM105: 0 | DN105: 0 | DO105: 0 | DP105: 0 | DQ105: 0 | DR105: 0 | DS105: 0 | DT105: 0 | DU105: 0 | DV105: 0 | DW105: 0 | DX105: 0 | DY105: 0 | DZ105: 0 | EA105: 0 | EB105: 0 | EC105: 0 | ED105: 0 | EE105: 0 | EF105: 0 | EG105: 0 | EH105: 0 | EI105: 0 | EJ105: 0 | EK105: 0 | EL105: 0 | EM105: 0 | EN105: 0 | EO105: 0 | EP105: 0 | EQ105: 0 | ER105: 0 | ES105: 0 | ET105: 0 | EU105: 0 | EV105: 0 | EW105: 0 | EX105: 0 | EY105: 0 | EZ105: 0 | FA105: 0 | FB105: 0 | FC105: 0 | FD105: 0 | FE105: 0 | FF105: 0 | FG105: 0 | FH105: 0 | FI105: 0 | FJ105: 0 | FK105: 0 | FL105: 0 | FM105: 0 | FN105: 0 | FO105: 0 | FP105: 0 | FQ105: 0 | FR105: 0 | FS105: 0 | FT105: 0 | FU105: 0 | FV105: 0 | FW105: 0 | FX105: 0 | FY105: 0 | FZ105: 0 | GA105: 0 | GB105: 0 | GC105: 0 | GD105: 0 | GE105: 0 | GF105: 0 | GG105: 0 | GH105: 0
CV106: 0 | CW106: 0 | CX106: 0 | CY106: 0 | CZ106: 0 | DA106: 0 | DB106: 0 | DC106: 0 | DD106: 0 | DE106: 0 | DF106: 0 | DG106: 0 | DH106: 0 | DI106: 0 | DJ106: 0 | DK106: 0 | DL106: 0 | DM106: 0 | DN106: 0 | DO106: 0 | DP106: 0 | DQ106: 0 | DR106: 0 | DS106: 0 | DT106: 0 | DU106: 0 | DV106: 0 | DW106: 0 | DX106: 0 | DY106: 0 | DZ106: 0 | EA106: 0 | EB106: 0 | EC106: 0 | ED106: 0 | EE106: 0 | EF106: 0 | EG106: 0 | EH106: 0 | EI106: 0 | EJ106: 0 | EK106: 0 | EL106: 0 | EM106: 0 | EN106: 0 | EO106: 0 | EP106: 0 | EQ106: 0 | ER106: 0 | ES106: 0 | ET106: 0 | EU106: 0 | EV106: 0 | EW106: 0 | EX106: 0 | EY106: 0 | EZ106: 0 | FA106: 0 | FB106: 0 | FC106: 0 | FD106: 0 | FE106: 0 | FF106: 0 | FG106: 0 | FH106: 0 | FI106: 0 | FJ106: 0 | FK106: 0 | FL106: 0 | FM106: 0 | FN106: 0 | FO106: 0 | FP106: 0 | FQ106: 0 | FR106: 0 | FS106: 0 | FT106: 0 | FU106: 0 | FV106: 0 | FW106: 0 | FX106: 0 | FY106: 0 | FZ106: 0 | GA106: 0 | GB106: 0 | GC106: 0 | GD106: 0 | GE106: 0 | GF106: 0 | GG106: 0 | GH106: 0
CV107: 0 | CW107: 0 | CX107: 0 | CY107: 0 | CZ107: 0 | DA107: 0 | DB107: 0 | DC107: 0 | DD107: 0 | DE107: 0 | DF107: 0 | DG107: 0 | DH107: 0 | DI107: 0 | DJ107: 0 | DK107: 0 | DL107: 0 | DM107: 0 | DN107: 0 | DO107: 0 | DP107: 0 | DQ107: 0 | DR107: 0 | DS107: 0 | DT107: 0 | DU107: 0 | DV107: 0 | DW107: 0 | DX107: 0 | DY107: 0 | DZ107: 0 | EA107: 0 | EB107: 0 | EC107: 0 | ED107: 0 | EE107: 0 | EF107: 0 | EG107: 0 | EH107: 0 | EI107: 0 | EJ107: 0 | EK107: 0 | EL107: 0 | EM107: 0 | EN107: 0 | EO107: 0 | EP107: 0 | EQ107: 0 | ER107: 0 | ES107: 0 | ET107: 0 | EU107: 0 | EV107: 0 | EW107: 0 | EX107: 0 | EY107: 0 | EZ107: 0 | FA107: 0 | FB107: 0 | FC107: 0 | FD107: 0 | FE107: 0 | FF107: 0 | FG107: 0 | FH107: 0 | FI107: 0 | FJ107: 0 | FK107: 0 | FL107: 0 | FM107: 0 | FN107: 0 | FO107: 0 | FP107: 0 | FQ107: 0 | FR107: 0 | FS107: 0 | FT107: 0 | FU107: 0 | FV107: 0 | FW107: 0 | FX107: 0 | FY107: 0 | FZ107: 0 | GA107: 0 | GB107: 0 | GC107: 0 | GD107: 0 | GE107: 0 | GF107: 0 | GG107: 0 | GH107: 0
CV108: 0 | CW108: 0 | CX108: 0 | CY108: 0 | CZ108: 0 | DA108: 0 | DB108: 0 | DC108: 0 | DD108: 0 | DE108: 0 | DF108: 0 | DG108: 0 | DH108: 0 | DI108: 0 | DJ108: 0 | DK108: 0 | DL108: 0 | DM108: 0 | DN108: 0 | DO108: 0 | DP108: 0 | DQ108: 0 | DR108: 0 | DS108: 0 | DT108: 0 | DU108: 0 | DV108: 0 | DW108: 0 | DX108: 0 | DY108: 0 | DZ108: 0 | EA108: 0 | EB108: 0 | EC108: 0 | ED108: 0 | EE108: 0 | EF108: 0 | EG108: 0 | EH108: 0 | EI108: 0 | EJ108: 0 | EK108: 0 | EL108: 0 | EM108: 0 | EN108: 0 | EO108: 0 | EP108: 0 | EQ108: 0 | ER108: 0 | ES108: 0 | ET108: 0 | EU108: 0 | EV108: 0 | EW108: 0 | EX108: 0 | EY108: 0 | EZ108: 0 | FA108: 0 | FB108: 0 | FC108: 0 | FD108: 0 | FE108: 0 | FF108: 0 | FG108: 0 | FH108: 0 | FI108: 0 | FJ108: 0 | FK108: 0 | FL108: 0 | FM108: 0 | FN108: 0 | FO108: 0 | FP108: 0 | FQ108: 0 | FR108: 0 | FS108: 0 | FT108: 0 | FU108: 0 | FV108: 0 | FW108: 0 | FX108: 0 | FY108: 0 | FZ108: 0 | GA108: 0 | GB108: 0 | GC108: 0 | GD108: 0 | GE108: 0 | GF108: 0 | GG108: 0 | GH108: 0
CV109: 0 | CW109: 0 | CX109: 0 | CY109: 0 | CZ109: 0 | DA109: 0 | DB109: 0 | DC109: 0 | DD109: 0 | DE109: 0 | DF109: 0 | DG109: 0 | DH109: 0 | DI109: 0 | DJ109: 0 | DK109: 0 | DL109: 0 | DM109: 0 | DN109: 0 | DO109: 0 | DP109: 0 | DQ109: 0 | DR109: 0 | DS109: 0 | DT109: 0 | DU109: 0 | DV109: 0 | DW109: 0 | DX109: 0 | DY109: 0 | DZ109: 0 | EA109: 0 | EB109: 0 | EC109: 0 | ED109: 0 | EE109: 0 | EF109: 0 | EG109: 0 | EH109: 0 | EI109: 0 | EJ109: 0 | EK109: 0 | EL109: 0 | EM109: 0 | EN109: 0 | EO109: 0 | EP109: 0 | EQ109: 0 | ER109: 0 | ES109: 0 | ET109: 0 | EU109: 0 | EV109: 0 | EW109: 0 | EX109: 0 | EY109: 0 | EZ109: 0 | FA109: 0 | FB109: 0 | FC109: 0 | FD109: 0 | FE109: 0 | FF109: 0 | FG109: 0 | FH109: 0 | FI109: 0 | FJ109: 0 | FK109: 0 | FL109: 0 | FM109: 0 | FN109: 0 | FO109: 0 | FP109: 0 | FQ109: 0 | FR109: 0 | FS109: 0 | FT109: 0 | FU109: 0 | FV109: 0 | FW109: 0 | FX109: 0 | FY109: 0 | FZ109: 0 | GA109: 0 | GB109: 0 | GC109: 0 | GD109: 0 | GE109: 0 | GF109: 0 | GG109: 0 | GH109: 0
CV110: 0 | CW110: 0 | CX110: 0 | CY110: 0 | CZ110: 0 | DA110: 0 | DB110: 0 | DC110: 0 | DD110: 0 | DE110: 0 | DF110: 0 | DG110: 0 | DH110: 0 | DI110: 0 | DJ110: 0 | DK110: 0 | DL110: 0 | DM110: 0 | DN110: 0 | DO110: 0 | DP110: 0 | DQ110: 0 | DR110: 0 | DS110: 0 | DT110: 0 | DU110: 0 | DV110: 0 | DW110: 0 | DX110: 0 | DY110: 0 | DZ110: 0 | EA110: 0 | EB110: 0 | EC110: 0 | ED110: 0 | EE110: 0 | EF110: 0 | EG110: 0 | EH110: 0 | EI110: 0 | EJ110: 0 | EK110: 0 | EL110: 0 | EM110: 0 | EN110: 0 | EO110: 0 | EP110: 0 | EQ110: 0 | ER110: 0 | ES110: 0 | ET110: 0 | EU110: 0 | EV110: 0 | EW110: 0 | EX110: 0 | EY110: 0 | EZ110: 0 | FA110: 0 | FB110: 0 | FC110: 0 | FD110: 0 | FE110: 0 | FF110: 0 | FG110: 0 | FH110: 0 | FI110: 0 | FJ110: 0 | FK110: 0 | FL110: 0 | FM110: 0 | FN110: 0 | FO110: 0 | FP110: 0 | FQ110: 0 | FR110: 0 | FS110: 0 | FT110: 0 | FU110: 0 | FV110: 0 | FW110: 0 | FX110: 0 | FY110: 0 | FZ110: 0 | GA110: 0 | GB110: 0 | GC110: 0 | GD110: 0 | GE110: 0 | GF110: 0 | GG110: 0 | GH110: 0
CV111: 0 | CW111: 0 | CX111: 0 | CY111: 0 | CZ111: 0 | DA111: 0 | DB111: 0 | DC111: 0 | DD111: 0 | DE111: 0 | DF111: 0 | DG111: 0 | DH111: 0 | DI111: 0 | DJ111: 0 | DK111: 0 | DL111: 0 | DM111: 0 | DN111: 0 | DO111: 0 | DP111: 0 | DQ111: 0 | DR111: 0 | DS111: 0 | DT111: 0 | DU111: 0 | DV111: 0 | DW111: 0 | DX111: 0 | DY111: 0 | DZ111: 0 | EA111: 0 | EB111: 0 | EC111: 0 | ED111: 0 | EE111: 0 | EF111: 0 | EG111: 0 | EH111: 0 | EI111: 0 | EJ111: 0 | EK111: 0 | EL111: 0 | EM111: 0 | EN111: 0 | EO111: 0 | EP111: 0 | EQ111: 0 | ER111: 0 | ES111: 0 | ET111: 0 | EU111: 0 | EV111: 0 | EW111: 0 | EX111: 0 | EY111: 0 | EZ111: 0 | FA111: 0 | FB111: 0 | FC111: 0 | FD111: 0 | FE111: 0 | FF111: 0 | FG111: 0 | FH111: 0 | FI111: 0 | FJ111: 0 | FK111: 0 | FL111: 0 | FM111: 0 | FN111: 0 | FO111: 0 | FP111: 0 | FQ111: 0 | FR111: 0 | FS111: 0 | FT111: 0 | FU111: 0 | FV111: 0 | FW111: 0 | FX111: 0 | FY111: 0 | FZ111: 0 | GA111: 0 | GB111: 0 | GC111: 0 | GD111: 0 | GE111: 0 | GF111: 0 | GG111: 0 | GH111: 0
CV112: 0 | CW112: 0 | CX112: 0 | CY112: 0 | CZ112: 0 | DA112: 0 | DB112: 0 | DC112: 0 | DD112: 0 | DE112: 0 | DF112: 0 | DG112: 0 | DH112: 0 | DI112: 0 | DJ112: 0 | DK112: 0 | DL112: 0 | DM112: 0 | DN112: 0 | DO112: 0 | DP112: 0 | DQ112: 0 | DR112: 0 | DS112: 0 | DT112: 0 | DU112: 0 | DV112: 0 | DW112: 0 | DX112: 0 | DY112: 0 | DZ112: 0 | EA112: 0 | EB112: 0 | EC112: 0 | ED112: 0 | EE112: 0 | EF112: 0 | EG112: 0 | EH112: 0 | EI112: 0 | EJ112: 0 | EK112: 0 | EL112: 0 | EM112: 0 | EN112: 0 | EO112: 0 | EP112: 0 | EQ112: 0 | ER112: 0 | ES112: 0 | ET112: 0 | EU112: 0 | EV112: 0 | EW112: 0 | EX112: 0 | EY112: 0 | EZ112: 0 | FA112: 0 | FB112: 0 | FC112: 0 | FD112: 0 | FE112: 0 | FF112: 0 | FG112: 0 | FH112: 0 | FI112: 0 | FJ112: 0 | FK112: 0 | FL112: 0 | FM112: 0 | FN112: 0 | FO112: 0 | FP112: 0 | FQ112: 0 | FR112: 0 | FS112: 0 | FT112: 0 | FU112: 0 | FV112: 0 | FW112: 0 | FX112: 0 | FY112: 0 | FZ112: 0 | GA112: 0 | GB112: 0 | GC112: 0 | GD112: 0 | GE112: 0 | GF112: 0 | GG112: 0 | GH112: 0
CV113: 0 | CW113: 0 | CX113: 0 | CY113: 0 | CZ113: 0 | DA113: 0 | DB113: 0 | DC113: 0 | DD113: 0 | DE113: 0 | DF113: 0 | DG113: 0 | DH113: 0 | DI113: 0 | DJ113: 0 | DK113: 0 | DL113: 0 | DM113: 0 | DN113: 0 | DO113: 0 | DP113: 0 | DQ113: 0 | DR113: 0 | DS113: 0 | DT113: 0 | DU113: 0 | DV113: 0 | DW113: 0 | DX113: 0 | DY113: 0 | DZ113: 0 | EA113: 0 | EB113: 0 | EC113: 0 | ED113: 0 | EE113: 0 | EF113: 0 | EG113: 0 | EH113: 0 | EI113: 0 | EJ113: 0 | EK113: 0 | EL113: 0 | EM113: 0 | EN113: 0 | EO113: 0 | EP113: 0 | EQ113: 0 | ER113: 0 | ES113: 0 | ET113: 0 | EU113: 0 | EV113: 0 | EW113: 0 | EX113: 0 | EY113: 0 | EZ113: 0 | FA113: 0 | FB113: 0 | FC113: 0 | FD113: 0 | FE113: 0 | FF113: 0 | FG113: 0 | FH113: 0 | FI113: 0 | FJ113: 0 | FK113: 0 | FL113: 0 | FM113: 0 | FN113: 0 | FO113: 0 | FP113: 0 | FQ113: 0 | FR113: 0 | FS113: 0 | FT113: 0 | FU113: 0 | FV113: 0 | FW113: 0 | FX113: 0 | FY113: 0 | FZ113: 0 | GA113: 0 | GB113: 0 | GC113: 0 | GD113: 0 | GE113: 0 | GF113: 0 | GG113: 0 | GH113: 0
CV114: 0 | CW114: 0 | CX114: 0 | CY114: 0 | CZ114: 0 | DA114: 0 | DB114: 0 | DC114: 0 | DD114: 0 | DE114: 0 | DF114: 0 | DG114: 0 | DH114: 0 | DI114: 0 | DJ114: 0 | DK114: 0 | DL114: 0 | DM114: 0 | DN114: 0 | DO114: 0 | DP114: 0 | DQ114: 0 | DR114: 0 | DS114: 0 | DT114: 0 | DU114: 0 | DV114: 0 | DW114: 0 | DX114: 0 | DY114: 0 | DZ114: 0 | EA114: 0 | EB114: 0 | EC114: 0 | ED114: 0 | EE114: 0 | EF114: 0 | EG114: 0 | EH114: 0 | EI114: 0 | EJ114: 0 | EK114: 0 | EL114: 0 | EM114: 0 | EN114: 0 | EO114: 0 | EP114: 0 | EQ114: 0 | ER114: 0 | ES114: 0 | ET114: 0 | EU114: 0 | EV114: 0 | EW114: 0 | EX114: 0 | EY114: 0 | EZ114: 0 | FA114: 0 | FB114: 0 | FC114: 0 | FD114: 0 | FE114: 0 | FF114: 0 | FG114: 0 | FH114: 0 | FI114: 0 | FJ114: 0 | FK114: 0 | FL114: 0 | FM114: 0 | FN114: 0 | FO114: 0 | FP114: 0 | FQ114: 0 | FR114: 0 | FS114: 0 | FT114: 0 | FU114: 0 | FV114: 0 | FW114: 0 | FX114: 0 | FY114: 0 | FZ114: 0 | GA114: 0 | GB114: 0 | GC114: 0 | GD114: 0 | GE114: 0 | GF114: 0 | GG114: 0 | GH114: 0
CV115: 0 | CW115: 0 | CX115: 0 | CY115: 0 | CZ115: 0 | DA115: 0 | DB115: 0 | DC115: 0 | DD115: 0 | DE115: 0 | DF115: 0 | DG115: 0 | DH115: 0 | DI115: 0 | DJ115: 0 | DK115: 0 | DL115: 0 | DM115: 0 | DN115: 0 | DO115: 0 | DP115: 0 | DQ115: 0 | DR115: 0 | DS115: 0 | DT115: 0 | DU115: 0 | DV115: 0 | DW115: 0 | DX115: 0 | DY115: 0 | DZ115: 0 | EA115: 0 | EB115: 0 | EC115: 0 | ED115: 0 | EE115: 0 | EF115: 0 | EG115: 0 | EH115: 0 | EI115: 0 | EJ115: 0 | EK115: 0 | EL115: 0 | EM115: 0 | EN115: 0 | EO115: 0 | EP115: 0 | EQ115: 0 | ER115: 0 | ES115: 0 | ET115: 0 | EU115: 0 | EV115: 0 | EW115: 0 | EX115: 0 | EY115: 0 | EZ115: 0 | FA115: 0 | FB115: 0 | FC115: 0 | FD115: 0 | FE115: 0 | FF115: 0 | FG115: 0 | FH115: 0 | FI115: 0 | FJ115: 0 | FK115: 0 | FL115: 0 | FM115: 0 | FN115: 0 | FO115: 0 | FP115: 0 | FQ115: 0 | FR115: 0 | FS115: 0 | FT115: 0 | FU115: 0 | FV115: 0 | FW115: 0 | FX115: 0 | FY115: 0 | FZ115: 0 | GA115: 0 | GB115: 0 | GC115: 0 | GD115: 0 | GE115: 0 | GF115: 0 | GG115: 0 | GH115: 0
CV116: 0 | CW116: 0 | CX116: 0 | CY116: 0 | CZ116: 0 | DA116: 0 | DB116: 0 | DC116: 0 | DD116: 0 | DE116: 0 | DF116: 0 | DG116: 0 | DH116: 0 | DI116: 0 | DJ116: 0 | DK116: 0 | DL116: 0 | DM116: 0 | DN116: 0 | DO116: 0 | DP116: 0 | DQ116: 0 | DR116: 0 | DS116: 0 | DT116: 0 | DU116: 0 | DV116: 0 | DW116: 0 | DX116: 0 | DY116: 0 | DZ116: 0 | EA116: 0 | EB116: 0 | EC116: 0 | ED116: 0 | EE116: 0 | EF116: 0 | EG116: 0 | EH116: 0 | EI116: 0 | EJ116: 0 | EK116: 0 | EL116: 0 | EM116: 0 | EN116: 0 | EO116: 0 | EP116: 0 | EQ116: 0 | ER116: 0 | ES116: 0 | ET116: 0 | EU116: 0 | EV116: 0 | EW116: 0 | EX116: 0 | EY116: 0 | EZ116: 0 | FA116: 0 | FB116: 0 | FC116: 0 | FD116: 0 | FE116: 0 | FF116: 0 | FG116: 0 | FH116: 0 | FI116: 0 | FJ116: 0 | FK116: 0 | FL116: 0 | FM116: 0 | FN116: 0 | FO116: 0 | FP116: 0 | FQ116: 0 | FR116: 0 | FS116: 0 | FT116: 0 | FU116: 0 | FV116: 0 | FW116: 0 | FX116: 0 | FY116: 0 | FZ116: 0 | GA116: 0 | GB116: 0 | GC116: 0 | GD116: 0 | GE116: 0 | GF116: 0 | GG116: 0 | GH116: 0
CV117: 0 | CW117: 0 | CX117: 0 | CY117: 0 | CZ117: 0 | DA117: 0 | DB117: 0 | DC117: 0 | DD117: 0 | DE117: 0 | DF117: 0 | DG117: 0 | DH117: 0 | DI117: 0 | DJ117: 0 | DK117: 0 | DL117: 0 | DM117: 0 | DN117: 0 | DO117: 0 | DP117: 0 | DQ117: 0 | DR117: 0 | DS117: 0 | DT117: 0 | DU117: 0 | DV117: 0 | DW117: 0 | DX117: 0 | DY117: 0 | DZ117: 0 | EA117: 0 | EB117: 0 | EC117: 0 | ED117: 0 | EE117: 0 | EF117: 0 | EG117: 0 | EH117: 0 | EI117: 0 | EJ117: 0 | EK117: 0 | EL117: 0 | EM117: 0 | EN117: 0 | EO117: 0 | EP117: 0 | EQ117: 0 | ER117: 0 | ES117: 0 | ET117: 0 | EU117: 0 | EV117: 0 | EW117: 0 | EX117: 0 | EY117: 0 | EZ117: 0 | FA117: 0 | FB117: 0 | FC117: 0 | FD117: 0 | FE117: 0 | FF117: 0 | FG117: 0 | FH117: 0 | FI117: 0 | FJ117: 0 | FK117: 0 | FL117: 0 | FM117: 0 | FN117: 0 | FO117: 0 | FP117: 0 | FQ117: 0 | FR117: 0 | FS117: 0 | FT117: 0 | FU117: 0 | FV117: 0 | FW117: 0 | FX117: 0 | FY117: 0 | FZ117: 0 | GA117: 0 | GB117: 0 | GC117: 0 | GD117: 0 | GE117: 0 | GF117: 0 | GG117: 0 | GH117: 0
CV118: 0 | CW118: 0 | CX118: 0 | CY118: 0 | CZ118: 0 | DA118: 0 | DB118: 0 | DC118: 0 | DD118: 0 | DE118: 0 | DF118: 0 | DG118: 0 | DH118: 0 | DI118: 0 | DJ118: 0 | DK118: 0 | DL118: 0 | DM118: 0 | DN118: 0 | DO118: 0 | DP118: 0 | DQ118: 0 | DR118: 0 | DS118: 0 | DT118: 0 | DU118: 0 | DV118: 0 | DW118: 0 | DX118: 0 | DY118: 0 | DZ118: 0 | EA118: 0 | EB118: 0 | EC118: 0 | ED118: 0 | EE118: 0 | EF118: 0 | EG118: 0 | EH118: 0 | EI118: 0 | EJ118: 0 | EK118: 0 | EL118: 0 | EM118: 0 | EN118: 0 | EO118: 0 | EP118: 0 | EQ118: 0 | ER118: 0 | ES118: 0 | ET118: 0 | EU118: 0 | EV118: 0 | EW118: 0 | EX118: 0 | EY118: 0 | EZ118: 0 | FA118: 0 | FB118: 0 | FC118: 0 | FD118: 0 | FE118: 0 | FF118: 0 | FG118: 0 | FH118: 0 | FI118: 0 | FJ118: 0 | FK118: 0 | FL118: 0 | FM118: 0 | FN118: 0 | FO118: 0 | FP118: 0 | FQ118: 0 | FR118: 0 | FS118: 0 | FT118: 0 | FU118: 0 | FV118: 0 | FW118: 0 | FX118: 0 | FY118: 0 | FZ118: 0 | GA118: 0 | GB118: 0 | GC118: 0 | GD118: 0 | GE118: 0 | GF118: 0 | GG118: 0 | GH118: 0
CV119: 0 | CW119: 0 | CX119: 0 | CY119: 0 | CZ119: 0 | DA119: 0 | DB119: 0 | DC119: 0 | DD119: 0 | DE119: 0 | DF119: 0 | DG119: 0 | DH119: 0 | DI119: 0 | DJ119: 0 | DK119: 0 | DL119: 0 | DM119: 0 | DN119: 0 | DO119: 0 | DP119: 0 | DQ119: 0 | DR119: 0 | DS119: 0 | DT119: 0 | DU119: 0 | DV119: 0 | DW119: 0 | DX119: 0 | DY119: 0 | DZ119: 0 | EA119: 0 | EB119: 0 | EC119: 0 | ED119: 0 | EE119: 0 | EF119: 0 | EG119: 0 | EH119: 0 | EI119: 0 | EJ119: 0 | EK119: 0 | EL119: 0 | EM119: 0 | EN119: 0 | EO119: 0 | EP119: 0 | EQ119: 0 | ER119: 0 | ES119: 0 | ET119: 0 | EU119: 0 | EV119: 0 | EW119: 0 | EX119: 0 | EY119: 0 | EZ119: 0 | FA119: 0 | FB119: 0 | FC119: 0 | FD119: 0 | FE119: 0 | FF119: 0 | FG119: 0 | FH119: 0 | FI119: 0 | FJ119: 0 | FK119: 0 | FL119: 0 | FM119: 0 | FN119: 0 | FO119: 0 | FP119: 0 | FQ119: 0 | FR119: 0 | FS119: 0 | FT119: 0 | FU119: 0 | FV119: 0 | FW119: 0 | FX119: 0 | FY119: 0 | FZ119: 0 | GA119: 0 | GB119: 0 | GC119: 0 | GD119: 0 | GE119: 0 | GF119: 0 | GG119: 0 | GH119: 0
CV120: 0 | CW120: 0 | CX120: 0 | CY120: 0 | CZ120: 0 | DA120: 0 | DB120: 0 | DC120: 0 | DD120: 0 | DE120: 0 | DF120: 0 | DG120: 0 | DH120: 0 | DI120: 0 | DJ120: 0 | DK120: 0 | DL120: 0 | DM120: 0 | DN120: 0 | DO120: 0 | DP120: 0 | DQ120: 0 | DR120: 0 | DS120: 0 | DT120: 0 | DU120: 0 | DV120: 0 | DW120: 0 | DX120: 0 | DY120: 0 | DZ120: 0 | EA120: 0 | EB120: 0 | EC120: 0 | ED120: 0 | EE120: 0 | EF120: 0 | EG120: 0 | EH120: 0 | EI120: 0 | EJ120: 0 | EK120: 0 | EL120: 0 | EM120: 0 | EN120: 0 | EO120: 0 | EP120: 0 | EQ120: 0 | ER120: 0 | ES120: 0 | ET120: 0 | EU120: 0 | EV120: 0 | EW120: 0 | EX120: 0 | EY120: 0 | EZ120: 0 | FA120: 0 | FB120: 0 | FC120: 0 | FD120: 0 | FE120: 0 | FF120: 0 | FG120: 0 | FH120: 0 | FI120: 0 | FJ120: 0 | FK120: 0 | FL120: 0 | FM120: 0 | FN120: 0 | FO120: 0 | FP120: 0 | FQ120: 0 | FR120: 0 | FS120: 0 | FT120: 0 | FU120: 0 | FV120: 0 | FW120: 0 | FX120: 0 | FY120: 0 | FZ120: 0 | GA120: 0 | GB120: 0 | GC120: 0 | GD120: 0 | GE120: 0 | GF120: 0 | GG120: 0 | GH120: 0
CV121: 0 | CW121: 0 | CX121: 0 | CY121: 0 | CZ121: 0 | DA121: 0 | DB121: 0 | DC121: 0 | DD121: 0 | DE121: 0 | DF121: 0 | DG121: 0 | DH121: 0 | DI121: 0 | DJ121: 0 | DK121: 0 | DL121: 0 | DM121: 0 | DN121: 0 | DO121: 0 | DP121: 0 | DQ121: 0 | DR121: 0 | DS121: 0 | DT121: 0 | DU121: 0 | DV121: 0 | DW121: 0 | DX121: 0 | DY121: 0 | DZ121: 0 | EA121: 0 | EB121: 0 | EC121: 0 | ED121: 0 | EE121: 0 | EF121: 0 | EG121: 0 | EH121: 0 | EI121: 0 | EJ121: 0 | EK121: 0 | EL121: 0 | EM121: 0 | EN121: 0 | EO121: 0 | EP121: 0 | EQ121: 0 | ER121: 0 | ES121: 0 | ET121: 0 | EU121: 0 | EV121: 0 | EW121: 0 | EX121: 0 | EY121: 0 | EZ121: 0 | FA121: 0 | FB121: 0 | FC121: 0 | FD121: 0 | FE121: 0 | FF121: 0 | FG121: 0 | FH121: 0 | FI121: 0 | FJ121: 0 | FK121: 0 | FL121: 0 | FM121: 0 | FN121: 0 | FO121: 0 | FP121: 0 | FQ121: 0 | FR121: 0 | FS121: 0 | FT121: 0 | FU121: 0 | FV121: 0 | FW121: 0 | FX121: 0 | FY121: 0 | FZ121: 0 | GA121: 0 | GB121: 0 | GC121: 0 | GD121: 0 | GE121: 0 | GF121: 0 | GG121: 0 | GH121: 0
CV122: 0 | CW122: 0 | CX122: 0 | CY122: 0 | CZ122: 0 | DA122: 0 | DB122: 0 | DC122: 0 | DD122: 0 | DE122: 0 | DF122: 0 | DG122: 0 | DH122: 0 | DI122: 0 | DJ122: 0 | DK122: 0 | DL122: 0 | DM122: 0 | DN122: 0 | DO122: 0 | DP122: 0 | DQ122: 0 | DR122: 0 | DS122: 0 | DT122: 0 | DU122: 0 | DV122: 0 | DW122: 0 | DX122: 0 | DY122: 0 | DZ122: 0 | EA122: 0 | EB122: 0 | EC122: 0 | ED122: 0 | EE122: 0 | EF122: 0 | EG122: 0 | EH122: 0 | EI122: 0 | EJ122: 0 | EK122: 0 | EL122: 0 | EM122: 0 | EN122: 0 | EO122: 0 | EP122: 0 | EQ122: 0 | ER122: 0 | ES122: 0 | ET122: 0 | EU122: 0 | EV122: 0 | EW122: 0 | EX122: 0 | EY122: 0 | EZ122: 0 | FA122: 0 | FB122: 0 | FC122: 0 | FD122: 0 | FE122: 0 | FF122: 0 | FG122: 0 | FH122: 0 | FI122: 0 | FJ122: 0 | FK122: 0 | FL122: 0 | FM122: 0 | FN122: 0 | FO122: 0 | FP122: 0 | FQ122: 0 | FR122: 0 | FS122: 0 | FT122: 0 | FU122: 0 | FV122: 0 | FW122: 0 | FX122: 0 | FY122: 0 | FZ122: 0 | GA122: 0 | GB122: 0 | GC122: 0 | GD122: 0 | GE122: 0 | GF122: 0 | GG122: 0 | GH122: 0
CV123: 0 | CW123: 0 | CX123: 0 | CY123: 0 | CZ123: 0 | DA123: 0 | DB123: 0 | DC123: 0 | DD123: 0 | DE123: 0 | DF123: 0 | DG123: 0 | DH123: 0 | DI123: 0 | DJ123: 0 | DK123: 0 | DL123: 0 | DM123: 0 | DN123: 0 | DO123: 0 | DP123: 0 | DQ123: 0 | DR123: 0 | DS123: 0 | DT123: 0 | DU123: 0 | DV123: 0 | DW123: 0 | DX123: 0 | DY123: 0 | DZ123: 0 | EA123: 0 | EB123: 0 | EC123: 0 | ED123: 0 | EE123: 0 | EF123: 0 | EG123: 0 | EH123: 0 | EI123: 0 | EJ123: 0 | EK123: 0 | EL123: 0 | EM123: 0 | EN123: 0 | EO123: 0 | EP123: 0 | EQ123: 0 | ER123: 0 | ES123: 0 | ET123: 0 | EU123: 0 | EV123: 0 | EW123: 0 | EX123: 0 | EY123: 0 | EZ123: 0 | FA123: 0 | FB123: 0 | FC123: 0 | FD123: 0 | FE123: 0 | FF123: 0 | FG123: 0 | FH123: 0 | FI123: 0 | FJ123: 0 | FK123: 0 | FL123: 0 | FM123: 0 | FN123: 0 | FO123: 0 | FP123: 0 | FQ123: 0 | FR123: 0 | FS123: 0 | FT123: 0 | FU123: 0 | FV123: 0 | FW123: 0 | FX123: 0 | FY123: 0 | FZ123: 0 | GA123: 0 | GB123: 0 | GC123: 0 | GD123: 0 | GE123: 0 | GF123: 0 | GG123: 0 | GH123: 0
CV124: 0 | CW124: 0 | CX124: 0 | CY124: 0 | CZ124: 0 | DA124: 0 | DB124: 0 | DC124: 0 | DD124: 0 | DE124: 0 | DF124: 0 | DG124: 0 | DH124: 0 | DI124: 0 | DJ124: 0 | DK124: 0 | DL124: 0 | DM124: 0 | DN124: 0 | DO124: 0 | DP124: 0 | DQ124: 0 | DR124: 0 | DS124: 0 | DT124: 0 | DU124: 0 | DV124: 0 | DW124: 0 | DX124: 0 | DY124: 0 | DZ124: 0 | EA124: 0 | EB124: 0 | EC124: 0 | ED124: 0 | EE124: 0 | EF124: 0 | EG124: 0 | EH124: 0 | EI124: 0 | EJ124: 0 | EK124: 0 | EL124: 0 | EM124: 0 | EN124: 0 | EO124: 0 | EP124: 0 | EQ124: 0 | ER124: 0 | ES124: 0 | ET124: 0 | EU124: 0 | EV124: 0 | EW124: 0 | EX124: 0 | EY124: 0 | EZ124: 0 | FA124: 0 | FB124: 0 | FC124: 0 | FD124: 0 | FE124: 0 | FF124: 0 | FG124: 0 | FH124: 0 | FI124: 0 | FJ124: 0 | FK124: 0 | FL124: 0 | FM124: 0 | FN124: 0 | FO124: 0 | FP124: 0 | FQ124: 0 | FR124: 0 | FS124: 0 | FT124: 0 | FU124: 0 | FV124: 0 | FW124: 0 | FX124: 0 | FY124: 0 | FZ124: 0 | GA124: 0 | GB124: 0 | GC124: 0 | GD124: 0 | GE124: 0 | GF124: 0 | GG124: 0 | GH124: 0
CV125: 0 | CW125: 0 | CX125: 0 | CY125: 0 | CZ125: 0 | DA125: 0 | DB125: 0 | DC125: 0 | DD125: 0 | DE125: 0 | DF125: 0 | DG125: 0 | DH125: 0 | DI125: 0 | DJ125: 0 | DK125: 0 | DL125: 0 | DM125: 0 | DN125: 0 | DO125: 0 | DP125: 0 | DQ125: 0 | DR125: 0 | DS125: 0 | DT125: 0 | DU125: 0 | DV125: 0 | DW125: 0 | DX125: 0 | DY125: 0 | DZ125: 0 | EA125: 0 | EB125: 0 | EC125: 0 | ED125: 0 | EE125: 0 | EF125: 0 | EG125: 0 | EH125: 0 | EI125: 0 | EJ125: 0 | EK125: 0 | EL125: 0 | EM125: 0 | EN125: 0 | EO125: 0 | EP125: 0 | EQ125: 0 | ER125: 0 | ES125: 0 | ET125: 0 | EU125: 0 | EV125: 0 | EW125: 0 | EX125: 0 | EY125: 0 | EZ125: 0 | FA125: 0 | FB125: 0 | FC125: 0 | FD125: 0 | FE125: 0 | FF125: 0 | FG125: 0 | FH125: 0 | FI125: 0 | FJ125: 0 | FK125: 0 | FL125: 0 | FM125: 0 | FN125: 0 | FO125: 0 | FP125: 0 | FQ125: 0 | FR125: 0 | FS125: 0 | FT125: 0 | FU125: 0 | FV125: 0 | FW125: 0 | FX125: 0 | FY125: 0 | FZ125: 0 | GA125: 0 | GB125: 0 | GC125: 0 | GD125: 0 | GE125: 0 | GF125: 0 | GG125: 0 | GH125: 0
CV126: 0 | CW126: 0 | CX126: 0 | CY126: 0 | CZ126: 0 | DA126: 0 | DB126: 0 | DC126: 0 | DD126: 0 | DE126: 0 | DF126: 0 | DG126: 0 | DH126: 0 | DI126: 0 | DJ126: 0 | DK126: 0 | DL126: 0 | DM126: 0 | DN126: 0 | DO126: 0 | DP126: 0 | DQ126: 0 | DR126: 0 | DS126: 0 | DT126: 0 | DU126: 0 | DV126: 0 | DW126: 0 | DX126: 0 | DY126: 0 | DZ126: 0 | EA126: 0 | EB126: 0 | EC126: 0 | ED126: 0 | EE126: 0 | EF126: 0 | EG126: 0 | EH126: 0 | EI126: 0 | EJ126: 0 | EK126: 0 | EL126: 0 | EM126: 0 | EN126: 0 | EO126: 0 | EP126: 0 | EQ126: 0 | ER126: 0 | ES126: 0 | ET126: 0 | EU126: 0 | EV126: 0 | EW126: 0 | EX126: 0 | EY126: 0 | EZ126: 0 | FA126: 0 | FB126: 0 | FC126: 0 | FD126: 0 | FE126: 0 | FF126: 0 | FG126: 0 | FH126: 0 | FI126: 0 | FJ126: 0 | FK126: 0 | FL126: 0 | FM126: 0 | FN126: 0 | FO126: 0 | FP126: 0 | FQ126: 0 | FR126: 0 | FS126: 0 | FT126: 0 | FU126: 0 | FV126: 0 | FW126: 0 | FX126: 0 | FY126: 0 | FZ126: 0 | GA126: 0 | GB126: 0 | GC126: 0 | GD126: 0 | GE126: 0 | GF126: 0 | GG126: 0 | GH126: 0
CV127: 0 | CW127: 0 | CX127: 0 | CY127: 0 | CZ127: 0 | DA127: 0 | DB127: 0 | DC127: 0 | DD127: 0 | DE127: 0 | DF127: 0 | DG127: 0 | DH127: 0 | DI127: 0 | DJ127: 0 | DK127: 0 | DL127: 0 | DM127: 0 | DN127: 0 | DO127: 0 | DP127: 0 | DQ127: 0 | DR127: 0 | DS127: 0 | DT127: 0 | DU127: 0 | DV127: 0 | DW127: 0 | DX127: 0 | DY127: 0 | DZ127: 0 | EA127: 0 | EB127: 0 | EC127: 0 | ED127: 0 | EE127: 0 | EF127: 0 | EG127: 0 | EH127: 0 | EI127: 0 | EJ127: 0 | EK127: 0 | EL127: 0 | EM127: 0 | EN127: 0 | EO127: 0 | EP127: 0 | EQ127: 0 | ER127: 0 | ES127: 0 | ET127: 0 | EU127: 0 | EV127: 0 | EW127: 0 | EX127: 0 | EY127: 0 | EZ127: 0 | FA127: 0 | FB127: 0 | FC127: 0 | FD127: 0 | FE127: 0 | FF127: 0 | FG127: 0 | FH127: 0 | FI127: 0 | FJ127: 0 | FK127: 0 | FL127: 0 | FM127: 0 | FN127: 0 | FO127: 0 | FP127: 0 | FQ127: 0 | FR127: 0 | FS127: 0 | FT127: 0 | FU127: 0 | FV127: 0 | FW127: 0 | FX127: 0 | FY127: 0 | FZ127: 0 | GA127: 0 | GB127: 0 | GC127: 0 | GD127: 0 | GE127: 0 | GF127: 0 | GG127: 0 | GH127: 0
CV128: 0 | CW128: 0 | CX128: 0 | CY128: 0 | CZ128: 0 | DA128: 0 | DB128: 0 | DC128: 0 | DD128: 0 | DE128: 0 | DF128: 0 | DG128: 0 | DH128: 0 | DI128: 0 | DJ128: 0 | DK128: 0 | DL128: 0 | DM128: 0 | DN128: 0 | DO128: 0 | DP128: 0 | DQ128: 0 | DR128: 0 | DS128: 0 | DT128: 0 | DU128: 0 | DV128: 0 | DW128: 0 | DX128: 0 | DY128: 0 | DZ128: 0 | EA128: 0 | EB128: 0 | EC128: 0 | ED128: 0 | EE128: 0 | EF128: 0 | EG128: 0 | EH128: 0 | EI128: 0 | EJ128: 0 | EK128: 0 | EL128: 0 | EM128: 0 | EN128: 0 | EO128: 0 | EP128: 0 | EQ128: 0 | ER128: 0 | ES128: 0 | ET128: 0 | EU128: 0 | EV128: 0 | EW128: 0 | EX128: 0 | EY128: 0 | EZ128: 0 | FA128: 0 | FB128: 0 | FC128: 0 | FD128: 0 | FE128: 0 | FF128: 0 | FG128: 0 | FH128: 0 | FI128: 0 | FJ128: 0 | FK128: 0 | FL128: 0 | FM128: 0 | FN128: 0 | FO128: 0 | FP128: 0 | FQ128: 0 | FR128: 0 | FS128: 0 | FT128: 0 | FU128: 0 | FV128: 0 | FW128: 0 | FX128: 0 | FY128: 0 | FZ128: 0 | GA128: 0 | GB128: 0 | GC128: 0 | GD128: 0 | GE128: 0 | GF128: 0 | GG128: 0 | GH128: 0
CV129: 0 | CW129: 0 | CX129: 0 | CY129: 0 | CZ129: 0 | DA129: 0 | DB129: 0 | DC129: 0 | DD129: 0 | DE129: 0 | DF129: 0 | DG129: 0 | DH129: 0 | DI129: 0 | DJ129: 0 | DK129: 0 | DL129: 0 | DM129: 0 | DN129: 0 | DO129: 0 | DP129: 0 | DQ129: 0 | DR129: 0 | DS129: 0 | DT129: 0 | DU129: 0 | DV129: 0 | DW129: 0 | DX129: 0 | DY129: 0 | DZ129: 0 | EA129: 0 | EB129: 0 | EC129: 0 | ED129: 0 | EE129: 0 | EF129: 0 | EG129: 0 | EH129: 0 | EI129: 0 | EJ129: 0 | EK129: 0 | EL129: 0 | EM129: 0 | EN129: 0 | EO129: 0 | EP129: 0 | EQ129: 0 | ER129: 0 | ES129: 0 | ET129: 0 | EU129: 0 | EV129: 0 | EW129: 0 | EX129: 0 | EY129: 0 | EZ129: 0 | FA129: 0 | FB129: 0 | FC129: 0 | FD129: 0 | FE129: 0 | FF129: 0 | FG129: 0 | FH129: 0 | FI129: 0 | FJ129: 0 | FK129: 0 | FL129: 0 | FM129: 0 | FN129: 0 | FO129: 0 | FP129: 0 | FQ129: 0 | FR129: 0 | FS129: 0 | FT129: 0 | FU129: 0 | FV129: 0 | FW129: 0 | FX129: 0 | FY129: 0 | FZ129: 0 | GA129: 0 | GB129: 0 | GC129: 0 | GD129: 0 | GE129: 0 | GF129: 0 | GG129: 0 | GH129: 0
CV130: 0 | CW130: 0 | CX130: 0 | CY130: 0 | CZ130: 0 | DA130: 0 | DB130: 0 | DC130: 0 | DD130: 0 | DE130: 0 | DF130: 0 | DG130: 0 | DH130: 0 | DI130: 0 | DJ130: 0 | DK130: 0 | DL130: 0 | DM130: 0 | DN130: 0 | DO130: 0 | DP130: 0 | DQ130: 0 | DR130: 0 | DS130: 0 | DT130: 0 | DU130: 0 | DV130: 0 | DW130: 0 | DX130: 0 | DY130: 0 | DZ130: 0 | EA130: 0 | EB130: 0 | EC130: 0 | ED130: 0 | EE130: 0 | EF130: 0 | EG130: 0 | EH130: 0 | EI130: 0 | EJ130: 0 | EK130: 0 | EL130: 0 | EM130: 0 | EN130: 0 | EO130: 0 | EP130: 0 | EQ130: 0 | ER130: 0 | ES130: 0 | ET130: 0 | EU130: 0 | EV130: 0 | EW130: 0 | EX130: 0 | EY130: 0 | EZ130: 0 | FA130: 0 | FB130: 0 | FC130: 0 | FD130: 0 | FE130: 0 | FF130: 0 | FG130: 0 | FH130: 0 | FI130: 0 | FJ130: 0 | FK130: 0 | FL130: 0 | FM130: 0 | FN130: 0 | FO130: 0 | FP130: 0 | FQ130: 0 | FR130: 0 | FS130: 0 | FT130: 0 | FU130: 0 | FV130: 0 | FW130: 0 | FX130: 0 | FY130: 0 | FZ130: 0 | GA130: 0 | GB130: 0 | GC130: 0 | GD130: 0 | GE130: 0 | GF130: 0 | GG130: 0 | GH130: 0
CV131: 0 | CW131: 0 | CX131: 0 | CY131: 0 | CZ131: 0 | DA131: 0 | DB131: 0 | DC131: 0 | DD131: 0 | DE131: 0 | DF131: 0 | DG131: 0 | DH131: 0 | DI131: 0 | DJ131: 0 | DK131: 0 | DL131: 0 | DM131: 0 | DN131: 0 | DO131: 0 | DP131: 0 | DQ131: 0 | DR131: 0 | DS131: 0 | DT131: 0 | DU131: 0 | DV131: 0 | DW131: 0 | DX131: 0 | DY131: 0 | DZ131: 0 | EA131: 0 | EB131: 0 | EC131: 0 | ED131: 0 | EE131: 0 | EF131: 0 | EG131: 0 | EH131: 0 | EI131: 0 | EJ131: 0 | EK131: 0 | EL131: 0 | EM131: 0 | EN131: 0 | EO131: 0 | EP131: 0 | EQ131: 0 | ER131: 0 | ES131: 0 | ET131: 0 | EU131: 0 | EV131: 0 | EW131: 0 | EX131: 0 | EY131: 0 | EZ131: 0 | FA131: 0 | FB131: 0 | FC131: 0 | FD131: 0 | FE131: 0 | FF131: 0 | FG131: 0 | FH131: 0 | FI131: 0 | FJ131: 0 | FK131: 0 | FL131: 0 | FM131: 0 | FN131: 0 | FO131: 0 | FP131: 0 | FQ131: 0 | FR131: 0 | FS131: 0 | FT131: 0 | FU131: 0 | FV131: 0 | FW131: 0 | FX131: 0 | FY131: 0 | FZ131: 0 | GA131: 0 | GB131: 0 | GC131: 0 | GD131: 0 | GE131: 0 | GF131: 0 | GG131: 0 | GH131: 0
CV132: 0 | CW132: 0 | CX132: 0 | CY132: 0 | CZ132: 0 | DA132: 0 | DB132: 0 | DC132: 0 | DD132: 0 | DE132: 0 | DF132: 0 | DG132: 0 | DH132: 0 | DI132: 0 | DJ132: 0 | DK132: 0 | DL132: 0 | DM132: 0 | DN132: 0 | DO132: 0 | DP132: 0 | DQ132: 0 | DR132: 0 | DS132: 0 | DT132: 0 | DU132: 0 | DV132: 0 | DW132: 0 | DX132: 0 | DY132: 0 | DZ132: 0 | EA132: 0 | EB132: 0 | EC132: 0 | ED132: 0 | EE132: 0 | EF132: 0 | EG132: 0 | EH132: 0 | EI132: 0 | EJ132: 0 | EK132: 0 | EL132: 0 | EM132: 0 | EN132: 0 | EO132: 0 | EP132: 0 | EQ132: 0 | ER132: 0 | ES132: 0 | ET132: 0 | EU132: 0 | EV132: 0 | EW132: 0 | EX132: 0 | EY132: 0 | EZ132: 0 | FA132: 0 | FB132: 0 | FC132: 0 | FD132: 0 | FE132: 0 | FF132: 0 | FG132: 0 | FH132: 0 | FI132: 0 | FJ132: 0 | FK132: 0 | FL132: 0 | FM132: 0 | FN132: 0 | FO132: 0 | FP132: 0 | FQ132: 0 | FR132: 0 | FS132: 0 | FT132: 0 | FU132: 0 | FV132: 0 | FW132: 0 | FX132: 0 | FY132: 0 | FZ132: 0 | GA132: 0 | GB132: 0 | GC132: 0 | GD132: 0 | GE132: 0 | GF132: 0 | GG132: 0 | GH132: 0
CV133: 0 | CW133: 0 | CX133: 0 | CY133: 0 | CZ133: 0 | DA133: 0 | DB133: 0 | DC133: 0 | DD133: 0 | DE133: 0 | DF133: 0 | DG133: 0 | DH133: 0 | DI133: 0 | DJ133: 0 | DK133: 0 | DL133: 0 | DM133: 0 | DN133: 0 | DO133: 0 | DP133: 0 | DQ133: 0 | DR133: 0 | DS133: 0 | DT133: 0 | DU133: 0 | DV133: 0 | DW133: 0 | DX133: 0 | DY133: 0 | DZ133: 0 | EA133: 0 | EB133: 0 | EC133: 0 | ED133: 0 | EE133: 0 | EF133: 0 | EG133: 0 | EH133: 0 | EI133: 0 | EJ133: 0 | EK133: 0 | EL133: 0 | EM133: 0 | EN133: 0 | EO133: 0 | EP133: 0 | EQ133: 0 | ER133: 0 | ES133: 0 | ET133: 0 | EU133: 0 | EV133: 0 | EW133: 0 | EX133: 0 | EY133: 0 | EZ133: 0 | FA133: 0 | FB133: 0 | FC133: 0 | FD133: 0 | FE133: 0 | FF133: 0 | FG133: 0 | FH133: 0 | FI133: 0 | FJ133: 0 | FK133: 0 | FL133: 0 | FM133: 0 | FN133: 0 | FO133: 0 | FP133: 0 | FQ133: 0 | FR133: 0 | FS133: 0 | FT133: 0 | FU133: 0 | FV133: 0 | FW133: 0 | FX133: 0 | FY133: 0 | FZ133: 0 | GA133: 0 | GB133: 0 | GC133: 0 | GD133: 0 | GE133: 0 | GF133: 0 | GG133: 0 | GH133: 0
CV134: 0 | CW134: =IFERROR($D134*I134,"") -> 0 | CX134: =IFERROR($D134*J134,"") -> 0 | CY134: =IFERROR($D134*K134,"") -> 0 | CZ134: =IFERROR($D134*L134,"") -> 0 | DA134: =IFERROR($D134*M134,"") -> 0 | DB134: =IFERROR($D134*N134,"") -> 0 | DC134: =IFERROR($D134*O134,"") -> 0 | DD134: =IFERROR($D134*P134,"") -> 0 | DE134: =IFERROR($D134*Q134,"") -> 0 | DF134: =IFERROR($D134*R134,"") -> 0 | DG134: =IFERROR($D134*S134,"") -> 0 | DH134: =IFERROR($D134*T134,"") -> 0 | DI134: =IFERROR($D134*U134,"") -> 0 | DJ134: =IFERROR($D134*V134,"") -> 0 | DK134: =IFERROR($D134*W134,"") -> 0 | DL134: =IFERROR($D134*X134,"") -> 0 | DM134: =IFERROR($D134*Y134,"") -> 0 | DN134: =IFERROR($D134*Z134,"") -> 0 | DO134: =IFERROR($D134*AA134,"") -> 0 | DP134: =IFERROR($D134*AB134,"") -> 0 | DQ134: =IFERROR($D134*AC134,"") -> 0 | DR134: =IFERROR($D134*AD134,"") -> 0 | DS134: =IFERROR($D134*AE134,"") -> 0 | DT134: =IFERROR($D134*AF134,"") -> 0 | DU134: =IFERROR($D134*AG134,"") -> 0 | DV134: =IFERROR($D134*AH134,"") -> 0 | DW134: =IFERROR($D134*AI134,"") -> 0 | DX134: =IFERROR($D134*AJ134,"") -> 0 | DY134: =IFERROR($D134*AK134,"") -> 0 | DZ134: =IFERROR($D134*AL134,"") -> 0 | EA134: =IFERROR($D134*AM134,"") -> 0 | EB134: =IFERROR($D134*AN134,"") -> 0 | EC134: =IFERROR($D134*AO134,"") -> 0 | ED134: =IFERROR($D134*AP134,"") -> 0 | EE134: =IFERROR($D134*AQ134,"") -> 0 | EF134: =IFERROR($D134*AR134,"") -> 0 | EG134: =IFERROR($D134*AS134,"") -> 0 | EH134: =IFERROR($D134*AT134,"") -> 0 | EI134: =IFERROR($D134*AU134,"") -> 0 | EJ134: =IFERROR($D134*AV134,"") -> 0 | EK134: =IFERROR($D134*AW134,"") -> 0 | EL134: =IFERROR($D134*AX134,"") -> 0 | EM134: =IFERROR($D134*AY134,"") -> 0 | EN134: =IFERROR($D134*AZ134,"") -> 0 | EO134: =IFERROR($D134*BA134,"") -> 0 | EP134: =IFERROR($D134*BB134,"") -> 0 | EQ134: =IFERROR($D134*BC134,"") -> 0 | ER134: =IFERROR($D134*BD134,"") -> 0 | ES134: =IFERROR($D134*BE134,"") -> 0 | ET134: =IFERROR($D134*BF134,"") -> 0 | EU134: =IFERROR($D134*BG134,"") -> 0 | EV134: =IFERROR($D134*BH134,"") -> 0 | EW134: =IFERROR($D134*BI134,"") -> 0 | EX134: =IFERROR($D134*BJ134,"") -> 0 | EY134: =IFERROR($D134*BK134,"") -> 0 | EZ134: =IFERROR($D134*BL134,"") -> 0 | FA134: =IFERROR($D134*BM134,"") -> 0 | FB134: =IFERROR($D134*BN134,"") -> 0 | FC134: =IFERROR($D134*BO134,"") -> 0 | FD134: =IFERROR($D134*BP134,"") -> 0 | FE134: =IFERROR($D134*BQ134,"") -> 0 | FF134: =IFERROR($D134*BR134,"") -> 0 | FG134: =IFERROR($D134*BS134,"") -> 0 | FH134: =IFERROR($D134*BT134,"") -> 0 | FI134: =IFERROR($D134*BU134,"") -> 0 | FJ134: =IFERROR($D134*BV134,"") -> 0 | FK134: =IFERROR($D134*BW134,"") -> 0 | FL134: =IFERROR($D134*BX134,"") -> 0 | FM134: =IFERROR($D134*BY134,"") -> 0 | FN134: =IFERROR($D134*BZ134,"") -> 0 | FO134: =IFERROR($D134*CA134,"") -> 0 | FP134: =IFERROR($D134*CB134,"") -> 0 | FQ134: =IFERROR($D134*CC134,"") -> 0 | FR134: =IFERROR($D134*CD134,"") -> 0 | FS134: =IFERROR($D134*CE134,"") -> 0 | FT134: =IFERROR($D134*CF134,"") -> 0 | FU134: =IFERROR($D134*CG134,"") -> 0 | FV134: =IFERROR($D134*CH134,"") -> 0 | FW134: =IFERROR($D134*CI134,"") -> 0 | FX134: =IFERROR($D134*CJ134,"") -> 0 | FY134: =IFERROR($D134*CK134,"") -> 0 | FZ134: =IFERROR($D134*CL134,"") -> 0 | GA134: =IFERROR($D134*CM134,"") -> 0 | GB134: =IFERROR($D134*CN134,"") -> 0 | GC134: =IFERROR($D134*CO134,"") -> 0 | GD134: =IFERROR($D134*CP134,"") -> 0 | GE134: =IFERROR($D134*CQ134,"") -> 0 | GF134: =IFERROR($D134*CR134,"") -> 0 | GG134: =IFERROR($D134*CS134,"") -> 0 | GH134: =IFERROR($D134*CT134,"") -> 0
CV135: =IFERROR($D135*H135,"") -> 0 | CW135: 0 | CX135: 0 | CY135: 0 | CZ135: 0 | DA135: 0 | DB135: 0 | DC135: 0 | DD135: 0 | DE135: 0 | DF135: 0 | DG135: 0 | DH135: 0 | DI135: 0 | DJ135: 0 | DK135: 0 | DL135: 0 | DM135: 0 | DN135: 0 | DO135: 0 | DP135: 0 | DQ135: 0 | DR135: 0 | DS135: 0 | DT135: 0 | DU135: 0 | DV135: 0 | DW135: 0 | DX135: 0 | DY135: 0 | DZ135: 0 | EA135: 0 | EB135: 0 | EC135: 0 | ED135: 0 | EE135: 0 | EF135: 0 | EG135: 0 | EH135: 0 | EI135: 0 | EJ135: 0 | EK135: 0 | EL135: 0 | EM135: 0 | EN135: 0 | EO135: 0 | EP135: 0 | EQ135: 0 | ER135: 0 | ES135: 0 | ET135: 0 | EU135: 0 | EV135: 0 | EW135: 0 | EX135: 0 | EY135: 0 | EZ135: 0 | FA135: 0 | FB135: 0 | FC135: 0 | FD135: 0 | FE135: 0 | FF135: 0 | FG135: 0 | FH135: 0 | FI135: 0 | FJ135: 0 | FK135: 0 | FL135: 0 | FM135: 0 | FN135: 0 | FO135: 0 | FP135: 0 | FQ135: 0 | FR135: 0 | FS135: 0 | FT135: 0 | FU135: 0 | FV135: 0 | FW135: 0 | FX135: 0 | FY135: 0 | FZ135: 0 | GA135: 0 | GB135: 0 | GC135: 0 | GD135: 0 | GE135: 0 | GF135: 0 | GG135: 0 | GH135: 0
CV136: 0 | CW136: 0 | CX136: 0 | CY136: 0 | CZ136: 0 | DA136: 0 | DB136: 0 | DC136: 0 | DD136: 0 | DE136: 0 | DF136: 0 | DG136: 0 | DH136: 0 | DI136: 0 | DJ136: 0 | DK136: 0 | DL136: 0 | DM136: 0 | DN136: 0 | DO136: 0 | DP136: 0 | DQ136: 0 | DR136: 0 | DS136: 0 | DT136: 0 | DU136: 0 | DV136: 0 | DW136: 0 | DX136: 0 | DY136: 0 | DZ136: 0 | EA136: 0 | EB136: 0 | EC136: 0 | ED136: 0 | EE136: 0 | EF136: 0 | EG136: 0 | EH136: 0 | EI136: 0 | EJ136: 0 | EK136: 0 | EL136: 0 | EM136: 0 | EN136: 0 | EO136: 0 | EP136: 0 | EQ136: 0 | ER136: 0 | ES136: 0 | ET136: 0 | EU136: 0 | EV136: 0 | EW136: 0 | EX136: 0 | EY136: 0 | EZ136: 0 | FA136: 0 | FB136: 0 | FC136: 0 | FD136: 0 | FE136: 0 | FF136: 0 | FG136: 0 | FH136: 0 | FI136: 0 | FJ136: 0 | FK136: 0 | FL136: 0 | FM136: 0 | FN136: 0 | FO136: 0 | FP136: 0 | FQ136: 0 | FR136: 0 | FS136: 0 | FT136: 0 | FU136: 0 | FV136: 0 | FW136: 0 | FX136: 0 | FY136: 0 | FZ136: 0 | GA136: 0 | GB136: 0 | GC136: 0 | GD136: 0 | GE136: 0 | GF136: 0 | GG136: 0 | GH136: 0
CV137: 0 | CW137: 0 | CX137: 0 | CY137: 0 | CZ137: 0 | DA137: 0 | DB137: 0 | DC137: 0 | DD137: 0 | DE137: 0 | DF137: 0 | DG137: 0 | DH137: 0 | DI137: 0 | DJ137: 0 | DK137: 0 | DL137: 0 | DM137: 0 | DN137: 0 | DO137: 0 | DP137: 0 | DQ137: 0 | DR137: 0 | DS137: 0 | DT137: 0 | DU137: 0 | DV137: 0 | DW137: 0 | DX137: 0 | DY137: 0 | DZ137: 0 | EA137: 0 | EB137: 0 | EC137: 0 | ED137: 0 | EE137: 0 | EF137: 0 | EG137: 0 | EH137: 0 | EI137: 0 | EJ137: 0 | EK137: 0 | EL137: 0 | EM137: 0 | EN137: 0 | EO137: 0 | EP137: 0 | EQ137: 0 | ER137: 0 | ES137: 0 | ET137: 0 | EU137: 0 | EV137: 0 | EW137: 0 | EX137: 0 | EY137: 0 | EZ137: 0 | FA137: 0 | FB137: 0 | FC137: 0 | FD137: 0 | FE137: 0 | FF137: 0 | FG137: 0 | FH137: 0 | FI137: 0 | FJ137: 0 | FK137: 0 | FL137: 0 | FM137: 0 | FN137: 0 | FO137: 0 | FP137: 0 | FQ137: 0 | FR137: 0 | FS137: 0 | FT137: 0 | FU137: 0 | FV137: 0 | FW137: 0 | FX137: 0 | FY137: 0 | FZ137: 0 | GA137: 0 | GB137: 0 | GC137: 0 | GD137: 0 | GE137: 0 | GF137: 0 | GG137: 0 | GH137: 0
CV138: 0 | CW138: 0 | CX138: 0 | CY138: 0 | CZ138: 0 | DA138: 0 | DB138: 0 | DC138: 0 | DD138: 0 | DE138: 0 | DF138: 0 | DG138: 0 | DH138: 0 | DI138: 0 | DJ138: 0 | DK138: 0 | DL138: 0 | DM138: 0 | DN138: 0 | DO138: 0 | DP138: 0 | DQ138: 0 | DR138: 0 | DS138: 0 | DT138: 0 | DU138: 0 | DV138: 0 | DW138: 0 | DX138: 0 | DY138: 0 | DZ138: 0 | EA138: 0 | EB138: 0 | EC138: 0 | ED138: 0 | EE138: 0 | EF138: 0 | EG138: 0 | EH138: 0 | EI138: 0 | EJ138: 0 | EK138: 0 | EL138: 0 | EM138: 0 | EN138: 0 | EO138: 0 | EP138: 0 | EQ138: 0 | ER138: 0 | ES138: 0 | ET138: 0 | EU138: 0 | EV138: 0 | EW138: 0 | EX138: 0 | EY138: 0 | EZ138: 0 | FA138: 0 | FB138: 0 | FC138: 0 | FD138: 0 | FE138: 0 | FF138: 0 | FG138: 0 | FH138: 0 | FI138: 0 | FJ138: 0 | FK138: 0 | FL138: 0 | FM138: 0 | FN138: 0 | FO138: 0 | FP138: 0 | FQ138: 0 | FR138: 0 | FS138: 0 | FT138: 0 | FU138: 0 | FV138: 0 | FW138: 0 | FX138: 0 | FY138: 0 | FZ138: 0 | GA138: 0 | GB138: 0 | GC138: 0 | GD138: 0 | GE138: 0 | GF138: 0 | GG138: 0 | GH138: 0
CV139: 0 | CW139: 0 | CX139: 0 | CY139: 0 | CZ139: 0 | DA139: 0 | DB139: 0 | DC139: 0 | DD139: 0 | DE139: 0 | DF139: 0 | DG139: 0 | DH139: 0 | DI139: 0 | DJ139: 0 | DK139: 0 | DL139: 0 | DM139: 0 | DN139: 0 | DO139: 0 | DP139: 0 | DQ139: 0 | DR139: 0 | DS139: 0 | DT139: 0 | DU139: 0 | DV139: 0 | DW139: 0 | DX139: 0 | DY139: 0 | DZ139: 0 | EA139: 0 | EB139: 0 | EC139: 0 | ED139: 0 | EE139: 0 | EF139: 0 | EG139: 0 | EH139: 0 | EI139: 0 | EJ139: 0 | EK139: 0 | EL139: 0 | EM139: 0 | EN139: 0 | EO139: 0 | EP139: 0 | EQ139: 0 | ER139: 0 | ES139: 0 | ET139: 0 | EU139: 0 | EV139: 0 | EW139: 0 | EX139: 0 | EY139: 0 | EZ139: 0 | FA139: 0 | FB139: 0 | FC139: 0 | FD139: 0 | FE139: 0 | FF139: 0 | FG139: 0 | FH139: 0 | FI139: 0 | FJ139: 0 | FK139: 0 | FL139: 0 | FM139: 0 | FN139: 0 | FO139: 0 | FP139: 0 | FQ139: 0 | FR139: 0 | FS139: 0 | FT139: 0 | FU139: 0 | FV139: 0 | FW139: 0 | FX139: 0 | FY139: 0 | FZ139: 0 | GA139: 0 | GB139: 0 | GC139: 0 | GD139: 0 | GE139: 0 | GF139: 0 | GG139: 0 | GH139: 0
CV140: 0 | CW140: 0 | CX140: 0 | CY140: 0 | CZ140: 0 | DA140: 0 | DB140: 0 | DC140: 0 | DD140: 0 | DE140: 0 | DF140: 0 | DG140: 0 | DH140: 0 | DI140: 0 | DJ140: 0 | DK140: 0 | DL140: 0 | DM140: 0 | DN140: 0 | DO140: 0 | DP140: 0 | DQ140: 0 | DR140: 0 | DS140: 0 | DT140: 0 | DU140: 0 | DV140: 0 | DW140: 0 | DX140: 0 | DY140: 0 | DZ140: 0 | EA140: 0 | EB140: 0 | EC140: 0 | ED140: 0 | EE140: 0 | EF140: 0 | EG140: 0 | EH140: 0 | EI140: 0 | EJ140: 0 | EK140: 0 | EL140: 0 | EM140: 0 | EN140: 0 | EO140: 0 | EP140: 0 | EQ140: 0 | ER140: 0 | ES140: 0 | ET140: 0 | EU140: 0 | EV140: 0 | EW140: 0 | EX140: 0 | EY140: 0 | EZ140: 0 | FA140: 0 | FB140: 0 | FC140: 0 | FD140: 0 | FE140: 0 | FF140: 0 | FG140: 0 | FH140: 0 | FI140: 0 | FJ140: 0 | FK140: 0 | FL140: 0 | FM140: 0 | FN140: 0 | FO140: 0 | FP140: 0 | FQ140: 0 | FR140: 0 | FS140: 0 | FT140: 0 | FU140: 0 | FV140: 0 | FW140: 0 | FX140: 0 | FY140: 0 | FZ140: 0 | GA140: 0 | GB140: 0 | GC140: 0 | GD140: 0 | GE140: 0 | GF140: 0 | GG140: 0 | GH140: 0
CV141: 0 | CW141: 0 | CX141: 0 | CY141: 0 | CZ141: 0 | DA141: 0 | DB141: 0 | DC141: 0 | DD141: 0 | DE141: 0 | DF141: 0 | DG141: 0 | DH141: 0 | DI141: 0 | DJ141: 0 | DK141: 0 | DL141: 0 | DM141: 0 | DN141: 0 | DO141: 0 | DP141: 0 | DQ141: 0 | DR141: 0 | DS141: 0 | DT141: 0 | DU141: 0 | DV141: 0 | DW141: 0 | DX141: 0 | DY141: 0 | DZ141: 0 | EA141: 0 | EB141: 0 | EC141: 0 | ED141: 0 | EE141: 0 | EF141: 0 | EG141: 0 | EH141: 0 | EI141: 0 | EJ141: 0 | EK141: 0 | EL141: 0 | EM141: 0 | EN141: 0 | EO141: 0 | EP141: 0 | EQ141: 0 | ER141: 0 | ES141: 0 | ET141: 0 | EU141: 0 | EV141: 0 | EW141: 0 | EX141: 0 | EY141: 0 | EZ141: 0 | FA141: 0 | FB141: 0 | FC141: 0 | FD141: 0 | FE141: 0 | FF141: 0 | FG141: 0 | FH141: 0 | FI141: 0 | FJ141: 0 | FK141: 0 | FL141: 0 | FM141: 0 | FN141: 0 | FO141: 0 | FP141: 0 | FQ141: 0 | FR141: 0 | FS141: 0 | FT141: 0 | FU141: 0 | FV141: 0 | FW141: 0 | FX141: 0 | FY141: 0 | FZ141: 0 | GA141: 0 | GB141: 0 | GC141: 0 | GD141: 0 | GE141: 0 | GF141: 0 | GG141: 0 | GH141: 0
CV142: 0 | CW142: 0 | CX142: 0 | CY142: 0 | CZ142: 0 | DA142: 0 | DB142: 0 | DC142: 0 | DD142: 0 | DE142: 0 | DF142: 0 | DG142: 0 | DH142: 0 | DI142: 0 | DJ142: 0 | DK142: 0 | DL142: 0 | DM142: 0 | DN142: 0 | DO142: 0 | DP142: 0 | DQ142: 0 | DR142: 0 | DS142: 0 | DT142: 0 | DU142: 0 | DV142: 0 | DW142: 0 | DX142: 0 | DY142: 0 | DZ142: 0 | EA142: 0 | EB142: 0 | EC142: 0 | ED142: 0 | EE142: 0 | EF142: 0 | EG142: 0 | EH142: 0 | EI142: 0 | EJ142: 0 | EK142: 0 | EL142: 0 | EM142: 0 | EN142: 0 | EO142: 0 | EP142: 0 | EQ142: 0 | ER142: 0 | ES142: 0 | ET142: 0 | EU142: 0 | EV142: 0 | EW142: 0 | EX142: 0 | EY142: 0 | EZ142: 0 | FA142: 0 | FB142: 0 | FC142: 0 | FD142: 0 | FE142: 0 | FF142: 0 | FG142: 0 | FH142: 0 | FI142: 0 | FJ142: 0 | FK142: 0 | FL142: 0 | FM142: 0 | FN142: 0 | FO142: 0 | FP142: 0 | FQ142: 0 | FR142: 0 | FS142: 0 | FT142: 0 | FU142: 0 | FV142: 0 | FW142: 0 | FX142: 0 | FY142: 0 | FZ142: 0 | GA142: 0 | GB142: 0 | GC142: 0 | GD142: 0 | GE142: 0 | GF142: 0 | GG142: 0 | GH142: 0
CV143: 0 | CW143: 0 | CX143: 0 | CY143: 0 | CZ143: 0 | DA143: 0 | DB143: 0 | DC143: 0 | DD143: 0 | DE143: 0 | DF143: 0 | DG143: 0 | DH143: 0 | DI143: 0 | DJ143: 0 | DK143: 0 | DL143: 0 | DM143: 0 | DN143: 0 | DO143: 0 | DP143: 0 | DQ143: 0 | DR143: 0 | DS143: 0 | DT143: 0 | DU143: 0 | DV143: 0 | DW143: 0 | DX143: 0 | DY143: 0 | DZ143: 0 | EA143: 0 | EB143: 0 | EC143: 0 | ED143: 0 | EE143: 0 | EF143: 0 | EG143: 0 | EH143: 0 | EI143: 0 | EJ143: 0 | EK143: 0 | EL143: 0 | EM143: 0 | EN143: 0 | EO143: 0 | EP143: 0 | EQ143: 0 | ER143: 0 | ES143: 0 | ET143: 0 | EU143: 0 | EV143: 0 | EW143: 0 | EX143: 0 | EY143: 0 | EZ143: 0 | FA143: 0 | FB143: 0 | FC143: 0 | FD143: 0 | FE143: 0 | FF143: 0 | FG143: 0 | FH143: 0 | FI143: 0 | FJ143: 0 | FK143: 0 | FL143: 0 | FM143: 0 | FN143: 0 | FO143: 0 | FP143: 0 | FQ143: 0 | FR143: 0 | FS143: 0 | FT143: 0 | FU143: 0 | FV143: 0 | FW143: 0 | FX143: 0 | FY143: 0 | FZ143: 0 | GA143: 0 | GB143: 0 | GC143: 0 | GD143: 0 | GE143: 0 | GF143: 0 | GG143: 0 | GH143: 0
CV144: 0 | CW144: 0 | CX144: 0 | CY144: 0 | CZ144: 0 | DA144: 0 | DB144: 0 | DC144: 0 | DD144: 0 | DE144: 0 | DF144: 0 | DG144: 0 | DH144: 0 | DI144: 0 | DJ144: 0 | DK144: 0 | DL144: 0 | DM144: 0 | DN144: 0 | DO144: 0 | DP144: 0 | DQ144: 0 | DR144: 0 | DS144: 0 | DT144: 0 | DU144: 0 | DV144: 0 | DW144: 0 | DX144: 0 | DY144: 0 | DZ144: 0 | EA144: 0 | EB144: 0 | EC144: 0 | ED144: 0 | EE144: 0 | EF144: 0 | EG144: 0 | EH144: 0 | EI144: 0 | EJ144: 0 | EK144: 0 | EL144: 0 | EM144: 0 | EN144: 0 | EO144: 0 | EP144: 0 | EQ144: 0 | ER144: 0 | ES144: 0 | ET144: 0 | EU144: 0 | EV144: 0 | EW144: 0 | EX144: 0 | EY144: 0 | EZ144: 0 | FA144: 0 | FB144: 0 | FC144: 0 | FD144: 0 | FE144: 0 | FF144: 0 | FG144: 0 | FH144: 0 | FI144: 0 | FJ144: 0 | FK144: 0 | FL144: 0 | FM144: 0 | FN144: 0 | FO144: 0 | FP144: 0 | FQ144: 0 | FR144: 0 | FS144: 0 | FT144: 0 | FU144: 0 | FV144: 0 | FW144: 0 | FX144: 0 | FY144: 0 | FZ144: 0 | GA144: 0 | GB144: 0 | GC144: 0 | GD144: 0 | GE144: 0 | GF144: 0 | GG144: 0 | GH144: 0
CV145: 0 | CW145: 0 | CX145: 0 | CY145: 0 | CZ145: 0 | DA145: 0 | DB145: 0 | DC145: 0 | DD145: 0 | DE145: 0 | DF145: 0 | DG145: 0 | DH145: 0 | DI145: 0 | DJ145: 0 | DK145: 0 | DL145: 0 | DM145: 0 | DN145: 0 | DO145: 0 | DP145: 0 | DQ145: 0 | DR145: 0 | DS145: 0 | DT145: 0 | DU145: 0 | DV145: 0 | DW145: 0 | DX145: 0 | DY145: 0 | DZ145: 0 | EA145: 0 | EB145: 0 | EC145: 0 | ED145: 0 | EE145: 0 | EF145: 0 | EG145: 0 | EH145: 0 | EI145: 0 | EJ145: 0 | EK145: 0 | EL145: 0 | EM145: 0 | EN145: 0 | EO145: 0 | EP145: 0 | EQ145: 0 | ER145: 0 | ES145: 0 | ET145: 0 | EU145: 0 | EV145: 0 | EW145: 0 | EX145: 0 | EY145: 0 | EZ145: 0 | FA145: 0 | FB145: 0 | FC145: 0 | FD145: 0 | FE145: 0 | FF145: 0 | FG145: 0 | FH145: 0 | FI145: 0 | FJ145: 0 | FK145: 0 | FL145: 0 | FM145: 0 | FN145: 0 | FO145: 0 | FP145: 0 | FQ145: 0 | FR145: 0 | FS145: 0 | FT145: 0 | FU145: 0 | FV145: 0 | FW145: 0 | FX145: 0 | FY145: 0 | FZ145: 0 | GA145: 0 | GB145: 0 | GC145: 0 | GD145: 0 | GE145: 0 | GF145: 0 | GG145: 0 | GH145: 0
CV146: 0 | CW146: 0 | CX146: 0 | CY146: 0 | CZ146: 0 | DA146: 0 | DB146: 0 | DC146: 0 | DD146: 0 | DE146: 0 | DF146: 0 | DG146: 0 | DH146: 0 | DI146: 0 | DJ146: 0 | DK146: 0 | DL146: 0 | DM146: 0 | DN146: 0 | DO146: 0 | DP146: 0 | DQ146: 0 | DR146: 0 | DS146: 0 | DT146: 0 | DU146: 0 | DV146: 0 | DW146: 0 | DX146: 0 | DY146: 0 | DZ146: 0 | EA146: 0 | EB146: 0 | EC146: 0 | ED146: 0 | EE146: 0 | EF146: 0 | EG146: 0 | EH146: 0 | EI146: 0 | EJ146: 0 | EK146: 0 | EL146: 0 | EM146: 0 | EN146: 0 | EO146: 0 | EP146: 0 | EQ146: 0 | ER146: 0 | ES146: 0 | ET146: 0 | EU146: 0 | EV146: 0 | EW146: 0 | EX146: 0 | EY146: 0 | EZ146: 0 | FA146: 0 | FB146: 0 | FC146: 0 | FD146: 0 | FE146: 0 | FF146: 0 | FG146: 0 | FH146: 0 | FI146: 0 | FJ146: 0 | FK146: 0 | FL146: 0 | FM146: 0 | FN146: 0 | FO146: 0 | FP146: 0 | FQ146: 0 | FR146: 0 | FS146: 0 | FT146: 0 | FU146: 0 | FV146: 0 | FW146: 0 | FX146: 0 | FY146: 0 | FZ146: 0 | GA146: 0 | GB146: 0 | GC146: 0 | GD146: 0 | GE146: 0 | GF146: 0 | GG146: 0 | GH146: 0
CV147: 0 | CW147: 0 | CX147: 0 | CY147: 0 | CZ147: 0 | DA147: 0 | DB147: 0 | DC147: 0 | DD147: 0 | DE147: 0 | DF147: 0 | DG147: 0 | DH147: 0 | DI147: 0 | DJ147: 0 | DK147: 0 | DL147: 0 | DM147: 0 | DN147: 0 | DO147: 0 | DP147: 0 | DQ147: 0 | DR147: 0 | DS147: 0 | DT147: 0 | DU147: 0 | DV147: 0 | DW147: 0 | DX147: 0 | DY147: 0 | DZ147: 0 | EA147: 0 | EB147: 0 | EC147: 0 | ED147: 0 | EE147: 0 | EF147: 0 | EG147: 0 | EH147: 0 | EI147: 0 | EJ147: 0 | EK147: 0 | EL147: 0 | EM147: 0 | EN147: 0 | EO147: 0 | EP147: 0 | EQ147: 0 | ER147: 0 | ES147: 0 | ET147: 0 | EU147: 0 | EV147: 0 | EW147: 0 | EX147: 0 | EY147: 0 | EZ147: 0 | FA147: 0 | FB147: 0 | FC147: 0 | FD147: 0 | FE147: 0 | FF147: 0 | FG147: 0 | FH147: 0 | FI147: 0 | FJ147: 0 | FK147: 0 | FL147: 0 | FM147: 0 | FN147: 0 | FO147: 0 | FP147: 0 | FQ147: 0 | FR147: 0 | FS147: 0 | FT147: 0 | FU147: 0 | FV147: 0 | FW147: 0 | FX147: 0 | FY147: 0 | FZ147: 0 | GA147: 0 | GB147: 0 | GC147: 0 | GD147: 0 | GE147: 0 | GF147: 0 | GG147: 0 | GH147: 0
CV148: 0 | CW148: 0 | CX148: 0 | CY148: 0 | CZ148: 0 | DA148: 0 | DB148: 0 | DC148: 0 | DD148: 0 | DE148: 0 | DF148: 0 | DG148: 0 | DH148: 0 | DI148: 0 | DJ148: 0 | DK148: 0 | DL148: 0 | DM148: 0 | DN148: 0 | DO148: 0 | DP148: 0 | DQ148: 0 | DR148: 0 | DS148: 0 | DT148: 0 | DU148: 0 | DV148: 0 | DW148: 0 | DX148: 0 | DY148: 0 | DZ148: 0 | EA148: 0 | EB148: 0 | EC148: 0 | ED148: 0 | EE148: 0 | EF148: 0 | EG148: 0 | EH148: 0 | EI148: 0 | EJ148: 0 | EK148: 0 | EL148: 0 | EM148: 0 | EN148: 0 | EO148: 0 | EP148: 0 | EQ148: 0 | ER148: 0 | ES148: 0 | ET148: 0 | EU148: 0 | EV148: 0 | EW148: 0 | EX148: 0 | EY148: 0 | EZ148: 0 | FA148: 0 | FB148: 0 | FC148: 0 | FD148: 0 | FE148: 0 | FF148: 0 | FG148: 0 | FH148: 0 | FI148: 0 | FJ148: 0 | FK148: 0 | FL148: 0 | FM148: 0 | FN148: 0 | FO148: 0 | FP148: 0 | FQ148: 0 | FR148: 0 | FS148: 0 | FT148: 0 | FU148: 0 | FV148: 0 | FW148: 0 | FX148: 0 | FY148: 0 | FZ148: 0 | GA148: 0 | GB148: 0 | GC148: 0 | GD148: 0 | GE148: 0 | GF148: 0 | GG148: 0 | GH148: 0
CV149: 0 | CW149: 0 | CX149: 0 | CY149: 0 | CZ149: 0 | DA149: 0 | DB149: 0 | DC149: 0 | DD149: 0 | DE149: 0 | DF149: 0 | DG149: 0 | DH149: 0 | DI149: 0 | DJ149: 0 | DK149: 0 | DL149: 0 | DM149: 0 | DN149: 0 | DO149: 0 | DP149: 0 | DQ149: 0 | DR149: 0 | DS149: 0 | DT149: 0 | DU149: 0 | DV149: 0 | DW149: 0 | DX149: 0 | DY149: 0 | DZ149: 0 | EA149: 0 | EB149: 0 | EC149: 0 | ED149: 0 | EE149: 0 | EF149: 0 | EG149: 0 | EH149: 0 | EI149: 0 | EJ149: 0 | EK149: 0 | EL149: 0 | EM149: 0 | EN149: 0 | EO149: 0 | EP149: 0 | EQ149: 0 | ER149: 0 | ES149: 0 | ET149: 0 | EU149: 0 | EV149: 0 | EW149: 0 | EX149: 0 | EY149: 0 | EZ149: 0 | FA149: 0 | FB149: 0 | FC149: 0 | FD149: 0 | FE149: 0 | FF149: 0 | FG149: 0 | FH149: 0 | FI149: 0 | FJ149: 0 | FK149: 0 | FL149: 0 | FM149: 0 | FN149: 0 | FO149: 0 | FP149: 0 | FQ149: 0 | FR149: 0 | FS149: 0 | FT149: 0 | FU149: 0 | FV149: 0 | FW149: 0 | FX149: 0 | FY149: 0 | FZ149: 0 | GA149: 0 | GB149: 0 | GC149: 0 | GD149: 0 | GE149: 0 | GF149: 0 | GG149: 0 | GH149: 0
CV150: 0 | CW150: 0 | CX150: 0 | CY150: 0 | CZ150: 0 | DA150: 0 | DB150: 0 | DC150: 0 | DD150: 0 | DE150: 0 | DF150: 0 | DG150: 0 | DH150: 0 | DI150: 0 | DJ150: 0 | DK150: 0 | DL150: 0 | DM150: 0 | DN150: 0 | DO150: 0 | DP150: 0 | DQ150: 0 | DR150: 0 | DS150: 0 | DT150: 0 | DU150: 0 | DV150: 0 | DW150: 0 | DX150: 0 | DY150: 0 | DZ150: 0 | EA150: 0 | EB150: 0 | EC150: 0 | ED150: 0 | EE150: 0 | EF150: 0 | EG150: 0 | EH150: 0 | EI150: 0 | EJ150: 0 | EK150: 0 | EL150: 0 | EM150: 0 | EN150: 0 | EO150: 0 | EP150: 0 | EQ150: 0 | ER150: 0 | ES150: 0 | ET150: 0 | EU150: 0 | EV150: 0 | EW150: 0 | EX150: 0 | EY150: 0 | EZ150: 0 | FA150: 0 | FB150: 0 | FC150: 0 | FD150: 0 | FE150: 0 | FF150: 0 | FG150: 0 | FH150: 0 | FI150: 0 | FJ150: 0 | FK150: 0 | FL150: 0 | FM150: 0 | FN150: 0 | FO150: 0 | FP150: 0 | FQ150: 0 | FR150: 0 | FS150: 0 | FT150: 0 | FU150: 0 | FV150: 0 | FW150: 0 | FX150: 0 | FY150: 0 | FZ150: 0 | GA150: 0 | GB150: 0 | GC150: 0 | GD150: 0 | GE150: 0 | GF150: 0 | GG150: 0 | GH150: 0
CV151: 0 | CW151: 0 | CX151: 0 | CY151: 0 | CZ151: 0 | DA151: 0 | DB151: 0 | DC151: 0 | DD151: 0 | DE151: 0 | DF151: 0 | DG151: 0 | DH151: 0 | DI151: 0 | DJ151: 0 | DK151: 0 | DL151: 0 | DM151: 0 | DN151: 0 | DO151: 0 | DP151: 0 | DQ151: 0 | DR151: 0 | DS151: 0 | DT151: 0 | DU151: 0 | DV151: 0 | DW151: 0 | DX151: 0 | DY151: 0 | DZ151: 0 | EA151: 0 | EB151: 0 | EC151: 0 | ED151: 0 | EE151: 0 | EF151: 0 | EG151: 0 | EH151: 0 | EI151: 0 | EJ151: 0 | EK151: 0 | EL151: 0 | EM151: 0 | EN151: 0 | EO151: 0 | EP151: 0 | EQ151: 0 | ER151: 0 | ES151: 0 | ET151: 0 | EU151: 0 | EV151: 0 | EW151: 0 | EX151: 0 | EY151: 0 | EZ151: 0 | FA151: 0 | FB151: 0 | FC151: 0 | FD151: 0 | FE151: 0 | FF151: 0 | FG151: 0 | FH151: 0 | FI151: 0 | FJ151: 0 | FK151: 0 | FL151: 0 | FM151: 0 | FN151: 0 | FO151: 0 | FP151: 0 | FQ151: 0 | FR151: 0 | FS151: 0 | FT151: 0 | FU151: 0 | FV151: 0 | FW151: 0 | FX151: 0 | FY151: 0 | FZ151: 0 | GA151: 0 | GB151: 0 | GC151: 0 | GD151: 0 | GE151: 0 | GF151: 0 | GG151: 0 | GH151: 0
CV152: 0 | CW152: 0 | CX152: 0 | CY152: 0 | CZ152: 0 | DA152: 0 | DB152: 0 | DC152: 0 | DD152: 0 | DE152: 0 | DF152: 0 | DG152: 0 | DH152: 0 | DI152: 0 | DJ152: 0 | DK152: 0 | DL152: 0 | DM152: 0 | DN152: 0 | DO152: 0 | DP152: 0 | DQ152: 0 | DR152: 0 | DS152: 0 | DT152: 0 | DU152: 0 | DV152: 0 | DW152: 0 | DX152: 0 | DY152: 0 | DZ152: 0 | EA152: 0 | EB152: 0 | EC152: 0 | ED152: 0 | EE152: 0 | EF152: 0 | EG152: 0 | EH152: 0 | EI152: 0 | EJ152: 0 | EK152: 0 | EL152: 0 | EM152: 0 | EN152: 0 | EO152: 0 | EP152: 0 | EQ152: 0 | ER152: 0 | ES152: 0 | ET152: 0 | EU152: 0 | EV152: 0 | EW152: 0 | EX152: 0 | EY152: 0 | EZ152: 0 | FA152: 0 | FB152: 0 | FC152: 0 | FD152: 0 | FE152: 0 | FF152: 0 | FG152: 0 | FH152: 0 | FI152: 0 | FJ152: 0 | FK152: 0 | FL152: 0 | FM152: 0 | FN152: 0 | FO152: 0 | FP152: 0 | FQ152: 0 | FR152: 0 | FS152: 0 | FT152: 0 | FU152: 0 | FV152: 0 | FW152: 0 | FX152: 0 | FY152: 0 | FZ152: 0 | GA152: 0 | GB152: 0 | GC152: 0 | GD152: 0 | GE152: 0 | GF152: 0 | GG152: 0 | GH152: 0
CV153: 0 | CW153: 0 | CX153: 0 | CY153: 0 | CZ153: 0 | DA153: 0 | DB153: 0 | DC153: 0 | DD153: 0 | DE153: 0 | DF153: 0 | DG153: 0 | DH153: 0 | DI153: 0 | DJ153: 0 | DK153: 0 | DL153: 0 | DM153: 0 | DN153: 0 | DO153: 0 | DP153: 0 | DQ153: 0 | DR153: 0 | DS153: 0 | DT153: 0 | DU153: 0 | DV153: 0 | DW153: 0 | DX153: 0 | DY153: 0 | DZ153: 0 | EA153: 0 | EB153: 0 | EC153: 0 | ED153: 0 | EE153: 0 | EF153: 0 | EG153: 0 | EH153: 0 | EI153: 0 | EJ153: 0 | EK153: 0 | EL153: 0 | EM153: 0 | EN153: 0 | EO153: 0 | EP153: 0 | EQ153: 0 | ER153: 0 | ES153: 0 | ET153: 0 | EU153: 0 | EV153: 0 | EW153: 0 | EX153: 0 | EY153: 0 | EZ153: 0 | FA153: 0 | FB153: 0 | FC153: 0 | FD153: 0 | FE153: 0 | FF153: 0 | FG153: 0 | FH153: 0 | FI153: 0 | FJ153: 0 | FK153: 0 | FL153: 0 | FM153: 0 | FN153: 0 | FO153: 0 | FP153: 0 | FQ153: 0 | FR153: 0 | FS153: 0 | FT153: 0 | FU153: 0 | FV153: 0 | FW153: 0 | FX153: 0 | FY153: 0 | FZ153: 0 | GA153: 0 | GB153: 0 | GC153: 0 | GD153: 0 | GE153: 0 | GF153: 0 | GG153: 0 | GH153: 0
CV154: 0 | CW154: 0 | CX154: 0 | CY154: 0 | CZ154: 0 | DA154: 0 | DB154: 0 | DC154: 0 | DD154: 0 | DE154: 0 | DF154: 0 | DG154: 0 | DH154: 0 | DI154: 0 | DJ154: 0 | DK154: 0 | DL154: 0 | DM154: 0 | DN154: 0 | DO154: 0 | DP154: 0 | DQ154: 0 | DR154: 0 | DS154: 0 | DT154: 0 | DU154: 0 | DV154: 0 | DW154: 0 | DX154: 0 | DY154: 0 | DZ154: 0 | EA154: 0 | EB154: 0 | EC154: 0 | ED154: 0 | EE154: 0 | EF154: 0 | EG154: 0 | EH154: 0 | EI154: 0 | EJ154: 0 | EK154: 0 | EL154: 0 | EM154: 0 | EN154: 0 | EO154: 0 | EP154: 0 | EQ154: 0 | ER154: 0 | ES154: 0 | ET154: 0 | EU154: 0 | EV154: 0 | EW154: 0 | EX154: 0 | EY154: 0 | EZ154: 0 | FA154: 0 | FB154: 0 | FC154: 0 | FD154: 0 | FE154: 0 | FF154: 0 | FG154: 0 | FH154: 0 | FI154: 0 | FJ154: 0 | FK154: 0 | FL154: 0 | FM154: 0 | FN154: 0 | FO154: 0 | FP154: 0 | FQ154: 0 | FR154: 0 | FS154: 0 | FT154: 0 | FU154: 0 | FV154: 0 | FW154: 0 | FX154: 0 | FY154: 0 | FZ154: 0 | GA154: 0 | GB154: 0 | GC154: 0 | GD154: 0 | GE154: 0 | GF154: 0 | GG154: 0 | GH154: 0
CV155: 0 | CW155: 0 | CX155: 0 | CY155: 0 | CZ155: 0 | DA155: 0 | DB155: 0 | DC155: 0 | DD155: 0 | DE155: 0 | DF155: 0 | DG155: 0 | DH155: 0 | DI155: 0 | DJ155: 0 | DK155: 0 | DL155: 0 | DM155: 0 | DN155: 0 | DO155: 0 | DP155: 0 | DQ155: 0 | DR155: 0 | DS155: 0 | DT155: 0 | DU155: 0 | DV155: 0 | DW155: 0 | DX155: 0 | DY155: 0 | DZ155: 0 | EA155: 0 | EB155: 0 | EC155: 0 | ED155: 0 | EE155: 0 | EF155: 0 | EG155: 0 | EH155: 0 | EI155: 0 | EJ155: 0 | EK155: 0 | EL155: 0 | EM155: 0 | EN155: 0 | EO155: 0 | EP155: 0 | EQ155: 0 | ER155: 0 | ES155: 0 | ET155: 0 | EU155: 0 | EV155: 0 | EW155: 0 | EX155: 0 | EY155: 0 | EZ155: 0 | FA155: 0 | FB155: 0 | FC155: 0 | FD155: 0 | FE155: 0 | FF155: 0 | FG155: 0 | FH155: 0 | FI155: 0 | FJ155: 0 | FK155: 0 | FL155: 0 | FM155: 0 | FN155: 0 | FO155: 0 | FP155: 0 | FQ155: 0 | FR155: 0 | FS155: 0 | FT155: 0 | FU155: 0 | FV155: 0 | FW155: 0 | FX155: 0 | FY155: 0 | FZ155: 0 | GA155: 0 | GB155: 0 | GC155: 0 | GD155: 0 | GE155: 0 | GF155: 0 | GG155: 0 | GH155: 0
CV156: 0 | CW156: 0 | CX156: 0 | CY156: 0 | CZ156: 0 | DA156: 0 | DB156: 0 | DC156: 0 | DD156: 0 | DE156: 0 | DF156: 0 | DG156: 0 | DH156: 0 | DI156: 0 | DJ156: 0 | DK156: 0 | DL156: 0 | DM156: 0 | DN156: 0 | DO156: 0 | DP156: 0 | DQ156: 0 | DR156: 0 | DS156: 0 | DT156: 0 | DU156: 0 | DV156: 0 | DW156: 0 | DX156: 0 | DY156: 0 | DZ156: 0 | EA156: 0 | EB156: 0 | EC156: 0 | ED156: 0 | EE156: 0 | EF156: 0 | EG156: 0 | EH156: 0 | EI156: 0 | EJ156: 0 | EK156: 0 | EL156: 0 | EM156: 0 | EN156: 0 | EO156: 0 | EP156: 0 | EQ156: 0 | ER156: 0 | ES156: 0 | ET156: 0 | EU156: 0 | EV156: 0 | EW156: 0 | EX156: 0 | EY156: 0 | EZ156: 0 | FA156: 0 | FB156: 0 | FC156: 0 | FD156: 0 | FE156: 0 | FF156: 0 | FG156: 0 | FH156: 0 | FI156: 0 | FJ156: 0 | FK156: 0 | FL156: 0 | FM156: 0 | FN156: 0 | FO156: 0 | FP156: 0 | FQ156: 0 | FR156: 0 | FS156: 0 | FT156: 0 | FU156: 0 | FV156: 0 | FW156: 0 | FX156: 0 | FY156: 0 | FZ156: 0 | GA156: 0 | GB156: 0 | GC156: 0 | GD156: 0 | GE156: 0 | GF156: 0 | GG156: 0 | GH156: 0
CV157: 0 | CW157: 0 | CX157: 0 | CY157: 0 | CZ157: 0 | DA157: 0 | DB157: 0 | DC157: 0 | DD157: 0 | DE157: 0 | DF157: 0 | DG157: 0 | DH157: 0 | DI157: 0 | DJ157: 0 | DK157: 0 | DL157: 0 | DM157: 0 | DN157: 0 | DO157: 0 | DP157: 0 | DQ157: 0 | DR157: 0 | DS157: 0 | DT157: 0 | DU157: 0 | DV157: 0 | DW157: 0 | DX157: 0 | DY157: 0 | DZ157: 0 | EA157: 0 | EB157: 0 | EC157: 0 | ED157: 0 | EE157: 0 | EF157: 0 | EG157: 0 | EH157: 0 | EI157: 0 | EJ157: 0 | EK157: 0 | EL157: 0 | EM157: 0 | EN157: 0 | EO157: 0 | EP157: 0 | EQ157: 0 | ER157: 0 | ES157: 0 | ET157: 0 | EU157: 0 | EV157: 0 | EW157: 0 | EX157: 0 | EY157: 0 | EZ157: 0 | FA157: 0 | FB157: 0 | FC157: 0 | FD157: 0 | FE157: 0 | FF157: 0 | FG157: 0 | FH157: 0 | FI157: 0 | FJ157: 0 | FK157: 0 | FL157: 0 | FM157: 0 | FN157: 0 | FO157: 0 | FP157: 0 | FQ157: 0 | FR157: 0 | FS157: 0 | FT157: 0 | FU157: 0 | FV157: 0 | FW157: 0 | FX157: 0 | FY157: 0 | FZ157: 0 | GA157: 0 | GB157: 0 | GC157: 0 | GD157: 0 | GE157: 0 | GF157: 0 | GG157: 0 | GH157: 0
CV158: 0 | CW158: 0 | CX158: 0 | CY158: 0 | CZ158: 0 | DA158: 0 | DB158: 0 | DC158: 0 | DD158: 0 | DE158: 0 | DF158: 0 | DG158: 0 | DH158: 0 | DI158: 0 | DJ158: 0 | DK158: 0 | DL158: 0 | DM158: 0 | DN158: 0 | DO158: 0 | DP158: 0 | DQ158: 0 | DR158: 0 | DS158: 0 | DT158: 0 | DU158: 0 | DV158: 0 | DW158: 0 | DX158: 0 | DY158: 0 | DZ158: 0 | EA158: 0 | EB158: 0 | EC158: 0 | ED158: 0 | EE158: 0 | EF158: 0 | EG158: 0 | EH158: 0 | EI158: 0 | EJ158: 0 | EK158: 0 | EL158: 0 | EM158: 0 | EN158: 0 | EO158: 0 | EP158: 0 | EQ158: 0 | ER158: 0 | ES158: 0 | ET158: 0 | EU158: 0 | EV158: 0 | EW158: 0 | EX158: 0 | EY158: 0 | EZ158: 0 | FA158: 0 | FB158: 0 | FC158: 0 | FD158: 0 | FE158: 0 | FF158: 0 | FG158: 0 | FH158: 0 | FI158: 0 | FJ158: 0 | FK158: 0 | FL158: 0 | FM158: 0 | FN158: 0 | FO158: 0 | FP158: 0 | FQ158: 0 | FR158: 0 | FS158: 0 | FT158: 0 | FU158: 0 | FV158: 0 | FW158: 0 | FX158: 0 | FY158: 0 | FZ158: 0 | GA158: 0 | GB158: 0 | GC158: 0 | GD158: 0 | GE158: 0 | GF158: 0 | GG158: 0 | GH158: 0
CV159: 0 | CW159: 0 | CX159: 0 | CY159: 0 | CZ159: 0 | DA159: 0 | DB159: 0 | DC159: 0 | DD159: 0 | DE159: 0 | DF159: 0 | DG159: 0 | DH159: 0 | DI159: 0 | DJ159: 0 | DK159: 0 | DL159: 0 | DM159: 0 | DN159: 0 | DO159: 0 | DP159: 0 | DQ159: 0 | DR159: 0 | DS159: 0 | DT159: 0 | DU159: 0 | DV159: 0 | DW159: 0 | DX159: 0 | DY159: 0 | DZ159: 0 | EA159: 0 | EB159: 0 | EC159: 0 | ED159: 0 | EE159: 0 | EF159: 0 | EG159: 0 | EH159: 0 | EI159: 0 | EJ159: 0 | EK159: 0 | EL159: 0 | EM159: 0 | EN159: 0 | EO159: 0 | EP159: 0 | EQ159: 0 | ER159: 0 | ES159: 0 | ET159: 0 | EU159: 0 | EV159: 0 | EW159: 0 | EX159: 0 | EY159: 0 | EZ159: 0 | FA159: 0 | FB159: 0 | FC159: 0 | FD159: 0 | FE159: 0 | FF159: 0 | FG159: 0 | FH159: 0 | FI159: 0 | FJ159: 0 | FK159: 0 | FL159: 0 | FM159: 0 | FN159: 0 | FO159: 0 | FP159: 0 | FQ159: 0 | FR159: 0 | FS159: 0 | FT159: 0 | FU159: 0 | FV159: 0 | FW159: 0 | FX159: 0 | FY159: 0 | FZ159: 0 | GA159: 0 | GB159: 0 | GC159: 0 | GD159: 0 | GE159: 0 | GF159: 0 | GG159: 0 | GH159: 0
CV160: 0 | CW160: 0 | CX160: 0 | CY160: 0 | CZ160: 0 | DA160: 0 | DB160: 0 | DC160: 0 | DD160: 0 | DE160: 0 | DF160: 0 | DG160: 0 | DH160: 0 | DI160: 0 | DJ160: 0 | DK160: 0 | DL160: 0 | DM160: 0 | DN160: 0 | DO160: 0 | DP160: 0 | DQ160: 0 | DR160: 0 | DS160: 0 | DT160: 0 | DU160: 0 | DV160: 0 | DW160: 0 | DX160: 0 | DY160: 0 | DZ160: 0 | EA160: 0 | EB160: 0 | EC160: 0 | ED160: 0 | EE160: 0 | EF160: 0 | EG160: 0 | EH160: 0 | EI160: 0 | EJ160: 0 | EK160: 0 | EL160: 0 | EM160: 0 | EN160: 0 | EO160: 0 | EP160: 0 | EQ160: 0 | ER160: 0 | ES160: 0 | ET160: 0 | EU160: 0 | EV160: 0 | EW160: 0 | EX160: 0 | EY160: 0 | EZ160: 0 | FA160: 0 | FB160: 0 | FC160: 0 | FD160: 0 | FE160: 0 | FF160: 0 | FG160: 0 | FH160: 0 | FI160: 0 | FJ160: 0 | FK160: 0 | FL160: 0 | FM160: 0 | FN160: 0 | FO160: 0 | FP160: 0 | FQ160: 0 | FR160: 0 | FS160: 0 | FT160: 0 | FU160: 0 | FV160: 0 | FW160: 0 | FX160: 0 | FY160: 0 | FZ160: 0 | GA160: 0 | GB160: 0 | GC160: 0 | GD160: 0 | GE160: 0 | GF160: 0 | GG160: 0 | GH160: 0
CV161: 0 | CW161: 0 | CX161: 0 | CY161: 0 | CZ161: 0 | DA161: 0 | DB161: 0 | DC161: 0 | DD161: 0 | DE161: 0 | DF161: 0 | DG161: 0 | DH161: 0 | DI161: 0 | DJ161: 0 | DK161: 0 | DL161: 0 | DM161: 0 | DN161: 0 | DO161: 0 | DP161: 0 | DQ161: 0 | DR161: 0 | DS161: 0 | DT161: 0 | DU161: 0 | DV161: 0 | DW161: 0 | DX161: 0 | DY161: 0 | DZ161: 0 | EA161: 0 | EB161: 0 | EC161: 0 | ED161: 0 | EE161: 0 | EF161: 0 | EG161: 0 | EH161: 0 | EI161: 0 | EJ161: 0 | EK161: 0 | EL161: 0 | EM161: 0 | EN161: 0 | EO161: 0 | EP161: 0 | EQ161: 0 | ER161: 0 | ES161: 0 | ET161: 0 | EU161: 0 | EV161: 0 | EW161: 0 | EX161: 0 | EY161: 0 | EZ161: 0 | FA161: 0 | FB161: 0 | FC161: 0 | FD161: 0 | FE161: 0 | FF161: 0 | FG161: 0 | FH161: 0 | FI161: 0 | FJ161: 0 | FK161: 0 | FL161: 0 | FM161: 0 | FN161: 0 | FO161: 0 | FP161: 0 | FQ161: 0 | FR161: 0 | FS161: 0 | FT161: 0 | FU161: 0 | FV161: 0 | FW161: 0 | FX161: 0 | FY161: 0 | FZ161: 0 | GA161: 0 | GB161: 0 | GC161: 0 | GD161: 0 | GE161: 0 | GF161: 0 | GG161: 0 | GH161: 0
CV162: 0 | CW162: 0 | CX162: 0 | CY162: 0 | CZ162: 0 | DA162: 0 | DB162: 0 | DC162: 0 | DD162: 0 | DE162: 0 | DF162: 0 | DG162: 0 | DH162: 0 | DI162: 0 | DJ162: 0 | DK162: 0 | DL162: 0 | DM162: 0 | DN162: 0 | DO162: 0 | DP162: 0 | DQ162: 0 | DR162: 0 | DS162: 0 | DT162: 0 | DU162: 0 | DV162: 0 | DW162: 0 | DX162: 0 | DY162: 0 | DZ162: 0 | EA162: 0 | EB162: 0 | EC162: 0 | ED162: 0 | EE162: 0 | EF162: 0 | EG162: 0 | EH162: 0 | EI162: 0 | EJ162: 0 | EK162: 0 | EL162: 0 | EM162: 0 | EN162: 0 | EO162: 0 | EP162: 0 | EQ162: 0 | ER162: 0 | ES162: 0 | ET162: 0 | EU162: 0 | EV162: 0 | EW162: 0 | EX162: 0 | EY162: 0 | EZ162: 0 | FA162: 0 | FB162: 0 | FC162: 0 | FD162: 0 | FE162: 0 | FF162: 0 | FG162: 0 | FH162: 0 | FI162: 0 | FJ162: 0 | FK162: 0 | FL162: 0 | FM162: 0 | FN162: 0 | FO162: 0 | FP162: 0 | FQ162: 0 | FR162: 0 | FS162: 0 | FT162: 0 | FU162: 0 | FV162: 0 | FW162: 0 | FX162: 0 | FY162: 0 | FZ162: 0 | GA162: 0 | GB162: 0 | GC162: 0 | GD162: 0 | GE162: 0 | GF162: 0 | GG162: 0 | GH162: 0
CV163: 0 | CW163: 0 | CX163: 0 | CY163: 0 | CZ163: 0 | DA163: 0 | DB163: 0 | DC163: 0 | DD163: 0 | DE163: 0 | DF163: 0 | DG163: 0 | DH163: 0 | DI163: 0 | DJ163: 0 | DK163: 0 | DL163: 0 | DM163: 0 | DN163: 0 | DO163: 0 | DP163: 0 | DQ163: 0 | DR163: 0 | DS163: 0 | DT163: 0 | DU163: 0 | DV163: 0 | DW163: 0 | DX163: 0 | DY163: 0 | DZ163: 0 | EA163: 0 | EB163: 0 | EC163: 0 | ED163: 0 | EE163: 0 | EF163: 0 | EG163: 0 | EH163: 0 | EI163: 0 | EJ163: 0 | EK163: 0 | EL163: 0 | EM163: 0 | EN163: 0 | EO163: 0 | EP163: 0 | EQ163: 0 | ER163: 0 | ES163: 0 | ET163: 0 | EU163: 0 | EV163: 0 | EW163: 0 | EX163: 0 | EY163: 0 | EZ163: 0 | FA163: 0 | FB163: 0 | FC163: 0 | FD163: 0 | FE163: 0 | FF163: 0 | FG163: 0 | FH163: 0 | FI163: 0 | FJ163: 0 | FK163: 0 | FL163: 0 | FM163: 0 | FN163: 0 | FO163: 0 | FP163: 0 | FQ163: 0 | FR163: 0 | FS163: 0 | FT163: 0 | FU163: 0 | FV163: 0 | FW163: 0 | FX163: 0 | FY163: 0 | FZ163: 0 | GA163: 0 | GB163: 0 | GC163: 0 | GD163: 0 | GE163: 0 | GF163: 0 | GG163: 0 | GH163: 0
CV164: 0 | CW164: 0 | CX164: 0 | CY164: 0 | CZ164: 0 | DA164: 0 | DB164: 0 | DC164: 0 | DD164: 0 | DE164: 0 | DF164: 0 | DG164: 0 | DH164: 0 | DI164: 0 | DJ164: 0 | DK164: 0 | DL164: 0 | DM164: 0 | DN164: 0 | DO164: 0 | DP164: 0 | DQ164: 0 | DR164: 0 | DS164: 0 | DT164: 0 | DU164: 0 | DV164: 0 | DW164: 0 | DX164: 0 | DY164: 0 | DZ164: 0 | EA164: 0 | EB164: 0 | EC164: 0 | ED164: 0 | EE164: 0 | EF164: 0 | EG164: 0 | EH164: 0 | EI164: 0 | EJ164: 0 | EK164: 0 | EL164: 0 | EM164: 0 | EN164: 0 | EO164: 0 | EP164: 0 | EQ164: 0 | ER164: 0 | ES164: 0 | ET164: 0 | EU164: 0 | EV164: 0 | EW164: 0 | EX164: 0 | EY164: 0 | EZ164: 0 | FA164: 0 | FB164: 0 | FC164: 0 | FD164: 0 | FE164: 0 | FF164: 0 | FG164: 0 | FH164: 0 | FI164: 0 | FJ164: 0 | FK164: 0 | FL164: 0 | FM164: 0 | FN164: 0 | FO164: 0 | FP164: 0 | FQ164: 0 | FR164: 0 | FS164: 0 | FT164: 0 | FU164: 0 | FV164: 0 | FW164: 0 | FX164: 0 | FY164: 0 | FZ164: 0 | GA164: 0 | GB164: 0 | GC164: 0 | GD164: 0 | GE164: 0 | GF164: 0 | GG164: 0 | GH164: 0
CV165: 0 | CW165: 0 | CX165: 0 | CY165: 0 | CZ165: 0 | DA165: 0 | DB165: 0 | DC165: 0 | DD165: 0 | DE165: 0 | DF165: 0 | DG165: 0 | DH165: 0 | DI165: 0 | DJ165: 0 | DK165: 0 | DL165: 0 | DM165: 0 | DN165: 0 | DO165: 0 | DP165: 0 | DQ165: 0 | DR165: 0 | DS165: 0 | DT165: 0 | DU165: 0 | DV165: 0 | DW165: 0 | DX165: 0 | DY165: 0 | DZ165: 0 | EA165: 0 | EB165: 0 | EC165: 0 | ED165: 0 | EE165: 0 | EF165: 0 | EG165: 0 | EH165: 0 | EI165: 0 | EJ165: 0 | EK165: 0 | EL165: 0 | EM165: 0 | EN165: 0 | EO165: 0 | EP165: 0 | EQ165: 0 | ER165: 0 | ES165: 0 | ET165: 0 | EU165: 0 | EV165: 0 | EW165: 0 | EX165: 0 | EY165: 0 | EZ165: 0 | FA165: 0 | FB165: 0 | FC165: 0 | FD165: 0 | FE165: 0 | FF165: 0 | FG165: 0 | FH165: 0 | FI165: 0 | FJ165: 0 | FK165: 0 | FL165: 0 | FM165: 0 | FN165: 0 | FO165: 0 | FP165: 0 | FQ165: 0 | FR165: 0 | FS165: 0 | FT165: 0 | FU165: 0 | FV165: 0 | FW165: 0 | FX165: 0 | FY165: 0 | FZ165: 0 | GA165: 0 | GB165: 0 | GC165: 0 | GD165: 0 | GE165: 0 | GF165: 0 | GG165: 0 | GH165: 0
CV166: 0 | CW166: 0 | CX166: 0 | CY166: 0 | CZ166: 0 | DA166: 0 | DB166: 0 | DC166: 0 | DD166: 0 | DE166: 0 | DF166: 0 | DG166: 0 | DH166: 0 | DI166: 0 | DJ166: 0 | DK166: 0 | DL166: 0 | DM166: 0 | DN166: 0 | DO166: 0 | DP166: 0 | DQ166: 0 | DR166: 0 | DS166: 0 | DT166: 0 | DU166: 0 | DV166: 0 | DW166: 0 | DX166: 0 | DY166: 0 | DZ166: 0 | EA166: 0 | EB166: 0 | EC166: 0 | ED166: 0 | EE166: 0 | EF166: 0 | EG166: 0 | EH166: 0 | EI166: 0 | EJ166: 0 | EK166: 0 | EL166: 0 | EM166: 0 | EN166: 0 | EO166: 0 | EP166: 0 | EQ166: 0 | ER166: 0 | ES166: 0 | ET166: 0 | EU166: 0 | EV166: 0 | EW166: 0 | EX166: 0 | EY166: 0 | EZ166: 0 | FA166: 0 | FB166: 0 | FC166: 0 | FD166: 0 | FE166: 0 | FF166: 0 | FG166: 0 | FH166: 0 | FI166: 0 | FJ166: 0 | FK166: 0 | FL166: 0 | FM166: 0 | FN166: 0 | FO166: 0 | FP166: 0 | FQ166: 0 | FR166: 0 | FS166: 0 | FT166: 0 | FU166: 0 | FV166: 0 | FW166: 0 | FX166: 0 | FY166: 0 | FZ166: 0 | GA166: 0 | GB166: 0 | GC166: 0 | GD166: 0 | GE166: 0 | GF166: 0 | GG166: 0 | GH166: 0
CV167: 0 | CW167: 0 | CX167: 0 | CY167: 0 | CZ167: 0 | DA167: 0 | DB167: 0 | DC167: 0 | DD167: 0 | DE167: 0 | DF167: 0 | DG167: 0 | DH167: 0 | DI167: 0 | DJ167: 0 | DK167: 0 | DL167: 0 | DM167: 0 | DN167: 0 | DO167: 0 | DP167: 0 | DQ167: 0 | DR167: 0 | DS167: 0 | DT167: 0 | DU167: 0 | DV167: 0 | DW167: 0 | DX167: 0 | DY167: 0 | DZ167: 0 | EA167: 0 | EB167: 0 | EC167: 0 | ED167: 0 | EE167: 0 | EF167: 0 | EG167: 0 | EH167: 0 | EI167: 0 | EJ167: 0 | EK167: 0 | EL167: 0 | EM167: 0 | EN167: 0 | EO167: 0 | EP167: 0 | EQ167: 0 | ER167: 0 | ES167: 0 | ET167: 0 | EU167: 0 | EV167: 0 | EW167: 0 | EX167: 0 | EY167: 0 | EZ167: 0 | FA167: 0 | FB167: 0 | FC167: 0 | FD167: 0 | FE167: 0 | FF167: 0 | FG167: 0 | FH167: 0 | FI167: 0 | FJ167: 0 | FK167: 0 | FL167: 0 | FM167: 0 | FN167: 0 | FO167: 0 | FP167: 0 | FQ167: 0 | FR167: 0 | FS167: 0 | FT167: 0 | FU167: 0 | FV167: 0 | FW167: 0 | FX167: 0 | FY167: 0 | FZ167: 0 | GA167: 0 | GB167: 0 | GC167: 0 | GD167: 0 | GE167: 0 | GF167: 0 | GG167: 0 | GH167: 0
CV168: 0 | CW168: 0 | CX168: 0 | CY168: 0 | CZ168: 0 | DA168: 0 | DB168: 0 | DC168: 0 | DD168: 0 | DE168: 0 | DF168: 0 | DG168: 0 | DH168: 0 | DI168: 0 | DJ168: 0 | DK168: 0 | DL168: 0 | DM168: 0 | DN168: 0 | DO168: 0 | DP168: 0 | DQ168: 0 | DR168: 0 | DS168: 0 | DT168: 0 | DU168: 0 | DV168: 0 | DW168: 0 | DX168: 0 | DY168: 0 | DZ168: 0 | EA168: 0 | EB168: 0 | EC168: 0 | ED168: 0 | EE168: 0 | EF168: 0 | EG168: 0 | EH168: 0 | EI168: 0 | EJ168: 0 | EK168: 0 | EL168: 0 | EM168: 0 | EN168: 0 | EO168: 0 | EP168: 0 | EQ168: 0 | ER168: 0 | ES168: 0 | ET168: 0 | EU168: 0 | EV168: 0 | EW168: 0 | EX168: 0 | EY168: 0 | EZ168: 0 | FA168: 0 | FB168: 0 | FC168: 0 | FD168: 0 | FE168: 0 | FF168: 0 | FG168: 0 | FH168: 0 | FI168: 0 | FJ168: 0 | FK168: 0 | FL168: 0 | FM168: 0 | FN168: 0 | FO168: 0 | FP168: 0 | FQ168: 0 | FR168: 0 | FS168: 0 | FT168: 0 | FU168: 0 | FV168: 0 | FW168: 0 | FX168: 0 | FY168: 0 | FZ168: 0 | GA168: 0 | GB168: 0 | GC168: 0 | GD168: 0 | GE168: 0 | GF168: 0 | GG168: 0 | GH168: 0
CV169: 0 | CW169: 0 | CX169: 0 | CY169: 0 | CZ169: 0 | DA169: 0 | DB169: 0 | DC169: 0 | DD169: 0 | DE169: 0 | DF169: 0 | DG169: 0 | DH169: 0 | DI169: 0 | DJ169: 0 | DK169: 0 | DL169: 0 | DM169: 0 | DN169: 0 | DO169: 0 | DP169: 0 | DQ169: 0 | DR169: 0 | DS169: 0 | DT169: 0 | DU169: 0 | DV169: 0 | DW169: 0 | DX169: 0 | DY169: 0 | DZ169: 0 | EA169: 0 | EB169: 0 | EC169: 0 | ED169: 0 | EE169: 0 | EF169: 0 | EG169: 0 | EH169: 0 | EI169: 0 | EJ169: 0 | EK169: 0 | EL169: 0 | EM169: 0 | EN169: 0 | EO169: 0 | EP169: 0 | EQ169: 0 | ER169: 0 | ES169: 0 | ET169: 0 | EU169: 0 | EV169: 0 | EW169: 0 | EX169: 0 | EY169: 0 | EZ169: 0 | FA169: 0 | FB169: 0 | FC169: 0 | FD169: 0 | FE169: 0 | FF169: 0 | FG169: 0 | FH169: 0 | FI169: 0 | FJ169: 0 | FK169: 0 | FL169: 0 | FM169: 0 | FN169: 0 | FO169: 0 | FP169: 0 | FQ169: 0 | FR169: 0 | FS169: 0 | FT169: 0 | FU169: 0 | FV169: 0 | FW169: 0 | FX169: 0 | FY169: 0 | FZ169: 0 | GA169: 0 | GB169: 0 | GC169: 0 | GD169: 0 | GE169: 0 | GF169: 0 | GG169: 0 | GH169: 0
CV170: 0 | CW170: 0 | CX170: 0 | CY170: 0 | CZ170: 0 | DA170: 0 | DB170: 0 | DC170: 0 | DD170: 0 | DE170: 0 | DF170: 0 | DG170: 0 | DH170: 0 | DI170: 0 | DJ170: 0 | DK170: 0 | DL170: 0 | DM170: 0 | DN170: 0 | DO170: 0 | DP170: 0 | DQ170: 0 | DR170: 0 | DS170: 0 | DT170: 0 | DU170: 0 | DV170: 0 | DW170: 0 | DX170: 0 | DY170: 0 | DZ170: 0 | EA170: 0 | EB170: 0 | EC170: 0 | ED170: 0 | EE170: 0 | EF170: 0 | EG170: 0 | EH170: 0 | EI170: 0 | EJ170: 0 | EK170: 0 | EL170: 0 | EM170: 0 | EN170: 0 | EO170: 0 | EP170: 0 | EQ170: 0 | ER170: 0 | ES170: 0 | ET170: 0 | EU170: 0 | EV170: 0 | EW170: 0 | EX170: 0 | EY170: 0 | EZ170: 0 | FA170: 0 | FB170: 0 | FC170: 0 | FD170: 0 | FE170: 0 | FF170: 0 | FG170: 0 | FH170: 0 | FI170: 0 | FJ170: 0 | FK170: 0 | FL170: 0 | FM170: 0 | FN170: 0 | FO170: 0 | FP170: 0 | FQ170: 0 | FR170: 0 | FS170: 0 | FT170: 0 | FU170: 0 | FV170: 0 | FW170: 0 | FX170: 0 | FY170: 0 | FZ170: 0 | GA170: 0 | GB170: 0 | GC170: 0 | GD170: 0 | GE170: 0 | GF170: 0 | GG170: 0 | GH170: 0
CV171: 0 | CW171: 0 | CX171: 0 | CY171: 0 | CZ171: 0 | DA171: 0 | DB171: 0 | DC171: 0 | DD171: 0 | DE171: 0 | DF171: 0 | DG171: 0 | DH171: 0 | DI171: 0 | DJ171: 0 | DK171: 0 | DL171: 0 | DM171: 0 | DN171: 0 | DO171: 0 | DP171: 0 | DQ171: 0 | DR171: 0 | DS171: 0 | DT171: 0 | DU171: 0 | DV171: 0 | DW171: 0 | DX171: 0 | DY171: 0 | DZ171: 0 | EA171: 0 | EB171: 0 | EC171: 0 | ED171: 0 | EE171: 0 | EF171: 0 | EG171: 0 | EH171: 0 | EI171: 0 | EJ171: 0 | EK171: 0 | EL171: 0 | EM171: 0 | EN171: 0 | EO171: 0 | EP171: 0 | EQ171: 0 | ER171: 0 | ES171: 0 | ET171: 0 | EU171: 0 | EV171: 0 | EW171: 0 | EX171: 0 | EY171: 0 | EZ171: 0 | FA171: 0 | FB171: 0 | FC171: 0 | FD171: 0 | FE171: 0 | FF171: 0 | FG171: 0 | FH171: 0 | FI171: 0 | FJ171: 0 | FK171: 0 | FL171: 0 | FM171: 0 | FN171: 0 | FO171: 0 | FP171: 0 | FQ171: 0 | FR171: 0 | FS171: 0 | FT171: 0 | FU171: 0 | FV171: 0 | FW171: 0 | FX171: 0 | FY171: 0 | FZ171: 0 | GA171: 0 | GB171: 0 | GC171: 0 | GD171: 0 | GE171: 0 | GF171: 0 | GG171: 0 | GH171: 0
CV172: 0 | CW172: 0 | CX172: 0 | CY172: 0 | CZ172: 0 | DA172: 0 | DB172: 0 | DC172: 0 | DD172: 0 | DE172: 0 | DF172: 0 | DG172: 0 | DH172: 0 | DI172: 0 | DJ172: 0 | DK172: 0 | DL172: 0 | DM172: 0 | DN172: 0 | DO172: 0 | DP172: 0 | DQ172: 0 | DR172: 0 | DS172: 0 | DT172: 0 | DU172: 0 | DV172: 0 | DW172: 0 | DX172: 0 | DY172: 0 | DZ172: 0 | EA172: 0 | EB172: 0 | EC172: 0 | ED172: 0 | EE172: 0 | EF172: 0 | EG172: 0 | EH172: 0 | EI172: 0 | EJ172: 0 | EK172: 0 | EL172: 0 | EM172: 0 | EN172: 0 | EO172: 0 | EP172: 0 | EQ172: 0 | ER172: 0 | ES172: 0 | ET172: 0 | EU172: 0 | EV172: 0 | EW172: 0 | EX172: 0 | EY172: 0 | EZ172: 0 | FA172: 0 | FB172: 0 | FC172: 0 | FD172: 0 | FE172: 0 | FF172: 0 | FG172: 0 | FH172: 0 | FI172: 0 | FJ172: 0 | FK172: 0 | FL172: 0 | FM172: 0 | FN172: 0 | FO172: 0 | FP172: 0 | FQ172: 0 | FR172: 0 | FS172: 0 | FT172: 0 | FU172: 0 | FV172: 0 | FW172: 0 | FX172: 0 | FY172: 0 | FZ172: 0 | GA172: 0 | GB172: 0 | GC172: 0 | GD172: 0 | GE172: 0 | GF172: 0 | GG172: 0 | GH172: 0
CV173: 0 | CW173: 0 | CX173: 0 | CY173: 0 | CZ173: 0 | DA173: 0 | DB173: 0 | DC173: 0 | DD173: 0 | DE173: 0 | DF173: 0 | DG173: 0 | DH173: 0 | DI173: 0 | DJ173: 0 | DK173: 0 | DL173: 0 | DM173: 0 | DN173: 0 | DO173: 0 | DP173: 0 | DQ173: 0 | DR173: 0 | DS173: 0 | DT173: 0 | DU173: 0 | DV173: 0 | DW173: 0 | DX173: 0 | DY173: 0 | DZ173: 0 | EA173: 0 | EB173: 0 | EC173: 0 | ED173: 0 | EE173: 0 | EF173: 0 | EG173: 0 | EH173: 0 | EI173: 0 | EJ173: 0 | EK173: 0 | EL173: 0 | EM173: 0 | EN173: 0 | EO173: 0 | EP173: 0 | EQ173: 0 | ER173: 0 | ES173: 0 | ET173: 0 | EU173: 0 | EV173: 0 | EW173: 0 | EX173: 0 | EY173: 0 | EZ173: 0 | FA173: 0 | FB173: 0 | FC173: 0 | FD173: 0 | FE173: 0 | FF173: 0 | FG173: 0 | FH173: 0 | FI173: 0 | FJ173: 0 | FK173: 0 | FL173: 0 | FM173: 0 | FN173: 0 | FO173: 0 | FP173: 0 | FQ173: 0 | FR173: 0 | FS173: 0 | FT173: 0 | FU173: 0 | FV173: 0 | FW173: 0 | FX173: 0 | FY173: 0 | FZ173: 0 | GA173: 0 | GB173: 0 | GC173: 0 | GD173: 0 | GE173: 0 | GF173: 0 | GG173: 0 | GH173: 0
CV174: 0 | CW174: 0 | CX174: 0 | CY174: 0 | CZ174: 0 | DA174: 0 | DB174: 0 | DC174: 0 | DD174: 0 | DE174: 0 | DF174: 0 | DG174: 0 | DH174: 0 | DI174: 0 | DJ174: 0 | DK174: 0 | DL174: 0 | DM174: 0 | DN174: 0 | DO174: 0 | DP174: 0 | DQ174: 0 | DR174: 0 | DS174: 0 | DT174: 0 | DU174: 0 | DV174: 0 | DW174: 0 | DX174: 0 | DY174: 0 | DZ174: 0 | EA174: 0 | EB174: 0 | EC174: 0 | ED174: 0 | EE174: 0 | EF174: 0 | EG174: 0 | EH174: 0 | EI174: 0 | EJ174: 0 | EK174: 0 | EL174: 0 | EM174: 0 | EN174: 0 | EO174: 0 | EP174: 0 | EQ174: 0 | ER174: 0 | ES174: 0 | ET174: 0 | EU174: 0 | EV174: 0 | EW174: 0 | EX174: 0 | EY174: 0 | EZ174: 0 | FA174: 0 | FB174: 0 | FC174: 0 | FD174: 0 | FE174: 0 | FF174: 0 | FG174: 0 | FH174: 0 | FI174: 0 | FJ174: 0 | FK174: 0 | FL174: 0 | FM174: 0 | FN174: 0 | FO174: 0 | FP174: 0 | FQ174: 0 | FR174: 0 | FS174: 0 | FT174: 0 | FU174: 0 | FV174: 0 | FW174: 0 | FX174: 0 | FY174: 0 | FZ174: 0 | GA174: 0 | GB174: 0 | GC174: 0 | GD174: 0 | GE174: 0 | GF174: 0 | GG174: 0 | GH174: 0
CV175: 0 | CW175: 0 | CX175: 0 | CY175: 0 | CZ175: 0 | DA175: 0 | DB175: 0 | DC175: 0 | DD175: 0 | DE175: 0 | DF175: 0 | DG175: 0 | DH175: 0 | DI175: 0 | DJ175: 0 | DK175: 0 | DL175: 0 | DM175: 0 | DN175: 0 | DO175: 0 | DP175: 0 | DQ175: 0 | DR175: 0 | DS175: 0 | DT175: 0 | DU175: 0 | DV175: 0 | DW175: 0 | DX175: 0 | DY175: 0 | DZ175: 0 | EA175: 0 | EB175: 0 | EC175: 0 | ED175: 0 | EE175: 0 | EF175: 0 | EG175: 0 | EH175: 0 | EI175: 0 | EJ175: 0 | EK175: 0 | EL175: 0 | EM175: 0 | EN175: 0 | EO175: 0 | EP175: 0 | EQ175: 0 | ER175: 0 | ES175: 0 | ET175: 0 | EU175: 0 | EV175: 0 | EW175: 0 | EX175: 0 | EY175: 0 | EZ175: 0 | FA175: 0 | FB175: 0 | FC175: 0 | FD175: 0 | FE175: 0 | FF175: 0 | FG175: 0 | FH175: 0 | FI175: 0 | FJ175: 0 | FK175: 0 | FL175: 0 | FM175: 0 | FN175: 0 | FO175: 0 | FP175: 0 | FQ175: 0 | FR175: 0 | FS175: 0 | FT175: 0 | FU175: 0 | FV175: 0 | FW175: 0 | FX175: 0 | FY175: 0 | FZ175: 0 | GA175: 0 | GB175: 0 | GC175: 0 | GD175: 0 | GE175: 0 | GF175: 0 | GG175: 0 | GH175: 0
CV176: 0 | CW176: 0 | CX176: 0 | CY176: 0 | CZ176: 0 | DA176: 0 | DB176: 0 | DC176: 0 | DD176: 0 | DE176: 0 | DF176: 0 | DG176: 0 | DH176: 0 | DI176: 0 | DJ176: 0 | DK176: 0 | DL176: 0 | DM176: 0 | DN176: 0 | DO176: 0 | DP176: 0 | DQ176: 0 | DR176: 0 | DS176: 0 | DT176: 0 | DU176: 0 | DV176: 0 | DW176: 0 | DX176: 0 | DY176: 0 | DZ176: 0 | EA176: 0 | EB176: 0 | EC176: 0 | ED176: 0 | EE176: 0 | EF176: 0 | EG176: 0 | EH176: 0 | EI176: 0 | EJ176: 0 | EK176: 0 | EL176: 0 | EM176: 0 | EN176: 0 | EO176: 0 | EP176: 0 | EQ176: 0 | ER176: 0 | ES176: 0 | ET176: 0 | EU176: 0 | EV176: 0 | EW176: 0 | EX176: 0 | EY176: 0 | EZ176: 0 | FA176: 0 | FB176: 0 | FC176: 0 | FD176: 0 | FE176: 0 | FF176: 0 | FG176: 0 | FH176: 0 | FI176: 0 | FJ176: 0 | FK176: 0 | FL176: 0 | FM176: 0 | FN176: 0 | FO176: 0 | FP176: 0 | FQ176: 0 | FR176: 0 | FS176: 0 | FT176: 0 | FU176: 0 | FV176: 0 | FW176: 0 | FX176: 0 | FY176: 0 | FZ176: 0 | GA176: 0 | GB176: 0 | GC176: 0 | GD176: 0 | GE176: 0 | GF176: 0 | GG176: 0 | GH176: 0
CV177: 0 | CW177: 0 | CX177: 0 | CY177: 0 | CZ177: 0 | DA177: 0 | DB177: 0 | DC177: 0 | DD177: 0 | DE177: 0 | DF177: 0 | DG177: 0 | DH177: 0 | DI177: 0 | DJ177: 0 | DK177: 0 | DL177: 0 | DM177: 0 | DN177: 0 | DO177: 0 | DP177: 0 | DQ177: 0 | DR177: 0 | DS177: 0 | DT177: 0 | DU177: 0 | DV177: 0 | DW177: 0 | DX177: 0 | DY177: 0 | DZ177: 0 | EA177: 0 | EB177: 0 | EC177: 0 | ED177: 0 | EE177: 0 | EF177: 0 | EG177: 0 | EH177: 0 | EI177: 0 | EJ177: 0 | EK177: 0 | EL177: 0 | EM177: 0 | EN177: 0 | EO177: 0 | EP177: 0 | EQ177: 0 | ER177: 0 | ES177: 0 | ET177: 0 | EU177: 0 | EV177: 0 | EW177: 0 | EX177: 0 | EY177: 0 | EZ177: 0 | FA177: 0 | FB177: 0 | FC177: 0 | FD177: 0 | FE177: 0 | FF177: 0 | FG177: 0 | FH177: 0 | FI177: 0 | FJ177: 0 | FK177: 0 | FL177: 0 | FM177: 0 | FN177: 0 | FO177: 0 | FP177: 0 | FQ177: 0 | FR177: 0 | FS177: 0 | FT177: 0 | FU177: 0 | FV177: 0 | FW177: 0 | FX177: 0 | FY177: 0 | FZ177: 0 | GA177: 0 | GB177: 0 | GC177: 0 | GD177: 0 | GE177: 0 | GF177: 0 | GG177: 0 | GH177: 0
CV178: 0 | CW178: 0 | CX178: 0 | CY178: 0 | CZ178: 0 | DA178: 0 | DB178: 0 | DC178: 0 | DD178: 0 | DE178: 0 | DF178: 0 | DG178: 0 | DH178: 0 | DI178: 0 | DJ178: 0 | DK178: 0 | DL178: 0 | DM178: 0 | DN178: 0 | DO178: 0 | DP178: 0 | DQ178: 0 | DR178: 0 | DS178: 0 | DT178: 0 | DU178: 0 | DV178: 0 | DW178: 0 | DX178: 0 | DY178: 0 | DZ178: 0 | EA178: 0 | EB178: 0 | EC178: 0 | ED178: 0 | EE178: 0 | EF178: 0 | EG178: 0 | EH178: 0 | EI178: 0 | EJ178: 0 | EK178: 0 | EL178: 0 | EM178: 0 | EN178: 0 | EO178: 0 | EP178: 0 | EQ178: 0 | ER178: 0 | ES178: 0 | ET178: 0 | EU178: 0 | EV178: 0 | EW178: 0 | EX178: 0 | EY178: 0 | EZ178: 0 | FA178: 0 | FB178: 0 | FC178: 0 | FD178: 0 | FE178: 0 | FF178: 0 | FG178: 0 | FH178: 0 | FI178: 0 | FJ178: 0 | FK178: 0 | FL178: 0 | FM178: 0 | FN178: 0 | FO178: 0 | FP178: 0 | FQ178: 0 | FR178: 0 | FS178: 0 | FT178: 0 | FU178: 0 | FV178: 0 | FW178: 0 | FX178: 0 | FY178: 0 | FZ178: 0 | GA178: 0 | GB178: 0 | GC178: 0 | GD178: 0 | GE178: 0 | GF178: 0 | GG178: 0 | GH178: 0
CV179: 0 | CW179: 0 | CX179: 0 | CY179: 0 | CZ179: 0 | DA179: 0 | DB179: 0 | DC179: 0 | DD179: 0 | DE179: 0 | DF179: 0 | DG179: 0 | DH179: 0 | DI179: 0 | DJ179: 0 | DK179: 0 | DL179: 0 | DM179: 0 | DN179: 0 | DO179: 0 | DP179: 0 | DQ179: 0 | DR179: 0 | DS179: 0 | DT179: 0 | DU179: 0 | DV179: 0 | DW179: 0 | DX179: 0 | DY179: 0 | DZ179: 0 | EA179: 0 | EB179: 0 | EC179: 0 | ED179: 0 | EE179: 0 | EF179: 0 | EG179: 0 | EH179: 0 | EI179: 0 | EJ179: 0 | EK179: 0 | EL179: 0 | EM179: 0 | EN179: 0 | EO179: 0 | EP179: 0 | EQ179: 0 | ER179: 0 | ES179: 0 | ET179: 0 | EU179: 0 | EV179: 0 | EW179: 0 | EX179: 0 | EY179: 0 | EZ179: 0 | FA179: 0 | FB179: 0 | FC179: 0 | FD179: 0 | FE179: 0 | FF179: 0 | FG179: 0 | FH179: 0 | FI179: 0 | FJ179: 0 | FK179: 0 | FL179: 0 | FM179: 0 | FN179: 0 | FO179: 0 | FP179: 0 | FQ179: 0 | FR179: 0 | FS179: 0 | FT179: 0 | FU179: 0 | FV179: 0 | FW179: 0 | FX179: 0 | FY179: 0 | FZ179: 0 | GA179: 0 | GB179: 0 | GC179: 0 | GD179: 0 | GE179: 0 | GF179: 0 | GG179: 0 | GH179: 0
CV180: 0 | CW180: 0 | CX180: 0 | CY180: 0 | CZ180: 0 | DA180: 0 | DB180: 0 | DC180: 0 | DD180: 0 | DE180: 0 | DF180: 0 | DG180: 0 | DH180: 0 | DI180: 0 | DJ180: 0 | DK180: 0 | DL180: 0 | DM180: 0 | DN180: 0 | DO180: 0 | DP180: 0 | DQ180: 0 | DR180: 0 | DS180: 0 | DT180: 0 | DU180: 0 | DV180: 0 | DW180: 0 | DX180: 0 | DY180: 0 | DZ180: 0 | EA180: 0 | EB180: 0 | EC180: 0 | ED180: 0 | EE180: 0 | EF180: 0 | EG180: 0 | EH180: 0 | EI180: 0 | EJ180: 0 | EK180: 0 | EL180: 0 | EM180: 0 | EN180: 0 | EO180: 0 | EP180: 0 | EQ180: 0 | ER180: 0 | ES180: 0 | ET180: 0 | EU180: 0 | EV180: 0 | EW180: 0 | EX180: 0 | EY180: 0 | EZ180: 0 | FA180: 0 | FB180: 0 | FC180: 0 | FD180: 0 | FE180: 0 | FF180: 0 | FG180: 0 | FH180: 0 | FI180: 0 | FJ180: 0 | FK180: 0 | FL180: 0 | FM180: 0 | FN180: 0 | FO180: 0 | FP180: 0 | FQ180: 0 | FR180: 0 | FS180: 0 | FT180: 0 | FU180: 0 | FV180: 0 | FW180: 0 | FX180: 0 | FY180: 0 | FZ180: 0 | GA180: 0 | GB180: 0 | GC180: 0 | GD180: 0 | GE180: 0 | GF180: 0 | GG180: 0 | GH180: 0
